Workbook

Sheet LÍNEA 1
B3: ALCALDÍA DE BUCARAMANGA
B4: PLAN DE DESARROLLO 2020 - 2023 "BUCARAMANGA, UNA CIUDAD DE OPORTUNIDADES"
B5: LÍNEA ESTRATÉGICA 1. BUCARAMANGA EQUITATIVA E INCLUYENTE: UNA CIUDAD DE BIENESTAR
B8: POND | C8: LÍNEA ESTRATÉGICA | D8: META DE BIENESTAR | E8: LÍNEA BASE | F8: RESULTADO CUATRIENIO | H8: META POR VIGENCIA | T8: LOGRO POR VIGENCIA | AB8: PORCENTAJE DE CUMPLIMIENTO | AM8: POND | AN8: COMPONENTE | AO8: POND | AP8: PROGRAMA | AQ8: META DE PRODUCTO | AR8: RUBRO PPTAL | AS8: INDICADOR DE PRODUCTO | BD8: LOGRO POR VIGENCIA | BH8: PORCENTAJE DE CUMPLIMIENTO | BS8: RECURSOS POR FUENTE DE FINANCIACIÓN PARA CADA VIGENCIA | CR8: ODS | CS8: SECTOR
BS9: 2020 | BX9: 2021 | CC9: 2022 | CH9: 2023 | CM9: 2020 - 2023
H10: 2020 | K10: 2021 | N10: 2022 | Q10: 2023 | T10: 2020 | V10: 2021 | X10: 2022 | Z10: 2023 | AB10: 2020 | AD10: 2021 | AF10: 2022 | AH10: 2023 | AJ10: 2020 - 2023 | AS10: NOMBRE INDICADOR | AT10: LÍNEA BASE | AU10: ESPERADO CUATRIENIO | AV10: 2020 | AX10: 2021 | AZ10: 2022 | BB10: 2023 | BD10: 2020 | BE10: 2021 | BF10: 2022 | BG10: 2023 | BH10: 2020 | BJ10: 2021 | BL10: 2022 | BN10: 2023 | BP10: 2020 - 2023 | BS10: RECURSOS PROGRAMADOS | BT10: RECURSOS EJECUTADOS | BU10: RECURSOS GESTIONADOS | BV10: PORCENTAJE EJECUCIÓN | BW10: NIVEL DE GESTIÓN | BX10: RECURSOS PROGRAMADOS | BY10: RECURSOS EJECUTADOS | BZ10: RECURSOS GESTIONADOS | CA10: PORCENTAJE EJECUCIÓN | CB10: NIVEL DE GESTIÓN | CC10: RECURSOS PROGRAMADOS | CD10: RECURSOS EJECUTADOS | CE10: RECURSOS GESTIONADOS | CF10: PORCENTAJE EJECUCIÓN | CG10: NIVEL DE GESTIÓN | CH10: RECURSOS PROGRAMADOS | CI10: RECURSOS EJECUTADOS | CJ10: RECURSOS GESTIONADOS | CK10: PORCENTAJE EJECUCIÓN | CL10: NIVEL DE GESTIÓN | CM10: RECURSOS PROGRAMADOS | CN10: RECURSOS EJECUTADOS | CO10: RECURSOS GESTIONADOS | CP10: PORCENTAJE EJECUCIÓN | CQ10: NIVEL DE GESTIÓN | CT10: RESPONSABLE
B11: 0.7601806072 | C11: 1. BUCARAMANGA EQUITATIVA E INCLUYENTE: UNA CIUDAD DE BIENESTAR | D11: Aumentar a 79,39% la tasa de cobertura neta en transición. | E11: 0.7727 | F11: 0.7939 | H11: 0.777 | K11: 0.782 | N11: 0.787 | Q11: 0.7939 | AM11: 0.5932795952 | AN11: EDUCACIÓN DE CALIDAD, GARANTÍA DE UNA CIUDAD DE OPORTUNIDADES | AO11: 0.1554190216 | AP11: COBERTURA Y EQUIDAD DE LA EDUCACIÓN PREESCOLAR, BÁSICA Y MEDIA | AQ11: Adecuar y/o dotar 10 ambientes escolares para la atención a la primera infancia (transición) con enfoque diferencial. | AR11: 0 | AS11: Número de ambientes escolares adecuados y/o dotados para la atención a la primera infancia (transición) con enfoque diferencial. | AT11: 13 | AU11: 10 | AV11: 0 | AW11: =+AV11/AU11 -> 0 | AX11: 0 | AY11: =+AX11/AU11 -> 0 | AZ11: 10 | BA11: =+AZ11/AU11 -> 1 | BB11: 0 | BC11: =+BB11/AU11 -> 0 | BD11: 0 | BE11: 0 | BF11: 0 | BG11: 0 | BH11: =IF(AV11=0," -",BD11/AV11) -> - | BI11: =IF(AV11=0," -",IF(BH11>100%,100%,BH11)) -> - | BJ11: =IF(AX11=0," -",BE11/AX11) -> - | BK11: =IF(AX11=0," -",IF(BJ11>100%,100%,BJ11)) -> - | BL11: =IF(AZ11=0," -",BF11/AZ11) -> 0 | BM11: =IF(AZ11=0," -",IF(BL11>100%,100%,BL11)) -> 0 | BN11: =IF(BB11=0," -",BG11/BB11) -> - | BO11: =IF(BB11=0," -",IF(BN11>100%,100%,BN11)) -> - | BP11: =+SUM(BD11:BG11)/AU11 -> 0 | BQ11: =+IF(BP11>100%,100%,BP11) -> 0 | BR11: =+BQ11 -> 0 | BS11: 0 | BT11: 0 | BU11: 0 | BV11: =IF(BS11=0," -",BT11/BS11) -> - | BW11: =IF(BU11=0," -",IF(BT11=0,100%,BU11/BT11)) -> - | BX11: 0 | BY11: 0 | BZ11: 0 | CA11: =IF(BX11=0," -",BY11/BX11) -> - | CB11: =IF(BZ11=0," -",IF(BY11=0,100%,BZ11/BY11)) -> - | CC11: 3733500 | CD11: 0 | CE11: 0 | CF11: =IF(CC11=0," -",CD11/CC11) -> 0 | CG11: =IF(CE11=0," -",IF(CD11=0,100%,CE11/CD11)) -> - | CH11: 0 | CI11: 0 | CJ11: 0 | CK11: =IF(CH11=0," -",CI11/CH11) -> - | CL11: =IF(CJ11=0," -",IF(CI11=0,100%,CJ11/CI11)) -> - | CM11: =+BS11+BX11+CC11+CH11 -> 3733500 | CN11: 0 | CO11: 0 | CP11: =IF(CM11=0," -",CN11/CM11) -> 0 | CQ11: =IF(CO11=0," -",IF(CN11=0,100%,CO11/CN11)) -> - | CR11: 1,2,4,5,10 | CS11: Educación | CT11: Sec. Educación
AQ12: Beneficiar anualmente 32.276 estudiantes con enfoque diferencial en el programa de alimentación escolar. | AR12: 0 | AS12: Número de estudiantes con enfoque diferencial beneficiados anualmente con el programa de alimentación escolar. | AT12: 27628 | AU12: 32276 | AV12: 32276 | AW12: 0.25 | AX12: 32276 | AY12: 0.25 | AZ12: 32276 | BA12: 0.25 | BB12: 32276 | BC12: 0.25 | BD12: 32764 | BE12: 0 | BF12: 0 | BG12: 0 | BH12: =IF(AV12=0," -",BD12/AV12) -> 1.015119594 | BI12: =IF(AV12=0," -",IF(BH12>100%,100%,BH12)) -> 1 | BJ12: =IF(AX12=0," -",BE12/AX12) -> 0 | BK12: =IF(AX12=0," -",IF(BJ12>100%,100%,BJ12)) -> 0 | BL12: =IF(AZ12=0," -",BF12/AZ12) -> 0 | BM12: =IF(AZ12=0," -",IF(BL12>100%,100%,BL12)) -> 0 | BN12: =IF(BB12=0," -",BG12/BB12) -> 0 | BO12: =IF(BB12=0," -",IF(BN12>100%,100%,BN12)) -> 0 | BP12: =+AVERAGE(BD12:BG12)/AU12 -> 0.2537798984 | BQ12: =+IF(BP12>100%,100%,BP12) -> 0.2537798984 | BR12: =+BQ12 -> 0.2537798984 | BS12: 23624600.28 | BT12: 23491462.61 | BU12: 0 | BV12: =IF(BS12=0," -",BT12/BS12) -> 0.9943644477 | BW12: =IF(BU12=0," -",IF(BT12=0,100%,BU12/BT12)) -> - | BX12: 19705923.12 | BY12: 0 | BZ12: 0 | CA12: =IF(BX12=0," -",BY12/BX12) -> 0 | CB12: =IF(BZ12=0," -",IF(BY12=0,100%,BZ12/BY12)) -> - | CC12: 25363296 | CD12: 0 | CE12: 0 | CF12: =IF(CC12=0," -",CD12/CC12) -> 0 | CG12: =IF(CE12=0," -",IF(CD12=0,100%,CE12/CD12)) -> - | CH12: 25532296 | CI12: 0 | CJ12: 0 | CK12: =IF(CH12=0," -",CI12/CH12) -> 0 | CL12: =IF(CJ12=0," -",IF(CI12=0,100%,CJ12/CI12)) -> - | CM12: 94226115.39 | CN12: 23491462.61 | CO12: 0 | CP12: =IF(CM12=0," -",CN12/CM12) -> 0.249309467 | CQ12: =IF(CO12=0," -",IF(CN12=0,100%,CO12/CN12)) -> - | CR12: 1,2,4,5,10 | CS12: Educación | CT12: Sec. Educación
AQ13: Mantener al 100% de los estudiantes matriculados en los establecimientos educativos oficiales rurales con el programa de alimentación escolar. | AR13: 0 | AS13: Porcentaje de estudiantes matriculados en los establecimientos educativos oficiales rurales mantenidos con el programa de alimentación escolar. | AT13: 1 | AU13: 1 | AV13: 1 | AW13: 0.25 | AX13: 1 | AY13: 0.25 | AZ13: 1 | BA13: 0.25 | BB13: 1 | BC13: 0.25 | BD13: 0.99 | BE13: 0 | BF13: 0 | BG13: 0 | BH13: =IF(AV13=0," -",BD13/AV13) -> 0.99 | BI13: =IF(AV13=0," -",IF(BH13>100%,100%,BH13)) -> 0.99 | BJ13: =IF(AX13=0," -",BE13/AX13) -> 0 | BK13: =IF(AX13=0," -",IF(BJ13>100%,100%,BJ13)) -> 0 | BL13: =IF(AZ13=0," -",BF13/AZ13) -> 0 | BM13: =IF(AZ13=0," -",IF(BL13>100%,100%,BL13)) -> 0 | BN13: =IF(BB13=0," -",BG13/BB13) -> 0 | BO13: =IF(BB13=0," -",IF(BN13>100%,100%,BN13)) -> 0 | BP13: =+AVERAGE(BD13:BG13)/AU13 -> 0.2475 | BQ13: =+IF(BP13>100%,100%,BP13) -> 0.2475 | BR13: =+BQ13 -> 0.2475 | BS13: 1000000 | BT13: 1000000 | BU13: 0 | BV13: =IF(BS13=0," -",BT13/BS13) -> 1 | BW13: =IF(BU13=0," -",IF(BT13=0,100%,BU13/BT13)) -> - | BX13: 1115000 | BY13: 0 | BZ13: 0 | CA13: =IF(BX13=0," -",BY13/BX13) -> 0 | CB13: =IF(BZ13=0," -",IF(BY13=0,100%,BZ13/BY13)) -> - | CC13: 1187000 | CD13: 0 | CE13: 0 | CF13: =IF(CC13=0," -",CD13/CC13) -> 0 | CG13: =IF(CE13=0," -",IF(CD13=0,100%,CE13/CD13)) -> - | CH13: 1263000 | CI13: 0 | CJ13: 0 | CK13: =IF(CH13=0," -",CI13/CH13) -> 0 | CL13: =IF(CJ13=0," -",IF(CI13=0,100%,CJ13/CI13)) -> - | CM13: =+BS13+BX13+CC13+CH13 -> 4565000 | CN13: =+BT13+BY13+CD13+CI13 -> 1000000 | CO13: =+BU13+BZ13+CE13+CJ13 -> 0 | CP13: =IF(CM13=0," -",CN13/CM13) -> 0.2190580504 | CQ13: =IF(CO13=0," -",IF(CN13=0,100%,CO13/CN13)) -> - | CR13: 1,2,4,510 | CS13: Educación | CT13: Sec. Educación
D14: Aumentar a 92% la tasa de cobertura neta en educación básica secundaria. | E14: 0.9032 | F14: 0.92 | H14: 0.905 | K14: 0.91 | N14: 0.915 | Q14: 0.92 | AQ14: Mantener 3.335 jovenes y adultos con modelos flexibles. | AR14: 0 | AS14: Número de jóvenes y adultos mantenidos con modelos flexibles. | AT14: 3335 | AU14: 3335 | AV14: 3335 | AW14: 0.25 | AX14: 3335 | AY14: 0.25 | AZ14: 3335 | BA14: 0.25 | BB14: 3335 | BC14: 0.25 | BD14: 3561 | BE14: 0 | BF14: 0 | BG14: 0 | BH14: =IF(AV14=0," -",BD14/AV14) -> 1.067766117 | BI14: =IF(AV14=0," -",IF(BH14>100%,100%,BH14)) -> 1 | BJ14: =IF(AX14=0," -",BE14/AX14) -> 0 | BK14: =IF(AX14=0," -",IF(BJ14>100%,100%,BJ14)) -> 0 | BL14: =IF(AZ14=0," -",BF14/AZ14) -> 0 | BM14: =IF(AZ14=0," -",IF(BL14>100%,100%,BL14)) -> 0 | BN14: =IF(BB14=0," -",BG14/BB14) -> 0 | BO14: =IF(BB14=0," -",IF(BN14>100%,100%,BN14)) -> 0 | BP14: =+AVERAGE(BD14:BG14)/AU14 -> 0.2669415292 | BQ14: =+IF(BP14>100%,100%,BP14) -> 0.2669415292 | BR14: 0.2669415292 | BS14: 151334.488 | BT14: 0 | BU14: 0 | BV14: 0 | BW14: - | BX14: 160339.424 | BY14: 0 | BZ14: 0 | CA14: 0 | CB14: - | CC14: 170199 | CD14: 0 | CE14: 0 | CF14: 0 | CG14: - | CH14: 180321 | CI14: 0 | CJ14: 0 | CK14: 0 | CL14: - | CM14: 662193.912 | CN14: 0 | CO14: 0 | CP14: 0 | CQ14: - | CR14: 1,2,4,5,10 | CS14: Educación | CT14: Sec. Educación
AQ15: Entregar dotación de material didáctico y/o mobiliario escolar a 35 establecimientos educativos oficiales. | AR15: 0 | AS15: Número de establecimientos educativos oficiales dotados con material didáctico y/o mobiliario escolar. | AT15: 37 | AU15: 35 | AV15: 17 | AW15: =+AV15/AU15 -> 0.4857142857 | AX15: 0 | AY15: =+AX15/AU15 -> 0 | AZ15: 9 | BA15: =+AZ15/AU15 -> 0.2571428571 | BB15: 9 | BC15: =+BB15/AU15 -> 0.2571428571 | BD15: 9 | BE15: 0 | BF15: 0 | BG15: 0 | BH15: =IF(AV15=0," -",BD15/AV15) -> 0.5294117647 | BI15: 0.5294117647 | BJ15: - | BK15: - | BL15: 0 | BM15: 0 | BN15: 0 | BO15: 0 | BP15: =+SUM(BD15:BG15)/AU15 -> 0.2571428571 | BQ15: 0.2571428571 | BR15: 0.2571428571 | BS15: 472392.87 | BT15: 428481.4898 | BU15: 0 | BV15: 0.9070447863 | BW15: - | BX15: 0 | BY15: 0 | BZ15: 0 | CA15: - | CB15: - | CC15: 1225824 | CD15: 0 | CE15: 0 | CF15: 0 | CG15: - | CH15: 1725824 | CI15: 0 | CJ15: 0 | CK15: 0 | CL15: - | CM15: 3424040.87 | CN15: 428481.4898 | CO15: 0 | CP15: 0.1251391283 | CQ15: - | CR15: 1,4,5,10 | CS15: Educación | CT15: Sec. Educación
AQ16: Mantener el 100% de los modelos lingüísticos, intérpretes de lengua de señas colombiana en la oferta Bilingüe y Bicultural para estudiantes con discapacidad auditiva en la IE Normal Superior de Bucaramanga. | AR16: 0 | AS16: Porcentaje de modelos lingüísticos, intérpretes de lengua de señas colombiana en la oferta Bilingüe y Bicultural mantenidos para estudiantes con discapacidad auditiva en la IE Normal Superior de Bucaramanga. | AT16: 1 | AU16: 1 | AV16: 1 | AW16: 0.25 | AX16: 1 | AY16: 0.25 | AZ16: 1 | BA16: 0.25 | BB16: 1 | BC16: 0.25 | BD16: 1 | BE16: 0 | BF16: 0 | BG16: 0 | BH16: 1 | BI16: 1 | BJ16: 0 | BK16: 0 | BL16: 0 | BM16: 0 | BN16: 0 | BO16: 0 | BP16: 0.25 | BQ16: 0.25 | BR16: 0.25 | BS16: 245102 | BT16: 214400 | BU16: 0 | BV16: 0.8747378642 | BW16: - | BX16: 286078 | BY16: 0 | BZ16: 0 | CA16: 0 | CB16: - | CC16: 303131 | CD16: 0 | CE16: 0 | CF16: 0 | CG16: - | CH16: 321325 | CI16: 0 | CJ16: 0 | CK16: 0 | CL16: - | CM16: 1155636 | CN16: 214400 | CO16: 0 | CP16: 0.1855255461 | CQ16: - | CR16: 1,2,4,5,10 | CS16: Educación | CT16: Sec. Educación
D17: Aumentar a 56% la tasa de cobertura neta en educación media. | E17: 0.539 | F17: 0.56 | H17: 0.544 | K17: 0.549 | N17: 0.554 | Q17: 0.56 | AQ17: Mantener el 100% de los establecimientos educativos oficiales de educación formal, que reportan estudiantes con discapacidad y talentos excepcionales o capacidades, con los servicios profesionales de apoyo pedagógico para el proceso de inclusión y equidad en la educación, para la oferta general. | AR17: 0 | AS17: Porcentaje de establecimientos educativos oficiales de educación formal mantenidos que reportan estudiantes con discapacidad y talentos excepcionales o capacidades, con los servicios profesionales de apoyo pedagógico para el proceso de inclusión y equidad en la educación, para la oferta general. | AT17: 1 | AU17: 1 | AV17: 1 | AW17: 0.25 | AX17: 1 | AY17: 0.25 | AZ17: 1 | BA17: 0.25 | BB17: 1 | BC17: 0.25 | BD17: 1 | BE17: 0 | BF17: 0 | BG17: 0 | BH17: 1 | BI17: 1 | BJ17: 0 | BK17: 0 | BL17: 0 | BM17: 0 | BN17: 0 | BO17: 0 | BP17: 0.25 | BQ17: 0.25 | BR17: 0.25 | BS17: 991079.291 | BT17: 727199.36 | BU17: 0 | BV17: 0.7337448846 | BW17: - | BX17: 903920 | BY17: 0 | BZ17: 0 | CA17: 0 | CB17: - | CC17: 939053 | CD17: 0 | CE17: 0 | CF17: 0 | CG17: - | CH17: 975445 | CI17: 0 | CJ17: 0 | CK17: 0 | CL17: - | CM17: 3809497.291 | CN17: 727199.36 | CO17: 0 | CP17: 0.1908911608 | CQ17: - | CR17: 1,2,4,5,10 | CS17: Educación | CT17: Sec. Educación
AQ18: Mantener en funcionamiento 4 ludotecas. | AR18: 0 | AS18: Número de Ludotecas mantenidas en funcionamiento. | AT18: 4 | AU18: 4 | AV18: 4 | AW18: 0.25 | AX18: 4 | AY18: 0.25 | AZ18: 4 | BA18: 0.25 | BB18: 4 | BC18: 0.25 | BD18: 4 | BE18: 0 | BF18: 0 | BG18: 0 | BH18: 1 | BI18: 1 | BJ18: 0 | BK18: 0 | BL18: 0 | BM18: 0 | BN18: 0 | BO18: 0 | BP18: 0.25 | BQ18: 0.25 | BR18: 0.25 | BS18: 500000 | BT18: 88000 | BU18: 0 | BV18: 0.176 | BW18: - | BX18: 530000 | BY18: 0 | BZ18: 0 | CA18: 0 | CB18: - | CC18: 561800 | CD18: 0 | CE18: 0 | CF18: 0 | CG18: - | CH18: 595508 | CI18: 0 | CJ18: 0 | CK18: 0 | CL18: - | CM18: 2187308 | CN18: 88000 | CO18: 0 | CP18: 0.04023210266 | CQ18: - | CR18: 1,4,5,10 | CS18: Educación | CT18: Sec. Educación
AQ19: Mantener 2.664 cupos de transporte escolar a estudiantes de zonas de difícil acceso con enfoque diferencial. | AR19: 0 | AS19: Número de cupos de transporte escolar mantenidos a estudiantes de zonas de difícil acceso con enfoque diferencial. | AT19: 2664 | AU19: 2664 | AV19: 2664 | AW19: 0.25 | AX19: 2664 | AY19: 0.25 | AZ19: 2664 | BA19: 0.25 | BB19: 2664 | BC19: 0.25 | BD19: 2684 | BE19: 0 | BF19: 0 | BG19: 0 | BH19: 1.007507508 | BI19: 1 | BJ19: 0 | BK19: 0 | BL19: 0 | BM19: 0 | BN19: 0 | BO19: 0 | BP19: 0.2518768769 | BQ19: 0.2518768769 | BR19: 0.2518768769 | BS19: 3970264 | BT19: 1256884.791 | BU19: 0 | BV19: 0.3165746134 | BW19: - | BX19: 3416292.195 | BY19: 0 | BZ19: 0 | CA19: 0 | CB19: - | CC19: 4050000 | CD19: 0 | CE19: 0 | CF19: 0 | CG19: - | CH19: 4091000 | CI19: 0 | CJ19: 0 | CK19: 0 | CL19: - | CM19: 15527556.2 | CN19: 1256884.791 | CO19: 0 | CP19: 0.08094543502 | CQ19: - | CR19: 1,4,5,10 | CS19: Educación | CT19: Sec. Educación
D20: Reducir a 3,5% la tasa de deserción en transición. | E20: 0.046 | F20: 0.035 | H20: 0.045 | K20: 0.042 | N20: 0.038 | Q20: 0.035 | AQ20: Mantener 9.668 estudiantes con prestación del servicio educativo por el sistema de contratación del servicio educativo con enfoque diferencial. | AR20: 0 | AS20: Número de estudiantes mantenidos con la prestación del servicio educativo por el sistema de contratación con enfoque diferencial. | AT20: 9668 | AU20: 9668 | AV20: 9668 | AW20: 0.25 | AX20: 9668 | AY20: 0.25 | AZ20: 9668 | BA20: 0.25 | BB20: 9668 | BC20: 0.25 | BD20: 9931 | BE20: 0 | BF20: 0 | BG20: 0 | BH20: 1.027203144 | BI20: 1 | BJ20: 0 | BK20: 0 | BL20: 0 | BM20: 0 | BN20: 0 | BO20: 0 | BP20: 0.2568007861 | BQ20: 0.2568007861 | BR20: 0.2568007861 | BS20: 14262339 | BT20: 13874545.87 | BU20: 0 | BV20: 0.9728099904 | BW20: - | BX20: 14953062 | BY20: 0 | BZ20: 0 | CA20: 0 | CB20: - | CC20: 15684560 | CD20: 0 | CE20: 0 | CF20: 0 | CG20: - | CH20: 16459270 | CI20: 0 | CJ20: 0 | CK20: 0 | CL20: - | CM20: 61359231 | CN20: 13874545.87 | CO20: 0 | CP20: 0.2261199438 | CQ20: - | CR20: 1,4,5,10 | CS20: Educación | CT20: Sec. Educación
AQ21: Realizar mantenimiento a 40 establecimientos educativos oficiales. | AR21: 0 | AS21: Número de establecimientos educativos oficiales con reparaciones locativas realizadas. | AT21: 30 | AU21: 40 | AV21: 13 | AW21: =+AV21/AU21 -> 0.325 | AX21: 7 | AY21: =+AX21/AU21 -> 0.175 | AZ21: 10 | BA21: =+AZ21/AU21 -> 0.25 | BB21: 10 | BC21: =+BB21/AU21 -> 0.25 | BD21: 14 | BE21: 0 | BF21: 0 | BG21: 0 | BH21: 1.076923077 | BI21: 1 | BJ21: 0 | BK21: 0 | BL21: 0 | BM21: 0 | BN21: 0 | BO21: 0 | BP21: =+SUM(BD21:BG21)/AU21 -> 0.35 | BQ21: 0.35 | BR21: 0.35 | BS21: 2643825.675 | BT21: 1688181.644 | BU21: 0 | BV21: 0.638537427 | BW21: - | BX21: 2177850.832 | BY21: 0 | BZ21: 0 | CA21: 0 | CB21: - | CC21: 3748823 | CD21: 0 | CE21: 0 | CF21: 0 | CG21: - | CH21: 6677323 | CI21: 0 | CJ21: 0 | CK21: 0 | CL21: - | CM21: 15247822.51 | CN21: 1688181.644 | CO21: 0 | CP21: 0.1107162445 | CQ21: - | CR21: 1,4,5,10 | CS21: Educación | CT21: Sec. Educación
AQ22: Realizar 25 intervenciones a colegios públicos de Bucaramanga. | AR22: 0 | AS22: Número de intervenciones realizadas a colegios públicos de Bucaramanga. | AT22: 0 | AU22: 25 | AV22: 5 | AW22: =+AV22/AU22 -> 0.2 | AX22: 0 | AY22: =+AX22/AU22 -> 0 | AZ22: 12 | BA22: =+AZ22/AU22 -> 0.48 | BB22: 8 | BC22: =+BB22/AU22 -> 0.32 | BD22: 5 | BE22: 0 | BF22: 0 | BG22: 0 | BH22: 1 | BI22: 1 | BJ22: - | BK22: - | BL22: 0 | BM22: 0 | BN22: 0 | BO22: 0 | BP22: =+SUM(BD22:BG22)/AU22 -> 0.2 | BQ22: 0.2 | BR22: 0.2 | BS22: 2384786.035 | BT22: 1244787.008 | BU22: 0 | BV22: 0.5219701013 | BW22: - | BX22: 0 | BY22: 0 | BZ22: 0 | CA22: - | CB22: - | CC22: 1500000 | CD22: 0 | CE22: 0 | CF22: 0 | CG22: - | CH22: 2000000 | CI22: 0 | CJ22: 0 | CK22: 0 | CL22: - | CM22: =+BS22+BX22+CC22+CH22 -> 5884786.035 | CN22: =+BT22+BY22+CD22+CI22 -> 1244787.008 | CO22: =+BU22+BZ22+CE22+CJ22 -> 0 | CP22: =IF(CM22=0," -",CN22/CM22) -> 0.2115262987 | CQ22: =IF(CO22=0," -",IF(CN22=0,100%,CO22/CN22)) -> - | CR22: 1,4,5,10 | CS22: Educación | CT22: Sec. Educación
D23: Reducir a 2,5% la tasa de deserción en educación básica primaria. | E23: 0.028 | F23: 0.025 | H23: 0.028 | K23: 0.027 | N23: 0.026 | Q23: 0.025 | AO23: 0.8269841988 | AP23: CALIDAD Y FORTALECIMIENTO DE LA EDUCACIÓN PRESCOLAR, BÁSICA Y MEDIA | AQ23: Mantener el apoyo a los proyectos transversales en los 47 establecimientos educativos oficiales. | AR23: 0 | AS23: Número de establecimientos educativos oficiales mantenidos con apoyo a los proyectos transversales. | AT23: 47 | AU23: 47 | AV23: 47 | AW23: 0.25 | AX23: 47 | AY23: 0.25 | AZ23: 47 | BA23: 0.25 | BB23: 47 | BC23: 0.25 | BD23: 47 | BE23: 0 | BF23: 0 | BG23: 0 | BH23: 1 | BI23: 1 | BJ23: 0 | BK23: 0 | BL23: 0 | BM23: 0 | BN23: 0 | BO23: 0 | BP23: 0.25 | BQ23: 0.25 | BR23: 0.25 | BS23: 210396 | BT23: 0 | BU23: 0 | BV23: 0 | BW23: - | BX23: 217000 | BY23: 0 | BZ23: 0 | CA23: 0 | CB23: - | CC23: 223198 | CD23: 0 | CE23: 0 | CF23: 0 | CG23: - | CH23: 230321 | CI23: 0 | CJ23: 0 | CK23: 0 | CL23: - | CM23: 880915 | CN23: 0 | CO23: 0 | CP23: 0 | CQ23: - | CR23: 1,4,5,10 | CS23: Educación | CT23: Sec. Educación
AQ24: Mantener los 47 establecimientos educativos oficiales optimizados con planta de personal docente, administrativa, servicios públicos, aseo, vigilancia y arrendamientos. | AR24: 0 | AS24: Número de establecimientos educativos oficiales mantenidos con planta de personal docente, administrativa, servicios públicos, aseo, vigilancia y arrendamientos. | AT24: 47 | AU24: 47 | AV24: 47 | AW24: 0.25 | AX24: 47 | AY24: 0.25 | AZ24: 47 | BA24: 0.25 | BB24: 47 | BC24: 0.25 | BD24: 47 | BE24: 0 | BF24: 0 | BG24: 0 | BH24: 1 | BI24: 1 | BJ24: 0 | BK24: 0 | BL24: 0 | BM24: 0 | BN24: 0 | BO24: 0 | BP24: 0.25 | BQ24: 0.25 | BR24: 0.25 | BS24: 251706547 | BT24: 216035454.6 | BU24: 0 | BV24: 0.858283017 | BW24: - | BX24: 266616518 | BY24: 0 | BZ24: 0 | CA24: 0 | CB24: - | CC24: 279504813 | CD24: 0 | CE24: 0 | CF24: 0 | CG24: - | CH24: 296328227 | CI24: 0 | CJ24: 0 | CK24: 0 | CL24: - | CM24: 1094156105 | CN24: 216035454.6 | CO24: 0 | CP24: 0.1974448194 | CQ24: - | CR24: 1,4,5,10 | CS24: Educación | CT24: Sec. Educación
D25: Reducir a 4% la tasa de deserción en educación básica secundaria. | E25: 0.044 | F25: 0.04 | H25: 0.044 | K25: 0.043 | N25: 0.0415 | Q25: 0.04 | AQ25: Capacitar a 900 docentes de los establecimientos educativos oficiales en el manejo de una segunda lengua. | AR25: 0 | AS25: Número de docentes de los establecimientos educativos oficiales capacitados en el manejo de una segunda lengua. | AT25: 260 | AU25: 900 | AV25: 100 | AW25: =+AV25/AU25 -> 0.1111111111 | AX25: 250 | AY25: =+AX25/AU25 -> 0.2777777778 | AZ25: 300 | BA25: =+AZ25/AU25 -> 0.3333333333 | BB25: 250 | BC25: =+BB25/AU25 -> 0.2777777778 | BD25: 135 | BE25: 0 | BF25: 0 | BG25: 0 | BH25: 1.35 | BI25: 1 | BJ25: 0 | BK25: 0 | BL25: 0 | BM25: 0 | BN25: 0 | BO25: 0 | BP25: =+SUM(BD25:BG25)/AU25 -> 0.15 | BQ25: 0.15 | BR25: 0.15 | BS25: 465000 | BT25: 0 | BU25: 0 | BV25: 0 | BW25: - | BX25: 429000 | BY25: 0 | BZ25: 0 | CA25: 0 | CB25: - | CC25: 493000 | CD25: 0 | CE25: 0 | CF25: 0 | CG25: - | CH25: 508000 | CI25: 0 | CJ25: 0 | CK25: 0 | CL25: - | CM25: 1895000 | CN25: 0 | CO25: 0 | CP25: 0 | CQ25: - | CR25: 1,4,5,10 | CS25: Educación | CT25: Sec. Educación
AQ26: Beneficiar anualmente con estrategias de aprendizaje en una segunda lengua a 35.000 estudiantes de los establecimientos educativos oficiales con enfoque diferencial. | AR26: 0 | AS26: Número de estudiantes de establecimientos educativos oficiales beneficiados anualmente con estrategias de aprendizaje en una segunda lengua con enfoque diferencial. | AT26: 17995 | AU26: 35000 | AV26: 35000 | AW26: 0.25 | AX26: 35000 | AY26: 0.25 | AZ26: 35000 | BA26: 0.25 | BB26: 35000 | BC26: 0.25 | BD26: 29412 | BE26: 0 | BF26: 0 | BG26: 0 | BH26: 0.8403428571 | BI26: 0.8403428571 | BJ26: 0 | BK26: 0 | BL26: 0 | BM26: 0 | BN26: 0 | BO26: 0 | BP26: 0.2100857143 | BQ26: 0.2100857143 | BR26: 0.2100857143 | BS26: 465000 | BT26: 0 | BU26: 0 | BV26: 0 | BW26: - | BX26: 429000 | BY26: 0 | BZ26: 0 | CA26: 0 | CB26: - | CC26: 493000 | CD26: 0 | CE26: 0 | CF26: 0 | CG26: - | CH26: 508000 | CI26: 0 | CJ26: 0 | CK26: 0 | CL26: - | CM26: 1895000 | CN26: 0 | CO26: 0 | CP26: 0 | CQ26: - | CR26: 1,4,5,10 | CS26: Educación | CT26: Sec. Educación
AQ27: Capacitar en evaluación por competencias a 1.500 docentes de los establecimientos educativos oficiales. | AR27: 0 | AS27: Número de docentes de los establecimientos educativos oficiales capacitados en evaluacion por competencias. | AT27: 1000 | AU27: 1500 | AV27: 0 | AW27: =+AV27/AU27 -> 0 | AX27: 500 | AY27: =+AX27/AU27 -> 0.3333333333 | AZ27: 500 | BA27: =+AZ27/AU27 -> 0.3333333333 | BB27: 500 | BC27: =+BB27/AU27 -> 0.3333333333 | BD27: 0 | BE27: 0 | BF27: 0 | BG27: 0 | BH27: - | BI27: - | BJ27: 0 | BK27: 0 | BL27: 0 | BM27: 0 | BN27: 0 | BO27: 0 | BP27: =+SUM(BD27:BG27)/AU27 -> 0 | BQ27: 0 | BR27: 0 | BS27: 0 | BT27: 0 | BU27: 0 | BV27: - | BW27: - | BX27: 100000 | BY27: 0 | BZ27: 0 | CA27: 0 | CB27: - | CC27: 103000 | CD27: 0 | CE27: 0 | CF27: 0 | CG27: - | CH27: 106000 | CI27: 0 | CJ27: 0 | CK27: 0 | CL27: - | CM27: 309000 | CN27: 0 | CO27: 0 | CP27: 0 | CQ27: - | CR27: 1,4,5,10 | CS27: Educación | CT27: Sec. Educación
D28: Reducir a 1,5% la tasa de deserción en educación media. | E28: 0.0196 | F28: 0.015 | H28: 0.019 | K28: 0.0175 | N28: 0.0165 | Q28: 0.015 | AQ28: Mantener 20 sedes de establecimientos educativos rurales con acompañamiento integral para el mejoramiento de la gestón escolar. | AR28: 0 | AS28: Número de sedes de establecimientos educativos rurales mantenidos con acompañamiento integral para el mejoramiento de la gestión escolar. | AT28: 20 | AU28: 20 | AV28: 20 | AW28: 0.25 | AX28: 20 | AY28: 0.25 | AZ28: 20 | BA28: 0.25 | BB28: 20 | BC28: 0.25 | BD28: 20 | BE28: 0 | BF28: 0 | BG28: 0 | BH28: 1 | BI28: 1 | BJ28: 0 | BK28: 0 | BL28: 0 | BM28: 0 | BN28: 0 | BO28: 0 | BP28: 0.25 | BQ28: 0.25 | BR28: 0.25 | BS28: 100000 | BT28: 0 | BU28: 0 | BV28: 0 | BW28: - | BX28: 103000 | BY28: 0 | BZ28: 0 | CA28: 0 | CB28: - | CC28: 106000 | CD28: 0 | CE28: 0 | CF28: 0 | CG28: - | CH28: 109000 | CI28: 0 | CJ28: 0 | CK28: 0 | CL28: - | CM28: 418000 | CN28: 0 | CO28: 0 | CP28: 0 | CQ28: - | CR28: 1,4,5,10 | CS28: Educación | CT28: Sec. Educación
AQ29: Realizar 4 foros educativos sobre experiencias significativas artísticas y culturales. | AR29: 0 | AS29: Número de foros educativos realizados sobre experiencias significativas artísticas y culturales. | AT29: 2 | AU29: 4 | AV29: 1 | AW29: =+AV29/AU29 -> 0.25 | AX29: 1 | AY29: =+AX29/AU29 -> 0.25 | AZ29: 1 | BA29: =+AZ29/AU29 -> 0.25 | BB29: 1 | BC29: =+BB29/AU29 -> 0.25 | BD29: 1 | BE29: 0 | BF29: 0 | BG29: 0 | BH29: 1 | BI29: 1 | BJ29: 0 | BK29: 0 | BL29: 0 | BM29: 0 | BN29: 0 | BO29: 0 | BP29: =+SUM(BD29:BG29)/AU29 -> 0.25 | BQ29: 0.25 | BR29: 0.25 | BS29: 100000 | BT29: 0 | BU29: 0 | BV29: 0 | BW29: - | BX29: 103000 | BY29: 0 | BZ29: 0 | CA29: 0 | CB29: - | CC29: 106000 | CD29: 0 | CE29: 0 | CF29: 0 | CG29: - | CH29: 109000 | CI29: 0 | CJ29: 0 | CK29: 0 | CL29: - | CM29: 418000 | CN29: 0 | CO29: 0 | CP29: 0 | CQ29: - | CR29: 1,4,5,10 | CS29: Educación | CT29: Sec. Educación
AQ30: Mantener el 100% de los macroprocesos de la Secretaría de Educación. | AR30: 0 | AS30: Porcentaje de macroprocesos de la Secretaría de Educación mantenidos. | AT30: 1 | AU30: 1 | AV30: 1 | AW30: 0.25 | AX30: 1 | AY30: 0.25 | AZ30: 1 | BA30: 0.25 | BB30: 1 | BC30: 0.25 | BD30: 1 | BE30: 0 | BF30: 0 | BG30: 0 | BH30: 1 | BI30: 1 | BJ30: 0 | BK30: 0 | BL30: 0 | BM30: 0 | BN30: 0 | BO30: 0 | BP30: 0.25 | BQ30: 0.25 | BR30: 0.25 | BS30: 1000000 | BT30: 692922.5 | BU30: 0 | BV30: 0.6929225 | BW30: - | BX30: 1092477 | BY30: 0 | BZ30: 0 | CA30: 0 | CB30: - | CC30: 1156991 | CD30: 0 | CE30: 0 | CF30: 0 | CG30: - | CH30: 1226519 | CI30: 0 | CJ30: 0 | CK30: 0 | CL30: - | CM30: 4475987 | CN30: 692922.5 | CO30: 0 | CP30: 0.1548088723 | CQ30: - | CR30: 1,4,5,10 | CS30: Educación | CT30: Sec. Educación
D31: Aumentar al 60% la proporción de colegios con categoría A+ y A en pruebas saber 11. | E31: 0.55 | F31: 0.6 | H31: 0.55 | K31: 0.57 | N31: 0.59 | Q31: 0.6 | AQ31: Mantener en los establecimientos educativos oficiales el Programa de Bienestar Laboral dirigido al personal docente, directivo docente y administrativo. | AR31: 0 | AS31: Número de programas de bienestar laboral dirigido al personal docente, directivo docente y administrativo mantenido en los establecimientos educativos oficiales. | AT31: 1 | AU31: 1 | AV31: 1 | AW31: 0.25 | AX31: 1 | AY31: 0.25 | AZ31: 1 | BA31: 0.25 | BB31: 1 | BC31: 0.25 | BD31: 0.875 | BE31: 0 | BF31: 0 | BG31: 0 | BH31: 0.875 | BI31: 0.875 | BJ31: 0 | BK31: 0 | BL31: 0 | BM31: 0 | BN31: 0 | BO31: 0 | BP31: 0.21875 | BQ31: 0.21875 | BR31: 0.21875 | BS31: 69983.365 | BT31: 0 | BU31: 0 | BV31: 0 | BW31: - | BX31: 134000 | BY31: 0 | BZ31: 0 | CA31: 0 | CB31: - | CC31: 138000 | CD31: 0 | CE31: 0 | CF31: 0 | CG31: - | CH31: 142000 | CI31: 0 | CJ31: 0 | CK31: 0 | CL31: - | CM31: 483983.365 | CN31: 0 | CO31: 0 | CP31: 0 | CQ31: - | CR31: 1,4,5,10 | CS31: Educación | CT31: Sec. Educación
AQ32: Mantener el pago de ARL en el cumplimiento del decreto 055 de 2015 al 100% de los estudiantes de grados 10 y 11 que realizan las prácticas de la educación media técnica. | AR32: 0 | AS32: Porcentaje de estudiantes de los grados 10 y 11 que realizan las prácticas de la educación media técnica mantenidos con el pago de ARL en el cumplimiento del decreto 055 de 2015. | AT32: 1 | AU32: 1 | AV32: 1 | AW32: 0.25 | AX32: 1 | AY32: 0.25 | AZ32: 1 | BA32: 0.25 | BB32: 1 | BC32: 0.25 | BD32: 1 | BE32: 0 | BF32: 0 | BG32: 0 | BH32: 1 | BI32: 1 | BJ32: 0 | BK32: 0 | BL32: 0 | BM32: 0 | BN32: 0 | BO32: 0 | BP32: 0.25 | BQ32: 0.25 | BR32: 0.25 | BS32: 200000 | BT32: 71977.6 | BU32: 0 | BV32: 0.359888 | BW32: - | BX32: 206000 | BY32: 0 | BZ32: 0 | CA32: 0 | CB32: - | CC32: 213000 | CD32: 0 | CE32: 0 | CF32: 0 | CG32: - | CH32: 218000 | CI32: 0 | CJ32: 0 | CK32: 0 | CL32: - | CM32: 837000 | CN32: 71977.6 | CO32: 0 | CP32: 0.08599474313 | CQ32: - | CR32: 1,4,5,10 | CS32: Educación | CT32: Sec. Educación
AQ33: Realizar 1 caracterización del clima escolar y victimización que permita identificar los problemas de convivencia y seguridad del entorno escolar. | AR33: 0 | AS33: Número de caracterizaciones del clima escolar y victimización que permita identificar los problemas de convivencia y seguridad del entorno escolar realizados. | AT33: 0 | AU33: 1 | AV33: 0 | AW33: =+AV33/AU33 -> 0 | AX33: 1 | AY33: =+AX33/AU33 -> 1 | AZ33: 0 | BA33: =+AZ33/AU33 -> 0 | BB33: 0 | BC33: =+BB33/AU33 -> 0 | BD33: 0 | BE33: 0 | BF33: 0 | BG33: 0 | BH33: - | BI33: - | BJ33: 0 | BK33: 0 | BL33: - | BM33: - | BN33: - | BO33: - | BP33: =+SUM(BD33:BG33)/AU33 -> 0 | BQ33: 0 | BR33: 0 | BS33: 0 | BT33: 0 | BU33: 0 | BV33: - | BW33: - | BX33: 100000 | BY33: 0 | BZ33: 0 | CA33: 0 | CB33: - | CC33: 0 | CD33: 0 | CE33: 0 | CF33: - | CG33: - | CH33: 0 | CI33: 0 | CJ33: 0 | CK33: - | CL33: - | CM33: 100000 | CN33: 0 | CO33: 0 | CP33: 0 | CQ33: - | CR33: 1,4,5,10 | CS33: Educación | CT33: Sec. Educación
D34: Incrementar a 36 instituciones educativas oficiales el proceso de doble titulación en media. | E34: 30 | F34: 36 | H34: 30 | K34: 32 | N34: 34 | Q34: 36 | AO34: 0.01759677962 | AP34: CALIDAD Y FOMENTO DE LA EDUCACIÓN SUPERIOR | AQ34: Otorgar 4.000 nuevos subsidios con enfoque diferencial para el acceso a la educación superior del nivel técnico, tecnológico y profesional. | AR34: 0 | AS34: Número de nuevos subsidios otorgados con enfoque diferencial para el acceso a la educación superior del nivel técnico, tecnológico y profesional. | AT34: 2061 | AU34: 4000 | AV34: 0 | AW34: =+AV34/AU34 -> 0 | AX34: 500 | AY34: =+AX34/AU34 -> 0.125 | AZ34: 1750 | BA34: =+AZ34/AU34 -> 0.4375 | BB34: 1750 | BC34: =+BB34/AU34 -> 0.4375 | BD34: 0 | BE34: 0 | BF34: 0 | BG34: 0 | BH34: - | BI34: - | BJ34: 0 | BK34: 0 | BL34: 0 | BM34: 0 | BN34: 0 | BO34: 0 | BP34: =+SUM(BD34:BG34)/AU34 -> 0 | BQ34: 0 | BR34: 0 | BS34: 0 | BT34: 0 | BU34: 0 | BV34: - | BW34: - | BX34: 1307050 | BY34: 0 | BZ34: 0 | CA34: 0 | CB34: - | CC34: 3000000 | CD34: 0 | CE34: 0 | CF34: 0 | CG34: - | CH34: 3000000 | CI34: 0 | CJ34: 0 | CK34: 0 | CL34: - | CM34: 7307050 | CN34: 0 | CO34: 0 | CP34: 0 | CQ34: - | CR34: 1,4,5,10 | CS34: Educación | CT34: Sec. Educación
AQ35: Mantener el 100% de los subsidios para el acceso a la educación superior del nivel técnico, profesional, tecnológico y profesional. | AR35: 0 | AS35: Porcentaje de subsidios mantenidos para el acceso a la educación superior del nivel técnico, profesional, tecnológico y profesional. | AT35: 1 | AU35: 1 | AV35: 1 | AW35: 0.25 | AX35: 1 | AY35: 0.25 | AZ35: 1 | BA35: 0.25 | BB35: 1 | BC35: 0.25 | BD35: 1 | BE35: 0 | BF35: 0 | BG35: 0 | BH35: 1 | BI35: 1 | BJ35: 0 | BK35: 0 | BL35: 0 | BM35: 0 | BN35: 0 | BO35: 0 | BP35: 0.25 | BQ35: 0.25 | BR35: 0.25 | BS35: 4477890 | BT35: 2926519.273 | BU35: 1068249.962 | BV35: 0.6535487189 | BW35: 0.3650240653 | BX35: 3169823.43 | BY35: 0 | BZ35: 0 | CA35: 0 | CB35: - | CC35: 3468000 | CD35: 0 | CE35: 0 | CF35: 0 | CG35: - | CH35: 3601000 | CI35: 0 | CJ35: 0 | CK35: 0 | CL35: - | CM35: 14716713.43 | CN35: 2926519.273 | CO35: 1068249.962 | CP35: 0.1988568498 | CQ35: 0.3650240653 | CR35: 1,4,5,10 | CS35: Educación | CT35: Sec. Educación
AQ36: Beneficiar 3.000 personas a través de un programa de educación virtual pos secundaria que proporcione conocimientos, competencias y habilidades para el empleo y el emprendimiento de acuerdo al perfil productivo de la región. | AR36: 0 | AS36: Número de personas beneficiadas a través de un programa de educación virtual pos secundaria que proporcione conocimientos, competencias y habilidades para el empleo y el emprendimiento de acuerdo al perfil productivo de la región. | AT36: 0 | AU36: 3000 | AV36: 0 | AW36: =+AV36/AU36 -> 0 | AX36: 1000 | AY36: =+AX36/AU36 -> 0.3333333333 | AZ36: 1000 | BA36: =+AZ36/AU36 -> 0.3333333333 | BB36: 1000 | BC36: =+BB36/AU36 -> 0.3333333333 | BD36: 0 | BE36: 0 | BF36: 0 | BG36: 0 | BH36: - | BI36: - | BJ36: 0 | BK36: 0 | BL36: 0 | BM36: 0 | BN36: 0 | BO36: 0 | BP36: =+SUM(BD36:BG36)/AU36 -> 0 | BQ36: 0 | BR36: 0 | BS36: 0 | BT36: 0 | BU36: 0 | BV36: - | BW36: - | BX36: 500000 | BY36: 0 | BZ36: 0 | CA36: 0 | CB36: - | CC36: 500000 | CD36: 0 | CE36: 0 | CF36: 0 | CG36: - | CH36: 500000 | CI36: 0 | CJ36: 0 | CK36: 0 | CL36: - | CM36: 1500000 | CN36: 0 | CO36: 0 | CP36: 0 | CQ36: - | CR36: 1,4,5,10 | CS36: Educación | CT36: Sec. Educación
D38: Lograr el 52% de cobertura útil de atención a la población objeto de la ESE ISABU. | E38: 0.43 | F38: 0.52 | H38: 0.43 | K38: 0.46 | N38: 0.49 | Q38: 0.52 | AM38: 0.3135111626 | AN38: SALUD CON CALIDAD, GARANTÍA DE UNA CIUDAD DE OPORTUNIDADES | AO38: 0.9964791656 | AP38: GARANTÍA DE LA AUTORIDAD SANITARIA PARA LA GESTIÓN DE LA SALUD | AQ38: Lograr y mantener el 100% de la población afiliada al Régimen Subsidiado. | AR38: 0 | AS38: Porcentaje de población pobre afiliada al régimen subsidiado. | AT38: 0.997 | AU38: 1 | AV38: 1 | AW38: 0.25 | AX38: 1 | AY38: 0.25 | AZ38: 1 | BA38: 0.25 | BB38: 1 | BC38: 0.25 | BD38: 1 | BE38: 0 | BF38: 0 | BG38: 0 | BH38: 1 | BI38: 1 | BJ38: 0 | BK38: 0 | BL38: 0 | BM38: 0 | BN38: 0 | BO38: 0 | BP38: 0.25 | BQ38: 0.25 | BR38: 0.25 | BS38: 188780671 | BT38: 173457885 | BU38: 0 | BV38: 0.9188328661 | BW38: - | BX38: 182135098 | BY38: 0 | BZ38: 0 | CA38: 0 | CB38: - | CC38: 182135098 | CD38: 0 | CE38: 0 | CF38: 0 | CG38: - | CH38: 182135098 | CI38: 0 | CJ38: 0 | CK38: 0 | CL38: - | CM38: 735185965 | CN38: 173457885 | CO38: 0 | CP38: 0.2359374271 | CQ38: - | CR38: 3 | CS38: Salud y Protección Social | CT38: Sec. Salud y Ambiente
AQ39: Mantener la auditoría al 100% de las EAPB contributivas que maneje población subsidiada, EAPB subsidiada e IPS públicas y privadas que presten servicios de salud a los usuarios del Régimen Subsidiado. | AR39: 0 | AS39: Porcentaje de EAPB contributivas que maneje población subsidiada, EAPB subsidiada e IPS públicas y privadas que presten servicios de salud a los usuarios del Régimen Subsidiado con auditoría mantenida. | AT39: 1 | AU39: 1 | AV39: 1 | AW39: 0.25 | AX39: 1 | AY39: 0.25 | AZ39: 1 | BA39: 0.25 | BB39: 1 | BC39: 0.25 | BD39: 0.9 | BE39: 0 | BF39: 0 | BG39: 0 | BH39: 0.9 | BI39: 0.9 | BJ39: 0 | BK39: 0 | BL39: 0 | BM39: 0 | BN39: 0 | BO39: 0 | BP39: 0.225 | BQ39: 0.225 | BR39: 0.225 | BS39: 922337 | BT39: 787077 | BU39: 0 | BV39: 0.8533507818 | BW39: - | BX39: 1489466 | BY39: 0 | BZ39: 0 | CA39: 0 | CB39: - | CC39: 1489466 | CD39: 0 | CE39: 0 | CF39: 0 | CG39: - | CH39: 1489466 | CI39: 0 | CJ39: 0 | CK39: 0 | CL39: - | CM39: 5390735 | CN39: 787077 | CO39: 0 | CP39: 0.1460055076 | CQ39: - | CR39: 3 | CS39: Salud y Protección Social | CT39: Sec. Salud y Ambiente
AQ40: Mantener el 100% de inspección, vigilancia y control a las IPS que presten servicios de salud de urgencias de la red pública y privada que atienda a la población del Régimen Subsidiado. | AR40: 0 | AS40: Porcentaje de IPS que presenten servicios de salud de urgencias de la red pública y privada que atienda a la población del Régimen Subsidiado con inspección, vigilancia y control mantenidos. | AT40: 1 | AU40: 1 | AV40: 1 | AW40: 0.25 | AX40: 1 | AY40: 0.25 | AZ40: 1 | BA40: 0.25 | BB40: 1 | BC40: 0.25 | BD40: 0.6 | BE40: 0 | BF40: 0 | BG40: 0 | BH40: 0.6 | BI40: 0.6 | BJ40: 0 | BK40: 0 | BL40: 0 | BM40: 0 | BN40: 0 | BO40: 0 | BP40: 0.15 | BQ40: 0.15 | BR40: 0.15 | BS40: 3437246 | BT40: 0 | BU40: 0 | BV40: 0 | BW40: - | BX40: 629381 | BY40: 0 | BZ40: 0 | CA40: 0 | CB40: - | CC40: 629381 | CD40: 0 | CE40: 0 | CF40: 0 | CG40: - | CH40: 629381 | CI40: 0 | CJ40: 0 | CK40: 0 | CL40: - | CM40: 5325389 | CN40: 0 | CO40: 0 | CP40: 0 | CQ40: - | CR40: 3 | CS40: Salud y Protección Social | CT40: Sec. Salud y Ambiente
AQ41: Mantener la realización del 100% las acciones de Gestión de la Salud Pública contenidas en el Plan de Acción de Salud. | AR41: 0 | AS41: Porcentaje de acciones realizadas de Gestión de la Salud Pública contenidas en el Plan de Acción de Salud mantenidas. | AT41: 1 | AU41: 1 | AV41: 1 | AW41: 0.25 | AX41: 1 | AY41: 0.25 | AZ41: 1 | BA41: 0.25 | BB41: 1 | BC41: 0.25 | BD41: 0.9 | BE41: 0 | BF41: 0 | BG41: 0 | BH41: 0.9 | BI41: 0.9 | BJ41: 0 | BK41: 0 | BL41: 0 | BM41: 0 | BN41: 0 | BO41: 0 | BP41: 0.225 | BQ41: 0.225 | BR41: 0.225 | BS41: 402200 | BT41: 168990 | BU41: 0 | BV41: 0.4201640975 | BW41: - | BX41: 599454 | BY41: 0 | BZ41: 0 | CA41: 0 | CB41: - | CC41: 599454 | CD41: 0 | CE41: 0 | CF41: 0 | CG41: - | CH41: 599454 | CI41: 0 | CJ41: 0 | CK41: 0 | CL41: - | CM41: 2200562 | CN41: 168990 | CO41: 0 | CP41: 0.07679401898 | CQ41: - | CR41: 3 | CS41: Salud y Protección Social | CT41: Sec. Salud y Ambiente
AQ42: Implementar la política pública de participación social en salud. | AR42: 0 | AS42: Número de políticas públicas de participación social en salud implementadas. | AT42: 0 | AU42: 1 | AV42: 1 | AW42: 0.25 | AX42: 1 | AY42: 0.25 | AZ42: 1 | BA42: 0.25 | BB42: 1 | BC42: 0.25 | BD42: 1 | BE42: 0 | BF42: 0 | BG42: 0 | BH42: 1 | BI42: 1 | BJ42: 0 | BK42: 0 | BL42: 0 | BM42: 0 | BN42: 0 | BO42: 0 | BP42: 0.25 | BQ42: 0.25 | BR42: 0.25 | BS42: 131700 | BT42: 60540 | BU42: 0 | BV42: 0.4596810934 | BW42: - | BX42: 156000 | BY42: 0 | BZ42: 0 | CA42: 0 | CB42: - | CC42: 156000 | CD42: 0 | CE42: 0 | CF42: 0 | CG42: - | CH42: 156000 | CI42: 0 | CJ42: 0 | CK42: 0 | CL42: - | CM42: 599700 | CN42: 60540 | CO42: 0 | CP42: 0.1009504752 | CQ42: - | CR42: 3 | CS42: Salud y Protección Social | CT42: Sec. Salud y Ambiente
AQ43: Mantener el seguimiento al 100% de los eventos en vigilancia en salud pública. | AR43: 0 | AS43: Porcentaje de eventos en vigilancia en salud pública con seguimiento mantenido. | AT43: 1 | AU43: 1 | AV43: 1 | AW43: 0.25 | AX43: 1 | AY43: 0.25 | AZ43: 1 | BA43: 0.25 | BB43: 1 | BC43: 0.25 | BD43: 1 | BE43: 0 | BF43: 0 | BG43: 0 | BH43: 1 | BI43: 1 | BJ43: 0 | BK43: 0 | BL43: 0 | BM43: 0 | BN43: 0 | BO43: 0 | BP43: 0.25 | BQ43: 0.25 | BR43: 0.25 | BS43: 693321 | BT43: 449816 | BU43: 0 | BV43: 0.6487846178 | BW43: - | BX43: 805000 | BY43: 0 | BZ43: 0 | CA43: 0 | CB43: - | CC43: 805000 | CD43: 0 | CE43: 0 | CF43: 0 | CG43: - | CH43: 905000 | CI43: 0 | CJ43: 0 | CK43: 0 | CL43: - | CM43: 3208321 | CN43: 449816 | CO43: 0 | CP43: 0.1402029286 | CQ43: - | CR43: 3 | CS43: Salud y Protección Social | CT43: Sec. Salud y Ambiente
D44: Aumentar al 41% la asignación de citas web de consulta de medicina general y odontología de la ESE ISABU a través de diferentes herramientas tecnológicas. | E44: 0.32 | F44: 0.41 | H44: 0.32 | K44: 0.35 | N44: 0.38 | Q44: 0.41 | AQ44: Construir, mejorar y/o reponer la infraestructura física de 4 centros y/o unidades de salud. | AR44: 0 | AS44: Porcentaje de avance en la construcción, mejoramiento y/o reposición de la infraestructura física de los centros y/o unidades de salud. | AT44: 0 | AU44: 1 | AV44: 0 | AW44: =+AV44/AU44 -> 0 | AX44: 0.3 | AY44: =+AX44/AU44 -> 0.3 | AZ44: 0.5 | BA44: =+AZ44/AU44 -> 0.5 | BB44: 0.2 | BC44: =+BB44/AU44 -> 0.2 | BD44: 0 | BE44: 0 | BF44: 0 | BG44: 0 | BH44: - | BI44: - | BJ44: 0 | BK44: 0 | BL44: 0 | BM44: 0 | BN44: 0 | BO44: 0 | BP44: =+SUM(BD44:BG44)/AU44 -> 0 | BQ44: 0 | BR44: 0 | BS44: 0 | BT44: 0 | BU44: 0 | BV44: - | BW44: - | BX44: 6230874 | BY44: 0 | BZ44: 0 | CA44: 0 | CB44: - | CC44: 15201770 | CD44: 0 | CE44: 0 | CF44: 0 | CG44: - | CH44: 12880708 | CI44: 0 | CJ44: 0 | CK44: 0 | CL44: - | CM44: 34313352 | CN44: 0 | CO44: 0 | CP44: 0 | CQ44: - | CR44: 3 | CS44: Salud y Protección Social | CT44: Sec. Salud y Ambiente
AQ45: Adquirir 2 unidades móviles para el área rural. | AR45: 0 | AS45: Número de unidades de salud móviles adquiridos para el área rural. | AT45: 0 | AU45: 2 | AV45: 0 | AW45: =+AV45/AU45 -> 0 | AX45: 0 | AY45: =+AX45/AU45 -> 0 | AZ45: 2 | BA45: =+AZ45/AU45 -> 1 | BB45: 0 | BC45: =+BB45/AU45 -> 0 | BD45: 0 | BE45: 0 | BF45: 0 | BG45: 0 | BH45: - | BI45: - | BJ45: - | BK45: - | BL45: 0 | BM45: 0 | BN45: - | BO45: - | BP45: =+SUM(BD45:BG45)/AU45 -> 0 | BQ45: 0 | BR45: 0 | BS45: 0 | BT45: 0 | BU45: 0 | BV45: - | BW45: - | BX45: 0 | BY45: 0 | BZ45: 0 | CA45: - | CB45: - | CC45: 600000 | CD45: 0 | CE45: 0 | CF45: 0 | CG45: - | CH45: 0 | CI45: 0 | CJ45: 0 | CK45: - | CL45: - | CM45: 600000 | CN45: 0 | CO45: 0 | CP45: 0 | CQ45: - | CR45: 3 | CS45: Salud y Protección Social | CT45: Sec. Salud y Ambiente
AQ46: Mantener la estrategia de atención primaria en salud. | AR46: 0 | AS46: Número de estrategias de atención primaria en salud mantenidas. | AT46: 1 | AU46: 1 | AV46: 1 | AW46: 0.25 | AX46: 1 | AY46: 0.25 | AZ46: 1 | BA46: 0.25 | BB46: 1 | BC46: 0.25 | BD46: 1 | BE46: 0 | BF46: 0 | BG46: 0 | BH46: 1 | BI46: 1 | BJ46: 0 | BK46: 0 | BL46: 0 | BM46: 0 | BN46: 0 | BO46: 0 | BP46: 0.25 | BQ46: 0.25 | BR46: 0.25 | BS46: 250000 | BT46: 0 | BU46: 0 | BV46: 0 | BW46: - | BX46: 400000 | BY46: 0 | BZ46: 0 | CA46: 0 | CB46: - | CC46: 600000 | CD46: 0 | CE46: 0 | CF46: 0 | CG46: - | CH46: 900000 | CI46: 0 | CJ46: 0 | CK46: 0 | CL46: - | CM46: 2150000 | CN46: 0 | CO46: 0 | CP46: 0 | CQ46: - | CR46: 3 | CS46: Salud y Protección Social | CT46: Sec. Salud y Ambiente
AO47: 0.003520834405 | AP47: PRESTACIÓN DE SERVICIOS DE SALUD | AQ47: Mantener la infraestructura física de los 22 centros de salud y las 2 unidades hospitalarias de la ESE ISABU. | AR47: 0 | AS47: Número de centros de salud y unidades hospitalarias de la ESE ISABU mantenidos con infraestructura física mantenida. | AT47: 24 | AU47: 24 | AV47: 24 | AW47: 0.25 | AX47: 24 | AY47: 0.25 | AZ47: 24 | BA47: 0.25 | BB47: 24 | BC47: 0.25 | BD47: 24 | BE47: 0 | BF47: 0 | BG47: 0 | BH47: 1 | BI47: 1 | BJ47: 0 | BK47: 0 | BL47: 0 | BM47: 0 | BN47: 0 | BO47: 0 | BP47: 0.25 | BQ47: 0.25 | BR47: 0.25 | BS47: 350000 | BT47: 329484 | BU47: 0 | BV47: 0.9413828571 | BW47: - | BX47: 360500 | BY47: 0 | BZ47: 0 | CA47: 0 | CB47: - | CC47: 371315 | CD47: 0 | CE47: 0 | CF47: 0 | CG47: - | CH47: 382454 | CI47: 0 | CJ47: 0 | CK47: 0 | CL47: - | CM47: 1464269 | CN47: 329484 | CO47: 0 | CP47: 0.2250160319 | CQ47: - | CR47: 3 | CS47: Salud y Protección Social | CT47: ISABU
AQ48: Mantener en funcionamientos las 3 ambulancias con el fin de mejorar el sistema de referencia y contrareferencia interna de la ESE ISABU. | AR48: 0 | AS48: Número de ambulancias mantenidas en funcionamiento con el fin de mejorar el sistema de referencia y contrareferencia interna de la ESE ISABU. | AT48: 3 | AU48: 3 | AV48: 3 | AW48: 0.25 | AX48: 3 | AY48: 0.25 | AZ48: 3 | BA48: 0.25 | BB48: 3 | BC48: 0.25 | BD48: 3 | BE48: 0 | BF48: 0 | BG48: 0 | BH48: 1 | BI48: 1 | BJ48: 0 | BK48: 0 | BL48: 0 | BM48: 0 | BN48: 0 | BO48: 0 | BP48: 0.25 | BQ48: 0.25 | BR48: 0.25 | BS48: 328693 | BT48: 300902 | BU48: 0 | BV48: 0.9154499792 | BW48: - | BX48: 251846 | BY48: 0 | BZ48: 0 | CA48: 0 | CB48: - | CC48: 259402 | CD48: 0 | CE48: 0 | CF48: 0 | CG48: - | CH48: 267184 | CI48: 0 | CJ48: 0 | CK48: 0 | CL48: - | CM48: 1107125 | CN48: 300902 | CO48: 0 | CP48: 0.2717868353 | CQ48: - | CR48: 3 | CS48: Salud y Protección Social | CT48: ISABU
D49: Reducir a 195 la tasa de mortalidad por enfermedades cerebrovasculares. | E49: 203 | F49: 195 | H49: 201 | K49: 199 | N49: 197 | Q49: 195
AM50: 0.01182174218 | AN50: SALUD PÚBLICA PERTINENTE, GARANTÍA DE UNA CIUDAD DE OPORTUNIDADES | AO50: 0.08459635833 | AP50: MEJORAMIENTO DE LAS CONDICIONES NO TRANSMISIBLES | AQ50: Realizar actividad física en 100 parques de la ciudad para promover estilos de vida saludable y prevenir enfermedades crónicas no transmisibles. | AR50: 0 | AS50: Número de parques de la ciudad que se realiza actividad física para promover estilos de vida saludable y prevenir enfermedades crónicas no transmisibles. | AT50: 18 | AU50: 100 | AV50: 0 | AW50: =+AV50/AU50 -> 0 | AX50: 15 | AY50: =+AX50/AU50 -> 0.15 | AZ50: 15 | BA50: =+AZ50/AU50 -> 0.15 | BB50: 70 | BC50: =+BB50/AU50 -> 0.7 | BD50: 0 | BE50: 0 | BF50: 0 | BG50: 0 | BH50: - | BI50: - | BJ50: 0 | BK50: 0 | BL50: 0 | BM50: 0 | BN50: 0 | BO50: 0 | BP50: =+SUM(BD50:BG50)/AU50 -> 0 | BQ50: 0 | BR50: 0 | BS50: 0 | BT50: 0 | BU50: 0 | BV50: - | BW50: - | BX50: 300000 | BY50: 0 | BZ50: 0 | CA50: 0 | CB50: - | CC50: 300000 | CD50: 0 | CE50: 0 | CF50: 0 | CG50: - | CH50: 1000000 | CI50: 0 | CJ50: 0 | CK50: 0 | CL50: - | CM50: 1600000 | CN50: 0 | CO50: 0 | CP50: 0 | CQ50: - | CR50: 3 | CS50: Salud y Protección Social | CT50: Sec. Salud y Ambiente
AQ51: Mantener el monitoreo de las acciones desarrolladas por las EAPB e IPS en 4 enfermedades crónicas no transmisibles. | AR51: 0 | AS51: Número de enfermedades crónicas no transmisibles con monitoreo mantenido que son desarrolladas por las EAPB e IPS. | AT51: 2 | AU51: 4 | AV51: 4 | AW51: 0.25 | AX51: 4 | AY51: 0.25 | AZ51: 4 | BA51: 0.25 | BB51: 4 | BC51: 0.25 | BD51: 4 | BE51: 0 | BF51: 0 | BG51: 0 | BH51: 1 | BI51: 1 | BJ51: 0 | BK51: 0 | BL51: 0 | BM51: 0 | BN51: 0 | BO51: 0 | BP51: 0.25 | BQ51: 0.25 | BR51: 0.25 | BS51: 424894 | BT51: 398894 | BU51: 0 | BV51: 0.9388082675 | BW51: - | BX51: 120000 | BY51: 0 | BZ51: 0 | CA51: 0 | CB51: - | CC51: 120000 | CD51: 0 | CE51: 0 | CF51: 0 | CG51: - | CH51: 120000 | CI51: 0 | CJ51: 0 | CK51: 0 | CL51: - | CM51: 784894 | CN51: 398894 | CO51: 0 | CP51: 0.508213848 | CQ51: - | CR51: 3 | CS51: Salud y Protección Social | CT51: Sec. Salud y Ambiente
D52: Reducir a 40 la tasa de mortalidad en enfermedades transmisibles. | E52: 44 | F52: 40 | H52: 44 | K52: 42 | N52: 41 | Q52: 40 | AO52: 0.2527419851 | AP52: VIDA SALUDABLE Y LA PREVENCIÓN DE LAS ENFERMEDADES TRANSMISIBLES | AQ52: Mantener 2 estrategias de gestión integral para prevención y control de enfermedades endemoepidémicas y emergentes, reemergentes y desatendidas. | AR52: 0 | AS52: Número de estrategias de gestión integral mantenidas para prevención y control de enfermedades endemoepidémicas y emergentes, reemergentes y desatendidas. | AT52: 2 | AU52: 2 | AV52: 2 | AW52: 0.25 | AX52: 2 | AY52: 0.25 | AZ52: 2 | BA52: 0.25 | BB52: 2 | BC52: 0.25 | BD52: 2 | BE52: 0 | BF52: 0 | BG52: 0 | BH52: 1 | BI52: 1 | BJ52: 0 | BK52: 0 | BL52: 0 | BM52: 0 | BN52: 0 | BO52: 0 | BP52: 0.25 | BQ52: 0.25 | BR52: 0.25 | BS52: 12573605 | BT52: 6935853 | BU52: 800000 | BV52: 0.5516200803 | BW52: 0.1153426983 | BX52: 3881836 | BY52: 0 | BZ52: 0 | CA52: 0 | CB52: - | CC52: 381836 | CD52: 0 | CE52: 0 | CF52: 0 | CG52: - | CH52: 381836 | CI52: 0 | CJ52: 0 | CK52: 0 | CL52: - | CM52: 17219113 | CN52: 6935853 | CO52: 800000 | CP52: 0.402799668 | CQ52: 0.1153426983 | CR52: 3 | CS52: Salud y Protección Social | CT52: Sec. Salud y Ambiente
AQ53: Lograr y mantener el 95% de cobertura de vacunación en niños y niñas menores de 5 años. | AR53: 0 | AS53: Porcentaje de cobertura de vacunación en niños y niñas menores de 5 años. | AT53: 0.85 | AU53: 0.95 | AV53: 0.95 | AW53: 0.25 | AX53: 0.95 | AY53: 0.25 | AZ53: 0.95 | BA53: 0.25 | BB53: 0.95 | BC53: 0.25 | BD53: 0.886 | BE53: 0 | BF53: 0 | BG53: 0 | BH53: 0.9326315789 | BI53: 0.9326315789 | BJ53: 0 | BK53: 0 | BL53: 0 | BM53: 0 | BN53: 0 | BO53: 0 | BP53: 0.2331578947 | BQ53: 0.2331578947 | BR53: 0.2331578947 | BS53: 113350 | BT53: 110517 | BU53: 0 | BV53: 0.9750066167 | BW53: - | BX53: 78000 | BY53: 0 | BZ53: 0 | CA53: 0 | CB53: - | CC53: 78000 | CD53: 0 | CE53: 0 | CF53: 0 | CG53: - | CH53: 78000 | CI53: 0 | CJ53: 0 | CK53: 0 | CL53: - | CM53: 347350 | CN53: 110517 | CO53: 0 | CP53: 0.3181718728 | CQ53: - | CR53: 3 | CS53: Salud y Protección Social | CT53: Sec. Salud y Ambiente
D54: Lograr cobeturas utiles de vacunacion del 95% en menores de 6 años. | E54: 0.86 | F54: 0.95 | H54: 0.86 | K54: 0.88 | N54: 0.9 | Q54: 0.95 | AO54: 0.1086125661 | AP54: SALUD MENTAL | AQ54: Formular e implementar el plan de acción de salud mental de acuerdo a la Política Nacional. | AR54: 0 | AS54: Número de planes de acción de salud mental de acuerdo a la Política Nacional formulados e implementados. | AT54: 0 | AU54: 1 | AV54: 1 | AW54: 0.25 | AX54: 1 | AY54: 0.25 | AZ54: 1 | BA54: 0.25 | BB54: 1 | BC54: 0.25 | BD54: 1 | BE54: 0 | BF54: 0 | BG54: 0 | BH54: 1 | BI54: 1 | BJ54: 0 | BK54: 0 | BL54: 0 | BM54: 0 | BN54: 0 | BO54: 0 | BP54: 0.25 | BQ54: 0.25 | BR54: 0.25 | BS54: 1622480 | BT54: 1409080 | BU54: 0 | BV54: 0.868472955 | BW54: - | BX54: 537234 | BY54: 0 | BZ54: 0 | CA54: 0 | CB54: - | CC54: 537234 | CD54: 0 | CE54: 0 | CF54: 0 | CG54: - | CH54: 537234 | CI54: 0 | CJ54: 0 | CK54: 0 | CL54: - | CM54: 3234182 | CN54: 1409080 | CO54: 0 | CP54: 0.4356835824 | CQ54: - | CR54: 3 | CS54: Salud y Protección Social | CT54: Sec. Salud y Ambiente
AO55: 0.0222166862 | AP55: SEGURIDAD ALIMENTARIA Y NUTRICIONAL | AQ55: Mantener el Plan de Seguridad Alimentaria y Nutricional. | AR55: 0 | AS55: Número de Planes de Seguridad Alimentaria y Nutricional mantenidos. | AT55: 1 | AU55: 1 | AV55: 1 | AW55: 0.25 | AX55: 1 | AY55: 0.25 | AZ55: 1 | BA55: 0.25 | BB55: 1 | BC55: 0.25 | BD55: 1 | BE55: 0 | BF55: 0 | BG55: 0 | BH55: 1 | BI55: 1 | BJ55: 0 | BK55: 0 | BL55: 0 | BM55: 0 | BN55: 0 | BO55: 0 | BP55: 0.25 | BQ55: 0.25 | BR55: 0.25 | BS55: 117195 | BT55: 114452 | BU55: 0 | BV55: 0.9765945646 | BW55: - | BX55: 80000 | BY55: 0 | BZ55: 0 | CA55: 0 | CB55: - | CC55: 80000 | CD55: 0 | CE55: 0 | CF55: 0 | CG55: - | CH55: 80000 | CI55: 0 | CJ55: 0 | CK55: 0 | CL55: - | CM55: 357195 | CN55: 114452 | CO55: 0 | CP55: 0.3204188189 | CQ55: - | CR55: 3 | CS55: Salud y Protección Social | CT55: Sec. Salud y Ambiente
AQ56: Mantener 1 estrategia de seguimiento a bajo peso al nacer, desnutrición aguda, IAMI y lactancia materna. | AR56: 0 | AS56: Número de estrategias de seguimiento a bajo peso al nacer, desnutrición aguda, IAMI y lactancia materna mantenidas. | AT56: 1 | AU56: 1 | AV56: 1 | AW56: 0.25 | AX56: 1 | AY56: 0.25 | AZ56: 1 | BA56: 0.25 | BB56: 1 | BC56: 0.25 | BD56: 1 | BE56: 0 | BF56: 0 | BG56: 0 | BH56: 1 | BI56: 1 | BJ56: 0 | BK56: 0 | BL56: 0 | BM56: 0 | BN56: 0 | BO56: 0 | BP56: 0.25 | BQ56: 0.25 | BR56: 0.25 | BS56: 32517 | BT56: 23243 | BU56: 0 | BV56: 0.7147953378 | BW56: - | BX56: 82000 | BY56: 0 | BZ56: 0 | CA56: 0 | CB56: - | CC56: 82000 | CD56: 0 | CE56: 0 | CF56: 0 | CG56: - | CH56: 82000 | CI56: 0 | CJ56: 0 | CK56: 0 | CL56: - | CM56: 278517 | CN56: 23243 | CO56: 0 | CP56: 0.08345271563 | CQ56: - | CR56: 3 | CS56: Salud y Protección Social | CT56: Sec. Salud y Ambiente
D57: Reducir y mantener por debajo de 7,80% los nacidos vivos con bajo peso al nacer. | E57: 0.0788 | F57: 0.078 | H57: 0.078 | K57: 0.078 | N57: 0.078 | Q57: 0.078 | AO57: 0.06666965492 | AP57: DERECHOS SEXUALES Y REPRODUCTIVOS, SEXUALIDAD SEGURA | AQ57: Implementar el Modelo de abordaje comunitario para acciones de promoción, prevención y de acceso al diagnóstico de VIH en la población priorizada para la ampliación de la respuesta Nacional al VIH. | AR57: 0 | AS57: Numero de Modelos de abordaje comunitario para acciones de promoción, prevención y de acceso al diagnóstico de VIH en la población priorizada de la Ciudad de Bucaramanga para la ampliación de la respuesta Nacional al VIH implementados. | AT57: 1 | AU57: 1 | AV57: 1 | AW57: 0.25 | AX57: 1 | AY57: 0.25 | AZ57: 1 | BA57: 0.25 | BB57: 1 | BC57: 0.25 | BD57: 1 | BE57: 0 | BF57: 0 | BG57: 0 | BH57: 1 | BI57: 1 | BJ57: 0 | BK57: 0 | BL57: 0 | BM57: 0 | BN57: 0 | BO57: 0 | BP57: 0.25 | BQ57: 0.25 | BR57: 0.25 | BS57: 41000 | BT57: 41000 | BU57: 0 | BV57: 1 | BW57: - | BX57: 100000 | BY57: 0 | BZ57: 0 | CA57: 0 | CB57: - | CC57: 100000 | CD57: 0 | CE57: 0 | CF57: 0 | CG57: - | CH57: 100000 | CI57: 0 | CJ57: 0 | CK57: 0 | CL57: - | CM57: 341000 | CN57: 41000 | CO57: 0 | CP57: 0.1202346041 | CQ57: - | CR57: 3 | CS57: Salud y Protección Social | CT57: Sec. Salud y Ambiente
AQ58: Formular e implementar 1 estrategia de atención intregral en salud para la población LGBTIQ+ que garantice el trato digno. | AR58: 0 | AS58: Número de estrategias de atención integral en salud formuladas e implementadas para la población LGTBIQ+ que garantice el trato digno. | AT58: 0 | AU58: 1 | AV58: 1 | AW58: 0.25 | AX58: 1 | AY58: 0.25 | AZ58: 1 | BA58: 0.25 | BB58: 1 | BC58: 0.25 | BD58: 1 | BE58: 0 | BF58: 0 | BG58: 0 | BH58: 1 | BI58: 1 | BJ58: 0 | BK58: 0 | BL58: 0 | BM58: 0 | BN58: 0 | BO58: 0 | BP58: 0.25 | BQ58: 0.25 | BR58: 0.25 | BS58: 32000 | BT58: 32000 | BU58: 0 | BV58: 1 | BW58: - | BX58: 40000 | BY58: 0 | BZ58: 0 | CA58: 0 | CB58: - | CC58: 40000 | CD58: 0 | CE58: 0 | CF58: 0 | CG58: - | CH58: 40000 | CI58: 0 | CJ58: 0 | CK58: 0 | CL58: - | CM58: 152000 | CN58: 32000 | CO58: 0 | CP58: 0.2105263158 | CQ58: - | CR58: 3 | CS58: Salud y Protección Social | CT58: Sec. Salud y Ambiente
D59: Reducir y mantener por debajo de 10,6 la razón de mortalidad materna relacionada con embarazo, parto y puerperio. | E59: 10.71 | F59: 10.6 | H59: 10.6 | K59: 10.6 | N59: 10.6 | Q59: 10.6 | AQ59: Mantener 1 estrategia de información, educación y comunicación para fortalecer valores en derechos sexuales y reproductivos. | AR59: 0 | AS59: Número de estrategias de información, educación y comunicación mantenidas para fortalecer valores en derechos sexuales y reproductivos diseñada. | AT59: 1 | AU59: 1 | AV59: 1 | AW59: 0.25 | AX59: 1 | AY59: 0.25 | AZ59: 1 | BA59: 0.25 | BB59: 1 | BC59: 0.25 | BD59: 1 | BE59: 0 | BF59: 0 | BG59: 0 | BH59: 1 | BI59: 1 | BJ59: 0 | BK59: 0 | BL59: 0 | BM59: 0 | BN59: 0 | BO59: 0 | BP59: 0.25 | BQ59: 0.25 | BR59: 0.25 | BS59: 498946 | BT59: 323118 | BU59: 0 | BV59: 0.6476011432 | BW59: - | BX59: 100000 | BY59: 0 | BZ59: 0 | CA59: 0 | CB59: - | CC59: 100000 | CD59: 0 | CE59: 0 | CF59: 0 | CG59: - | CH59: 100000 | CI59: 0 | CJ59: 0 | CK59: 0 | CL59: - | CM59: 798946 | CN59: 323118 | CO59: 0 | CP59: 0.404430337 | CQ59: - | CR59: 3 | CS59: Salud y Protección Social | CT59: Sec. Salud y Ambiente
AQ60: Mantener y fortalecer la estrategia de servicios amigables para adolescentes y jóvenes. | AR60: 0 | AS60: Número de estrategias de servicios amigables para adolescentes y jóvenes mantenidas. | AT60: 1 | AU60: 1 | AV60: 1 | AW60: 0.25 | AX60: 1 | AY60: 0.25 | AZ60: 1 | BA60: 0.25 | BB60: 1 | BC60: 0.25 | BD60: 1 | BE60: 0 | BF60: 0 | BG60: 0 | BH60: 1 | BI60: 1 | BJ60: 0 | BK60: 0 | BL60: 0 | BM60: 0 | BN60: 0 | BO60: 0 | BP60: 0.25 | BQ60: 0.25 | BR60: 0.25 | BS60: 64000 | BT60: 64000 | BU60: 0 | BV60: 1 | BW60: - | BX60: 100000 | BY60: 0 | BZ60: 0 | CA60: 0 | CB60: - | CC60: 100000 | CD60: 0 | CE60: 0 | CF60: 0 | CG60: - | CH60: 100000 | CI60: 0 | CJ60: 0 | CK60: 0 | CL60: - | CM60: 364000 | CN60: 64000 | CO60: 0 | CP60: 0.1758241758 | CQ60: - | CR60: 3 | CS60: Salud y Protección Social | CT60: Sec. Salud y Ambiente
AQ61: Mantener la verificación al 100% de las EAPB e IPS el cumplimiento de la Ruta de Atención Materno-Perinatal. | AR61: 0 | AS61: Porcentaje de EAPBs e IPS mantenidas con verificación sobre el cumplimiento de la Ruta de Atención Materno-Perinatal. | AT61: 1 | AU61: 1 | AV61: 1 | AW61: 0.25 | AX61: 1 | AY61: 0.25 | AZ61: 1 | BA61: 0.25 | BB61: 1 | BC61: 0.25 | BD61: 1 | BE61: 0 | BF61: 0 | BG61: 0 | BH61: 1 | BI61: 1 | BJ61: 0 | BK61: 0 | BL61: 0 | BM61: 0 | BN61: 0 | BO61: 0 | BP61: 0.25 | BQ61: 0.25 | BR61: 0.25 | BS61: 87337 | BT61: 79204 | BU61: 0 | BV61: 0.9068779555 | BW61: - | BX61: 87000 | BY61: 0 | BZ61: 0 | CA61: 0 | CB61: - | CC61: 87000 | CD61: 0 | CE61: 0 | CF61: 0 | CG61: - | CH61: 87000 | CI61: 0 | CJ61: 0 | CK61: 0 | CL61: - | CM61: 348337 | CN61: 79204 | CO61: 0 | CP61: 0.2273775109 | CQ61: - | CR61: 3 | CS61: Salud y Protección Social | CT61: Sec. Salud y Ambiente
D62: Reducir y mantener por debajo de 13,56% la proporción de mujeres de 15 a 19 años que han sido madres o están en embarazo. | E62: 0.1357 | F62: 0.1356 | H62: 0.1356 | K62: 0.1356 | N62: 0.1356 | Q62: 0.1356 | AO62: 0.183967789 | AP62: GESTIÓN DIFERENCIAL DE POBLACIONES VULNERABLES | AQ62: Formular e implementar la estrategia de atención integral en primera infancia "En Bucaramanga es haciendo para un inicio feliz". | AR62: 0 | AS62: Número de estrategias de atención integral en primera infancia "En Bucaramanga es haciendo para un inicio feliz" formuladas e implementadas. | AT62: 0 | AU62: 1 | AV62: 1 | AW62: 0.25 | AX62: 1 | AY62: 0.25 | AZ62: 1 | BA62: 0.25 | BB62: 1 | BC62: 0.25 | BD62: 0 | BE62: 0 | BF62: 0 | BG62: 0 | BH62: 0 | BI62: 0 | BJ62: 0 | BK62: 0 | BL62: 0 | BM62: 0 | BN62: 0 | BO62: 0 | BP62: 0 | BQ62: 0 | BR62: 0 | BS62: 600000 | BT62: 0 | BU62: 0 | BV62: 0 | BW62: - | BX62: 550000 | BY62: 0 | BZ62: 0 | CA62: 0 | CB62: - | CC62: 550000 | CD62: 0 | CE62: 0 | CF62: 0 | CG62: - | CH62: 550000 | CI62: 0 | CJ62: 0 | CK62: 0 | CL62: - | CM62: 2250000 | CN62: 0 | CO62: 0 | CP62: 0 | CQ62: - | CR62: 3, 10 | CS62: Salud y Protección Social | CT62: Sec. Salud y Ambiente
AQ63: Mantener el Plan de acción intersectorial de entornos saludables PAIE con población víctima del conflicto interno armado. | AR63: 0 | AS63: Número de Planes de acción intesectoriales de entornos saludables PAIE con población víctima del conflicto interno armado mantenidos. | AT63: 1 | AU63: 1 | AV63: 1 | AW63: 0.25 | AX63: 1 | AY63: 0.25 | AZ63: 1 | BA63: 0.25 | BB63: 1 | BC63: 0.25 | BD63: 0.8 | BE63: 0 | BF63: 0 | BG63: 0 | BH63: 0.8 | BI63: 0.8 | BJ63: 0 | BK63: 0 | BL63: 0 | BM63: 0 | BN63: 0 | BO63: 0 | BP63: 0.2 | BQ63: 0.2 | BR63: 0.2 | BS63: 361100 | BT63: 295500 | BU63: 0 | BV63: 0.8183328718 | BW63: - | BX63: 330000 | BY63: 0 | BZ63: 0 | CA63: 0 | CB63: - | CC63: 330000 | CD63: 0 | CE63: 0 | CF63: 0 | CG63: - | CH63: 330000 | CI63: 0 | CJ63: 0 | CK63: 0 | CL63: - | CM63: 1351100 | CN63: 295500 | CO63: 0 | CP63: 0.2187106802 | CQ63: - | CR63: 3, 10 | CS63: Salud y Protección Social | CT63: Sec. Salud y Ambiente
D64: Mantener por debajo de 6 la tasa de mortalidad en menores de 5 años. | E64: 6 | F64: 6 | H64: 6 | K64: 6 | N64: 6 | Q64: 6 | AQ64: Mantener la verificación al 100% de los centros vida y centros día para personas mayores en cumplimiento de la Resolución 055 de 2018. | AR64: 0 | AS64: Porcentaje de centros vida y centros día con verificación mantenida para personas mayores en cumplimiento de la Resolución 055 de 2018. | AT64: 1 | AU64: 1 | AV64: 1 | AW64: 0.25 | AX64: 1 | AY64: 0.25 | AZ64: 1 | BA64: 0.25 | BB64: 1 | BC64: 0.25 | BD64: 0.9 | BE64: 0 | BF64: 0 | BG64: 0 | BH64: 0.9 | BI64: 0.9 | BJ64: 0 | BK64: 0 | BL64: 0 | BM64: 0 | BN64: 0 | BO64: 0 | BP64: 0.225 | BQ64: 0.225 | BR64: 0.225 | BS64: 90900 | BT64: 87700 | BU64: 0 | BV64: 0.9647964796 | BW64: - | BX64: 90000 | BY64: 0 | BZ64: 0 | CA64: 0 | CB64: - | CC64: 90000 | CD64: 0 | CE64: 0 | CF64: 0 | CG64: - | CH64: 90000 | CI64: 0 | CJ64: 0 | CK64: 0 | CL64: - | CM64: 360900 | CN64: 87700 | CO64: 0 | CP64: 0.2430036021 | CQ64: - | CR64: 3, 10 | CS64: Salud y Protección Social | CT64: Sec. Salud y Ambiente
AQ65: Mantener la estrategia AIEPI en las IPS y en la Comunidad. | AR65: 0 | AS65: Número de estrategias AIEPI mantenidas en las IPS y en la comunidad. | AT65: 1 | AU65: 1 | AV65: 1 | AW65: 0.25 | AX65: 1 | AY65: 0.25 | AZ65: 1 | BA65: 0.25 | BB65: 1 | BC65: 0.25 | BD65: 1 | BE65: 0 | BF65: 0 | BG65: 0 | BH65: 1 | BI65: 1 | BJ65: 0 | BK65: 0 | BL65: 0 | BM65: 0 | BN65: 0 | BO65: 0 | BP65: 0.25 | BQ65: 0.25 | BR65: 0.25 | BS65: 119167 | BT65: 109500 | BU65: 0 | BV65: 0.9188785486 | BW65: - | BX65: 70000 | BY65: 0 | BZ65: 0 | CA65: 0 | CB65: - | CC65: 70000 | CD65: 0 | CE65: 0 | CF65: 0 | CG65: - | CH65: 70000 | CI65: 0 | CJ65: 0 | CK65: 0 | CL65: - | CM65: 329167 | CN65: 109500 | CO65: 0 | CP65: 0.332657891 | CQ65: - | CR65: 3, 10 | CS65: Salud y Protección Social | CT65: Sec. Salud y Ambiente
AQ66: Mantener en funcionamiento 5 salas ERA en IPS públicas para niños y niñas menores de 6 años. | AR66: 0 | AS66: Número de salas ERA mantenidas en funcionamiento en IPS públicas para niños y niñas menores de 6 años. | AT66: 5 | AU66: 5 | AV66: 5 | AW66: 0.25 | AX66: 5 | AY66: 0.25 | AZ66: 5 | BA66: 0.25 | BB66: 5 | BC66: 0.25 | BD66: 5 | BE66: 0 | BF66: 0 | BG66: 0 | BH66: 1 | BI66: 1 | BJ66: 0 | BK66: 0 | BL66: 0 | BM66: 0 | BN66: 0 | BO66: 0 | BP66: 0.25 | BQ66: 0.25 | BR66: 0.25 | BS66: 13167 | BT66: 10750 | BU66: 0 | BV66: 0.816435027 | BW66: - | BX66: 75600 | BY66: 0 | BZ66: 0 | CA66: 0 | CB66: - | CC66: 75600 | CD66: 0 | CE66: 0 | CF66: 0 | CG66: - | CH66: 75600 | CI66: 0 | CJ66: 0 | CK66: 0 | CL66: - | CM66: 239967 | CN66: 10750 | CO66: 0 | CP66: 0.04479782637 | CQ66: - | CR66: 3, 10 | CS66: Salud y Protección Social | CT66: Sec. Salud y Ambiente
D67: Mantener en 0 la tasa de mortalidad por EDA en menores de 5 años. | E67: 0 | F67: 0 | H67: 0 | K67: 0 | N67: 0 | Q67: 0 | AQ67: Mantener el Plan Municipal de Discapacidad. | AR67: 0 | AS67: Número de Planes Municipales de Discapacidad mantenidos. | AT67: 1 | AU67: 1 | AV67: 1 | AW67: 0.25 | AX67: 1 | AY67: 0.25 | AZ67: 1 | BA67: 0.25 | BB67: 1 | BC67: 0.25 | BD67: 1 | BE67: 0 | BF67: 0 | BG67: 0 | BH67: 1 | BI67: 1 | BJ67: 0 | BK67: 0 | BL67: 0 | BM67: 0 | BN67: 0 | BO67: 0 | BP67: 0.25 | BQ67: 0.25 | BR67: 0.25 | BS67: 126000 | BT67: 111550 | BU67: 0 | BV67: 0.8853174603 | BW67: - | BX67: 126000 | BY67: 0 | BZ67: 0 | CA67: 0 | CB67: - | CC67: 126000 | CD67: 0 | CE67: 0 | CF67: 0 | CG67: - | CH67: 126000 | CI67: 0 | CJ67: 0 | CK67: 0 | CL67: - | CM67: 504000 | CN67: 111550 | CO67: 0 | CP67: 0.2213293651 | CQ67: - | CR67: 3, 10 | CS67: Salud y Protección Social | CT67: Sec. Salud y Ambiente
AQ68: Formular e implementar 1 estrategia de información, educación y comunicación para promover la formación de familias democráticas, respetuosas e incluyentes que reconozca sus derechos, sus responsabilidades y su papel en el fortalecimiento de la comunidad. | AR68: 0 | AS68: Número de estrategias de información, educación y comuncación formuladas e implementadas para promover la formación de familias democráticas, respetuosas e incluyentes que reconozca sus derechos, sus responsabilidades y su papel en el fortalecimiento de la comunidad. | AT68: 0 | AU68: 1 | AV68: 1 | AW68: 0.25 | AX68: 1 | AY68: 0.25 | AZ68: 1 | BA68: 0.25 | BB68: 1 | BC68: 0.25 | BD68: 1 | BE68: 0 | BF68: 0 | BG68: 0 | BH68: 1 | BI68: 1 | BJ68: 0 | BK68: 0 | BL68: 0 | BM68: 0 | BN68: 0 | BO68: 0 | BP68: 0.25 | BQ68: 0.25 | BR68: 0.25 | BS68: 35000 | BT68: 35000 | BU68: 0 | BV68: 1 | BW68: - | BX68: 72000 | BY68: 0 | BZ68: 0 | CA68: 0 | CB68: - | CC68: 72000 | CD68: 0 | CE68: 0 | CF68: 0 | CG68: - | CH68: 72000 | CI68: 0 | CJ68: 0 | CK68: 0 | CL68: - | CM68: 251000 | CN68: 35000 | CO68: 0 | CP68: 0.1394422311 | CQ68: - | CR68: 3, 10 | CS68: Salud y Protección Social | CT68: Sec. Salud y Ambiente
AQ69: Formular e implementar 1 estrategia educativa encaminada a la promoción de la salud y prevención de la enfermedad dirigida a poblaciones étnicas. | AR69: 0 | AS69: Número de estrategias educativas formuladas e implementadas encaminadas a la promoción de la salud y prevención de la enfermedad dirigida a poblaciones étnicas. | AT69: 0 | AU69: 1 | AV69: 1 | AW69: 0.25 | AX69: 1 | AY69: 0.25 | AZ69: 1 | BA69: 0.25 | BB69: 1 | BC69: 0.25 | BD69: 1 | BE69: 0 | BF69: 0 | BG69: 0 | BH69: 1 | BI69: 1 | BJ69: 0 | BK69: 0 | BL69: 0 | BM69: 0 | BN69: 0 | BO69: 0 | BP69: 0.25 | BQ69: 0.25 | BR69: 0.25 | BS69: 25000 | BT69: 24200 | BU69: 0 | BV69: 0.968 | BW69: - | BX69: 20000 | BY69: 0 | BZ69: 0 | CA69: 0 | CB69: - | CC69: 20000 | CD69: 0 | CE69: 0 | CF69: 0 | CG69: - | CH69: 20000 | CI69: 0 | CJ69: 0 | CK69: 0 | CL69: - | CM69: 85000 | CN69: 24200 | CO69: 0 | CP69: 0.2847058824 | CQ69: - | CR69: 3, 10 | CS69: Salud y Protección Social | CT69: Sec. Salud y Ambiente
D70: Reducir a 10,22 la tasa de mortalidad por IRA en menores de 5 años. | E70: 11.9 | F70: 10.22 | H70: 11.9 | K70: 11.31 | N70: 11 | Q70: 10.22 | AO70: 0.2091739672 | AP70: SALUD AMBIENTAL | AQ70: Realizar la identificación y el censo de los individuos caninos y felinos. | AR70: 0 | AS70: Número de identificaciones y censos de individuos caninos y felinos realizados. | AT70: 0 | AU70: 2 | AV70: 0 | AW70: =+AV70/AU70 -> 0 | AX70: 2 | AY70: =+AX70/AU70 -> 1 | AZ70: 0 | BA70: =+AZ70/AU70 -> 0 | BB70: 0 | BC70: =+BB70/AU70 -> 0 | BD70: 0 | BE70: 0 | BF70: 0 | BG70: 0 | BH70: - | BI70: - | BJ70: 0 | BK70: 0 | BL70: - | BM70: - | BN70: - | BO70: - | BP70: =+SUM(BD70:BG70)/AU70 -> 0 | BQ70: 0 | BR70: 0 | BS70: 0 | BT70: 0 | BU70: 0 | BV70: - | BW70: - | BX70: 750000 | BY70: 0 | BZ70: 0 | CA70: 0 | CB70: - | CC70: 0 | CD70: 0 | CE70: 0 | CF70: - | CG70: - | CH70: 0 | CI70: 0 | CJ70: 0 | CK70: - | CL70: - | CM70: 750000 | CN70: 0 | CO70: 0 | CP70: 0 | CQ70: - | CR70: 3 | CS70: Salud y Protección Social | CT70: Sec. Salud y Ambiente
AQ71: Realizar la vacunación antirrábica de 100.000 individuos entre caninos y felinos. | AR71: 0 | AS71: Número de individuos entre caninos y felinos vacunados con antirrábica. | AT71: 12502 | AU71: 100000 | AV71: 7500 | AW71: =+AV71/AU71 -> 0.075 | AX71: 37500 | AY71: =+AX71/AU71 -> 0.375 | AZ71: 37500 | BA71: =+AZ71/AU71 -> 0.375 | BB71: 17500 | BC71: =+BB71/AU71 -> 0.175 | BD71: 8012 | BE71: 0 | BF71: 0 | BG71: 0 | BH71: 1.068266667 | BI71: 1 | BJ71: 0 | BK71: 0 | BL71: 0 | BM71: 0 | BN71: 0 | BO71: 0 | BP71: =+SUM(BD71:BG71)/AU71 -> 0.08012 | BQ71: 0.08012 | BR71: 0.08012 | BS71: 144050 | BT71: 21000 | BU71: 0 | BV71: 0.1457827143 | BW71: - | BX71: 152000 | BY71: 0 | BZ71: 0 | CA71: 0 | CB71: - | CC71: 152000 | CD71: 0 | CE71: 0 | CF71: 0 | CG71: - | CH71: 152000 | CI71: 0 | CJ71: 0 | CK71: 0 | CL71: - | CM71: 600050 | CN71: 21000 | CO71: 0 | CP71: 0.03499708358 | CQ71: - | CR71: 3 | CS71: Salud y Protección Social | CT71: Sec. Salud y Ambiente
AQ72: Realizar 20.000 esterilizaciones de caninos y felinos. | AR72: 0 | AS72: Número de esterilizaciones de caninos y felinos realizadas. | AT72: 10021 | AU72: 20000 | AV72: 500 | AW72: =+AV72/AU72 -> 0.025 | AX72: 7100 | AY72: =+AX72/AU72 -> 0.355 | AZ72: 7200 | BA72: =+AZ72/AU72 -> 0.36 | BB72: 5200 | BC72: =+BB72/AU72 -> 0.26 | BD72: 10 | BE72: 0 | BF72: 0 | BG72: 0 | BH72: 0.02 | BI72: 0.02 | BJ72: 0 | BK72: 0 | BL72: 0 | BM72: 0 | BN72: 0 | BO72: 0 | BP72: =+SUM(BD72:BG72)/AU72 -> 0.0005 | BQ72: 0.0005 | BR72: 0.0005 | BS72: 277350 | BT72: 15583 | BU72: 0 | BV72: 0.0561853254 | BW72: - | BX72: 300000 | BY72: 0 | BZ72: 0 | CA72: 0 | CB72: - | CC72: 500000 | CD72: 0 | CE72: 0 | CF72: 0 | CG72: - | CH72: 1000000 | CI72: 0 | CJ72: 0 | CK72: 0 | CL72: - | CM72: 2077350 | CN72: 15583 | CO72: 0 | CP72: 0.007501383975 | CQ72: - | CR72: 3 | CS72: Salud y Protección Social | CT72: Sec. Salud y Ambiente
D73: Mantener en cero los casos de mortalidad por rabia humana. | E73: 0 | F73: 0 | H73: 0 | K73: 0 | N73: 0 | Q73: 0 | AQ73: Realizar visitas de inspección, vigilancia y control a 40.000 estalecimientos de alto y bajo riesgo sanitario. | AR73: 0 | AS73: Número de visitas de inspección, vigilancia y control realizadas a establecimientos de alto y bajo riesgo sanitario. | AT73: 6865 | AU73: 40000 | AV73: 5000 | AW73: =+AV73/AU73 -> 0.125 | AX73: 11500 | AY73: =+AX73/AU73 -> 0.2875 | AZ73: 11500 | BA73: =+AZ73/AU73 -> 0.2875 | BB73: 12000 | BC73: =+BB73/AU73 -> 0.3 | BD73: 3849 | BE73: 0 | BF73: 0 | BG73: 0 | BH73: 0.7698 | BI73: 0.7698 | BJ73: 0 | BK73: 0 | BL73: 0 | BM73: 0 | BN73: 0 | BO73: 0 | BP73: =+SUM(BD73:BG73)/AU73 -> 0.096225 | BQ73: 0.096225 | BR73: 0.096225 | BS73: 216500 | BT73: 18066 | BU73: 0 | BV73: 0.08344572748 | BW73: - | BX73: 348000 | BY73: 0 | BZ73: 0 | CA73: 0 | CB73: - | CC73: 348000 | CD73: 0 | CE73: 0 | CF73: 0 | CG73: - | CH73: 348000 | CI73: 0 | CJ73: 0 | CK73: 0 | CL73: - | CM73: 1260500 | CN73: 18066 | CO73: 0 | CP73: 0.01433240777 | CQ73: - | CR73: 3 | CS73: Salud y Protección Social | CT73: Sec. Salud y Ambiente
AQ74: Mantener la estrategia de entorno saludable en la zona urbana y rural. | AR74: 0 | AS74: Número de estrategias de entorno saludable mantenidas en la zona urbana y rural. | AT74: 1 | AU74: 1 | AV74: 1 | AW74: 0.25 | AX74: 1 | AY74: 0.25 | AZ74: 1 | BA74: 0.25 | BB74: 1 | BC74: 0.25 | BD74: 1 | BE74: 0 | BF74: 0 | BG74: 0 | BH74: 1 | BI74: 1 | BJ74: 0 | BK74: 0 | BL74: 0 | BM74: 0 | BN74: 0 | BO74: 0 | BP74: 0.25 | BQ74: 0.25 | BR74: 0.25 | BS74: 144000 | BT74: 6666 | BU74: 0 | BV74: 0.04629166667 | BW74: - | BX74: 80000 | BY74: 0 | BZ74: 0 | CA74: 0 | CB74: - | CC74: 80000 | CD74: 0 | CE74: 0 | CF74: 0 | CG74: - | CH74: 80000 | CI74: 0 | CJ74: 0 | CK74: 0 | CL74: - | CM74: 384000 | CN74: 6666 | CO74: 0 | CP74: 0.017359375 | CQ74: - | CR74: 3 | CS74: Salud y Protección Social | CT74: Sec. Salud y Ambiente
AQ75: Adecuar la infraestructura física del centro de Zoonosis. | AR75: 0 | AS75: Porcentaje de avance en la adecuación de la infraestructura física del centro de Zoonosis. | AT75: 0 | AU75: 1 | AV75: 0 | AW75: =+AV75/AU75 -> 0 | AX75: 0 | AY75: =+AX75/AU75 -> 0 | AZ75: 1 | BA75: =+AZ75/AU75 -> 1 | BB75: 0 | BC75: =+BB75/AU75 -> 0 | BD75: 0 | BE75: 0 | BF75: 0 | BG75: 0 | BH75: - | BI75: - | BJ75: - | BK75: - | BL75: 0 | BM75: 0 | BN75: - | BO75: - | BP75: =+SUM(BD75:BG75)/AU75 -> 0 | BQ75: 0 | BR75: 0 | BS75: 0 | BT75: 0 | BU75: 0 | BV75: - | BW75: - | BX75: 0 | BY75: 0 | BZ75: 0 | CA75: - | CB75: - | CC75: 500000 | CD75: 0 | CE75: 0 | CF75: 0 | CG75: - | CH75: 0 | CI75: 0 | CJ75: 0 | CK75: - | CL75: - | CM75: 500000 | CN75: 0 | CO75: 0 | CP75: 0 | CQ75: - | CR75: 3 | CS75: Salud y Protección Social | CT75: Sec. Salud y Ambiente
D76: Garantizar la atención del 100% de los eventos prehospitalarios reportados al sistema de emergencias Médica del Municipio. | E76: 0 | F76: 1 | H76: 0.6 | K76: 0.7 | N76: 0.8 | Q76: 1 | AO76: 0.06405482078 | AP76: SALUD PÚBLICA EN EMERGENCIAS Y DESASTRES | AQ76: Mantener el Programa de Hospitales Seguros y el Plan Familiar de Emergencias. | AR76: 0 | AS76: Número de Programas de Hospitales Seguros y Planes Familiares de Emergencias mantenidos. | AT76: 2 | AU76: 2 | AV76: 2 | AW76: 0.25 | AX76: 2 | AY76: 0.25 | AZ76: 2 | BA76: 0.25 | BB76: 2 | BC76: 0.25 | BD76: 0.5 | BE76: 0 | BF76: 0 | BG76: 0 | BH76: 0.25 | BI76: 0.25 | BJ76: 0 | BK76: 0 | BL76: 0 | BM76: 0 | BN76: 0 | BO76: 0 | BP76: 0.0625 | BQ76: 0.0625 | BR76: 0.0625 | BS76: 63600 | BT76: 38400 | BU76: 0 | BV76: 0.6037735849 | BW76: - | BX76: 80000 | BY76: 0 | BZ76: 0 | CA76: 0 | CB76: - | CC76: 80000 | CD76: 0 | CE76: 0 | CF76: 0 | CG76: - | CH76: 80000 | CI76: 0 | CJ76: 0 | CK76: 0 | CL76: - | CM76: 303600 | CN76: 38400 | CO76: 0 | CP76: 0.1264822134 | CQ76: - | CR76: 3 | CS76: Salud y Protección Social | CT76: Sec. Salud y Ambiente
AQ77: Implementar y mantener el Sistema de Emergencias Médicas. | AR77: 0 | AS77: Número de Sistemas de Emergencias Médicas implementados y mantenidos. | AT77: 0 | AU77: 1 | AV77: 1 | AW77: 0.25 | AX77: 1 | AY77: 0.25 | AZ77: 1 | BA77: 0.25 | BB77: 1 | BC77: 0.25 | BD77: 1 | BE77: 0 | BF77: 0 | BG77: 0 | BH77: 1 | BI77: 1 | BJ77: 0 | BK77: 0 | BL77: 0 | BM77: 0 | BN77: 0 | BO77: 0 | BP77: 0.25 | BQ77: 0.25 | BR77: =+BQ77 -> 0.25 | BS77: 564269 | BT77: 96000 | BU77: 0 | BV77: =IF(BS77=0," -",BT77/BS77) -> 0.1701316216 | BW77: =IF(BU77=0," -",IF(BT77=0,100%,BU77/BT77)) -> - | BX77: 320000 | BY77: 0 | BZ77: 0 | CA77: =IF(BX77=0," -",BY77/BX77) -> 0 | CB77: =IF(BZ77=0," -",IF(BY77=0,100%,BZ77/BY77)) -> - | CC77: 320000 | CD77: 0 | CE77: 0 | CF77: =IF(CC77=0," -",CD77/CC77) -> 0 | CG77: =IF(CE77=0," -",IF(CD77=0,100%,CE77/CD77)) -> - | CH77: 320000 | CI77: 0 | CJ77: 0 | CK77: =IF(CH77=0," -",CI77/CH77) -> 0 | CL77: =IF(CJ77=0," -",IF(CI77=0,100%,CJ77/CI77)) -> - | CM77: 1524269 | CN77: 96000 | CO77: 0 | CP77: 0.06298100926 | CQ77: - | CR77: 3 | CS77: Salud y Protección Social | CT77: Sec. Salud y Ambiente
AO78: 0.007966172374 | AP78: OPORTUNIDAD PARA LA PROMOCIÓN DE LA SALUD DENTRO DE SU AMBIENTE LABORAL | AQ78: Mantener el 100% de acciones de promoción y prevención de los riesgos laborales en la población formal e informal. | AR78: 0 | AS78: Porcentaje de acciones de promoción y prevención de los riesgos laborales en población formal e informal mantenidos. | AT78: 1 | AU78: 1 | AV78: 1 | AW78: 0.25 | AX78: 1 | AY78: 0.25 | AZ78: 1 | BA78: 0.25 | BB78: 1 | BC78: 0.25 | BD78: 0.1 | BE78: 0 | BF78: 0 | BG78: 0 | BH78: =IF(AV78=0," -",BD78/AV78) -> 0.1 | BI78: =IF(AV78=0," -",IF(BH78>100%,100%,BH78)) -> 0.1 | BJ78: =IF(AX78=0," -",BE78/AX78) -> 0 | BK78: =IF(AX78=0," -",IF(BJ78>100%,100%,BJ78)) -> 0 | BL78: =IF(AZ78=0," -",BF78/AZ78) -> 0 | BM78: =IF(AZ78=0," -",IF(BL78>100%,100%,BL78)) -> 0 | BN78: =IF(BB78=0," -",BG78/BB78) -> 0 | BO78: =IF(BB78=0," -",IF(BN78>100%,100%,BN78)) -> 0 | BP78: =+AVERAGE(BD78:BG78)/AU78 -> 0.025 | BQ78: =+IF(BP78>100%,100%,BP78) -> 0.025 | BR78: 0.025 | BS78: 35200 | BT78: 1900 | BU78: 0 | BV78: 0.05397727273 | BW78: - | BX78: 59000 | BY78: 0 | BZ78: 0 | CA78: 0 | CB78: - | CC78: 59000 | CD78: 0 | CE78: 0 | CF78: 0 | CG78: - | CH78: 59000 | CI78: 0 | CJ78: 0 | CK78: 0 | CL78: - | CM78: 212200 | CN78: 1900 | CO78: 0 | CP78: 0.008953817154 | CQ78: - | CR78: 3 | CS78: Salud y Protección Social | CT78: Sec. Salud y Ambiente
D80: Disminuir a 80 la tasa de violencia contra niños, niñas y adolescentes. | E80: 91.17 | F80: 80 | H80: 89 | K80: 85 | N80: 82 | Q80: 80 | AM80: 0.03153832448 | AN80: CAPACIDADES Y OPORTUNIDADES PARA SUPERAR BRECHAS SOCIALES | AO80: 0.06370548272 | AP80: PRIMERA INFANCIA EL CENTRO DE LA SOCIEDAD | AQ80: Formular e implementar 1 estrategia para el fortalecimiento de padres/madres y/o cuidadores en pautas de crianza y vínculos afectivos tanto en el ámbito familiar como comunitario que permita disminuir las violencias en primera infancia. | AR80: 0 | AS80: Número de estrategias formuladas e implementadas para el fortalecimiento de padres/madres y/o cuidadores en pautas de crianza y vinculos afectivos tanto en el ámbito familiar como comunitario que permitan disminuir las violencias en primera infancia. | AT80: 1 | AU80: 1 | AV80: 1 | AW80: 0.25 | AX80: 1 | AY80: 0.25 | AZ80: 1 | BA80: 0.25 | BB80: 1 | BC80: 0.25 | BD80: 0.8 | BE80: 0 | BF80: 0 | BG80: 0 | BH80: 0.8 | BI80: 0.8 | BJ80: 0 | BK80: 0 | BL80: 0 | BM80: 0 | BN80: 0 | BO80: 0 | BP80: 0.2 | BQ80: 0.2 | BR80: 0.2 | BS80: 171830 | BT80: 71100 | BU80: 0 | BV80: 0.4137810627 | BW80: - | BX80: 150000 | BY80: 0 | BZ80: 0 | CA80: 0 | CB80: - | CC80: 200000 | CD80: 0 | CE80: 0 | CF80: 0 | CG80: - | CH80: 200000 | CI80: 0 | CJ80: 0 | CK80: 0 | CL80: - | CM80: 721830 | CN80: 71100 | CO80: 0 | CP80: 0.09849964673 | CQ80: - | CR80: 3, 5 | CS80: Inclusión Social | CT80: Sec. Desarrollo Social
AQ81: Formular e implementar 1 programa de prevención, detección y atención de violencias (violencia intrafamiliar, abuso y violencia sexual, violencia psicológica y física, negligencia y agresividad en los niños) en el entorno familiar, educativo y comunitario dirigido a primera infancia e infancia. | AR81: 0 | AS81: Número de programas formulados e implementados para la prevención, detección y atención de violencias (violencia intrafamiliar, abuso y violencia sexual, violencia psicológica y física, negligencia y agresividad en los niños) en el entorno familiar, educativo y comunitario dirigido a primera infancia e infancia. | AT81: 0 | AU81: 1 | AV81: 1 | AW81: 0.25 | AX81: 1 | AY81: 0.25 | AZ81: 1 | BA81: 0.25 | BB81: 1 | BC81: 0.25 | BD81: 0.7 | BE81: 0 | BF81: 0 | BG81: 0 | BH81: 0.7 | BI81: 0.7 | BJ81: 0 | BK81: 0 | BL81: 0 | BM81: 0 | BN81: 0 | BO81: 0 | BP81: 0.175 | BQ81: 0.175 | BR81: 0.175 | BS81: 80000 | BT81: 40000 | BU81: 0 | BV81: 0.5 | BW81: - | BX81: 500000 | BY81: 0 | BZ81: 0 | CA81: 0 | CB81: - | CC81: 450000 | CD81: 0 | CE81: 0 | CF81: 0 | CG81: - | CH81: 600000 | CI81: 0 | CJ81: 0 | CK81: 0 | CL81: - | CM81: 1630000 | CN81: 40000 | CO81: 0 | CP81: 0.0245398773 | CQ81: - | CR81: 16 | CS81: Inclusión Social | CT81: Sec. Desarrollo Social
AQ82: Entregar 4 dotaciones a espacios para la primera infancia con enfoque de inclusión que permita el desarrollo de habilidades. | AR82: 0 | AS82: Número de dotaciones entregadas a espacios para la primera infancia con enfoque de inclusión que permitan el desarrollo de habilidades. | AT82: 4 | AU82: 4 | AV82: 4 | AW82: =+AV82/AU82 -> 1 | AX82: 0 | AY82: =+AX82/AU82 -> 0 | AZ82: 0 | BA82: =+AZ82/AU82 -> 0 | BB82: 0 | BC82: =+BB82/AU82 -> 0 | BD82: 0 | BE82: 0 | BF82: 0 | BG82: 0 | BH82: 0 | BI82: 0 | BJ82: - | BK82: - | BL82: - | BM82: - | BN82: - | BO82: - | BP82: =+SUM(BD82:BG82)/AU82 -> 0 | BQ82: 0 | BR82: 0 | BS82: 0 | BT82: 0 | BU82: 0 | BV82: - | BW82: - | BX82: 0 | BY82: 0 | BZ82: 0 | CA82: - | CB82: - | CC82: 0 | CD82: 0 | CE82: 0 | CF82: - | CG82: - | CH82: 0 | CI82: 0 | CJ82: 0 | CK82: - | CL82: - | CM82: 0 | CN82: 0 | CO82: 0 | CP82: - | CQ82: - | CR82: 4 | CS82: Inclusión Social | CT82: Sec. Desarrollo Social
AQ83: Construir y/o adecuar 4 Centros de Desarrollo Infantil - CDI o Espacios para la Primera Infancia. | AR83: 0 | AS83: Número de Centros de Desarrollo Infantil - CDI o Espacios para la Primera Infancia construídos o adecuados. | AT83: 2 | AU83: 4 | AV83: 0 | AW83: =+AV83/AU83 -> 0 | AX83: 1 | AY83: =+AX83/AU83 -> 0.25 | AZ83: 1 | BA83: =+AZ83/AU83 -> 0.25 | BB83: 2 | BC83: =+BB83/AU83 -> 0.5 | BD83: 0 | BE83: 0 | BF83: 0 | BG83: 0 | BH83: - | BI83: - | BJ83: 0 | BK83: 0 | BL83: 0 | BM83: 0 | BN83: 0 | BO83: 0 | BP83: =+SUM(BD83:BG83)/AU83 -> 0 | BQ83: 0 | BR83: 0 | BS83: 0 | BT83: 0 | BU83: 0 | BV83: - | BW83: - | BX83: 100000 | BY83: 0 | BZ83: 0 | CA83: 0 | CB83: - | CC83: 1000000 | CD83: 0 | CE83: 0 | CF83: 0 | CG83: - | CH83: 1000000 | CI83: 0 | CJ83: 0 | CK83: 0 | CL83: - | CM83: 2100000 | CN83: 0 | CO83: 0 | CP83: 0 | CQ83: - | CR83: 4 | CS83: Inclusión Social | CT83: Sec. Desarrollo Social
AO84: 0.04705583185 | AP84: CRECE CONMIGO: UNA INFANCIA FELIZ | AQ84: Formular e implementar 1 estrategia de corresponsabilidad en la garantía de derechos, la prevención de vulneración, amenaza o riesgo en el ámbito familiar, comunitario e institucional. | AR84: 0 | AS84: Número de estrategias de corresponsabilidad en la garantía de derechos, la prevención de vulneración, amenaza o riesgo en el ámbito familiar, comunitario e institucional formuladas e implementadas. | AT84: 0 | AU84: 1 | AV84: 1 | AW84: 0.25 | AX84: 1 | AY84: 0.25 | AZ84: 1 | BA84: 0.25 | BB84: 1 | BC84: 0.25 | BD84: 0.8 | BE84: 0 | BF84: 0 | BG84: 0 | BH84: 0.8 | BI84: 0.8 | BJ84: 0 | BK84: 0 | BL84: 0 | BM84: 0 | BN84: 0 | BO84: 0 | BP84: 0.2 | BQ84: 0.2 | BR84: 0.2 | BS84: 289750 | BT84: 284328 | BU84: 0 | BV84: 0.9812873167 | BW84: - | BX84: 100000 | BY84: 0 | BZ84: 0 | CA84: 0 | CB84: - | CC84: 100000 | CD84: 0 | CE84: 0 | CF84: 0 | CG84: - | CH84: 100000 | CI84: 0 | CJ84: 0 | CK84: 0 | CL84: - | CM84: 589750 | CN84: 284328 | CO84: 0 | CP84: 0.4821161509 | CQ84: - | CR84: 16 | CS84: Inclusión Social | CT84: Sec. Desarrollo Social
AQ85: Implementar 4 iniciativas que promueva la participación activa de niños y niñas desde la primera infancia en espacios de interés privados y públicos en los que se fortalezcan habilidades para la vida, preparación para el proyecto de vida y el ejercicio de sus derechos. | AR85: 0 | AS85: Número de iniciativas implementadas que promueva la participación activa de niños y niñas desde la primera infancia en espacios de interés privados y públicos en los que se fortalezcan habilidades para la vida, preparación para el proyecto de vida y el ejercicio de sus derechos. | AT85: 1 | AU85: 4 | AV85: 1 | AW85: =+AV85/AU85 -> 0.25 | AX85: 1 | AY85: =+AX85/AU85 -> 0.25 | AZ85: 1 | BA85: =+AZ85/AU85 -> 0.25 | BB85: 1 | BC85: =+BB85/AU85 -> 0.25 | BD85: 1 | BE85: 0 | BF85: 0 | BG85: 0 | BH85: 1 | BI85: 1 | BJ85: 0 | BK85: 0 | BL85: 0 | BM85: 0 | BN85: 0 | BO85: 0 | BP85: =+SUM(BD85:BG85)/AU85 -> 0.25 | BQ85: 0.25 | BR85: 0.25 | BS85: 35953 | BT85: 25000 | BU85: 0 | BV85: 0.6953522655 | BW85: - | BX85: 150000 | BY85: 0 | BZ85: 0 | CA85: 0 | CB85: - | CC85: 150000 | CD85: 0 | CE85: 0 | CF85: 0 | CG85: - | CH85: 150000 | CI85: 0 | CJ85: 0 | CK85: 0 | CL85: - | CM85: 485953 | CN85: 25000 | CO85: 0 | CP85: 0.05144530438 | CQ85: - | CR85: 3 | CS85: Inclusión Social | CT85: Sec. Desarrollo Social
AQ86: Formular e implementar 1 programa para el reconocimiento de la construcción de la identidad de niños y niñas con una perspectiva de género dirigido a padres/madres y educadores. | AR86: 0 | AS86: Número de programas formulados e implementados para el reconocimiento de la construcción de la identidad de niños y niñas con una perspectiva de género dirigido a padres/madres y educadores. | AT86: 0 | AU86: 1 | AV86: 0 | AW86: =+AV86/AU86 -> 0 | AX86: 1 | AY86: 0.33 | AZ86: 1 | BA86: 0.33 | BB86: 1 | BC86: 0.34 | BD86: 0 | BE86: 0 | BF86: 0 | BG86: 0 | BH86: - | BI86: - | BJ86: 0 | BK86: 0 | BL86: 0 | BM86: 0 | BN86: 0 | BO86: 0 | BP86: =+AVERAGE(BE86:BG86)/AU86 -> 0 | BQ86: 0 | BR86: 0 | BS86: 0 | BT86: 0 | BU86: 0 | BV86: - | BW86: - | BX86: 250000 | BY86: 0 | BZ86: 0 | CA86: 0 | CB86: - | CC86: 250000 | CD86: 0 | CE86: 0 | CF86: 0 | CG86: - | CH86: 250000 | CI86: 0 | CJ86: 0 | CK86: 0 | CL86: - | CM86: =+BS86+BX86+CC86+CH86 -> 750000 | CN86: =+BT86+BY86+CD86+CI86 -> 0 | CO86: =+BU86+BZ86+CE86+CJ86 -> 0 | CP86: =IF(CM86=0," -",CN86/CM86) -> 0 | CQ86: =IF(CO86=0," -",IF(CN86=0,100%,CO86/CN86)) -> - | CR86: 5 | CS86: Inclusión Social | CT86: Sec. Desarrollo Social
AQ87: Formular e implementar 1 estrategia para el fomento de prácticas de autoprotección y cuidado en niños y niñas para la prevención de conductas de riesgo (consumo de SPA, acciones delictivas, abandono familiar y escolar). | AR87: 0 | AS87: Número de estrategias formuladas e implementadas para el fomento de prácticas de autoprotección y cuidado en niños y niñas para la prevención de conductas de riesgo (consumo de SPA, acciones delictivas, abandono familiar y escolar). | AT87: 0 | AU87: 1 | AV87: 0 | AW87: =+AV87/AU87 -> 0 | AX87: 1 | AY87: 0.33 | AZ87: 1 | BA87: 0.33 | BB87: 1 | BC87: 0.34 | BD87: 0 | BE87: 0 | BF87: 0 | BG87: 0 | BH87: - | BI87: - | BJ87: 0 | BK87: 0 | BL87: 0 | BM87: 0 | BN87: 0 | BO87: 0 | BP87: =+AVERAGE(BE87:BG87)/AU87 -> 0 | BQ87: 0 | BR87: 0 | BS87: 0 | BT87: 0 | BU87: 0 | BV87: - | BW87: - | BX87: 250000 | BY87: 0 | BZ87: 0 | CA87: 0 | CB87: - | CC87: 250000 | CD87: 0 | CE87: 0 | CF87: 0 | CG87: - | CH87: 250000 | CI87: 0 | CJ87: 0 | CK87: 0 | CL87: - | CM87: 750000 | CN87: 0 | CO87: 0 | CP87: 0 | CQ87: - | CR87: 3 | CS87: Inclusión Social | CT87: Sec. Desarrollo Social
AQ88: Formular e implementar 1 estrategia comunitaria y familiar para la prevención y erradicación del trabajo infantil en niños, niñas y adolescentes de acuerdo a los lineamientos del Plan Nacional de Erradicación del trabajo infantil y sus peores formas. | AR88: 0 | AS88: Número de estrategias comunitarias y familiares formuladas e implementadas para la prevención y erradicación del trabajo infantil en niños, niñas y adolescentes de acuerdo a los lineamientos del Plan Nacional de Erradicación del trabajo infantil y sus peores formas. | AT88: 1 | AU88: 1 | AV88: 1 | AW88: 0.25 | AX88: 1 | AY88: 0.25 | AZ88: 1 | BA88: 0.25 | BB88: 1 | BC88: 0.25 | BD88: 0.5 | BE88: 0 | BF88: 0 | BG88: 0 | BH88: 0.5 | BI88: 0.5 | BJ88: 0 | BK88: 0 | BL88: 0 | BM88: 0 | BN88: 0 | BO88: 0 | BP88: 0.125 | BQ88: 0.125 | BR88: 0.125 | BS88: 25000 | BT88: 18000 | BU88: 0 | BV88: 0.72 | BW88: - | BX88: 100000 | BY88: 0 | BZ88: 0 | CA88: 0 | CB88: - | CC88: 100000 | CD88: 0 | CE88: 0 | CF88: 0 | CG88: - | CH88: 100000 | CI88: 0 | CJ88: 0 | CK88: 0 | CL88: - | CM88: 325000 | CN88: 18000 | CO88: 0 | CP88: 0.05538461538 | CQ88: - | CR88: 8 | CS88: Inclusión Social | CT88: Sec. Desarrollo Social
AQ89: Implementar y mantener la Ruta de Prevención, Detección y Atención Interinstitucional frente casos de niños, niñas y adolescentes victimas de bullying, abuso, acoso y/o explotación sexual. | AR89: 0 | AS89: Número de Rutas de Prevención, Detección y Atención Interinstitucional implementadas y mantenidas frente casos de niños, niñas y adolescentes victimas de bullying, abuso, acoso y/o explotación sexual. | AT89: 0 | AU89: 1 | AV89: 1 | AW89: 0.25 | AX89: 1 | AY89: 0.25 | AZ89: 1 | BA89: 0.25 | BB89: 1 | BC89: 0.25 | BD89: 1 | BE89: 0 | BF89: 0 | BG89: 0 | BH89: 1 | BI89: 1 | BJ89: 0 | BK89: 0 | BL89: 0 | BM89: 0 | BN89: 0 | BO89: 0 | BP89: 0.25 | BQ89: 0.25 | BR89: 0.25 | BS89: 50000 | BT89: 17500 | BU89: 0 | BV89: 0.35 | BW89: - | BX89: 50000 | BY89: 0 | BZ89: 0 | CA89: 0 | CB89: - | CC89: 50000 | CD89: 0 | CE89: 0 | CF89: 0 | CG89: - | CH89: 50000 | CI89: 0 | CJ89: 0 | CK89: 0 | CL89: - | CM89: 200000 | CN89: 17500 | CO89: 0 | CP89: 0.0875 | CQ89: - | CR89: 16, 5 | CS89: Inclusión Social | CT89: Sec. Desarrollo Social
AQ90: Realizar 4 jornadas de conmemoración del día de la niñez. | AR90: 0 | AS90: Número de jornadas de conmemoración del día de la niñez realizadas. | AT90: 4 | AU90: 4 | AV90: 1 | AW90: =+AV90/AU90 -> 0.25 | AX90: 1 | AY90: =+AX90/AU90 -> 0.25 | AZ90: 1 | BA90: =+AZ90/AU90 -> 0.25 | BB90: 1 | BC90: =+BB90/AU90 -> 0.25 | BD90: 1 | BE90: 0 | BF90: 0 | BG90: 0 | BH90: 1 | BI90: 1 | BJ90: 0 | BK90: 0 | BL90: 0 | BM90: 0 | BN90: 0 | BO90: 0 | BP90: =+SUM(BD90:BG90)/AU90 -> 0.25 | BQ90: 0.25 | BR90: 0.25 | BS90: 25000 | BT90: 25000 | BU90: 0 | BV90: 1 | BW90: - | BX90: 20000 | BY90: 0 | BZ90: 0 | CA90: 0 | CB90: - | CC90: 20000 | CD90: 0 | CE90: 0 | CF90: 0 | CG90: - | CH90: 20000 | CI90: 0 | CJ90: 0 | CK90: 0 | CL90: - | CM90: 85000 | CN90: 25000 | CO90: 0 | CP90: 0.2941176471 | CQ90: - | CR90: 3 | CS90: Inclusión Social | CT90: Sec. Desarrollo Social
AQ91: Formular e implementar 1 ruta de atención integral para niños, niñas, adolescentes refugiados y migrantes y sus familias. | AR91: 0 | AS91: Número de rutas de atención integral formuladas e implementadas para niños, niñas, adolescentes refugiados y migrantes y sus familias. | AT91: 0 | AU91: 1 | AV91: 1 | AW91: 0.25 | AX91: 1 | AY91: 0.25 | AZ91: 1 | BA91: 0.25 | BB91: 1 | BC91: 0.25 | BD91: 1 | BE91: 0 | BF91: 0 | BG91: 0 | BH91: 1 | BI91: 1 | BJ91: 0 | BK91: 0 | BL91: 0 | BM91: 0 | BN91: 0 | BO91: 0 | BP91: 0.25 | BQ91: 0.25 | BR91: 0.25 | BS91: 163250 | BT91: 133250 | BU91: 0 | BV91: 0.8162327718 | BW91: - | BX91: 150000 | BY91: 0 | BZ91: 0 | CA91: 0 | CB91: - | CC91: 150000 | CD91: 0 | CE91: 0 | CF91: 0 | CG91: - | CH91: 150000 | CI91: 0 | CJ91: 0 | CK91: 0 | CL91: - | CM91: 613250 | CN91: 133250 | CO91: 0 | CP91: 0.2172849572 | CQ91: - | CR91: 10 | CS91: Inclusión Social | CT91: Sec. Desarrollo Social
AO92: 0.02181116608 | AP92: CONSTRUCCIÓN DE ENTORNOS PARA UNA ADOLESCENCIA SANA | AQ92: Formular e implementar 1 programa de familias fuertes: amor y límite que permita fortalecer a las familias como agente protector ante las conductas de riesgo en los adolescentes. | AR92: 0 | AS92: Número de programas formulados e implementados de familias fuertes: amor y límite que permitan fortalecer a las familias como agente protector ante las conductas de riesgo en los adolescentes. | AT92: 0 | AU92: 1 | AV92: 1 | AW92: 0.25 | AX92: 1 | AY92: 0.25 | AZ92: 1 | BA92: 0.25 | BB92: 1 | BC92: 0.25 | BD92: 0.7 | BE92: 0 | BF92: 0 | BG92: 0 | BH92: 0.7 | BI92: 0.7 | BJ92: 0 | BK92: 0 | BL92: 0 | BM92: 0 | BN92: 0 | BO92: 0 | BP92: 0.175 | BQ92: 0.175 | BR92: 0.175 | BS92: 146683 | BT92: 70700 | BU92: 0 | BV92: 0.4819917782 | BW92: - | BX92: 160000 | BY92: 0 | BZ92: 0 | CA92: 0 | CB92: - | CC92: 160000 | CD92: 0 | CE92: 0 | CF92: 0 | CG92: - | CH92: 160000 | CI92: 0 | CJ92: 0 | CK92: 0 | CL92: - | CM92: 626683 | CN92: 70700 | CO92: 0 | CP92: 0.1128162085 | CQ92: - | CR92: 3 | CS92: Inclusión Social | CT92: Sec. Desarrollo Social
AQ93: Brindar 150.000 entradas gratuitas de niñas, niños y adolescentes y sus familias a eventos artísticos, culturales, lúdicos y recreativos. | AR93: 0 | AS93: Número de entradas gratuitas brindadas a niñas, niños y adolescentes y sus familias a eventos artísticos, culturales, lúdicos y recreativos. | AT93: 75000 | AU93: 150000 | AV93: 0 | AW93: =+AV93/AU93 -> 0 | AX93: 50000 | AY93: =+AX93/AU93 -> 0.3333333333 | AZ93: 50000 | BA93: =+AZ93/AU93 -> 0.3333333333 | BB93: 50000 | BC93: =+BB93/AU93 -> 0.3333333333 | BD93: 0 | BE93: 0 | BF93: 0 | BG93: 0 | BH93: - | BI93: - | BJ93: 0 | BK93: 0 | BL93: 0 | BM93: 0 | BN93: 0 | BO93: 0 | BP93: =+SUM(BD93:BG93)/AU93 -> 0 | BQ93: 0 | BR93: 0 | BS93: 0 | BT93: 0 | BU93: 0 | BV93: - | BW93: - | BX93: 150000 | BY93: 0 | BZ93: 0 | CA93: 0 | CB93: - | CC93: 150000 | CD93: 0 | CE93: 0 | CF93: 0 | CG93: - | CH93: 150000 | CI93: 0 | CJ93: 0 | CK93: 0 | CL93: - | CM93: 450000 | CN93: 0 | CO93: 0 | CP93: 0 | CQ93: - | CR93: 11 | CS93: Inclusión Social | CT93: Sec. Desarrollo Social
AQ94: Desarrollar 3 jornadas de uso creativo del tiempo y emprendimiento que potencien sus competencias y motiven continuar en diferentes niveles de educación superior. | AR94: 0 | AS94: Número de jornadas desarrolladas de uso creativo del tiempo y emprendimiento que potencien sus competencias y motiven continuar en diferentes niveles de educación superior. | AT94: 1 | AU94: 3 | AV94: 0 | AW94: =+AV94/AU94 -> 0 | AX94: 1 | AY94: =+AX94/AU94 -> 0.3333333333 | AZ94: 1 | BA94: =+AZ94/AU94 -> 0.3333333333 | BB94: 1 | BC94: =+BB94/AU94 -> 0.3333333333 | BD94: 0 | BE94: 0 | BF94: 0 | BG94: 0 | BH94: - | BI94: - | BJ94: 0 | BK94: 0 | BL94: 0 | BM94: 0 | BN94: 0 | BO94: 0 | BP94: =+SUM(BD94:BG94)/AU94 -> 0 | BQ94: 0 | BR94: 0 | BS94: 0 | BT94: 0 | BU94: 0 | BV94: - | BW94: - | BX94: 50000 | BY94: 0 | BZ94: 0 | CA94: 0 | CB94: - | CC94: 50000 | CD94: 0 | CE94: 0 | CF94: 0 | CG94: - | CH94: 50000 | CI94: 0 | CJ94: 0 | CK94: 0 | CL94: - | CM94: 150000 | CN94: 0 | CO94: 0 | CP94: 0 | CQ94: - | CR94: 4 | CS94: Inclusión Social | CT94: Sec. Desarrollo Social
AQ95: Mantener el servicio exequial al 100% de los niños, niñas y adolescentes en extrema vulnerabilidad que fallezcan y que sus familias así lo requieran. | AR95: 0 | AS95: Porcentaje de niños, niñas y adolescentes en extrema vulnerabilidad fallecidos con servicio exequial requerido por sus familias. | AT95: 1 | AU95: 1 | AV95: 1 | AW95: 0.25 | AX95: 1 | AY95: 0.25 | AZ95: 1 | BA95: 0.25 | BB95: 1 | BC95: 0.25 | BD95: 1 | BE95: 0 | BF95: 0 | BG95: 0 | BH95: 1 | BI95: 1 | BJ95: 0 | BK95: 0 | BL95: 0 | BM95: 0 | BN95: 0 | BO95: 0 | BP95: 0.25 | BQ95: 0.25 | BR95: 0.25 | BS95: 26250 | BT95: 26250 | BU95: 0 | BV95: 1 | BW95: - | BX95: 60000 | BY95: 0 | BZ95: 0 | CA95: 0 | CB95: - | CC95: 60000 | CD95: 0 | CE95: 0 | CF95: 0 | CG95: - | CH95: 60000 | CI95: 0 | CJ95: 0 | CK95: 0 | CL95: - | CM95: 206250 | CN95: 26250 | CO95: 0 | CP95: 0.1272727273 | CQ95: - | CR95: 1 | CS95: Inclusión Social | CT95: Sec. Desarrollo Social
AQ96: Implementar y mantener 1 proceso de liderazgo b-learning orientada al fortalecimiento de la participación de niños, niñas, adolescentes y jóvenes. | AR96: 0 | AS96: Número de procesos de liderazgo b-learning implementados mantenidos orientada al fortalecimiento de la participación de niños, niñas, adolescentes y jóvenes. | AT96: 0 | AU96: 1 | AV96: 0 | AW96: =+AV96/AU96 -> 0 | AX96: 1 | AY96: 0.33 | AZ96: 1 | BA96: 0.33 | BB96: 1 | BC96: 0.34 | BD96: 1 | BE96: 0 | BF96: 0 | BG96: 0 | BH96: - | BI96: - | BJ96: 0 | BK96: 0 | BL96: 0 | BM96: 0 | BN96: 0 | BO96: 0 | BP96: 0.25 | BQ96: 0.25 | BR96: 0.25 | BS96: 0 | BT96: 0 | BU96: 0 | BV96: - | BW96: - | BX96: 50000 | BY96: 0 | BZ96: 0 | CA96: 0 | CB96: - | CC96: 50000 | CD96: 0 | CE96: 0 | CF96: 0 | CG96: - | CH96: 50000 | CI96: 0 | CJ96: 0 | CK96: 0 | CL96: - | CM96: 150000 | CN96: 0 | CO96: 0 | CP96: 0 | CQ96: - | CR96: 3 | CS96: Inclusión Social | CT96: Sec. Desarrollo Social
AQ97: Sistematizar 4 buenas prácticas que aporten al desarrollo de las realizaciones establecidas para los niños, niñas y adolescentes en el marco del proceso de rendición pública de cuentas. | AR97: 0 | AS97: Número de sistematizaciones realizadas de buenas prácticas que aporten al desarrollo de las realizaciones establecidas para los niños, niñas y adolescentes en el marco del proceso de rendición pública de cuentas. | AT97: 0 | AU97: 4 | AV97: 0 | AW97: =+AV97/AU97 -> 0 | AX97: 2 | AY97: =+AX97/AU97 -> 0.5 | AZ97: 0 | BA97: =+AZ97/AU97 -> 0 | BB97: 2 | BC97: =+BB97/AU97 -> 0.5 | BD97: 0 | BE97: 0 | BF97: 0 | BG97: 0 | BH97: - | BI97: - | BJ97: 0 | BK97: 0 | BL97: - | BM97: - | BN97: 0 | BO97: 0 | BP97: =+SUM(BD97:BG97)/AU97 -> 0 | BQ97: 0 | BR97: 0 | BS97: 0 | BT97: 0 | BU97: 0 | BV97: - | BW97: - | BX97: 20000 | BY97: 0 | BZ97: 0 | CA97: 0 | CB97: - | CC97: 20000 | CD97: 0 | CE97: 0 | CF97: 0 | CG97: - | CH97: 20000 | CI97: 0 | CJ97: 0 | CK97: 0 | CL97: - | CM97: 60000 | CN97: 0 | CO97: 0 | CP97: 0 | CQ97: - | CR97: 16 | CS97: Inclusión Social | CT97: Sec. Desarrollo Social
AO98: 0.02586579149 | AP98: JUVENTUD DINÁMICA, PARTICIPATIVA Y RESPONSABLE | AQ98: Mantener las 6 casas de la juventud con una oferta programática del uso adecuado del tiempo libre, acompañamiento psicosocial y conectividad digital. | AR98: 0 | AS98: Número de casas de la juventud mantenidas con una oferta programática del uso adecuado del tiempo libre, acompañamiento psicosocial y conectividad digital. | AT98: 6 | AU98: 6 | AV98: 6 | AW98: 0.25 | AX98: 6 | AY98: 0.25 | AZ98: 6 | BA98: 0.25 | BB98: 6 | BC98: 0.25 | BD98: 8 | BE98: 0 | BF98: 0 | BG98: 0 | BH98: 1.333333333 | BI98: 1 | BJ98: 0 | BK98: 0 | BL98: 0 | BM98: 0 | BN98: 0 | BO98: 0 | BP98: 0.3333333333 | BQ98: 0.3333333333 | BR98: 0.3333333333 | BS98: 172680 | BT98: 154631 | BU98: 0 | BV98: 0.8954771832 | BW98: - | BX98: 228000 | BY98: 0 | BZ98: 0 | CA98: 0 | CB98: - | CC98: 145938 | CD98: 0 | CE98: 0 | CF98: 0 | CG98: - | CH98: 145938 | CI98: 0 | CJ98: 0 | CK98: 0 | CL98: - | CM98: 692556 | CN98: 154631 | CO98: 0 | CP98: 0.2232758073 | CQ98: - | CR98: 4, 5, 10, 16 | CS98: Inclusión Social | CT98: INDERBU
AQ99: Vincular 7.000 jóvenes en los diferentes procesos democráticos de participación ciudadana. | AR99: 0 | AS99: Número de jóvenes vinculados en los diferentes procesos democráticos de participación ciudadana. | AT99: 3334 | AU99: 7000 | AV99: 800 | AW99: =+AV99/AU99 -> 0.1142857143 | AX99: 1200 | AY99: =+AX99/AU99 -> 0.1714285714 | AZ99: 2500 | BA99: =+AZ99/AU99 -> 0.3571428571 | BB99: 2500 | BC99: =+BB99/AU99 -> 0.3571428571 | BD99: 632 | BE99: 0 | BF99: 0 | BG99: 0 | BH99: 0.79 | BI99: 0.79 | BJ99: 0 | BK99: 0 | BL99: 0 | BM99: 0 | BN99: 0 | BO99: 0 | BP99: =+SUM(BD99:BG99)/AU99 -> 0.09028571429 | BQ99: 0.09028571429 | BR99: 0.09028571429 | BS99: 68658 | BT99: 44000 | BU99: 0 | BV99: 0.640857584 | BW99: - | BX99: 70000 | BY99: 0 | BZ99: 0 | CA99: 0 | CB99: - | CC99: 321658 | CD99: 0 | CE99: 0 | CF99: 0 | CG99: - | CH99: 321658 | CI99: 0 | CJ99: 0 | CK99: 0 | CL99: - | CM99: 781974 | CN99: 44000 | CO99: 0 | CP99: 0.05626785545 | CQ99: - | CR99: 10, 5, 16, 17 | CS99: Inclusión Social | CT99: INDERBU
AQ100: Implementar 6 procesos de comunicación estratégica mediante campañas de innovación para la promoción y prevención de flagelos juveniles. | AR100: 0 | AS100: Número de procesos de comunicación estratégica implementados mediante campañas de innovación para la promoción y prevención de flagelos juveniles. | AT100: 2 | AU100: 6 | AV100: 1 | AW100: =+AV100/AU100 -> 0.1666666667 | AX100: 1 | AY100: =+AX100/AU100 -> 0.1666666667 | AZ100: 2 | BA100: =+AZ100/AU100 -> 0.3333333333 | BB100: 2 | BC100: =+BB100/AU100 -> 0.3333333333 | BD100: 1 | BE100: 0 | BF100: 0 | BG100: 0 | BH100: 1 | BI100: 1 | BJ100: 0 | BK100: 0 | BL100: 0 | BM100: 0 | BN100: 0 | BO100: 0 | BP100: =+SUM(BD100:BG100)/AU100 -> 0.1666666667 | BQ100: 0.1666666667 | BR100: 0.1666666667 | BS100: 49870 | BT100: 32800 | BU100: 0 | BV100: 0.6577100461 | BW100: - | BX100: 100000 | BY100: 0 | BZ100: 0 | CA100: 0 | CB100: - | CC100: 106870 | CD100: 0 | CE100: 0 | CF100: 0 | CG100: - | CH100: 106870 | CI100: 0 | CJ100: 0 | CK100: 0 | CL100: - | CM100: 363610 | CN100: 32800 | CO100: 0 | CP100: 0.09020653997 | CQ100: - | CR100: 12, 11, 5, 4 | CS100: Inclusión Social | CT100: INDERBU
AO101: 0.520360646 | AP101: ADULTO MAYOR Y DIGNO | AQ101: Beneficiar y mantener a 11.000 personas mayores con el programa Colombia Mayor. | AR101: 0 | AS101: Número de personas mayores beneficiados y mantenidos con el programa Colombia Mayor. | AT101: 9276 | AU101: 11000 | AV101: 11000 | AW101: 0.25 | AX101: 11000 | AY101: 0.25 | AZ101: 11000 | BA101: 0.25 | BB101: 11000 | BC101: 0.25 | BD101: 10653 | BE101: 0 | BF101: 0 | BG101: 0 | BH101: 0.9684545455 | BI101: 0.9684545455 | BJ101: 0 | BK101: 0 | BL101: 0 | BM101: 0 | BN101: 0 | BO101: 0 | BP101: 0.2421136364 | BQ101: 0.2421136364 | BR101: 0.2421136364 | BS101: 164557 | BT101: 160296 | BU101: 0 | BV101: 0.9741062367 | BW101: - | BX101: 255000 | BY101: 0 | BZ101: 0 | CA101: 0 | CB101: - | CC101: 260250 | CD101: 0 | CE101: 0 | CF101: 0 | CG101: - | CH101: 265762.5 | CI101: 0 | CJ101: 0 | CK101: 0 | CL101: - | CM101: 945569.5 | CN101: 160296 | CO101: 0 | CP101: 0.1695232344 | CQ101: - | CR101: 1 | CS101: Inclusión Social | CT101: Sec. Desarrollo Social
AQ102: Proveer 25.000 ayudas alimentarias anuales mediante complementos nutricionales para personas mayores en condición de pobreza y vulnerabilidad mejorando su calidad de vida a través de la seguridad alimentaria. | AR102: 0 | AS102: Número de ayudas alimentarias anuales proveídas mediante complementos nutricionales para personas mayores en condición de pobreza y vulnerabilidad mejorando su calidad de vida a través de la seguridad alimentaria. | AT102: 18480 | AU102: 25000 | AV102: 25000 | AW102: 0.25 | AX102: 25000 | AY102: 0.25 | AZ102: 25000 | BA102: 0.25 | BB102: 25000 | BC102: 0.25 | BD102: 24483 | BE102: 0 | BF102: 0 | BG102: 0 | BH102: 0.97932 | BI102: 0.97932 | BJ102: 0 | BK102: 0 | BL102: 0 | BM102: 0 | BN102: 0 | BO102: 0 | BP102: 0.24483 | BQ102: 0.24483 | BR102: 0.24483 | BS102: 1971454 | BT102: 1965065 | BU102: 0 | BV102: 0.9967592447 | BW102: - | BX102: 1752090.979 | BY102: 0 | BZ102: 0 | CA102: 0 | CB102: - | CC102: 1742344.866 | CD102: 0 | CE102: 0 | CF102: 0 | CG102: - | CH102: 1731033.063 | CI102: 0 | CJ102: 0 | CK102: 0 | CL102: - | CM102: 7196922.908 | CN102: 1965065 | CO102: 0 | CP102: 0.2730423856 | CQ102: - | CR102: 2 | CS102: Inclusión Social | CT102: Sec. Desarrollo Social
AQ103: Beneficiar a 7.000 personas mayores vulnerables de los diferentes barrios del municipio con la oferta de servicios de atencion primaria en salud, recreacion y aprovechamiento del tiempo libre. | AR103: 0 | AS103: Número de personas mayores vulnerables de los diferentes barrios del municipio beneficiados con la oferta de servicios de atencion primaria en salud, recreacion y aprovechamiento del tiempo libre. | AT103: 0 | AU103: 7000 | AV103: 800 | AW103: =+AV103/AU103 -> 0.1142857143 | AX103: 2000 | AY103: =+AX103/AU103 -> 0.2857142857 | AZ103: 2100 | BA103: =+AZ103/AU103 -> 0.3 | BB103: 2100 | BC103: =+BB103/AU103 -> 0.3 | BD103: 4185 | BE103: 0 | BF103: 0 | BG103: 0 | BH103: 5.23125 | BI103: 1 | BJ103: 0 | BK103: 0 | BL103: 0 | BM103: 0 | BN103: 0 | BO103: 0 | BP103: =+SUM(BD103:BG103)/AU103 -> 0.5978571429 | BQ103: 0.5978571429 | BR103: 0.5978571429 | BS103: 300000 | BT103: 158000 | BU103: 0 | BV103: 0.5266666667 | BW103: - | BX103: 360000 | BY103: 0 | BZ103: 0 | CA103: 0 | CB103: - | CC103: 370500 | CD103: 0 | CE103: 0 | CF103: 0 | CG103: - | CH103: 381525 | CI103: 0 | CJ103: 0 | CK103: 0 | CL103: - | CM103: 1412025 | CN103: 158000 | CO103: 0 | CP103: 0.1118960358 | CQ103: - | CR103: 3 | CS103: Inclusión Social | CT103: Sec. Desarrollo Social
AQ104: Mantener el servicio exequial al 100% de las personas mayores fallecidas en condición de pobreza, vulnerabilidad y sin red familiar de apoyo. | AR104: 0 | AS104: Porcentaje de personas mayores fallecidas en condición de pobreza, vulnerabilidad y sin red familiar de apoyo con servicio exequial. | AT104: 1 | AU104: 1 | AV104: 1 | AW104: 0.25 | AX104: 1 | AY104: 0.25 | AZ104: 1 | BA104: 0.25 | BB104: 1 | BC104: 0.25 | BD104: 1 | BE104: 0 | BF104: 0 | BG104: 0 | BH104: 1 | BI104: 1 | BJ104: 0 | BK104: 0 | BL104: 0 | BM104: 0 | BN104: 0 | BO104: 0 | BP104: 0.25 | BQ104: 0.25 | BR104: 0.25 | BS104: 163000 | BT104: 162720 | BU104: 0 | BV104: 0.9982822086 | BW104: - | BX104: 150000 | BY104: 0 | BZ104: 0 | CA104: 0 | CB104: - | CC104: 150000 | CD104: 0 | CE104: 0 | CF104: 0 | CG104: - | CH104: 150000 | CI104: 0 | CJ104: 0 | CK104: 0 | CL104: - | CM104: 613000 | CN104: 162720 | CO104: 0 | CP104: 0.2654486134 | CQ104: - | CR104: 3 | CS104: Inclusión Social | CT104: Sec. Desarrollo Social
AQ105: Mantener a 1.656 personas mayores vulnerables con atencion integral en instituciones especializadas a través de las modalidades centros vida y centros de bienestar en el marco de la Ley 1276 de 2009. | AR105: 0 | AS105: Número de personas mayores vulnerables mantenidas con atencion integral en instituciones especializadas a través de las modalidades centros vida y centros de bienestar en el marco de la Ley 1276 de 2009. | AT105: 1656 | AU105: 1656 | AV105: 1656 | AW105: 0.25 | AX105: 1656 | AY105: 0.25 | AZ105: 1656 | BA105: 0.25 | BB105: 1656 | BC105: 0.25 | BD105: 1628 | BE105: 0 | BF105: 0 | BG105: 0 | BH105: 0.9830917874 | BI105: 0.9830917874 | BJ105: 0 | BK105: 0 | BL105: 0 | BM105: 0 | BN105: 0 | BO105: 0 | BP105: 0.2457729469 | BQ105: 0.2457729469 | BR105: 0.2457729469 | BS105: 6138220.336 | BT105: 3983142 | BU105: 0 | BV105: 0.6489082799 | BW105: - | BX105: 5482378.951 | BY105: 0 | BZ105: 0 | CA105: 0 | CB105: - | CC105: 5576013.022 | CD105: 0 | CE105: 0 | CF105: 0 | CG105: - | CH105: 5671812.563 | CI105: 0 | CJ105: 0 | CK105: 0 | CL105: - | CM105: 22868424.87 | CN105: 3983142 | CO105: 0 | CP105: 0.174176491 | CQ105: - | CR105: 3 | CS105: Inclusión Social | CT105: Sec. Desarrollo Social
AQ106: Mantener en funcionamiento los 3 Centros Vida con la prestacion de servicios integrales y/o dotacion de los mismos cumpliendo con la oferta institucional. | AR106: 0 | AS106: Número de Centros Vida mantenidos en funcionamiento con la prestacion de servicios integrales y/o dotacion de los mismos cumpliendo con la oferta institucional. | AT106: 3 | AU106: 3 | AV106: 3 | AW106: 0.25 | AX106: 3 | AY106: 0.25 | AZ106: 3 | BA106: 0.25 | BB106: 3 | BC106: 0.25 | BD106: 2 | BE106: 0 | BF106: 0 | BG106: 0 | BH106: 0.6666666667 | BI106: 0.6666666667 | BJ106: 0 | BK106: 0 | BL106: 0 | BM106: 0 | BN106: 0 | BO106: 0 | BP106: 0.1666666667 | BQ106: 0.1666666667 | BR106: 0.1666666667 | BS106: 400000 | BT106: 95567 | BU106: 0 | BV106: 0.2389175 | BW106: - | BX106: 515000 | BY106: 0 | BZ106: 0 | CA106: 0 | CB106: - | CC106: 530750 | CD106: 0 | CE106: 0 | CF106: 0 | CG106: - | CH106: 547287.5 | CI106: 0 | CJ106: 0 | CK106: 0 | CL106: - | CM106: 1993037.5 | CN106: 95567 | CO106: 0 | CP106: 0.04795042743 | CQ106: - | CR106: 3 | CS106: Inclusión Social | CT106: Sec. Desarrollo Social
D107: Disminuir a 5 la tasa de trabajo infantil ampliada. | E107: 5.6 | F107: 5 | H107: 5.6 | K107: 5.4 | N107: 5.2 | Q107: 5 | AQ107: Mantener el servicio atención primaria en salud, atención psicosocial que promueva la salud física, salud mental y el bienestar social de las personas mayores en los centros vida. | AR107: 0 | AS107: Número de servicios mantenidos de atención primaria en salud, atención psicosocial que promueva la salud física, salud mental y el bienestar social de las personas mayores en los centros vida. | AT107: 1 | AU107: 1 | AV107: 1 | AW107: 0.25 | AX107: 1 | AY107: 0.25 | AZ107: 1 | BA107: 0.25 | BB107: 1 | BC107: 0.25 | BD107: 1 | BE107: 0 | BF107: 0 | BG107: 0 | BH107: 1 | BI107: 1 | BJ107: 0 | BK107: 0 | BL107: 0 | BM107: 0 | BN107: 0 | BO107: 0 | BP107: 0.25 | BQ107: 0.25 | BR107: 0.25 | BS107: 390000 | BT107: 120441 | BU107: 0 | BV107: 0.3088230769 | BW107: - | BX107: 257500 | BY107: 0 | BZ107: 0 | CA107: 0 | CB107: - | CC107: 265375 | CD107: 0 | CE107: 0 | CF107: 0 | CG107: - | CH107: 273643.75 | CI107: 0 | CJ107: 0 | CK107: 0 | CL107: - | CM107: 1186518.75 | CN107: 120441 | CO107: 0 | CP107: 0.1015078776 | CQ107: - | CR107: 3 | CS107: Inclusión Social | CT107: Sec. Desarrollo Social
AQ108: Formular y implementar 1 estrategia que promueva las actividades psicosociales, actividades artísticas y culturales, actividades físicas y recreación y actividades productivas en las personas mayores. | AR108: 0 | AS108: Número de estrategias formuladas e implementadas que promueva las actividades psicosociales, actividades artísticas y culturales, actividades físicas y recreación y actividades productivas en las personas mayores. | AT108: 1 | AU108: 1 | AV108: 1 | AW108: 0.25 | AX108: 1 | AY108: 0.25 | AZ108: 1 | BA108: 0.25 | BB108: 1 | BC108: 0.25 | BD108: 1 | BE108: 0 | BF108: 0 | BG108: 0 | BH108: 1 | BI108: 1 | BJ108: 0 | BK108: 0 | BL108: 0 | BM108: 0 | BN108: 0 | BO108: 0 | BP108: 0.25 | BQ108: 0.25 | BR108: 0.25 | BS108: 220000 | BT108: 117840 | BU108: 0 | BV108: 0.5356363636 | BW108: - | BX108: 410000 | BY108: 0 | BZ108: 0 | CA108: 0 | CB108: - | CC108: 420500 | CD108: 0 | CE108: 0 | CF108: 0 | CG108: - | CH108: 431525 | CI108: 0 | CJ108: 0 | CK108: 0 | CL108: - | CM108: 1482025 | CN108: 117840 | CO108: 0 | CP108: 0.07951282873 | CQ108: - | CR108: 3 | CS108: Inclusión Social | CT108: Sec. Desarrollo Social
AO109: 0.133202902 | AP109: ACELERADORES DE DESARROLLO SOCIAL | AQ109: Formular e implementar 1 estrategia que promueva la democratización familiar apoyada en el componente de bienestar comunitario del programa Familias en Acción con impacto en barrios priorizados por NBI. | AR109: 0 | AS109: Número de estrategias formuladas e implementadas que promuevan la democratización familiar apoyada en el componente de bienestar comunitario del programa Familias en Acción con impacto en barrios priorizados por NBI. | AT109: 0 | AU109: 1 | AV109: 1 | AW109: 0.25 | AX109: 1 | AY109: 0.25 | AZ109: 1 | BA109: 0.25 | BB109: 1 | BC109: 0.25 | BD109: 1 | BE109: 0 | BF109: 0 | BG109: 0 | BH109: 1 | BI109: 1 | BJ109: 0 | BK109: 0 | BL109: 0 | BM109: 0 | BN109: 0 | BO109: 0 | BP109: 0.25 | BQ109: 0.25 | BR109: 0.25 | BS109: 55537 | BT109: 52146 | BU109: 0 | BV109: 0.9389416065 | BW109: - | BX109: 60000 | BY109: 0 | BZ109: 0 | CA109: 0 | CB109: - | CC109: 60000 | CD109: 0 | CE109: 0 | CF109: 0 | CG109: - | CH109: 60000 | CI109: 0 | CJ109: 0 | CK109: 0 | CL109: - | CM109: 235537 | CN109: 52146 | CO109: 0 | CP109: 0.2213919681 | CQ109: - | CR109: 3, 5, 10 | CS109: Inclusión Social | CT109: Sec. Desarrollo Social | DB109: RECURSOS FINANCIEROS
AQ110: Mantener el servicio de acceso gratuito a espacios de recreación y cultura a familias inscritas en el programa Familias en Acción. | AR110: 0 | AS110: Número de servicios mantenidos de acceso gratuito a espacios de recreación y cultura a familias inscritas en el programa Familias en Acción. | AT110: 1 | AU110: 1 | AV110: 1 | AW110: 0.25 | AX110: 1 | AY110: 0.25 | AZ110: 1 | BA110: 0.25 | BB110: 1 | BC110: 0.25 | BD110: 0 | BE110: 0 | BF110: 0 | BG110: 0 | BH110: 0 | BI110: 0 | BJ110: 0 | BK110: 0 | BL110: 0 | BM110: 0 | BN110: 0 | BO110: 0 | BP110: 0 | BQ110: 0 | BR110: 0 | BS110: 0 | BT110: 0 | BU110: 0 | BV110: - | BW110: - | BX110: 40000 | BY110: 0 | BZ110: 0 | CA110: 0 | CB110: - | CC110: 40000 | CD110: 0 | CE110: 0 | CF110: 0 | CG110: - | CH110: 40000 | CI110: 0 | CJ110: 0 | CK110: 0 | CL110: - | CM110: 120000 | CN110: 0 | CO110: 0 | CP110: 0 | CQ110: - | CR110: 3, 10, 17 | CS110: Inclusión Social | CT110: Sec. Desarrollo Social | CW110: LOGRO | DB110: 2020 | DE110: 2021 | DH110: 2022 | DK110: 2023
AQ111: Mantener el 100% del apoyo logístico a las familias beneficiadas del programa Familias en Acción. | AR111: 0 | AS111: Porcentaje de apoyo logístico mantenido a las familias beneficiadas del programa Familias en Acción. | AT111: 1 | AU111: 1 | AV111: 1 | AW111: 0.25 | AX111: 1 | AY111: 0.25 | AZ111: 1 | BA111: 0.25 | BB111: 1 | BC111: 0.25 | BD111: 1 | BE111: 0 | BF111: 0 | BG111: 0 | BH111: 1 | BI111: 1 | BJ111: 0 | BK111: 0 | BL111: 0 | BM111: 0 | BN111: 0 | BO111: 0 | BP111: 0.25 | BQ111: 0.25 | BR111: 0.25 | BS111: 139063 | BT111: 113596 | BU111: 0 | BV111: 0.8168671753 | BW111: - | BX111: 156000 | BY111: 0 | BZ111: 0 | CA111: 0 | CB111: - | CC111: 156000 | CD111: 0 | CE111: 0 | CF111: 0 | CG111: - | CH111: 156000 | CI111: 0 | CJ111: 0 | CK111: 0 | CL111: - | CM111: 607063 | CN111: 113596 | CO111: 0 | CP111: 0.1871239064 | CQ111: - | CR111: 1, 3, 10 | CS111: Inclusión Social | CT111: Sec. Desarrollo Social | CW111: 2020 | CX111: 2021 | CY111: 2022 | CZ111: 2023 | DA111: CA | DB111: R.P | DC111: R.E | DD111: R.G | DE111: R.P | DF111: R.E | DG111: R.G | DH111: R.P | DI111: R.E | DJ111: R.G | DK111: R.P | DL111: R.E | DM111: R.G
AQ112: Formular e implementar 1 estrategia para brindar asistencia social a la población afectada por las diferentes emergencias y particularmente COVID-19. | AR112: 0 | AS112: Número de estrategias formuladas e implementadas para brindar asistencia social a la población afectada por las diferentes emergencias y particularmente COVID-19. | AT112: 0 | AU112: 1 | AV112: 1 | AW112: 0.25 | AX112: 1 | AY112: 0.25 | AZ112: 1 | BA112: 0.25 | BB112: 1 | BC112: 0.25 | BD112: =+AVERAGE(CW112:CW114) -> 1 | BE112: =+AVERAGE(CX112:CX114) -> 0 | BF112: =+AVERAGE(CY112:CY114) -> 0 | BG112: =+AVERAGE(CZ112:CZ114) -> 0 | BH112: 1 | BI112: 1 | BJ112: 0 | BK112: 0 | BL112: 0 | BM112: 0 | BN112: 0 | BO112: 0 | BP112: 0.25 | BQ112: 0.25 | BR112: 0.25 | BS112: =+SUM(DB112:DB114) -> 1821022 | BT112: =+SUM(DC112:DC114) -> 1661077 | BU112: =+SUM(DD112:DD114) -> 0 | BV112: 0.9121674532 | BW112: - | BX112: =+SUM(DE112:DE114) -> 6449000 | BY112: =+SUM(DF112:DF114) -> 0 | BZ112: =+SUM(DG112:DG114) -> 0 | CA112: 0 | CB112: - | CC112: =+SUM(DH112:DH114) -> 1314000 | CD112: =+SUM(DI112:DI114) -> 0 | CE112: =+SUM(DJ112:DJ114) -> 0 | CF112: 0 | CG112: - | CH112: =+SUM(DK112:DK114) -> 809000 | CI112: =+SUM(DL112:DL114) -> 0 | CJ112: =+SUM(DM112:DM114) -> 0 | CK112: 0 | CL112: - | CM112: 10393022 | CN112: 1661077 | CO112: 0 | CP112: 0.1598261795 | CQ112: - | CR112: 1, 3, 10 | CS112: Inclusión Social | CT112: Todos Adom Central | CV112: Sec. Desarrollo Social | CW112: 1 | CX112: 0 | CY112: 0 | CZ112: 0 | DA112: =+AVERAGE(CW112:CZ112)/$AU$112 -> 0.25 | DB112: 1211031 | DC112: 1051086 | DD112: 0 | DE112: 6449000 | DF112: 0 | DG112: 0 | DH112: 1314000 | DI112: 0 | DJ112: 0 | DK112: 809000 | DL112: 0 | DM112: 0
AO113: 0.01885610487 | AP113: MÁS EQUIDAD PARA LAS MUJERES | AQ113: Potenciar la Escuela de Liderazgo y Participación Política de Mujeres con cobertura en zona rural y urbana. | AR113: 0 | AS113: Número de Escuelas de Liderazgo y participación Política para Mujeres mantenidas con cobertura en zona rural y urbana. | AT113: 1 | AU113: 1 | AV113: 1 | AW113: 0.25 | AX113: 1 | AY113: 0.25 | AZ113: 1 | BA113: 0.25 | BB113: 1 | BC113: 0.25 | BD113: 1 | BE113: 0 | BF113: 0 | BG113: 0 | BH113: 1 | BI113: 1 | BJ113: 0 | BK113: 0 | BL113: 0 | BM113: 0 | BN113: 0 | BO113: 0 | BP113: 0.25 | BQ113: 0.25 | BR113: 0.25 | BS113: 29000 | BT113: 25300 | BU113: 0 | BV113: 0.8724137931 | BW113: - | BX113: 20000 | BY113: 0 | BZ113: 0 | CA113: 0 | CB113: - | CC113: 20000 | CD113: 0 | CE113: 0 | CF113: 0 | CG113: - | CH113: 20000 | CI113: 0 | CJ113: 0 | CK113: 0 | CL113: - | CM113: 89000 | CN113: 25300 | CO113: 0 | CP113: 0.2842696629 | CQ113: - | CR113: 5 | CS113: Inclusión Social | CT113: Sec. Desarrollo Social | CV113: Sec. Interior | CW113: 1 | CX113: 0 | CY113: 0 | CZ113: 0 | DA113: =+AVERAGE(CW113:CZ113)/$AU$112 -> 0.25 | DB113: 409991 | DC113: 409991 | DD113: 0 | DE113: 0 | DF113: 0 | DG113: 0 | DH113: 0 | DI113: 0 | DJ113: 0 | DK113: 0 | DL113: 0 | DM113: 0
AQ114: Atender y mantener de manera integral desde el componente psicosociojurídico y social a 600 mujeres, niñas y personas considerando los enfoques diferenciales y diversidad sexual. | AR114: 0 | AS114: Número de mujeres, niñas y/o personas atendidas y mantenidas integralmente desde el componente psicosociojurídico y social considerando los enfoques diferenciales y diversidad sexual. | AT114: 426 | AU114: 600 | AV114: 600 | AW114: 0.25 | AX114: 600 | AY114: 0.25 | AZ114: 600 | BA114: 0.25 | BB114: 600 | BC114: 0.25 | BD114: 685 | BE114: 0 | BF114: 0 | BG114: 0 | BH114: 1.141666667 | BI114: 1 | BJ114: 0 | BK114: 0 | BL114: 0 | BM114: 0 | BN114: 0 | BO114: 0 | BP114: 0.2854166667 | BQ114: 0.2854166667 | BR114: 0.2854166667 | BS114: 25000 | BT114: 25000 | BU114: 0 | BV114: 1 | BW114: - | BX114: 20000 | BY114: 0 | BZ114: 0 | CA114: 0 | CB114: - | CC114: 20000 | CD114: 0 | CE114: 0 | CF114: 0 | CG114: - | CH114: 20000 | CI114: 0 | CJ114: 0 | CK114: 0 | CL114: - | CM114: 85000 | CN114: 25000 | CO114: 0 | CP114: 0.2941176471 | CQ114: - | CR114: 5 | CS114: Inclusión Social | CT114: Sec. Desarrollo Social | CV114: Sec. Salud y Ambiente | CW114: 1 | CX114: 0 | CY114: 0 | CZ114: 0 | DA114: =+AVERAGE(CW114:CZ114)/$AU$112 -> 0.25 | DB114: 200000 | DC114: 200000 | DD114: 0 | DE114: 0 | DF114: 0 | DG114: 0 | DH114: 0 | DI114: 0 | DJ114: 0 | DK114: 0 | DL114: 0 | DM114: 0
AQ115: Mantener y fortalecer la ruta de atención a víctimas de acoso sexual y violencia de género a través redes comunitarias de prevención en zonas priorizadas del área rural y urbana de la ciudad y consolidación de alianzas con otras entidades. | AR115: 0 | AS115: Número de rutas de atención a víctimas de acoso sexual y violengia de género mantenidas y fortalecidas a través redes comunitarias de prevención en zonas priorizadas del área rural y urbana de la ciudad y consolidación de alianzas con otras entidades. | AT115: 1 | AU115: 1 | AV115: 1 | AW115: 0.25 | AX115: 1 | AY115: 0.25 | AZ115: 1 | BA115: 0.25 | BB115: 1 | BC115: 0.25 | BD115: 1 | BE115: 0 | BF115: 0 | BG115: 0 | BH115: 1 | BI115: 1 | BJ115: 0 | BK115: 0 | BL115: 0 | BM115: 0 | BN115: 0 | BO115: 0 | BP115: 0.25 | BQ115: 0.25 | BR115: 0.25 | BS115: 30000 | BT115: 29000 | BU115: 0 | BV115: 0.9666666667 | BW115: - | BX115: 30000 | BY115: 0 | BZ115: 0 | CA115: 0 | CB115: - | CC115: 30000 | CD115: 0 | CE115: 0 | CF115: 0 | CG115: - | CH115: 30000 | CI115: 0 | CJ115: 0 | CK115: 0 | CL115: - | CM115: 120000 | CN115: 29000 | CO115: 0 | CP115: 0.2416666667 | CQ115: - | CR115: 5 | CS115: Inclusión Social | CT115: Sec. Desarrollo Social
AQ116: Mantener la garantía de las medidas de atención y protección al 100% de mujeres y sus hijos víctimas de violencia de género con especial situación de riesgos. | AR116: 0 | AS116: Porcentaje de mujeres y sus hijos víctmas de violencia de género con especial situación de riesgos con medidas de atención y protección mantenidas. | AT116: 1 | AU116: 1 | AV116: 1 | AW116: 0.25 | AX116: 1 | AY116: 0.25 | AZ116: 1 | BA116: 0.25 | BB116: 1 | BC116: 0.25 | BD116: 1 | BE116: 0 | BF116: 0 | BG116: 0 | BH116: 1 | BI116: 1 | BJ116: 0 | BK116: 0 | BL116: 0 | BM116: 0 | BN116: 0 | BO116: 0 | BP116: 0.25 | BQ116: 0.25 | BR116: 0.25 | BS116: 30000 | BT116: 29000 | BU116: 0 | BV116: 0.9666666667 | BW116: - | BX116: 10000 | BY116: 0 | BZ116: 0 | CA116: 0 | CB116: - | CC116: 10000 | CD116: 0 | CE116: 0 | CF116: 0 | CG116: - | CH116: 10000 | CI116: 0 | CJ116: 0 | CK116: 0 | CL116: - | CM116: 60000 | CN116: 29000 | CO116: 0 | CP116: 0.4833333333 | CQ116: - | CR116: 5 | CS116: Inclusión Social | CT116: Sec. Desarrollo Social
AQ117: Mantener la estrategia de prevención con hombres de contextos públicos y privados mediante procesos de intervención colectiva en torno a la resignificación crítica de la masculinidad hegemónica y tradicional. | AR117: 0 | AS117: Número de estrategias mantenidas de prevención con hombres de contextos públicos y privados mediante procesos de intervención colectiva en torno a la resignificación crítica de la masculinidad hegemónica y tradicional. | AT117: 1 | AU117: 1 | AV117: 1 | AW117: 0.25 | AX117: 1 | AY117: 0.25 | AZ117: 1 | BA117: 0.25 | BB117: 1 | BC117: 0.25 | BD117: 1 | BE117: 0 | BF117: 0 | BG117: 0 | BH117: 1 | BI117: 1 | BJ117: 0 | BK117: 0 | BL117: 0 | BM117: 0 | BN117: 0 | BO117: 0 | BP117: 0.25 | BQ117: 0.25 | BR117: 0.25 | BS117: 10000 | BT117: 8000 | BU117: 0 | BV117: 0.8 | BW117: - | BX117: 20000 | BY117: 0 | BZ117: 0 | CA117: 0 | CB117: - | CC117: 20000 | CD117: 0 | CE117: 0 | CF117: 0 | CG117: - | CH117: 20000 | CI117: 0 | CJ117: 0 | CK117: 0 | CL117: - | CM117: 70000 | CN117: 8000 | CO117: 0 | CP117: 0.1142857143 | CQ117: - | CR117: 5 | CS117: Inclusión Social | CT117: Sec. Desarrollo Social
AQ118: Mantener el Centro Integral de la Mujer a fin de garantizar el fortalecimiento de los procesos de atención y empoderamiento femenino. | AR118: 0 | AS118: Número de Centros Integrales de la Mujer mantenidos a fin de garantizar el fortalecimiento de los procesos de atención y empoderamiento femenino. | AT118: 1 | AU118: 1 | AV118: 1 | AW118: 0.25 | AX118: 1 | AY118: 0.25 | AZ118: 1 | BA118: 0.25 | BB118: 1 | BC118: 0.25 | BD118: 1 | BE118: 0 | BF118: 0 | BG118: 0 | BH118: 1 | BI118: 1 | BJ118: 0 | BK118: 0 | BL118: 0 | BM118: 0 | BN118: 0 | BO118: 0 | BP118: 0.25 | BQ118: 0.25 | BR118: 0.25 | BS118: 15000 | BT118: 12000 | BU118: 0 | BV118: 0.8 | BW118: - | BX118: 30000 | BY118: 0 | BZ118: 0 | CA118: 0 | CB118: - | CC118: 240000 | CD118: 0 | CE118: 0 | CF118: 0 | CG118: - | CH118: 530000 | CI118: 0 | CJ118: 0 | CK118: 0 | CL118: - | CM118: 815000 | CN118: 12000 | CO118: 0 | CP118: 0.01472392638 | CQ118: - | CR118: 5 | CS118: Inclusión Social | CT118: Sec. Desarrollo Social
AQ119: Actualizar e implementar la Política Pública de Mujer. | AR119: 0 | AS119: Número de Políticas Públicas de Mujer actualizadas e implementadas. | AT119: 0 | AU119: 1 | AV119: 0 | AW119: =+AV119/AU119 -> 0 | AX119: 1 | AY119: 0.33 | AZ119: 1 | BA119: 0.33 | BB119: 1 | BC119: 0.34 | BD119: 0 | BE119: 0 | BF119: 0 | BG119: 0 | BH119: - | BI119: - | BJ119: 0 | BK119: 0 | BL119: 0 | BM119: 0 | BN119: 0 | BO119: 0 | BP119: =+AVERAGE(BE119:BG119)/AU119 -> 0 | BQ119: 0 | BR119: 0 | BS119: 0 | BT119: 0 | BU119: 0 | BV119: - | BW119: - | BX119: 40000 | BY119: 0 | BZ119: 0 | CA119: 0 | CB119: - | CC119: 40000 | CD119: 0 | CE119: 0 | CF119: 0 | CG119: - | CH119: 40000 | CI119: 0 | CJ119: 0 | CK119: 0 | CL119: - | CM119: 120000 | CN119: 0 | CO119: 0 | CP119: 0 | CQ119: - | CR119: 5 | CS119: Inclusión Social | CT119: Sec. Desarrollo Social
AO120: 0.01660462966 | AP120: BUCARAMANGA HÁBITAT PARA EL CUIDADO Y LA CORRESPONSABILIDAD | AQ120: Formular e implementar 1 política pública para la población con orientación sexual e identidad de género diversa. | AR120: 0 | AS120: Número de políticas públicas formuladas e implementadas para la población con orientación sexual e identidad de género diversa. | AT120: 0 | AU120: 1 | AV120: 0 | AW120: =+AV120/AU120 -> 0 | AX120: 1 | AY120: 0.33 | AZ120: 1 | BA120: 0.33 | BB120: 1 | BC120: 0.34 | BD120: 0 | BE120: 0 | BF120: 0 | BG120: 0 | BH120: - | BI120: - | BJ120: 0 | BK120: 0 | BL120: 0 | BM120: 0 | BN120: 0 | BO120: 0 | BP120: =+AVERAGE(BE120:BG120)/AU120 -> 0 | BQ120: 0 | BR120: 0 | BS120: 0 | BT120: 0 | BU120: 0 | BV120: - | BW120: - | BX120: 50000 | BY120: 0 | BZ120: 0 | CA120: 0 | CB120: - | CC120: 50000 | CD120: 0 | CE120: 0 | CF120: 0 | CG120: - | CH120: 50000 | CI120: 0 | CJ120: 0 | CK120: 0 | CL120: - | CM120: 150000 | CN120: 0 | CO120: 0 | CP120: 0 | CQ120: - | CR120: 5, 10 | CS120: Inclusión Social | CT120: Sec. Desarrollo Social
AQ121: Diseñar y ejecutar 14 campañas comunicativas en espacios públicos y medios masivos de transporte orientadas a la promoción de derechos y a la eliminación de diferentes formas de violencia y discriminación de mujeres y población con orientación sexual e identidad de género diversa. | AR121: 0 | AS121: Número de campañas comunicativas diseñadas y ejecutadas en espacios públicos y medios masivos de transporte orientadas a la promoción de derechos y a la eliminación de diferentes formas de violencia y discriminación de mujeres y población con orientación sexual e identidad de género diversa. | AT121: 0 | AU121: 14 | AV121: 2 | AW121: =+AV121/AU121 -> 0.1428571429 | AX121: 4 | AY121: =+AX121/AU121 -> 0.2857142857 | AZ121: 4 | BA121: =+AZ121/AU121 -> 0.2857142857 | BB121: 4 | BC121: =+BB121/AU121 -> 0.2857142857 | BD121: 3 | BE121: 0 | BF121: 0 | BG121: 0 | BH121: 1.5 | BI121: 1 | BJ121: 0 | BK121: 0 | BL121: 0 | BM121: 0 | BN121: 0 | BO121: 0 | BP121: =+SUM(BD121:BG121)/AU121 -> 0.2142857143 | BQ121: 0.2142857143 | BR121: 0.2142857143 | BS121: 20000 | BT121: 17000 | BU121: 0 | BV121: 0.85 | BW121: - | BX121: 20000 | BY121: 0 | BZ121: 0 | CA121: 0 | CB121: - | CC121: 20000 | CD121: 0 | CE121: 0 | CF121: 0 | CG121: - | CH121: 20000 | CI121: 0 | CJ121: 0 | CK121: 0 | CL121: - | CM121: 80000 | CN121: 17000 | CO121: 0 | CP121: 0.2125 | CQ121: - | CR121: 5 | CS121: Inclusión Social | CT121: Sec. Desarrollo Social
AQ122: Establecer el centro para la atención integral de mujeres y población con orientaciones sexuales e identidades de género diversas a fin de garantizar el fortalecimiento de los procesos de atención, encuentro y empoderamiento. | AR122: 0 | AS122: Número de centros para la atención integral de mujeres y población con orientaciones sexuales e identidades de género diversas mantenidos a fin de garantizar el fortalecimiento de los procesos de atención, encuentro y empoderamiento. | AT122: 0 | AU122: 1 | AV122: 1 | AW122: 0.25 | AX122: 1 | AY122: 0.25 | AZ122: 1 | BA122: 0.25 | BB122: 1 | BC122: 0.25 | BD122: 1 | BE122: 0 | BF122: 0 | BG122: 0 | BH122: 1 | BI122: 1 | BJ122: 0 | BK122: 0 | BL122: 0 | BM122: 0 | BN122: 0 | BO122: 0 | BP122: 0.25 | BQ122: 0.25 | BR122: 0.25 | BS122: 12000 | BT122: 4500 | BU122: 0 | BV122: 0.375 | BW122: - | BX122: 30000 | BY122: 0 | BZ122: 0 | CA122: 0 | CB122: - | CC122: 240000 | CD122: 0 | CE122: 0 | CF122: 0 | CG122: - | CH122: 530000 | CI122: 0 | CJ122: 0 | CK122: 0 | CL122: - | CM122: 812000 | CN122: 4500 | CO122: 0 | CP122: 0.005541871921 | CQ122: - | CR122: 5 | CS122: Inclusión Social | CT122: Sec. Desarrollo Social
AQ123: Atender el 100% de la solicitudes realizadas por éste grupo poblacional y sus familias con orientación psicosocial y jurídica. | AR123: 0 | AS123: Porcentaje de solicitudes realizadas por éste grupo poblacional y sus familias con orientación psicosocial y jurídica atendidas. | AT123: 0 | AU123: 1 | AV123: 1 | AW123: 0.25 | AX123: 1 | AY123: 0.25 | AZ123: 1 | BA123: 0.25 | BB123: 1 | BC123: 0.25 | BD123: 1 | BE123: 0 | BF123: 0 | BG123: 0 | BH123: 1 | BI123: 1 | BJ123: 0 | BK123: 0 | BL123: 0 | BM123: 0 | BN123: 0 | BO123: 0 | BP123: 0.25 | BQ123: 0.25 | BR123: 0.25 | BS123: 26000 | BT123: 4400 | BU123: 0 | BV123: 0.1692307692 | BW123: - | BX123: 50000 | BY123: 0 | BZ123: 0 | CA123: 0 | CB123: - | CC123: 50000 | CD123: 0 | CE123: 0 | CF123: 0 | CG123: - | CH123: 50000 | CI123: 0 | CJ123: 0 | CK123: 0 | CL123: - | CM123: 176000 | CN123: 4400 | CO123: 0 | CP123: 0.025 | CQ123: - | CR123: 5 | CS123: Inclusión Social | CT123: Sec. Desarrollo Social
AO124: 0.07655015708 | AP124: HABITANTES EN SITUACIÓN DE CALLE | AQ124: Mantener la identificación, caracterización y seguimiento de la situación de cada habitante de calle atendido por la Secretaría de Desarrollo Social. | AR124: 0 | AS124: Número de identificaciones, caracterizaciones y seguimientos mantenidos de la situación de cada habitante de calle atendido por la Secretaría de Desarrollo Social. | AT124: 1 | AU124: 1 | AV124: 1 | AW124: 0.25 | AX124: 1 | AY124: 0.25 | AZ124: 1 | BA124: 0.25 | BB124: 1 | BC124: 0.25 | BD124: 1 | BE124: 0 | BF124: 0 | BG124: 0 | BH124: 1 | BI124: 1 | BJ124: 0 | BK124: 0 | BL124: 0 | BM124: 0 | BN124: 0 | BO124: 0 | BP124: 0.25 | BQ124: 0.25 | BR124: 0.25 | BS124: 412784 | BT124: 245506 | BU124: 0 | BV124: 0.5947565797 | BW124: - | BX124: 140000 | BY124: 0 | BZ124: 0 | CA124: 0 | CB124: - | CC124: 140000 | CD124: 0 | CE124: 0 | CF124: 0 | CG124: - | CH124: 140000 | CI124: 0 | CJ124: 0 | CK124: 0 | CL124: - | CM124: 832784 | CN124: 245506 | CO124: 0 | CP124: 0.2948015332 | CQ124: - | CR124: 1, 2 , 3, 5 | CS124: Inclusión Social | CT124: Sec. Desarrollo Social
AQ125: Mantener a 284 habitantes de calle con atención integral en la cual se incluya la prestación de servicios básicos. | AR125: 0 | AS125: Número de habitantes de calle mantenidos con atención integral en la cual se incluya la prestación de servicios básicos. | AT125: 284 | AU125: 284 | AV125: 284 | AW125: 0.25 | AX125: 284 | AY125: 0.25 | AZ125: 284 | BA125: 0.25 | BB125: 284 | BC125: 0.25 | BD125: 283 | BE125: 0 | BF125: 0 | BG125: 0 | BH125: 0.9964788732 | BI125: 0.9964788732 | BJ125: 0 | BK125: 0 | BL125: 0 | BM125: 0 | BN125: 0 | BO125: 0 | BP125: 0.2491197183 | BQ125: 0.2491197183 | BR125: 0.2491197183 | BS125: 950000 | BT125: 910547 | BU125: 0 | BV125: 0.9584705263 | BW125: - | BX125: 1210000 | BY125: 0 | BZ125: 0 | CA125: 0 | CB125: - | CC125: 1210000 | CD125: 0 | CE125: 0 | CF125: 0 | CG125: - | CH125: 1210000 | CI125: 0 | CJ125: 0 | CK125: 0 | CL125: - | CM125: 4580000 | CN125: 910547 | CO125: 0 | CP125: 0.1988093886 | CQ125: - | CR125: 1, 2, 3, 5, 10 | CS125: Inclusión Social | CT125: Sec. Desarrollo Social
AQ126: Formular e implementar 1 política pública para habitante de calle. | AR126: 0 | AS126: Número de políticas públicas para habitante de calle formuladas e implementadas. | AT126: 0 | AU126: 1 | AV126: 0 | AW126: =+AV126/AU126 -> 0 | AX126: 1 | AY126: 0.33 | AZ126: 1 | BA126: 0.33 | BB126: 1 | BC126: 0.34 | BD126: 0.35 | BE126: 0 | BF126: 0 | BG126: 0 | BH126: - | BI126: - | BJ126: 0 | BK126: 0 | BL126: 0 | BM126: 0 | BN126: 0 | BO126: 0 | BP126: =+AVERAGE(BE126:BG126)/AU126 -> 0 | BQ126: 0 | BR126: 0 | BS126: 0 | BT126: 0 | BU126: 0 | BV126: - | BW126: - | BX126: 30000 | BY126: 0 | BZ126: 0 | CA126: 0 | CB126: - | CC126: 30000 | CD126: 0 | CE126: 0 | CF126: 0 | CG126: - | CH126: 30000 | CI126: 0 | CJ126: 0 | CK126: 0 | CL126: - | CM126: 90000 | CN126: 0 | CO126: 0 | CP126: 0 | CQ126: - | CR126: 1, 5, 10 | CS126: Inclusión Social | CT126: Sec. Desarrollo Social
AQ127: Mantener el servicio exequial al 100% de los habitantes de calle fallecidos registrados dentro del censo municipal. | AR127: 0 | AS127: Porcentaje de habitantes de calle fallecidos registrados dentro del censo municipal mantenidos con servicio exequial. | AT127: 1 | AU127: 1 | AV127: 1 | AW127: 0.25 | AX127: 1 | AY127: 0.25 | AZ127: 1 | BA127: 0.25 | BB127: 1 | BC127: 0.25 | BD127: 1 | BE127: 0 | BF127: 0 | BG127: 0 | BH127: 1 | BI127: 1 | BJ127: 0 | BK127: 0 | BL127: 0 | BM127: 0 | BN127: 0 | BO127: 0 | BP127: 0.25 | BQ127: 0.25 | BR127: 0.25 | BS127: 80000 | BT127: 80000 | BU127: 0 | BV127: 1 | BW127: - | BX127: 100000 | BY127: 0 | BZ127: 0 | CA127: 0 | CB127: - | CC127: 100000 | CD127: 0 | CE127: 0 | CF127: 0 | CG127: - | CH127: 100000 | CI127: 0 | CJ127: 0 | CK127: 0 | CL127: - | CM127: 380000 | CN127: 80000 | CO127: 0 | CP127: 0.2105263158 | CQ127: - | CR127: 1 | CS127: Inclusión Social | CT127: Sec. Desarrollo Social
AO128: 0.07598728827 | AP128: POBLACIÓN CON DISCAPACIDAD | AQ128: Garantizar y mantener la atención integral en procesos de habilitación y rehabilitación a 250 niñas, niños y adolescentes con discapacidad del sector urbano y rural en extrema vulnerabilidad. | AR128: 0 | AS128: Número de niñas, niños y adolescentes con discapacidad del serctor urbano y rural en extrema vulnerabilidad mantenidos con atención integral en procesos de habilitación y rehabilitación. | AT128: 228 | AU128: 250 | AV128: 250 | AW128: 0.25 | AX128: 250 | AY128: 0.25 | AZ128: 250 | BA128: 0.25 | BB128: 250 | BC128: 0.25 | BD128: 220 | BE128: 0 | BF128: 0 | BG128: 0 | BH128: 0.88 | BI128: 0.88 | BJ128: 0 | BK128: 0 | BL128: 0 | BM128: 0 | BN128: 0 | BO128: 0 | BP128: 0.22 | BQ128: 0.22 | BR128: 0.22 | BS128: 741700 | BT128: 528300 | BU128: 0 | BV128: 0.712282594 | BW128: - | BX128: 1170000 | BY128: 0 | BZ128: 0 | CA128: 0 | CB128: - | CC128: 1170000 | CD128: 0 | CE128: 0 | CF128: 0 | CG128: - | CH128: 1170000 | CI128: 0 | CJ128: 0 | CK128: 0 | CL128: - | CM128: 4251700 | CN128: 528300 | CO128: 0 | CP128: 0.1242561799 | CQ128: - | CR128: 3 | CS128: Inclusión Social | CT128: Sec. Desarrollo Social
AQ129: Mantener el banco de ayudas técnicas, tecnológicas e informáticas para personas con discapacidad que se encuentren en el registro de localización y caracterización. | AR129: 0 | AS129: Número de bancos de ayudas técnicas, tecnológicas e informáticas mantenidas para personas con discapacidad que se encuentren en el registro de localización y caracterización. | AT129: 1 | AU129: 1 | AV129: 1 | AW129: 0.25 | AX129: 1 | AY129: 0.25 | AZ129: 1 | BA129: 0.25 | BB129: 1 | BC129: 0.25 | BD129: 0.5 | BE129: 0 | BF129: 0 | BG129: 0 | BH129: 0.5 | BI129: 0.5 | BJ129: 0 | BK129: 0 | BL129: 0 | BM129: 0 | BN129: 0 | BO129: 0 | BP129: 0.125 | BQ129: 0.125 | BR129: 0.125 | BS129: 94000 | BT129: 20000 | BU129: 0 | BV129: 0.2127659574 | BW129: - | BX129: 50000 | BY129: 0 | BZ129: 0 | CA129: 0 | CB129: - | CC129: 50000 | CD129: 0 | CE129: 0 | CF129: 0 | CG129: - | CH129: 50000 | CI129: 0 | CJ129: 0 | CK129: 0 | CL129: - | CM129: 244000 | CN129: 20000 | CO129: 0 | CP129: 0.08196721311 | CQ129: - | CR129: 10 | CS129: Inclusión Social | CT129: Sec. Desarrollo Social
AQ130: Formular e implementar 1 estrategia de orientación ocupacional, aprovechamiento del tiempo libre, formación y esparcimiento cultural y actividades que mejoren la calidad de vida dirigidas a personas con discapacidad. | AR130: 0 | AS130: Número de estrategias formuladas e implementadas de orientación ocupacional, aprovechamiento del tiempo libre, formación y esparcimiento cultural y actividades que mejoren la calidad de vida dirigidas a personas con discapacidad. | AT130: 0 | AU130: 1 | AV130: 1 | AW130: 0.25 | AX130: 1 | AY130: 0.25 | AZ130: 1 | BA130: 0.25 | BB130: 1 | BC130: 0.25 | BD130: 0.5 | BE130: 0 | BF130: 0 | BG130: 0 | BH130: 0.5 | BI130: 0.5 | BJ130: 0 | BK130: 0 | BL130: 0 | BM130: 0 | BN130: 0 | BO130: 0 | BP130: 0.125 | BQ130: 0.125 | BR130: 0.125 | BS130: 60000 | BT130: 10000 | BU130: 0 | BV130: 0.1666666667 | BW130: - | BX130: 180000 | BY130: 0 | BZ130: 0 | CA130: 0 | CB130: - | CC130: 180000 | CD130: 0 | CE130: 0 | CF130: 0 | CG130: - | CH130: 180000 | CI130: 0 | CJ130: 0 | CK130: 0 | CL130: - | CM130: 600000 | CN130: 10000 | CO130: 0 | CP130: 0.01666666667 | CQ130: - | CR130: 10 | CS130: Inclusión Social | CT130: Sec. Desarrollo Social
AQ131: Beneficiar anualmente a 200 familias de personas con discapacidad con una canasta básica alimentaria que según su situación socioeconómica se encuentran en extrema vulnerabilidad. | AR131: 0 | AS131: Número de familias de personas con discapacidad beneficiadas anualmente con una canasta básica alimentaria que según su situación socioeconómica se encuentran en extrema vulnerabilidad. | AT131: 0 | AU131: 200 | AV131: 200 | AW131: 0.25 | AX131: 200 | AY131: 0.25 | AZ131: 200 | BA131: 0.25 | BB131: 200 | BC131: 0.25 | BD131: 200 | BE131: 0 | BF131: 0 | BG131: 0 | BH131: 1 | BI131: 1 | BJ131: 0 | BK131: 0 | BL131: 0 | BM131: 0 | BN131: 0 | BO131: 0 | BP131: 0.25 | BQ131: 0.25 | BR131: 0.25 | BS131: 16000 | BT131: 16000 | BU131: 0 | BV131: 1 | BW131: - | BX131: 50000 | BY131: 0 | BZ131: 0 | CA131: 0 | CB131: - | CC131: 50000 | CD131: 0 | CE131: 0 | CF131: 0 | CG131: - | CH131: 50000 | CI131: 0 | CJ131: 0 | CK131: 0 | CL131: - | CM131: 166000 | CN131: 16000 | CO131: 0 | CP131: 0.09638554217 | CQ131: - | CR131: 2 | CS131: Inclusión Social | CT131: Sec. Desarrollo Social
AQ132: Implementar 1 estrategia de apoyo técnico y jurídico para las solicitudes de ayudas técnicas requeridas por personas vulnerables en condición de discapacidad. | AR132: 0 | AS132: Número de estrategias implementadas de apoyo técnico y jurídico para las solicitudes de ayudas técnicas requeridas por personas vulnerables en condición de discapacidad. | AT132: 0 | AU132: 1 | AV132: 1 | AW132: 0.25 | AX132: 1 | AY132: 0.25 | AZ132: 1 | BA132: 0.25 | BB132: 1 | BC132: 0.25 | BD132: 0.5 | BE132: 0 | BF132: 0 | BG132: 0 | BH132: 0.5 | BI132: 0.5 | BJ132: 0 | BK132: 0 | BL132: 0 | BM132: 0 | BN132: 0 | BO132: 0 | BP132: 0.125 | BQ132: 0.125 | BR132: 0.125 | BS132: 50000 | BT132: 50000 | BU132: 0 | BV132: 1 | BW132: - | BX132: 50000 | BY132: 0 | BZ132: 0 | CA132: 0 | CB132: - | CC132: 50000 | CD132: 0 | CE132: 0 | CF132: 0 | CG132: - | CH132: 50000 | CI132: 0 | CJ132: 0 | CK132: 0 | CL132: - | CM132: 200000 | CN132: 50000 | CO132: 0 | CP132: 0.25 | CQ132: - | CR132: 10 | CS132: Inclusión Social | CT132: Sec. Desarrollo Social
D133: Reducir a 9.495 el déficit cuantitativo de vivienda. | E133: 9795 | F133: 9495 | H133: 9755 | K133: 9555 | N133: 9495 | Q133: 9495
AM134: 0.00941587663 | AN134: HABITABILIDAD | AO134: 0.3628930869 | AP134: PROYECCIÓN HABITACIONAL Y VIVIENDA | AQ134: Asignar 521 subsidios complementarios a hogares en condición de vulnerabilidad con enfoque diferencial. | AR134: 23020102 23020105 23020106 | AS134: Número de subsidios complementarios asignados a hogares en condición de vulnerabilidad con enfoque diferencial. | AT134: 38 | AU134: 521 | AV134: 25 | AW134: =+AV134/AU134 -> 0.04798464491 | AX134: 165 | AY134: =+AX134/AU134 -> 0.3166986564 | AZ134: 165 | BA134: =+AZ134/AU134 -> 0.3166986564 | BB134: 166 | BC134: =+BB134/AU134 -> 0.3186180422 | BD134: 39 | BE134: 0 | BF134: 0 | BG134: 0 | BH134: 1.56 | BI134: 1 | BJ134: 0 | BK134: 0 | BL134: 0 | BM134: 0 | BN134: 0 | BO134: 0 | BP134: =+SUM(BD134:BG134)/AU134 -> 0.07485604607 | BQ134: 0.07485604607 | BR134: 0.07485604607 | BS134: 538610.8117 | BT134: 496983.323 | BU134: 0 | BV134: 0.9227132322 | BW134: - | BX134: 813198.5692 | BY134: 0 | BZ134: 0 | CA134: 0 | CB134: - | CC134: 859353.6058 | CD134: 0 | CE134: 0 | CF134: 0 | CG134: - | CH134: 961521.9341 | CI134: 0 | CJ134: 0 | CK134: 0 | CL134: - | CM134: 3172684.921 | CN134: 496983.323 | CO134: 0 | CP134: 0.1566443991 | CQ134: - | CR134: 10, 11 | CS134: Vivienda | CT134: INVISBU
AQ135: Entregar 500 soluciones de vivienda con obras complementarias. | AR135: 23020101 23020102 23020103 23020104 23020107 | AS135: Número de soluciones de vivienda entregadas con obras complementarias. | AT135: 225 | AU135: 500 | AV135: 40 | AW135: =+AV135/AU135 -> 0.08 | AX135: 200 | AY135: =+AX135/AU135 -> 0.4 | AZ135: 100 | BA135: =+AZ135/AU135 -> 0.2 | BB135: 160 | BC135: =+BB135/AU135 -> 0.32 | BD135: 29 | BE135: 0 | BF135: 0 | BG135: 0 | BH135: 0.725 | BI135: 0.725 | BJ135: 0 | BK135: 0 | BL135: 0 | BM135: 0 | BN135: 0 | BO135: 0 | BP135: =+SUM(BD135:BG135)/AU135 -> 0.058 | BQ135: 0.058 | BR135: 0.058 | BS135: 3389334.009 | BT135: 1339212.404 | BU135: 0 | BV135: 0.3951255322 | BW135: - | BX135: 723467.5526 | BY135: 0 | BZ135: 0 | CA135: 0 | CB135: - | CC135: 881438.6556 | CD135: 0 | CE135: 0 | CF135: 0 | CG135: - | CH135: 250000 | CI135: 0 | CJ135: 0 | CK135: 0 | CL135: - | CM135: 5244240.217 | CN135: 1339212.404 | CO135: 0 | CP135: 0.2553682418 | CQ135: - | CR135: 10, 11 | CS135: Vivienda | CT135: INVISBU
D136: Reducir a 24.884 el déficit cualitativo de vivienda. | E136: 25384 | F136: 24884 | H136: 25384 | K136: 25204 | N136: 25024 | Q136: 24884 | AO136: 0.5973255838 | AP136: MEJORAMIENTOS DE VIVIENDA Y ENTORNO BARRIAL | AQ136: Realizar 560 mejoramientos de vivienda en la zona urbana y rural. | AR136: 23020101 23020102 23020107 | AS136: Número de mejoramientos de vivienda realizados en zona urbana y rural. | AT136: 0.0571 | AU136: 560 | AV136: 135 | AW136: =+AV136/AU136 -> 0.2410714286 | AX136: 120 | AY136: =+AX136/AU136 -> 0.2142857143 | AZ136: 185 | BA136: =+AZ136/AU136 -> 0.3303571429 | BB136: 120 | BC136: =+BB136/AU136 -> 0.2142857143 | BD136: 135 | BE136: 0 | BF136: 0 | BG136: 0 | BH136: 1 | BI136: 1 | BJ136: 0 | BK136: 0 | BL136: 0 | BM136: 0 | BN136: 0 | BO136: 0 | BP136: 0.2410714286 | BQ136: 0.2410714286 | BR136: 0.2410714286 | BS136: 1500000 | BT136: 1500000 | BU136: 1500000 | BV136: 1 | BW136: 1 | BX136: 3297925.881 | BY136: 0 | BZ136: 0 | CA136: 0 | CB136: - | CC136: 3978082.733 | CD136: 0 | CE136: 0 | CF136: 0 | CG136: - | CH136: 3441367.514 | CI136: 0 | CJ136: 0 | CK136: 0 | CL136: - | CM136: 12217376.13 | CN136: 1500000 | CO136: 1500000 | CP136: 0.1227759532 | CQ136: 1 | CR136: 10, 11 | CS136: Vivienda | CT136: INVISBU
AO137: 0.03978132937 | AP137: ACOMPAÑAMIENTO SOCIAL HABITACIONAL | AQ137: Atender y acompañar a 13.500 familias en temas relacionas con vivienda de interés social. | AR137: 23020101 23020102 23020107 | AS137: Número de familias atendidas y acompañadas en temas relacionados con vivienda de interés social. | AT137: 4137 | AU137: 13500 | AV137: 3000 | AW137: =+AV137/AU137 -> 0.2222222222 | AX137: 3500 | AY137: =+AX137/AU137 -> 0.2592592593 | AZ137: 3500 | BA137: =+AZ137/AU137 -> 0.2592592593 | BB137: 3500 | BC137: =+BB137/AU137 -> 0.2592592593 | BD137: 5221.5 | BE137: 0 | BF137: 0 | BG137: 0 | BH137: 1.7405 | BI137: 1 | BJ137: 0 | BK137: 0 | BL137: 0 | BM137: 0 | BN137: 0 | BO137: 0 | BP137: 0.3867777778 | BQ137: 0.3867777778 | BR137: 0.3867777778 | BS137: 68544.50333 | BT137: 64544.502 | BU137: 0 | BV137: 0.9416437331 | BW137: - | BX137: 165407.9974 | BY137: 0 | BZ137: 0 | CA137: 0 | CB137: - | CC137: 281125.0054 | CD137: 0 | CE137: 0 | CF137: 0 | CG137: - | CH137: 297110.5517 | CI137: 0 | CJ137: 0 | CK137: 0 | CL137: - | CM137: 812188.0578 | CN137: 64544.502 | CO137: 0 | CP137: 0.07946989786 | CQ137: - | CR137: 10, 11 | CS137: Vivienda | CT137: INVISBU
D139: Aumentar a 350.000 el número de personas que realizan actividad física, deporte y recreación. | E139: 150000 | F139: 350000 | H139: 200000 | K139: 250000 | N139: 300000 | Q139: 350000 | AM139: 0.01217527338 | AN139: MOVIMIENTO, SATISFACCIÓN Y VIDA, UNA CIUDAD ACTIVA | AO139: 0.3210515517 | AP139: FOMENTO A LA RECREACIÓN, LA ACTIVIDAD FÍSICA Y EL DEPORTE: ME GOZO MI CIUDAD Y MI TERRITORIO | AQ139: Realizar 350 eventos de hábitos de vida saludable (recreovías, ciclovías, ciclopaseos y caminatas ecológicas por senderos y cerros). | AR139: 0 | AS139: Número de eventos de hábitos de vida saludable (recreovías, ciclovías, ciclopaseos y caminatas ecológicas por senderos y cerros) realizados. | AT139: 100 | AU139: 350 | AV139: 40 | AW139: =+AV139/AU139 -> 0.1142857143 | AX139: 60 | AY139: =+AX139/AU139 -> 0.1714285714 | AZ139: 125 | BA139: =+AZ139/AU139 -> 0.3571428571 | BB139: 125 | BC139: =+BB139/AU139 -> 0.3571428571 | BD139: 32 | BE139: 0 | BF139: 0 | BG139: 0 | BH139: 0.8 | BI139: 0.8 | BJ139: 0 | BK139: 0 | BL139: 0 | BM139: 0 | BN139: 0 | BO139: 0 | BP139: 0.09142857143 | BQ139: 0.09142857143 | BR139: 0.09142857143 | BS139: 345019 | BT139: 251746 | BU139: 0 | BV139: 0.7296583666 | BW139: - | BX139: 493000 | BY139: 0 | BZ139: 0 | CA139: 0 | CB139: - | CC139: 527434 | CD139: 0 | CE139: 0 | CF139: 0 | CG139: - | CH139: 527434 | CI139: 0 | CJ139: 0 | CK139: 0 | CL139: - | CM139: 1892887 | CN139: 251746 | CO139: 0 | CP139: 0.132995789 | CQ139: - | CR139: 3, 5, 10, 11 | CS139: Deporte y Recreación | CT139: INDERBU
AQ140: Mantener 104 grupos comunitarios para la práctica de la actividad física regular que genere hábitos y estilos de vida saludables en ágoras, parques y canchas. | AR140: 0 | AS140: Número de grupos comunitarios mantenidos para la práctica de la actividad física regular que genere hábitos y estilos de vida saludables en ágoras, parques y canchas. | AT140: 104 | AU140: 104 | AV140: 104 | AW140: =+AV140/AU140 -> 1 | AX140: 104 | AY140: =+AX140/AU140 -> 1 | AZ140: 104 | BA140: =+AZ140/AU140 -> 1 | BB140: 104 | BC140: =+BB140/AU140 -> 1 | BD140: 104 | BE140: 0 | BF140: 0 | BG140: 0 | BH140: 1 | BI140: 1 | BJ140: 0 | BK140: 0 | BL140: 0 | BM140: 0 | BN140: 0 | BO140: 0 | BP140: 1 | BQ140: 1 | BR140: 1 | BS140: 724617 | BT140: 727095 | BU140: 0 | BV140: 1.003419738 | BW140: - | BX140: 710000 | BY140: 0 | BZ140: 0 | CA140: 0 | CB140: - | CC140: 1538259 | CD140: 0 | CE140: 0 | CF140: 0 | CG140: - | CH140: 1541442 | CI140: 0 | CJ140: 0 | CK140: 0 | CL140: - | CM140: 4514318 | CN140: 727095 | CO140: 0 | CP140: 0.1610641962 | CQ140: - | CR140: 3, 5, 10, 11 | CS140: Deporte y Recreación | CT140: INDERBU
AQ141: Desarrollar 144 eventos recreativos y deportivos para las comunidades bumanguesas, incluidas las vacaciones creativas para infancia. | AR141: 0 | AS141: Número de eventos recreativos y deportivos desarrollados para las comunidades bumanguesas, incluidas las vacaciones creativas para infancia. | AT141: 41 | AU141: 144 | AV141: 14 | AW141: =+AV141/AU141 -> 0.09722222222 | AX141: 30 | AY141: =+AX141/AU141 -> 0.2083333333 | AZ141: 50 | BA141: =+AZ141/AU141 -> 0.3472222222 | BB141: 50 | BC141: =+BB141/AU141 -> 0.3472222222 | BD141: 9 | BE141: 0 | BF141: 0 | BG141: 0 | BH141: 0.6428571429 | BI141: 0.6428571429 | BJ141: 0 | BK141: 0 | BL141: 0 | BM141: 0 | BN141: 0 | BO141: 0 | BP141: 0.0625 | BQ141: 0.0625 | BR141: =+BQ141 -> 0.0625 | BS141: 199321 | BT141: 89893 | BU141: 0 | BV141: =IF(BS141=0," -",BT141/BS141) -> 0.4509961319 | BW141: =IF(BU141=0," -",IF(BT141=0,100%,BU141/BT141)) -> - | BX141: 217712 | BY141: 0 | BZ141: 0 | CA141: =IF(BX141=0," -",BY141/BX141) -> 0 | CB141: =IF(BZ141=0," -",IF(BY141=0,100%,BZ141/BY141)) -> - | CC141: 677852 | CD141: 0 | CE141: 0 | CF141: =IF(CC141=0," -",CD141/CC141) -> 0 | CG141: =IF(CE141=0," -",IF(CD141=0,100%,CE141/CD141)) -> - | CH141: 679635 | CI141: 0 | CJ141: 0 | CK141: =IF(CH141=0," -",CI141/CH141) -> 0 | CL141: =IF(CJ141=0," -",IF(CI141=0,100%,CJ141/CI141)) -> - | CM141: 1774520 | CN141: 89893 | CO141: 0 | CP141: 0.05065764263 | CQ141: - | CR141: 3, 5, 10, 11 | CS141: Deporte y Recreación | CT141: INDERBU
AQ142: Desarrollar 16 eventos deportivos y recreativos dirigido a población vulnerable: discapacidad, víctimas del conflicto interno armado y población carcelaria hombres y mujeres. | AR142: 0 | AS142: Número de eventos deportivos y recreativos dirigidos a población vulnerable: discapacidad, víctimas del conflicto interno armado y población carcelaria hombres y mujeres desarrollados. | AT142: 5 | AU142: 16 | AV142: 3 | AW142: 0.1875 | AX142: 3 | AY142: 0.1875 | AZ142: 5 | BA142: 0.3125 | BB142: 5 | BC142: 0.3125 | BD142: 3 | BE142: 0 | BF142: 0 | BG142: 0 | BH142: =IF(AV142=0," -",BD142/AV142) -> 1 | BI142: =IF(AV142=0," -",IF(BH142>100%,100%,BH142)) -> 1 | BJ142: =IF(AX142=0," -",BE142/AX142) -> 0 | BK142: =IF(AX142=0," -",IF(BJ142>100%,100%,BJ142)) -> 0 | BL142: =IF(AZ142=0," -",BF142/AZ142) -> 0 | BM142: =IF(AZ142=0," -",IF(BL142>100%,100%,BL142)) -> 0 | BN142: =IF(BB142=0," -",BG142/BB142) -> 0 | BO142: =IF(BB142=0," -",IF(BN142>100%,100%,BN142)) -> 0 | BP142: 0.1875 | BQ142: =+IF(BP142>100%,100%,BP142) -> 0.1875 | BR142: 0.1875 | BS142: 96678 | BT142: 19532 | BU142: 0 | BV142: 0.202031486 | BW142: - | BX142: 140000 | BY142: 0 | BZ142: 0 | CA142: 0 | CB142: - | CC142: 194701 | CD142: 0 | CE142: 0 | CF142: 0 | CG142: - | CH142: 194701 | CI142: 0 | CJ142: 0 | CK142: 0 | CL142: - | CM142: 626080 | CN142: 19532 | CO142: 0 | CP142: 0.03119729108 | CQ142: - | CR142: 3, 5, 10, 11 | CS142: Deporte y Recreación | CT142: INDERBU
AO143: 0.5973255838 | AP143: FORMACIÓN Y PREPARACIÓN DE DEPORTISTAS | AQ143: Vincular 53.000 niños y niñas en procesos de formación y preparación de deportistas a través de centros de educación física, escuelas de iniciación, ciclo de perfeccionamiento atlético y competencias y festivales deportivos en los juegos estudiantiles. | AR143: 0 | AS143: Número niños y niñas vinculados en procesos de formación y preparación de deportistas a través de centros de educación física, escuelas de iniciación, ciclo de perfeccionamiento atlético y competencias y festivales deportivos en los juegos estudiantiles. | AT143: 18892 | AU143: 53000 | AV143: 8000 | AW143: 0.1509433962 | AX143: 10000 | AY143: 0.1886792453 | AZ143: 17500 | BA143: 0.3301886792 | BB143: 17500 | BC143: 0.3301886792 | BD143: 10858 | BE143: 0 | BF143: 0 | BG143: 0 | BH143: 1.35725 | BI143: 1 | BJ143: 0 | BK143: 0 | BL143: 0 | BM143: 0 | BN143: 0 | BO143: 0 | BP143: 0.2048679245 | BQ143: 0.2048679245 | BR143: 0.2048679245 | BS143: 1630346 | BT143: 1329237 | BU143: 0 | BV143: 0.8153097563 | BW143: - | BX143: 2014400 | BY143: 0 | BZ143: 0 | CA143: 0 | CB143: - | CC143: 2935105 | CD143: 0 | CE143: 0 | CF143: 0 | CG143: - | CH143: 2940834 | CI143: 0 | CJ143: 0 | CK143: 0 | CL143: - | CM143: 9520685 | CN143: 1329237 | CO143: 0 | CP143: 0.1396156894 | CQ143: - | CR143: 3, 4, 5, 10, 11 | CS143: Deporte y Recreación | CT143: INDERBU
AQ144: Capacitar 800 personas en áreas afines a la actividad física, recreación y deporte. | AR144: 0 | AS144: Número de personas capacitadas en áreas afines a la actividad física, recreación y deporte. | AT144: 203 | AU144: 800 | AV144: 200 | AW144: 0.25 | AX144: 200 | AY144: 0.25 | AZ144: 200 | BA144: 0.25 | BB144: 200 | BC144: 0.25 | BD144: 180 | BE144: 0 | BF144: 0 | BG144: 0 | BH144: 0.9 | BI144: 0.9 | BJ144: 0 | BK144: 0 | BL144: 0 | BM144: 0 | BN144: 0 | BO144: 0 | BP144: 0.225 | BQ144: 0.225 | BR144: 0.225 | BS144: 13506 | BT144: 13506 | BU144: 0 | BV144: 1 | BW144: - | BX144: 28506 | BY144: 0 | BZ144: 0 | CA144: 0 | CB144: - | CC144: 43506 | CD144: 0 | CE144: 0 | CF144: 0 | CG144: - | CH144: 43506 | CI144: 0 | CJ144: 0 | CK144: 0 | CL144: - | CM144: 129024 | CN144: 13506 | CO144: 0 | CP144: 0.1046781994 | CQ144: - | CR144: 3, 4, 5, 10, 11 | CS144: Deporte y Recreación | CT144: INDERBU
AQ145: Apoyar 80 iniciativas de organismos del deporte asociado, grupos diferenciales y de comunidades generales. | AR145: 0 | AS145: Número de iniciativas apoyadas de organismos del deporte asociado, grupos diferenciales y de comunidades generales. | AT145: 27 | AU145: 80 | AV145: 10 | AW145: 0.125 | AX145: 20 | AY145: 0.25 | AZ145: 25 | BA145: 0.3125 | BB145: 25 | BC145: 0.3125 | BD145: 6 | BE145: 0 | BF145: 0 | BG145: 0 | BH145: 0.6 | BI145: 0.6 | BJ145: 0 | BK145: 0 | BL145: 0 | BM145: 0 | BN145: 0 | BO145: 0 | BP145: 0.075 | BQ145: 0.075 | BR145: 0.075 | BS145: 30159 | BT145: 9000 | BU145: 0 | BV145: 0.2984183826 | BW145: - | BX145: 116926 | BY145: 0 | BZ145: 0 | CA145: 0 | CB145: - | CC145: 236159 | CD145: 0 | CE145: 0 | CF145: 0 | CG145: - | CH145: 236159 | CI145: 0 | CJ145: 0 | CK145: 0 | CL145: - | CM145: 619403 | CN145: 9000 | CO145: 0 | CP145: 0.01453012013 | CQ145: - | CR145: 3, 4, 5, 10, 11 | CS145: Deporte y Recreación | CT145: INDERBU
AO146: 0.3046310853 | AP146: AMBIENTES DEPORTIVOS Y RECREATIVOS DIGNOS Y EFICIENTES | AQ146: Realizar mantenimiento y adecuaciones menores a 105 campos y/o escenarios deportivos. | AR146: 0 | AS146: Número de campos y/o escenarios deportivos con mantenimientos y adecuaciones menores. | AT146: 49 | AU146: 105 | AV146: 20 | AW146: 0.1904761905 | AX146: 25 | AY146: 0.2380952381 | AZ146: 30 | BA146: 0.2857142857 | BB146: 30 | BC146: 0.2857142857 | BD146: 20 | BE146: 0 | BF146: 0 | BG146: 0 | BH146: 1 | BI146: 1 | BJ146: 0 | BK146: 0 | BL146: 0 | BM146: 0 | BN146: 0 | BO146: 0 | BP146: 0.1904761905 | BQ146: 0.1904761905 | BR146: 0.1904761905 | BS146: 2979965 | BT146: 1533308 | BU146: 0 | BV146: 0.5145389291 | BW146: - | BX146: 1642548 | BY146: 0 | BZ146: 0 | CA146: 0 | CB146: - | CC146: 2361479 | CD146: 0 | CE146: 0 | CF146: 0 | CG146: - | CH146: 2373330 | CI146: 0 | CJ146: 0 | CK146: 0 | CL146: - | CM146: 9357322 | CN146: 1533308 | CO146: 0 | CP146: 0.16386184 | CQ146: - | CR146: 3, 5, 10, 11 | CS146: Deporte y Recreación | CT146: INDERBU
D148: Aumentar a 2.848.000 visitas presenciales o virtuales a las actividades de formación de la Escuela Municipal de Artes, a los eventos artísticos de la red Municipal de Bibliotecas y la agenda cultural del IMCT. | E148: 782000 | F148: 2848000 | H148: 800000 | K148: 1500000 | N148: 2000000 | Q148: 2848000 | AM148: 0.02825802544 | AN148: VIDA CULTURAL Y BIENESTAR CREATIVO SOSTENIBLE | AO148: 0.655023765 | AP148: ARTE, CULTURA Y CREATIVIDAD PARA LA TRANSFORMACIÓN SOCIAL | AQ148: Mantener la Escuela Municipal de Artes y Oficios en el Municipio. | AR148: 0 | AS148: Número de Escuelas Municipales de Artes y Oficios mantenidas. | AT148: 1 | AU148: 1 | AV148: 1 | AW148: 1 | AX148: 1 | AY148: 1 | AZ148: 1 | BA148: 1 | BB148: 1 | BC148: 1 | BD148: 1 | BE148: 0 | BF148: 0 | BG148: 0 | BH148: 1 | BI148: 1 | BJ148: 0 | BK148: 0 | BL148: 0 | BM148: 0 | BN148: 0 | BO148: 0 | BP148: 1 | BQ148: 1 | BR148: 1 | BS148: 1488417.5 | BT148: 1480342.277 | BU148: 0 | BV148: 0.9945746251 | BW148: - | BX148: 1859201 | BY148: 0 | BZ148: 0 | CA148: 0 | CB148: - | CC148: 3037538 | CD148: 0 | CE148: 0 | CF148: 0 | CG148: - | CH148: 3199335 | CI148: 0 | CJ148: 0 | CK148: 0 | CL148: - | CM148: 9584491.5 | CN148: 1480342.277 | CO148: 0 | CP148: 0.1544518326 | CQ148: - | CR148: 3, 4, 10, 11 | CS148: Cultura | CT148: IMCT
AQ149: Implementar y mantener 4 iniciativas de formación artística en extensión para atención de población desde la primera infancia con enfoque diferencial y/o terapéutico. | AR149: 0 | AS149: Número de iniciativas de formación artística en extensión implementadas y mantenidas para atención de población desde la primera infancia con enfoque diferencial y/o terapéutico. | AT149: 0 | AU149: 4 | AV149: 1 | AW149: 0.25 | AX149: 1 | AY149: 0.25 | AZ149: 1 | BA149: 0.25 | BB149: 1 | BC149: 0.25 | BD149: 1 | BE149: 0 | BF149: 0 | BG149: 0 | BH149: 1 | BI149: 1 | BJ149: 0 | BK149: 0 | BL149: 0 | BM149: 0 | BN149: 0 | BO149: 0 | BP149: 0.25 | BQ149: 0.25 | BR149: 0.25 | BS149: 50000 | BT149: 30000 | BU149: 0 | BV149: 0.6 | BW149: - | BX149: 100000 | BY149: 0 | BZ149: 0 | CA149: 0 | CB149: - | CC149: 100000 | CD149: 0 | CE149: 0 | CF149: 0 | CG149: - | CH149: 100000 | CI149: 0 | CJ149: 0 | CK149: 0 | CL149: - | CM149: 350000 | CN149: 30000 | CO149: 0 | CP149: 0.08571428571 | CQ149: - | CR149: 3, 4, 11 | CS149: Cultura | CT149: IMCT
AQ150: Realizar 4 iniciativas de cultura ciudadana. | AR150: 0 | AS150: Número de iniciativas de cultura ciudadana realizadas. | AT150: 1 | AU150: 4 | AV150: 1 | AW150: 0.25 | AX150: 1 | AY150: 0.25 | AZ150: 1 | BA150: 0.25 | BB150: 1 | BC150: 0.25 | BD150: 1 | BE150: 0 | BF150: 0 | BG150: 0 | BH150: 1 | BI150: 1 | BJ150: 0 | BK150: 0 | BL150: 0 | BM150: 0 | BN150: 0 | BO150: 0 | BP150: 0.25 | BQ150: 0.25 | BR150: 0.25 | BS150: 100000 | BT150: 70000 | BU150: 0 | BV150: 0.7 | BW150: - | BX150: 292000 | BY150: 0 | BZ150: 0 | CA150: 0 | CB150: - | CC150: 300000 | CD150: 0 | CE150: 0 | CF150: 0 | CG150: - | CH150: 200000 | CI150: 0 | CJ150: 0 | CK150: 0 | CL150: - | CM150: =+BS150+BX150+CC150+CH150 -> 892000 | CN150: =+BT150+BY150+CD150+CI150 -> 70000 | CO150: =+BU150+BZ150+CE150+CJ150 -> 0 | CP150: =IF(CM150=0," -",CN150/CM150) -> 0.07847533632 | CQ150: =IF(CO150=0," -",IF(CN150=0,100%,CO150/CN150)) -> - | CR150: 11 | CS150: Cultura | CT150: IMCT
AQ151: Desarrollar 4 proyectos para fortalecimiento a modelos de gestión artística, cultural o de la industria creativa. | AR151: 0 | AS151: Número de proyectos desarrollados para fortalecimiento a modelos de gestión artística, cultural o de la industria creativa. | AT151: 0 | AU151: 4 | AV151: 1 | AW151: 0.25 | AX151: 1 | AY151: 0.25 | AZ151: 1 | BA151: 0.25 | BB151: 1 | BC151: 0.25 | BD151: 1 | BE151: 0 | BF151: 0 | BG151: 0 | BH151: 1 | BI151: 1 | BJ151: 0 | BK151: 0 | BL151: 0 | BM151: 0 | BN151: 0 | BO151: 0 | BP151: 0.25 | BQ151: 0.25 | BR151: 0.25 | BS151: 50001.472 | BT151: 15000 | BU151: 0 | BV151: 0.2999911683 | BW151: - | BX151: 300000 | BY151: 0 | BZ151: 0 | CA151: 0 | CB151: - | CC151: 350000 | CD151: 0 | CE151: 0 | CF151: 0 | CG151: - | CH151: 150000 | CI151: 0 | CJ151: 0 | CK151: 0 | CL151: - | CM151: 850001.472 | CN151: 15000 | CO151: 0 | CP151: 0.01764702826 | CQ151: - | CR151: 1, 3, 4, 10, 11 | CS151: Cultura | CT151: IMCT
AQ152: Mantener 1 red municipal de bibliotecas que incorpore a la Biblioteca Pública Gabriel Turbay. | AR152: 0 | AS152: Número de redes municipales de bibliotecas mantenidas que incorporen a la Biblioteca Pública Gabriel Turbay. | AT152: 1 | AU152: 1 | AV152: 1 | AW152: 0.25 | AX152: 1 | AY152: 0.25 | AZ152: 1 | BA152: 0.25 | BB152: 1 | BC152: 0.25 | BD152: 1 | BE152: 0 | BF152: 0 | BG152: 0 | BH152: 1 | BI152: 1 | BJ152: 0 | BK152: 0 | BL152: 0 | BM152: 0 | BN152: 0 | BO152: 0 | BP152: =+AVERAGE(BD152:BG152)/AU152 -> 0.25 | BQ152: 0.25 | BR152: 0.25 | BS152: 3451200.287 | BT152: 2842479.557 | BU152: 0 | BV152: 0.8236205728 | BW152: - | BX152: 2831490 | BY152: 0 | BZ152: 0 | CA152: 0 | CB152: - | CC152: 5890000 | CD152: 0 | CE152: 0 | CF152: 0 | CG152: - | CH152: 5590000 | CI152: 0 | CJ152: 0 | CK152: 0 | CL152: - | CM152: 17762690.29 | CN152: 2842479.557 | CO152: 0 | CP152: 0.160025284 | CQ152: - | CR152: 3, 4, 10, 11 | CS152: Cultura | CT152: IMCT
AQ153: Realizar 200 talleres de lectura, escritura y oralidad con niñas, niños y adolescentes en concordancia con el plan nacional de lectura, escritura y la política nacional de lectura y bibliotecas. | AR153: 0 | AS153: Número de talleres de lectura, escritura y oralidad realizados con niñas, niños y adolescentes en concordancia con el plan nacional de lectura, escritura y la política nacional de lectura y bibliotecas. | AT153: 840 | AU153: 200 | AV153: 50 | AW153: 0.25 | AX153: 50 | AY153: 0.25 | AZ153: 50 | BA153: 0.25 | BB153: 50 | BC153: 0.25 | BD153: 30 | BE153: 0 | BF153: 0 | BG153: 0 | BH153: 0.6 | BI153: 0.6 | BJ153: 0 | BK153: 0 | BL153: 0 | BM153: 0 | BN153: 0 | BO153: 0 | BP153: 0.15 | BQ153: 0.15 | BR153: 0.15 | BS153: 92500 | BT153: 18500 | BU153: 0 | BV153: 0.2 | BW153: - | BX153: 80000 | BY153: 0 | BZ153: 0 | CA153: 0 | CB153: - | CC153: 25000 | CD153: 0 | CE153: 0 | CF153: 0 | CG153: - | CH153: 25000 | CI153: 0 | CJ153: 0 | CK153: 0 | CL153: - | CM153: 222500 | CN153: 18500 | CO153: 0 | CP153: 0.08314606742 | CQ153: - | CR153: 3, 4, 10, 11 | CS153: Cultura | CT153: IMCT
AQ154: Realizar 16 convocatorias de fomento a la creación, circulación, investigación, formación, distribución y/o comercialización artística, cultural, creativa y de gestión cultural para los artistas y gestores culturales locales. | AR154: 0 | AS154: Número de convocatorias de fomento a la creación, circulación investigación, formación, distribución y/o comercialización artística, cultural y de gestión cutlural para los artistas y gestores culturales locales realizadas. | AT154: 3 | AU154: 16 | AV154: 3 | AW154: 0.1875 | AX154: 4 | AY154: 0.25 | AZ154: 5 | BA154: 0.3125 | BB154: 4 | BC154: 0.25 | BD154: 3 | BE154: 0 | BF154: 0 | BG154: 0 | BH154: 1 | BI154: 1 | BJ154: 0 | BK154: 0 | BL154: 0 | BM154: 0 | BN154: 0 | BO154: 0 | BP154: 0.1875 | BQ154: 0.1875 | BR154: 0.1875 | BS154: 2488584.977 | BT154: 1324878.528 | BU154: 0 | BV154: 0.5323822736 | BW154: - | BX154: 1350000 | BY154: 0 | BZ154: 0 | CA154: 0 | CB154: - | CC154: 2000653 | CD154: 0 | CE154: 0 | CF154: 0 | CG154: - | CH154: 1423827 | CI154: 0 | CJ154: 0 | CK154: 0 | CL154: - | CM154: 7263064.977 | CN154: 1324878.528 | CO154: 0 | CP154: 0.1824131455 | CQ154: - | CR154: 1, 10, 11 | CS154: Cultura | CT154: IMCT
AQ155: Implementar y mantener 1 centro de acceso a la información, observación y aceleración para fomento del desarrollo artístico, creativo y de gestión cultural. | AR155: 0 | AS155: Número de centros de acceso a la información, observación y aceleración implementados y mantenidos para fomento del desarrollo artístico, creativo y de gestión cultural. | AT155: 0 | AU155: 1 | AV155: 1 | AW155: 0.25 | AX155: 1 | AY155: 0.25 | AZ155: 1 | BA155: 0.25 | BB155: 1 | BC155: 0.25 | BD155: 0 | BE155: 0 | BF155: 0 | BG155: 0 | BH155: 0 | BI155: 0 | BJ155: 0 | BK155: 0 | BL155: 0 | BM155: 0 | BN155: 0 | BO155: 0 | BP155: =+AVERAGE(BD155:BG155)/AU155 -> 0 | BQ155: 0 | BR155: 0 | BS155: 30000 | BT155: 0 | BU155: 0 | BV155: 0 | BW155: - | BX155: 200000 | BY155: 0 | BZ155: 0 | CA155: 0 | CB155: - | CC155: 400000 | CD155: 0 | CE155: 0 | CF155: 0 | CG155: - | CH155: 300000 | CI155: 0 | CJ155: 0 | CK155: 0 | CL155: - | CM155: 930000 | CN155: 0 | CO155: 0 | CP155: 0 | CQ155: - | CR155: 11 | CS155: Cultura | CT155: IMCT
AQ156: Realizar 3 iniciativas de innovación artística, cultural y creativa que contribuyan a fortalecer las cadenas de valor productivo de las artes. | AR156: 0 | AS156: Número de iniciativas de innovación artística, cultural y creativa realizadas que contribuyan a fortalecer las cadenas de valor productivo de las artes. | AT156: 0 | AU156: 3 | AV156: 1 | AW156: 0.3333333333 | AX156: 1 | AY156: 0.3333333333 | AZ156: 1 | BA156: 0.3333333333 | BB156: 0 | BC156: 0 | BD156: 1 | BE156: 0 | BF156: 0 | BG156: 0 | BH156: 1 | BI156: 1 | BJ156: 0 | BK156: 0 | BL156: 0 | BM156: 0 | BN156: - | BO156: - | BP156: 0.3333333333 | BQ156: 0.3333333333 | BR156: 0.3333333333 | BS156: 20000 | BT156: 4640 | BU156: 0 | BV156: 0.232 | BW156: - | BX156: 380000 | BY156: 0 | BZ156: 0 | CA156: 0 | CB156: - | CC156: 300000 | CD156: 0 | CE156: 0 | CF156: 0 | CG156: - | CH156: 0 | CI156: 0 | CJ156: 0 | CK156: - | CL156: - | CM156: 700000 | CN156: 4640 | CO156: 0 | CP156: 0.006628571429 | CQ156: - | CR156: 11 | CS156: Cultura | CT156: IMCT
AQ157: Mantener 1 plataforma digital de comunicación y difusión artística y cultural. | AR157: 0 | AS157: Número de plataformas digitales de comunicación y difusión artística y cultural mantenidas. | AT157: 1 | AU157: 1 | AV157: 1 | AW157: 0.25 | AX157: 1 | AY157: 0.25 | AZ157: 1 | BA157: 0.25 | BB157: 1 | BC157: 0.25 | BD157: 0 | BE157: 0 | BF157: 0 | BG157: 0 | BH157: 0 | BI157: 0 | BJ157: 0 | BK157: 0 | BL157: 0 | BM157: 0 | BN157: 0 | BO157: 0 | BP157: =+AVERAGE(BD157:BG157)/AU157 -> 0 | BQ157: 0 | BR157: 0 | BS157: 13000 | BT157: 0 | BU157: 0 | BV157: 0 | BW157: - | BX157: 23000 | BY157: 0 | BZ157: 0 | CA157: 0 | CB157: - | CC157: 23000 | CD157: 0 | CE157: 0 | CF157: 0 | CG157: - | CH157: 23000 | CI157: 0 | CJ157: 0 | CK157: 0 | CL157: - | CM157: 82000 | CN157: 0 | CO157: 0 | CP157: 0 | CQ157: - | CR157: 11 | CS157: Cultura | CT157: IMCT
AQ158: Mantener en funcionamiento la Emisora Cultural Luis Carlos Galán Sarmiento - La Cultural 100.7. | AR158: 0 | AS158: Número de Emisoras Culturales Luis Carlos Galán Sarmiento - La Cultural 100.7 en funcionamiento. | AT158: 1 | AU158: 1 | AV158: 1 | AW158: 0.25 | AX158: 1 | AY158: 0.25 | AZ158: 1 | BA158: 0.25 | BB158: 1 | BC158: 0.25 | BD158: 1 | BE158: 0 | BF158: 0 | BG158: 0 | BH158: 1 | BI158: 1 | BJ158: 0 | BK158: 0 | BL158: 0 | BM158: 0 | BN158: 0 | BO158: 0 | BP158: =+AVERAGE(BD158:BG158)/AU158 -> 0.25 | BQ158: 0.25 | BR158: 0.25 | BS158: 538508.999 | BT158: 497073.666 | BU158: 0 | BV158: 0.9230554493 | BW158: - | BX158: 624000 | BY158: 0 | BZ158: 0 | CA158: 0 | CB158: - | CC158: 1024000 | CD158: 0 | CE158: 0 | CF158: 0 | CG158: - | CH158: 624000 | CI158: 0 | CJ158: 0 | CK158: 0 | CL158: - | CM158: 2810508.999 | CN158: 497073.666 | CO158: 0 | CP158: 0.1768625065 | CQ158: - | CR158: 11 | CS158: Cultura | CT158: IMCT
AQ159: Realizar 3 acciones de fortalecimiento al Consejo Municipal de Cultura y de Turismo. | AR159: 0 | AS159: Número de acciones de fortalecimiento realizadas al Consejo Municipal de Cultura y de Turismo. | AT159: 1 | AU159: 3 | AV159: 0 | AW159: 0 | AX159: 1 | AY159: 0.3333333333 | AZ159: 1 | BA159: 0.3333333333 | BB159: 1 | BC159: 0.3333333333 | BD159: 0 | BE159: 0 | BF159: 0 | BG159: 0 | BH159: - | BI159: - | BJ159: 0 | BK159: 0 | BL159: 0 | BM159: 0 | BN159: 0 | BO159: 0 | BP159: =+SUM(BD159:BG159)/AU159 -> 0 | BQ159: 0 | BR159: 0 | BS159: 0 | BT159: 0 | BU159: 0 | BV159: - | BW159: - | BX159: 25000 | BY159: 0 | BZ159: 0 | CA159: 0 | CB159: - | CC159: 25000 | CD159: 0 | CE159: 0 | CF159: 0 | CG159: - | CH159: 25000 | CI159: 0 | CJ159: 0 | CK159: 0 | CL159: - | CM159: 75000 | CN159: 0 | CO159: 0 | CP159: 0 | CQ159: - | CR159: 10, 11 | CS159: Cultura | CT159: IMCT
AQ160: Formular e implementar 1 Plan Decenal de Cultura y Turismo. | AR160: 0 | AS160: Número de Planes Decenales de Cultura y Turismo formulados e implementados. | AT160: 0 | AU160: 1 | AV160: 0 | AW160: 0 | AX160: 1 | AY160: 0.33 | AZ160: 1 | BA160: 0.33 | BB160: 1 | BC160: 0.34 | BD160: 0 | BE160: 0 | BF160: 0 | BG160: 0 | BH160: - | BI160: - | BJ160: 0 | BK160: 0 | BL160: 0 | BM160: 0 | BN160: 0 | BO160: 0 | BP160: =+AVERAGE(BE160:BG160)/AU160 -> 0 | BQ160: 0 | BR160: 0 | BS160: 0 | BT160: 0 | BU160: 0 | BV160: - | BW160: - | BX160: 50000 | BY160: 0 | BZ160: 0 | CA160: 0 | CB160: - | CC160: 200000 | CD160: 0 | CE160: 0 | CF160: 0 | CG160: - | CH160: 100000 | CI160: 0 | CJ160: 0 | CK160: 0 | CL160: - | CM160: 350000 | CN160: 0 | CO160: 0 | CP160: 0 | CQ160: - | CR160: 11 | CS160: Cultura | CT160: IMCT
AQ161: Realizar 2 iniciativas artísticas y culturales enmarcadas en el Plan Integral Zonal. | AR161: 0 | AS161: Número de iniciativas artísticas y culturales enmarcadas en el Plan Integral Zonal realizadas. | AT161: 0 | AU161: 2 | AV161: 1 | AW161: 0.5 | AX161: 1 | AY161: 0.5 | AZ161: 0 | BA161: 0 | BB161: 0 | BC161: 0 | BD161: 1 | BE161: 0 | BF161: 0 | BG161: 0 | BH161: 1 | BI161: 1 | BJ161: 0 | BK161: 0 | BL161: - | BM161: - | BN161: - | BO161: - | BP161: 0.5 | BQ161: 0.5 | BR161: 0.5 | BS161: 47025 | BT161: 47025 | BU161: 0 | BV161: 1 | BW161: - | BX161: 100000 | BY161: 0 | BZ161: 0 | CA161: 0 | CB161: - | CC161: 0 | CD161: 0 | CE161: 0 | CF161: - | CG161: - | CH161: 0 | CI161: 0 | CJ161: 0 | CK161: - | CL161: - | CM161: 147025 | CN161: 47025 | CO161: 0 | CP161: 0.319843564 | CQ161: - | CR161: 1, 10, 11 | CS161: Cultura | CT161: IMCT
AO162: 0.344976235 | AP162: PATRIMONIO CULTURAL: CIRCUITOS CULTURALES Y CREATIVOS PARA TODOS | AQ162: Adquirir 1 Bien de Interés Cultural Patrimonial. | AR162: 0 | AS162: Número de Bienes de Interés Cultural Patrimonial adquiridos. | AT162: 1 | AU162: 1 | AV162: 0 | AW162: 0 | AX162: 0 | AY162: 0 | AZ162: 0 | BA162: 0 | BB162: 1 | BC162: 1 | BD162: 0 | BE162: 0 | BF162: 0 | BG162: 0 | BH162: - | BI162: - | BJ162: - | BK162: - | BL162: - | BM162: - | BN162: 0 | BO162: 0 | BP162: 0 | BQ162: 0 | BR162: 0 | BS162: 3002495 | BT162: 0 | BU162: 0 | BV162: 0 | BW162: - | BX162: 0 | BY162: 0 | BZ162: 0 | CA162: - | CB162: - | CC162: 500000 | CD162: 0 | CE162: 0 | CF162: 0 | CG162: - | CH162: 0 | CI162: 0 | CJ162: 0 | CK162: - | CL162: - | CM162: 3502495 | CN162: 0 | CO162: 0 | CP162: 0 | CQ162: - | CR162: 9, 10, 11 | CS162: Cultura | CT162: IMCT
AQ163: Realizar 14 acciones de restauración, conservación, recuperación, mantenimiento, apropiación, promoción y/o difusión del patrimonio cultural material mueble e inmueble e inmaterial. | AR163: 0 | AS163: Número de acciones de restauración, conservación, recuperación, mantenimiento, apropiación, promoción y/o difusión del patrimonio cultural material mueble e inmueble e inmaterial realizados. | AT163: 1 | AU163: 14 | AV163: 3 | AW163: 0.2142857143 | AX163: 3 | AY163: 0.2142857143 | AZ163: 4 | BA163: 0.2857142857 | BB163: 4 | BC163: 0.2857142857 | BD163: 3 | BE163: 0 | BF163: 0 | BG163: 0 | BH163: 1 | BI163: 1 | BJ163: 0 | BK163: 0 | BL163: 0 | BM163: 0 | BN163: 0 | BO163: 0 | BP163: 0.2142857143 | BQ163: 0.2142857143 | BR163: 0.2142857143 | BS163: 1121600 | BT163: 1121600 | BU163: 0 | BV163: 1 | BW163: - | BX163: 1035443 | BY163: 0 | BZ163: 0 | CA163: 0 | CB163: - | CC163: 3083000 | CD163: 0 | CE163: 0 | CF163: 0 | CG163: - | CH163: 5178000 | CI163: 0 | CJ163: 0 | CK163: 0 | CL163: - | CM163: 10418043 | CN163: 1121600 | CO163: 0 | CP163: 0.1076593752 | CQ163: - | CR163: 9, 10, 11 | CS163: Cultura | CT163: IMCT
AQ164: Ejecutar 1 proyecto de adecuación, recuperación, modernización y/o dotación de la Biblioteca Gabriel Turbay. | AR164: 0 | AS164: Porcentaje de avance de la ejecución del proyecto de adecuación, recuperación, modernización y/o dotación de la Biblioteca Gabriel Turbay. | AT164: 0 | AU164: 1 | AV164: 0 | AW164: 0 | AX164: 0.05 | AY164: 0.05 | AZ164: 0.15 | BA164: 0.15 | BB164: 0.8 | BC164: 0.8 | BD164: 0 | BE164: 0 | BF164: 0 | BG164: 0 | BH164: - | BI164: - | BJ164: 0 | BK164: 0 | BL164: 0 | BM164: 0 | BN164: 0 | BO164: 0 | BP164: 0 | BQ164: 0 | BR164: 0 | BS164: 0 | BT164: 0 | BU164: 0 | BV164: - | BW164: - | BX164: 100000 | BY164: 0 | BZ164: 0 | CA164: 0 | CB164: - | CC164: 850000 | CD164: 0 | CE164: 0 | CF164: 0 | CG164: - | CH164: 4200000 | CI164: 0 | CJ164: 0 | CK164: 0 | CL164: - | CM164: 5150000 | CN164: 0 | CO164: 0 | CP164: 0 | CQ164: - | CR164: 9, 10, 11 | CS164: Cultura | CT164: IMCT
AQ165: Mantener 1 agenda de programación artística, cultural y creativa que fortalezca los circuitos artísticos y culturales. | AR165: 0 | AS165: Número de agendas de programación artística, cultural y creativas mantenidas que fortalezcan los circuitos artísticos y culturales. | AT165: 1 | AU165: 1 | AV165: 1 | AW165: 0.25 | AX165: 1 | AY165: 0.25 | AZ165: 1 | BA165: 0.25 | BB165: 1 | BC165: 0.25 | BD165: 1 | BE165: 0 | BF165: 0 | BG165: 0 | BH165: 1 | BI165: 1 | BJ165: 0 | BK165: 0 | BL165: 0 | BM165: 0 | BN165: 0 | BO165: 0 | BP165: =+AVERAGE(BD165:BG165)/AU165 -> 0.25 | BQ165: 0.25 | BR165: 0.25 | BS165: 171250 | BT165: 171250 | BU165: 0 | BV165: 1 | BW165: - | BX165: 250000 | BY165: 0 | BZ165: 0 | CA165: 0 | CB165: - | CC165: 739914 | CD165: 0 | CE165: 0 | CF165: 0 | CG165: - | CH165: 885625 | CI165: 0 | CJ165: 0 | CK165: 0 | CL165: - | CM165: 2046789 | CN165: 171250 | CO165: 0 | CP165: 0.08366763746 | CQ165: - | CR165: 3, 10, 11 | CS165: Cultura | CT165: IMCT
AQ166: Crear 1 agenda cultural, artística, educativa y deportiva en el marco de celebración de los 400 años de la ciudad. | AR166: 0 | AS166: Número de agendas culturales, artísticas, educativas y deportivas creadas en el marco de celebración de los 400 años de la ciudad. | AT166: 0 | AU166: 1 | AV166: 0 | AW166: 0 | AX166: 0 | AY166: 0 | AZ166: 1 | BA166: 1 | BB166: 0 | BC166: =+BB166/AU166 -> 0 | BD166: 0 | BE166: 0 | BF166: 0 | BG166: 0 | BH166: - | BI166: - | BJ166: - | BK166: - | BL166: 0 | BM166: 0 | BN166: - | BO166: - | BP166: 0 | BQ166: 0 | BR166: 0 | BS166: 0 | BT166: 0 | BU166: 0 | BV166: - | BW166: - | BX166: 200000 | BY166: 0 | BZ166: 0 | CA166: 0 | CB166: - | CC166: 600000 | CD166: 0 | CE166: 0 | CF166: 0 | CG166: - | CH166: 0 | CI166: 0 | CJ166: 0 | CK166: - | CL166: - | CM166: 800000 | CN166: 0 | CO166: 0 | CP166: 0 | CQ166: - | CR166: 10, 11 | CS166: Cultura | CT166: IMCT
BD169: 2020 | BE169: 2021 | BF169: 2022 | BG169: 2023 | BH169: CA
AZ170: IMCT | BD170: =+AVERAGE(BI148:BI166) -> 0.8285714286 | BE170: =+AVERAGE(BK148:BK166) -> 0 | BF170: =+AVERAGE(BM148:BM166) -> 0 | BG170: =+AVERAGE(BO148:BO166) -> 0 | BH170: =+AVERAGE(BQ148:BQ166) -> 0.2044799499
AZ171: INDERBU | BD171: =+AVERAGE(BI98:BI100,BI139:BI146) -> 0.8848051948 | BE171: =+AVERAGE(BK98:BK100,BK139:BK146) -> 0 | BF171: =+AVERAGE(BM98:BM100,BM139:BM146) -> 0 | BG171: =+AVERAGE(BO98:BO100,BO139:BO146) -> 0 | BH171: =+AVERAGE(BQ98:BQ100,BQ139:BQ146) -> 0.238823491
AZ172: INVISBU | BD172: =+AVERAGE(BI134:BI137) -> 0.93125 | BE172: =+AVERAGE(BK134:BK137) -> 0 | BF172: =+AVERAGE(BM134:BM137) -> 0 | BG172: =+AVERAGE(BO134:BO137) -> 0 | BH172: =+AVERAGE(BQ134:BQ137) -> 0.1901763131
AZ173: ISABU | BD173: =+AVERAGE(BI47:BI48) -> 1 | BE173: =+AVERAGE(BK47:BK48) -> 0 | BF173: =+AVERAGE(BM47:BM48) -> 0 | BG173: =+AVERAGE(BO47:BO48) -> 0 | BH173: =+AVERAGE(BQ47:BQ48) -> 0.25
AZ174: Sec. Desarrollo Social | BD174: =+AVERAGE(BI80:BI97,BI101:BI111,BI113:BI132) -> 0.8583079967 | BE174: =+AVERAGE(BK80:BK97,BK101:BK111,BK113:BK132) -> 0 | BF174: =+AVERAGE(BM80:BM97,BM101:BM111,BM113:BM132) -> 0 | BG174: =+AVERAGE(BO80:BO97,BO101:BO111,BO113:BO132) -> 0 | BH174: =+AVERAGE(BQ80:BQ97,BQ101:BQ111,BQ113:BQ132) -> 0.1829808672
AZ175: Sec. Educación | BD175: =+AVERAGE(BI11:BI36) -> 0.9635597439 | BE175: =+AVERAGE(BK11:BK36) -> 0 | BF175: =+AVERAGE(BM11:BM36) -> 0 | BG175: =+AVERAGE(BO11:BO36) -> 0 | BH175: =+AVERAGE(BQ11:BQ36) -> 0.1985722178
AZ176: Sec. Salud y Ambiente | BD176: =+AVERAGE(BI38:BI46,BI50:BI78) -> 0.8537100478 | BE176: =+AVERAGE(BK38:BK46,BK50:BK78) -> 0 | BF176: =+AVERAGE(BM38:BM46,BM50:BM78) -> 0 | BG176: =+AVERAGE(BO38:BO46,BO50:BO78) -> 0 | BH176: =+AVERAGE(BQ38:BQ46,BQ50:BQ78) -> 0.1782237604

Sheet LÍNEA 2
B3: ALCALDÍA DE BUCARAMANGA
B4: PLAN DE DESARROLLO 2020 - 2023 "BUCARAMANGA, UNA CIUDAD DE OPORTUNIDADES"
B5: LÍNEA ESTRATÉGICA 2. BUCARAMANGA SOSTENIBLE: UNA REGIÓN CON FUTURO
B8: POND | C8: LÍNEA ESTRATÉGICA | D8: META DE BIENESTAR | E8: LÍNEA BASE | F8: RESULTADO CUATRIENIO | H8: META POR VIGENCIA | T8: LOGRO POR VIGENCIA | AB8: PORCENTAJE DE CUMPLIMIENTO | AM8: POND | AN8: COMPONENTE | AO8: POND | AP8: PROGRAMA | AQ8: META DE PRODUCTO | AR8: RUBRO PPTAL | AS8: INDICADOR DE PRODUCTO | BD8: LOGRO POR VIGENCIA | BH8: PORCENTAJE DE CUMPLIMIENTO | BS8: RECURSOS POR FUENTE DE FINANCIACIÓN PARA CADA VIGENCIA | CR8: ODS | CS8: SECTOR
BS9: 2020 | BX9: 2021 | CC9: 2022 | CH9: 2023 | CM9: 2020 - 2023
H10: 2020 | K10: 2021 | N10: 2022 | Q10: 2023 | T10: 2020 | V10: 2021 | X10: 2022 | Z10: 2023 | AB10: 2020 | AD10: 2021 | AF10: 2022 | AH10: 2023 | AJ10: 2020 - 2023 | AS10: NOMBRE INDICADOR | AT10: LÍNEA BASE | AU10: ESPERADO CUATRIENIO | AV10: 2020 | AX10: 2021 | AZ10: 2022 | BB10: 2023 | BD10: 2020 | BE10: 2021 | BF10: 2022 | BG10: 2023 | BH10: 2020 | BJ10: 2021 | BL10: 2022 | BN10: 2023 | BP10: 2020 - 2023 | BS10: RECURSOS PROGRAMADOS | BT10: RECURSOS EJECUTADOS | BU10: RECURSOS GESTIONADOS | BV10: PORCENTAJE EJECUCIÓN | BW10: NIVEL DE GESTIÓN | BX10: RECURSOS PROGRAMADOS | BY10: RECURSOS EJECUTADOS | BZ10: RECURSOS GESTIONADOS | CA10: PORCENTAJE EJECUCIÓN | CB10: NIVEL DE GESTIÓN | CC10: RECURSOS PROGRAMADOS | CD10: RECURSOS EJECUTADOS | CE10: RECURSOS GESTIONADOS | CF10: PORCENTAJE EJECUCIÓN | CG10: NIVEL DE GESTIÓN | CH10: RECURSOS PROGRAMADOS | CI10: RECURSOS EJECUTADOS | CJ10: RECURSOS GESTIONADOS | CK10: PORCENTAJE EJECUCIÓN | CL10: NIVEL DE GESTIÓN | CM10: RECURSOS PROGRAMADOS | CN10: RECURSOS EJECUTADOS | CO10: RECURSOS GESTIONADOS | CP10: PORCENTAJE EJECUCIÓN | CQ10: NIVEL DE GESTIÓN | CT10: RESPONSABLE
B11: 0.04838238622 | C11: 2. BUCARAMANGA SOSTENIBLE: UNA REGIÓN CON FUTURO | D11: Aumentar a 200 hectáreas las áreas de preservación de zonas de abastecimiento hídrica como factor de desarrollo económico y de bienestar social. | E11: 21 | F11: 200 | H11: 20 | K11: 80 | N11: 140 | Q11: 200 | AM11: 0.009266473118 | AN11: BUCARAMANGA, CIUDAD CON PLANIFICACIÓN AMBIENTAL Y TERRITORIAL EN EL MARCO DEL CAMBIO CLIMÁTICO | AO11: 0.8495019644 | AP11: PLANIFICACIÓN Y EDUCACIÓN AMBIENTAL | AQ11: Actualizar y mantener el Sistema de Gestión Ambiental Municipal - SIGAM de acuerdo a la Política Ambiental Municipal. | AR11: 0 | AS11: Número de Sistemas de Gestión Ambiental Municipal - SIGAM actualizados y mantenidos de acuerdo a la Política Ambiental Municipal. | AT11: 1 | AU11: 1 | AV11: 1 | AW11: 0.25 | AX11: 1 | AY11: 0.25 | AZ11: 1 | BA11: 0.25 | BB11: 1 | BC11: 0.25 | BD11: 0.5 | BE11: 0 | BF11: 0 | BG11: 0 | BH11: =IF(AV11=0," -",BD11/AV11) -> 0.5 | BI11: =IF(AV11=0," -",IF(BH11>100%,100%,BH11)) -> 0.5 | BJ11: =IF(AX11=0," -",BE11/AX11) -> 0 | BK11: =IF(AX11=0," -",IF(BJ11>100%,100%,BJ11)) -> 0 | BL11: =IF(AZ11=0," -",BF11/AZ11) -> 0 | BM11: =IF(AZ11=0," -",IF(BL11>100%,100%,BL11)) -> 0 | BN11: =IF(BB11=0," -",BG11/BB11) -> 0 | BO11: =IF(BB11=0," -",IF(BN11>100%,100%,BN11)) -> 0 | BP11: =+AVERAGE(BD11:BG11)/AU11 -> 0.125 | BQ11: =+IF(BP11>100%,100%,BP11) -> 0.125 | BR11: =+BQ11 -> 0.125 | BS11: 144421 | BT11: 120667 | BU11: 0 | BV11: =IF(BS11=0," -",BT11/BS11) -> 0.8355225348 | BW11: =IF(BU11=0," -",IF(BT11=0,100%,BU11/BT11)) -> - | BX11: 113000 | BY11: 0 | BZ11: 0 | CA11: =IF(BX11=0," -",BY11/BX11) -> 0 | CB11: =IF(BZ11=0," -",IF(BY11=0,100%,BZ11/BY11)) -> - | CC11: 263500 | CD11: 0 | CE11: 0 | CF11: =IF(CC11=0," -",CD11/CC11) -> 0 | CG11: =IF(CE11=0," -",IF(CD11=0,100%,CE11/CD11)) -> - | CH11: 240000 | CI11: 0 | CJ11: 0 | CK11: =IF(CH11=0," -",CI11/CH11) -> 0 | CL11: =IF(CJ11=0," -",IF(CI11=0,100%,CJ11/CI11)) -> - | CM11: =+BS11+BX11+CC11+CH11 -> 760921 | CN11: 120667 | CO11: 0 | CP11: =IF(CM11=0," -",CN11/CM11) -> 0.1585801943 | CQ11: =IF(CO11=0," -",IF(CN11=0,100%,CO11/CN11)) -> - | CR11: 3, 6, 11, 12, 13, 15, 16 | CS11: Ambiente y Desarrollo Sostenible | CT11: Sec. Salud y Ambiente
AQ12: Formular e implementar 1 estrategia de educación ambiental para los ciudadanos, las empresas e institutos descentralizados. | AR12: 0 | AS12: Número de estrategias de educación ambiental formulados e implementados para los ciudadanos, las empresas e institutos descentralizados. | AT12: 0 | AU12: 1 | AV12: 1 | AW12: 0.25 | AX12: 1 | AY12: 0.25 | AZ12: 1 | BA12: 0.25 | BB12: 1 | BC12: 0.25 | BD12: 0.5 | BE12: 0 | BF12: 0 | BG12: 0 | BH12: =IF(AV12=0," -",BD12/AV12) -> 0.5 | BI12: =IF(AV12=0," -",IF(BH12>100%,100%,BH12)) -> 0.5 | BJ12: =IF(AX12=0," -",BE12/AX12) -> 0 | BK12: =IF(AX12=0," -",IF(BJ12>100%,100%,BJ12)) -> 0 | BL12: =IF(AZ12=0," -",BF12/AZ12) -> 0 | BM12: =IF(AZ12=0," -",IF(BL12>100%,100%,BL12)) -> 0 | BN12: =IF(BB12=0," -",BG12/BB12) -> 0 | BO12: =IF(BB12=0," -",IF(BN12>100%,100%,BN12)) -> 0 | BP12: =+AVERAGE(BD12:BG12)/AU12 -> 0.125 | BQ12: =+IF(BP12>100%,100%,BP12) -> 0.125 | BR12: =+BQ12 -> 0.125 | BS12: 112000 | BT12: 18240 | BU12: 0 | BV12: =IF(BS12=0," -",BT12/BS12) -> 0.1628571429 | BW12: =IF(BU12=0," -",IF(BT12=0,100%,BU12/BT12)) -> - | BX12: 80000 | BY12: 0 | BZ12: 0 | CA12: =IF(BX12=0," -",BY12/BX12) -> 0 | CB12: =IF(BZ12=0," -",IF(BY12=0,100%,BZ12/BY12)) -> - | CC12: 100000 | CD12: 0 | CE12: 0 | CF12: =IF(CC12=0," -",CD12/CC12) -> 0 | CG12: =IF(CE12=0," -",IF(CD12=0,100%,CE12/CD12)) -> - | CH12: 90000 | CI12: 0 | CJ12: 0 | CK12: =IF(CH12=0," -",CI12/CH12) -> 0 | CL12: =IF(CJ12=0," -",IF(CI12=0,100%,CJ12/CI12)) -> - | CM12: 382000 | CN12: 18240 | CO12: 0 | CP12: =IF(CM12=0," -",CN12/CM12) -> 0.0477486911 | CQ12: =IF(CO12=0," -",IF(CN12=0,100%,CO12/CN12)) -> - | CR12: 12, 13 | CS12: Ambiente y Desarrollo Sostenible | CT12: Sec. Salud y Ambiente
AQ13: Formular e implementar 1 estrategia participativa de articulación regional interinstitucional e intergubernamental para generar escenarios de diálogo, planificación y financiación del desarrollo sostenible. | AR13: 0 | AS13: Número de estrategias participativas de articulación regional interinstitucional e intergubernamental formuladas e implementadas para generar escenarios de diálogo, planificación y financiación del desarrollo sostenible. | AT13: 0 | AU13: 1 | AV13: 0 | AW13: =+AV13/AU13 -> 0 | AX13: 1 | AY13: =+AX13/AU13 -> 1 | AZ13: 1 | BA13: =+AZ13/AU13 -> 1 | BB13: 1 | BC13: =+BB13/AU13 -> 1 | BD13: 0 | BE13: 0 | BF13: 0 | BG13: 0 | BH13: =IF(AV13=0," -",BD13/AV13) -> - | BI13: =IF(AV13=0," -",IF(BH13>100%,100%,BH13)) -> - | BJ13: =IF(AX13=0," -",BE13/AX13) -> 0 | BK13: =IF(AX13=0," -",IF(BJ13>100%,100%,BJ13)) -> 0 | BL13: =IF(AZ13=0," -",BF13/AZ13) -> 0 | BM13: =IF(AZ13=0," -",IF(BL13>100%,100%,BL13)) -> 0 | BN13: =IF(BB13=0," -",BG13/BB13) -> 0 | BO13: =IF(BB13=0," -",IF(BN13>100%,100%,BN13)) -> 0 | BP13: =+AVERAGE(BE13:BG13)/AU13 -> 0 | BQ13: =+IF(BP13>100%,100%,BP13) -> 0 | BR13: =+BQ13 -> 0 | BS13: 0 | BT13: 0 | BU13: 0 | BV13: =IF(BS13=0," -",BT13/BS13) -> - | BW13: =IF(BU13=0," -",IF(BT13=0,100%,BU13/BT13)) -> - | BX13: 10000 | BY13: 0 | BZ13: 0 | CA13: =IF(BX13=0," -",BY13/BX13) -> 0 | CB13: =IF(BZ13=0," -",IF(BY13=0,100%,BZ13/BY13)) -> - | CC13: 10000 | CD13: 0 | CE13: 0 | CF13: =IF(CC13=0," -",CD13/CC13) -> 0 | CG13: =IF(CE13=0," -",IF(CD13=0,100%,CE13/CD13)) -> - | CH13: 10000 | CI13: 0 | CJ13: 0 | CK13: =IF(CH13=0," -",CI13/CH13) -> 0 | CL13: =IF(CJ13=0," -",IF(CI13=0,100%,CJ13/CI13)) -> - | CM13: =+BS13+BX13+CC13+CH13 -> 30000 | CN13: =+BT13+BY13+CD13+CI13 -> 0 | CO13: =+BU13+BZ13+CE13+CJ13 -> 0 | CP13: =IF(CM13=0," -",CN13/CM13) -> 0 | CQ13: =IF(CO13=0," -",IF(CN13=0,100%,CO13/CN13)) -> - | CR13: 12, 13 | CS13: Ambiente y Desarrollo Sostenible | CT13: Sec. Salud y Ambiente
AQ14: Formular e implementar 1 Política Pública Ambiental de Cambio Climático y Transición Energética. | AR14: 0 | AS14: Número de Políticas Públicas Ambientales de Cambio Climático y Transición Energética formuladas e implementadas. | AT14: 0 | AU14: 1 | AV14: 1 | AW14: 0.25 | AX14: 1 | AY14: 0.25 | AZ14: 1 | BA14: 0.25 | BB14: 1 | BC14: 0.25 | BD14: 0 | BE14: 0 | BF14: 0 | BG14: 0 | BH14: 0 | BI14: 0 | BJ14: 0 | BK14: 0 | BL14: 0 | BM14: 0 | BN14: 0 | BO14: 0 | BP14: =+AVERAGE(BD14:BG14)/AU14 -> 0 | BQ14: 0 | BR14: 0 | BS14: 38154 | BT14: 0 | BU14: 0 | BV14: 0 | BW14: - | BX14: 20000 | BY14: 0 | BZ14: 0 | CA14: 0 | CB14: - | CC14: 0 | CD14: 0 | CE14: 0 | CF14: - | CG14: - | CH14: 0 | CI14: 0 | CJ14: 0 | CK14: - | CL14: - | CM14: 58154 | CN14: 0 | CO14: 0 | CP14: 0 | CQ14: - | CR14: 12, 13 | CS14: Ambiente y Desarrollo Sostenible | CT14: Sec. Salud y Ambiente
AO15: 0.1504980356 | AP15: CALIDAD Y CONTROL DEL MEDIO AMBIENTE | AQ15: Formular e implementar 1 estrategia para incentivar tecnologías limpias y buenas prácticas en las fuentes fijas y móviles, descontaminación de la polución y ruido ambiental con la articulación de la autoridad ambiental correspondiente, sector empresarial, académico y ciudadanía en general. | AR15: 0 | AS15: Número de estrategias formuladas e implementadas para incentivar tecnologías limpias y buenas prácticas en las fuentes fijas y móviles, descontaminación de la polución y ruido ambiental con la articulación de la autoridad ambiental correspondiente, sector empresarial, académico y ciudadanía en general. | AT15: 0 | AU15: 1 | AV15: 1 | AW15: 0.25 | AX15: 1 | AY15: 0.25 | AZ15: 1 | BA15: 0.25 | BB15: 1 | BC15: 0.25 | BD15: 0.3 | BE15: 0 | BF15: 0 | BG15: 0 | BH15: 0.3 | BI15: 0.3 | BJ15: 0 | BK15: 0 | BL15: 0 | BM15: 0 | BN15: 0 | BO15: 0 | BP15: =+AVERAGE(BD15:BG15)/AU15 -> 0.075 | BQ15: 0.075 | BR15: 0.075 | BS15: 50000 | BT15: 27733 | BU15: 0 | BV15: 0.55466 | BW15: - | BX15: 50000 | BY15: 0 | BZ15: 0 | CA15: 0 | CB15: - | CC15: 50000 | CD15: 0 | CE15: 0 | CF15: 0 | CG15: - | CH15: 50000 | CI15: 0 | CJ15: 0 | CK15: 0 | CL15: - | CM15: 200000 | CN15: 27733 | CO15: 0 | CP15: 0.138665 | CQ15: - | CR15: 3, 11, 12, 13 | CS15: Ambiente y Desarrollo Sostenible | CT15: Sec. Salud y Ambiente
AM17: 0.7101545031 | AN17: BUCARAMANGA UNA ECO-CIUDAD | AO17: 0.5943233038 | AP17: GOBERNANZA DEL AGUA, NUESTRA AGUA, NUESTRA VIDA | AQ17: Formular e implementar 1 estrategia de reforestación y conservación de los predios adquiridos para la preservación de las cuencas hídricas que abastecen al municipio de Bucaramanga. | AR17: 0 | AS17: Número de estrategias de reforestación y conservación de los predios adquiridos formuladas e implementadas para la preservación de las cuencas hídricas que abastecen al municipio de Bucaramanga. | AT17: 0 | AU17: 1 | AV17: 1 | AW17: 0.25 | AX17: 1 | AY17: 0.25 | AZ17: 1 | BA17: 0.25 | BB17: 1 | BC17: 0.25 | BD17: 0.2 | BE17: 0 | BF17: 0 | BG17: 0 | BH17: 0.2 | BI17: 0.2 | BJ17: 0 | BK17: 0 | BL17: 0 | BM17: 0 | BN17: 0 | BO17: 0 | BP17: =+AVERAGE(BD17:BG17)/AU17 -> 0.05 | BQ17: 0.05 | BR17: 0.05 | BS17: 563829 | BT17: 0 | BU17: 0 | BV17: 0 | BW17: - | BX17: 2479000 | BY17: 0 | BZ17: 0 | CA17: 0 | CB17: - | CC17: 3686000 | CD17: 0 | CE17: 0 | CF17: 0 | CG17: - | CH17: 3881000 | CI17: 0 | CJ17: 0 | CK17: 0 | CL17: - | CM17: 10609829 | CN17: 0 | CO17: 0 | CP17: 0 | CQ17: - | CR17: 6, 15 | CS17: Ambiente y Desarrollo Sostenible | CT17: Sec. Salud y Ambiente
D18: Aumentar a 0,5 la calificación del Índice de Calidad Ambiental Urbana - ICAU. | E18: 0.29 | F18: 0.5 | H18: 0.29 | K18: 0.35 | N18: 0.4 | Q18: 0.5 | AQ18: Formular e implementar 1 estrategia de incidencia social, comunicacional, interinstitucional, jurídica, y técnica (estudios hidrológicos e hidrogeológicos, entre otros) vinculando a gremios, academia, sociedad civil, entidades territoriales y autoridades ambientales para la defensa y protección de la alta montaña de Santurbán ante la amenaza del cambio climático y los impactos de actividades antrópicas, como los proyectos de megaminería, en dichos ecosistemas estratégicos. | AR18: 0 | AS18: Número de estrategias de incidencia social, comunicacional, interinstitucional, jurídica, y técnica (estudios hidrológicos e hidrogeológicos, entre otros) vinculando a gremios, academia, sociedad civil, entidades territoriales y autoridades ambientales formuladas e implementadas para la defensa y protección de la alta montaña de Santurbán ante la amenaza del cambio climático y los impactos de actividades antrópicas, como los proyectos de megaminería, en dichos ecosistemas estratégicos. | AT18: 0 | AU18: 1 | AV18: 1 | AW18: 0.25 | AX18: 1 | AY18: 0.25 | AZ18: 1 | BA18: 0.25 | BB18: 1 | BC18: 0.25 | BD18: 1 | BE18: 0 | BF18: 0 | BG18: 0 | BH18: 1 | BI18: 1 | BJ18: 0 | BK18: 0 | BL18: 0 | BM18: 0 | BN18: 0 | BO18: 0 | BP18: =+AVERAGE(BD18:BG18)/AU18 -> 0.25 | BQ18: 0.25 | BR18: 0.25 | BS18: 215000 | BT18: 115734 | BU18: 0 | BV18: 0.5382976744 | BW18: - | BX18: 200000 | BY18: 0 | BZ18: 0 | CA18: 0 | CB18: - | CC18: 90000 | CD18: 0 | CE18: 0 | CF18: 0 | CG18: - | CH18: 90000 | CI18: 0 | CJ18: 0 | CK18: 0 | CL18: - | CM18: 595000 | CN18: 115734 | CO18: 0 | CP18: 0.1945109244 | CQ18: - | CR18: 6, 15 | CS18: Ambiente y Desarrollo Sostenible | CT18: Sec. Salud y Ambiente
AQ19: Realizar 1 estudio para identificar conflictos de uso del suelo y esquemas potenciales de pago por servicios ambientales en ecosistemas estratégicos abastecedores de cuencas hídrica del municipio de Bucaramanga. | AR19: 0 | AS19: Número de estudios realizados para identificar conflictos de uso del suelo y esquemas potenciales de pago por servicios ambientales en ecosistemas estratégicos abastecedores de cuencas hídrica del municipio de Bucaramanga. | AT19: 0 | AU19: 1 | AV19: 0 | AW19: 0 | AX19: 0 | AY19: 0.33 | AZ19: 1 | BA19: 0.33 | BB19: 1 | BC19: 0.34 | BD19: 0 | BE19: 0 | BF19: 0 | BG19: 0 | BH19: - | BI19: - | BJ19: - | BK19: - | BL19: 0 | BM19: 0 | BN19: 0 | BO19: 0 | BP19: =+AVERAGE(BE19:BG19)/AU19 -> 0 | BQ19: 0 | BR19: 0 | BS19: 0 | BT19: 0 | BU19: 0 | BV19: - | BW19: - | BX19: 0 | BY19: 0 | BZ19: 0 | CA19: - | CB19: - | CC19: 1000000 | CD19: 0 | CE19: 0 | CF19: 0 | CG19: - | CH19: 1000000 | CI19: 0 | CJ19: 0 | CK19: 0 | CL19: - | CM19: 2000000 | CN19: 0 | CO19: 0 | CP19: 0 | CQ19: - | CR19: 6, 16 | CS19: Ambiente y Desarrollo Sostenible | CT19: Sec. Salud y Ambiente
AQ20: Formular e implementar 1 programa de alternativas socioeconómicas de desarrollo sustentable para la provincia de Soto Norte en el marco de la corresponsabilidad socioambiental. | AR20: 0 | AS20: Número de programas de alternativas socioeconómicas de desarrollo sustentable formulados e implementados para la provincia de Soto Norte en el marco de la corresponsabilidad socioambiental. | AT20: 0 | AU20: 1 | AV20: 0 | AW20: 0 | AX20: 1 | AY20: 0.33 | AZ20: 1 | BA20: 0.33 | BB20: 1 | BC20: 0.34 | BD20: 0 | BE20: 0 | BF20: 0 | BG20: 0 | BH20: - | BI20: - | BJ20: 0 | BK20: 0 | BL20: 0 | BM20: 0 | BN20: 0 | BO20: 0 | BP20: =+AVERAGE(BE20:BG20)/AU20 -> 0 | BQ20: 0 | BR20: 0 | BS20: 0 | BT20: 0 | BU20: 0 | BV20: - | BW20: - | BX20: 50000 | BY20: 0 | BZ20: 0 | CA20: 0 | CB20: - | CC20: 10000 | CD20: 0 | CE20: 0 | CF20: 0 | CG20: - | CH20: 10000 | CI20: 0 | CJ20: 0 | CK20: 0 | CL20: - | CM20: 70000 | CN20: 0 | CO20: 0 | CP20: 0 | CQ20: - | CR20: 6, 17 | CS20: Ambiente y Desarrollo Sostenible | CT20: Sec. Salud y Ambiente
AQ21: Repotenciar 1 sistema de alcantarillado sanitario y pluvial. | AR21: 0 | AS21: Porcentaje de avance en la repotenciación del alcantarillado sanitario y pluvial. | AT21: 0 | AU21: 1 | AV21: 0 | AW21: 0 | AX21: 0.45 | AY21: 0.45 | AZ21: 0.45 | BA21: 0.45 | BB21: 0.1 | BC21: 0.1 | BD21: 0 | BE21: 0 | BF21: 0 | BG21: 0 | BH21: - | BI21: - | BJ21: 0 | BK21: 0 | BL21: 0 | BM21: 0 | BN21: 0 | BO21: 0 | BP21: =+SUM(BD21:BG21)/AU21 -> 0 | BQ21: 0 | BR21: 0 | BS21: 0 | BT21: 0 | BU21: 0 | BV21: - | BW21: - | BX21: 13500000 | BY21: 0 | BZ21: 0 | CA21: 0 | CB21: - | CC21: 13500000 | CD21: 0 | CE21: 0 | CF21: 0 | CG21: - | CH21: 3000000 | CI21: 0 | CJ21: 0 | CK21: 0 | CL21: - | CM21: 30000000 | CN21: 0 | CO21: 0 | CP21: 0 | CQ21: - | CR21: 11, 7 | CS21: Ambiente y Desarrollo Sostenible | CT21: Sec. Infraestructura
AQ22: Realizar los estudios y diseños del Sistema de Tratamiento de Aguas Residuales Bucaramanga metropolitana. | AR22: 0 | AS22: Porcentaje de avance en la realización de los estudios y diseños del Sistema de Tratamiento de Aguas Residuales Bucaramanga metropolitana. | AT22: 0 | AU22: 1 | AV22: 0 | AW22: 0 | AX22: 0.2 | AY22: 0.2 | AZ22: 0.3 | BA22: 0.3 | BB22: 0.5 | BC22: 0.5 | BD22: 0.14 | BE22: 0 | BF22: 0 | BG22: 0 | BH22: - | BI22: - | BJ22: 0 | BK22: 0 | BL22: 0 | BM22: 0 | BN22: 0 | BO22: 0 | BP22: =+SUM(BD22:BG22)/AU22 -> 0.14 | BQ22: 0.14 | BR22: 0.14 | BS22: 2040816 | BT22: 2040816 | BU22: 0 | BV22: 1 | BW22: - | BX22: 3000000 | BY22: 0 | BZ22: 0 | CA22: 0 | CB22: - | CC22: 4000000 | CD22: 0 | CE22: 0 | CF22: 0 | CG22: - | CH22: 8000000 | CI22: 0 | CJ22: 0 | CK22: 0 | CL22: - | CM22: 17040816 | CN22: 2040816 | CO22: 0 | CP22: 0.1197604622 | CQ22: - | CR22: 11, 6 | CS22: Ambiente y Desarrollo Sostenible | CT22: Sec. Infraestructura
AO23: 0.01011345824 | AP23: CRECIMIENTO VERDE, CIUDAD BIODIVERSA | AQ23: Formular e implementar 1 estrategia para recuperar y rehabilitar corredores de conectividad ecosistémica para fortalecer la estructura ecológica urbana (cerros orientales y escarpa occidental) por medio del manejo integral de arbolado y zonas verdes. | AR23: 0 | AS23: Número de estrategias formuladas e implementadas para recuperar y rehabilitar corredores de conectividad ecosistémica para fortalecer la estructura ecológica urbana (cerros orientales y escarpa occidental) por medio del manejo integral de arbolado y zonas verdes. | AT23: 0 | AU23: 1 | AV23: 1 | AW23: 0.25 | AX23: 1 | AY23: 0.25 | AZ23: 1 | BA23: 0.25 | BB23: 1 | BC23: 0.25 | BD23: 0 | BE23: 0 | BF23: 0 | BG23: 0 | BH23: 0 | BI23: 0 | BJ23: 0 | BK23: 0 | BL23: 0 | BM23: 0 | BN23: 0 | BO23: 0 | BP23: =+AVERAGE(BD23:BG23)/AU23 -> 0 | BQ23: 0 | BR23: 0 | BS23: 40000 | BT23: 0 | BU23: 0 | BV23: 0 | BW23: - | BX23: 500000 | BY23: 0 | BZ23: 0 | CA23: 0 | CB23: - | CC23: 200000 | CD23: 0 | CE23: 0 | CF23: 0 | CG23: - | CH23: 200000 | CI23: 0 | CJ23: 0 | CK23: 0 | CL23: - | CM23: 940000 | CN23: 0 | CO23: 0 | CP23: 0 | CQ23: - | CR23: 11, 15 | CS23: Ambiente y Desarrollo Sostenible | CT23: Sec. Salud y Ambiente
D24: Aumentar al 7,5% el aprovechamiento de residuos sólidos. | E24: 0.025 | F24: 0.075 | H24: 0.025 | K24: 0.03 | N24: 0.045 | Q24: 0.075 | AQ24: Implementar 1 piloto para la gestión de huertas urbanas sostenibles. | AR24: 0 | AS24: Número de piloto para la gestión de huertas urbanas sostenibles implementadas. | AT24: 0 | AU24: 1 | AV24: 0 | AW24: 0 | AX24: 1 | AY24: 0.33 | AZ24: 1 | BA24: 0.33 | BB24: 1 | BC24: 0.34 | BD24: 0 | BE24: 0 | BF24: 0 | BG24: 0 | BH24: - | BI24: - | BJ24: 0 | BK24: 0 | BL24: 0 | BM24: 0 | BN24: 0 | BO24: 0 | BP24: =+AVERAGE(BE24:BG24)/AU24 -> 0 | BQ24: 0 | BR24: 0 | BS24: 0 | BT24: 0 | BU24: 0 | BV24: - | BW24: - | BX24: 50000 | BY24: 0 | BZ24: 0 | CA24: 0 | CB24: - | CC24: 20000 | CD24: 0 | CE24: 0 | CF24: 0 | CG24: - | CH24: 20000 | CI24: 0 | CJ24: 0 | CK24: 0 | CL24: - | CM24: 90000 | CN24: 0 | CO24: 0 | CP24: 0 | CQ24: - | CR24: 11, 15 | CS24: Ambiente y Desarrollo Sostenible | CT24: Sec. Salud y Ambiente
AO25: 0.3955632379 | AP25: MANEJO INTEGRAL DE RESIDUOS SÓLIDOS, IMPACTO POSITIVO EN LA CALIDAD DE VIDA | AQ25: Tratar 6.400 tonaladas de residuos en la planta de compostaje. | AR25: 5410702 5410704 | AS25: Número de toneladas de residuos tratados en la planta de compostaje. | AT25: 1400 | AU25: 6400 | AV25: 900 | AW25: 0.140625 | AX25: 1450 | AY25: 0.2265625 | AZ25: 1850 | BA25: 0.2890625 | BB25: 2200 | BC25: 0.34375 | BD25: 1749.9 | BE25: 0 | BF25: 0 | BG25: 0 | BH25: 1.944333333 | BI25: 1 | BJ25: 0 | BK25: 0 | BL25: 0 | BM25: 0 | BN25: 0 | BO25: 0 | BP25: =+SUM(BD25:BG25)/AU25 -> 0.273421875 | BQ25: 0.273421875 | BR25: 0.273421875 | BS25: 335000 | BT25: 23544.66 | BU25: 0 | BV25: 0.07028256716 | BW25: - | BX25: 345050 | BY25: 0 | BZ25: 0 | CA25: 0 | CB25: - | CC25: 355401.5 | CD25: 0 | CE25: 0 | CF25: 0 | CG25: - | CH25: 366063.545 | CI25: 0 | CJ25: 0 | CK25: 0 | CL25: - | CM25: 1401515.045 | CN25: 23544.66 | CO25: 0 | CP25: 0.01679943436 | CQ25: - | CR25: 11, 12 | CS25: Ambiente y Desarrollo Sostenible | CT25: EMAB
AQ26: Clausurar 4 hectáreas en el sitio de disposicion final El Carrasco. | AR26: 5410706 | AS26: Número de hectáreas clausuradas en el sitio de disposición final El Carrasco. | AT26: 1.25 | AU26: 4 | AV26: 0.15 | AW26: 0.0375 | AX26: 1.18 | AY26: 0.295 | AZ26: 1.33 | BA26: 0.3325 | BB26: 1.34 | BC26: 0.335 | BD26: 0.089 | BE26: 0 | BF26: 0 | BG26: 0 | BH26: 0.5933333333 | BI26: 0.5933333333 | BJ26: 0 | BK26: 0 | BL26: 0 | BM26: 0 | BN26: 0 | BO26: 0 | BP26: =+SUM(BD26:BG26)/AU26 -> 0.02225 | BQ26: 0.02225 | BR26: 0.02225 | BS26: 4708526.49 | BT26: 1244749.249 | BU26: 0 | BV26: 0.2643606767 | BW26: - | BX26: 4849781.78 | BY26: 0 | BZ26: 0 | CA26: 0 | CB26: - | CC26: 4995275.233 | CD26: 0 | CE26: 0 | CF26: 0 | CG26: - | CH26: 5145133.49 | CI26: 0 | CJ26: 0 | CK26: 0 | CL26: - | CM26: 19698716.99 | CN26: 1244749.249 | CO26: 0 | CP26: 0.06318935643 | CQ26: - | CR26: 11 | CS26: Ambiente y Desarrollo Sostenible | CT26: EMAB
AQ27: Reciclar 5.000 toneladas en la ruta selectiva de la EMAB. | AR27: 321919010 | AS27: Número de toneladas recicladas en la ruta selectiva de la EMAB. | AT27: 0 | AU27: 5000 | AV27: 800 | AW27: 0.16 | AX27: 1400 | AY27: 0.28 | AZ27: 1400 | BA27: 0.28 | BB27: 1400 | BC27: 0.28 | BD27: 571 | BE27: 0 | BF27: 0 | BG27: 0 | BH27: 0.71375 | BI27: 0.71375 | BJ27: 0 | BK27: 0 | BL27: 0 | BM27: 0 | BN27: 0 | BO27: 0 | BP27: =+SUM(BD27:BG27)/AU27 -> 0.1142 | BQ27: 0.1142 | BR27: 0.1142 | BS27: 934020 | BT27: 833077.425 | BU27: 0 | BV27: 0.8919267521 | BW27: - | BX27: 962040.6 | BY27: 0 | BZ27: 0 | CA27: 0 | CB27: - | CC27: 990901.818 | CD27: 0 | CE27: 0 | CF27: 0 | CG27: - | CH27: 1020628.873 | CI27: 0 | CJ27: 0 | CK27: 0 | CL27: - | CM27: 3907591.291 | CN27: 833077.425 | CO27: 0 | CP27: 0.2131946161 | CQ27: - | CR27: 11, 12 | CS27: Ambiente y Desarrollo Sostenible | CT27: EMAB
AQ28: Formular e implementar 1 estrategia de fortalecimiento operativo de la EMAB. | AR28: 5410701 54118 5411302 5411301 | AS28: Número de estrategias de fortalecimiento operativo de la EMAB formulados e implementados. | AT28: 0 | AU28: 1 | AV28: 1 | AW28: 0.25 | AX28: 1 | AY28: 0.25 | AZ28: 1 | BA28: 0.25 | BB28: 1 | BC28: 0.25 | BD28: 1 | BE28: 0 | BF28: 0 | BG28: 0 | BH28: 1 | BI28: 1 | BJ28: 0 | BK28: 0 | BL28: 0 | BM28: 0 | BN28: 0 | BO28: 0 | BP28: =+AVERAGE(BD28:BG28)/AU28 -> 0.25 | BQ28: 0.25 | BR28: 0.25 | BS28: 936472.1 | BT28: 563424.758 | BU28: 0 | BV28: 0.6016460693 | BW28: - | BX28: 964566.16 | BY28: 0 | BZ28: 0 | CA28: 0 | CB28: - | CC28: 993503.1448 | CD28: 0 | CE28: 0 | CF28: 0 | CG28: - | CH28: 1023308.239 | CI28: 0 | CJ28: 0 | CK28: 0 | CL28: - | CM28: 3917849.644 | CN28: 563424.758 | CO28: 0 | CP28: 0.1438096939 | CQ28: - | CR28: 11, 12 | CS28: Ambiente y Desarrollo Sostenible | CT28: EMAB
AQ29: Actualizar e implementar el Plan de Gestión Integral de Residuos Sólidos - PGIRS. | AR29: 0 | AS29: Número de Planes de Gestión Integral de Residuos Sólidos - PGIRS actualizados e implementados. | AT29: 1 | AU29: 1 | AV29: 1 | AW29: 0.25 | AX29: 1 | AY29: 0.25 | AZ29: 1 | BA29: 0.25 | BB29: 1 | BC29: 0.25 | BD29: 0.6 | BE29: 0 | BF29: 0 | BG29: 0 | BH29: 0.6 | BI29: 0.6 | BJ29: 0 | BK29: 0 | BL29: 0 | BM29: 0 | BN29: 0 | BO29: 0 | BP29: =+AVERAGE(BD29:BG29)/AU29 -> 0.15 | BQ29: 0.15 | BR29: 0.15 | BS29: 3784092 | BT29: 3551990 | BU29: 0 | BV29: 0.9386637534 | BW29: - | BX29: 2293941 | BY29: 0 | BZ29: 0 | CA29: 0 | CB29: - | CC29: 2743441 | CD29: 0 | CE29: 0 | CF29: 0 | CG29: - | CH29: 2566941 | CI29: 0 | CJ29: 0 | CK29: 0 | CL29: - | CM29: 11388415 | CN29: 3551990 | CO29: 0 | CP29: 0.3118950267 | CQ29: - | CR29: 12 | CS29: Ambiente y Desarrollo Sostenible | CT29: Sec. Salud y Ambiente
D31: Reducir a 475 la tasa de personas afectadas a causa de eventos recurrentes. | E31: 524.5 | F31: 475 | H31: 515.5 | K31: 500 | N31: 485 | Q31: 475 | AM31: 0.2805790238 | AN31: BUCARAMANGA GESTIONA EL RIESGO DE DESASTRE Y SE ADAPTA AL PROCESO DE CAMBIO CLIMÁTICO | AO31: 0.0176208627 | AP31: CONOCIMIENTO DEL RIESGO Y ADAPTACIÓN AL CAMBIO CLIMÁTICO | AQ31: Actualizar e implementar el Plan Municipal de Gestión de Riesgo y su Adaptación al Cambio Climático y la Política Pública de Gestión de Riesgo y Adaptación al Cambio Climático. | AR31: 0 | AS31: Número de Planes Municipales de Gestión de Riesgo y su Adaptación al Cambio Político y Políticas Públicas de de Gestión de Riesgo y Adaptación al Cambio Climático actualizados e implementados. | AT31: 2 | AU31: 2 | AV31: 0 | AW31: 0 | AX31: 0 | AY31: 0 | AZ31: 2 | BA31: 1 | BB31: 2 | BC31: 1 | BD31: 0.2 | BE31: 0 | BF31: 0 | BG31: 0 | BH31: - | BI31: - | BJ31: - | BK31: - | BL31: 0 | BM31: 0 | BN31: 0 | BO31: 0 | BP31: =+SUM(BD31:BG31)/AU31 -> 0.1 | BQ31: 0.1 | BR31: 0.1 | BS31: 64296 | BT31: 23067 | BU31: 0 | BV31: 0.358762598 | BW31: - | BX31: 0 | BY31: 0 | BZ31: 0 | CA31: - | CB31: - | CC31: 60000 | CD31: 0 | CE31: 0 | CF31: 0 | CG31: - | CH31: 30000 | CI31: 0 | CJ31: 0 | CK31: 0 | CL31: - | CM31: 154296 | CN31: 23067 | CO31: 0 | CP31: 0.1494983668 | CQ31: - | CR31: 13 | CS31: Ambiente y Desarrollo Sostenible | CT31: Sec. Interior
AQ32: Realizar 9 estudios en áreas o zonas con situaciones de riesgo. | AR32: 0 | AS32: Número de estudios en áreas o zonas con situaciones de riesgo realizados. | AT32: 12 | AU32: 9 | AV32: 0 | AW32: 0 | AX32: 3 | AY32: 0.3333333333 | AZ32: 3 | BA32: 0.3333333333 | BB32: 3 | BC32: 0.3333333333 | BD32: 0 | BE32: 0 | BF32: 0 | BG32: 0 | BH32: - | BI32: - | BJ32: 0 | BK32: 0 | BL32: 0 | BM32: 0 | BN32: 0 | BO32: 0 | BP32: 0 | BQ32: 0 | BR32: 0 | BS32: 0 | BT32: 0 | BU32: 0 | BV32: - | BW32: - | BX32: 100542 | BY32: 0 | BZ32: 0 | CA32: 0 | CB32: - | CC32: 67951 | CD32: 0 | CE32: 0 | CF32: 0 | CG32: - | CH32: 100541 | CI32: 0 | CJ32: 0 | CK32: 0 | CL32: - | CM32: 269034 | CN32: 0 | CO32: 0 | CP32: 0 | CQ32: - | CR32: 13 | CS32: Interior | CT32: Sec. Interior
AQ33: Adquirir 5 Sistema de Alertas Tempranas e Innovación para la gestión del riesgo. | AR33: 0 | AS33: Número de Sistemas de Alertas Tempranas e Innovación adquiridos para la gestión del riesgo. | AT33: 1 | AU33: 5 | AV33: 0 | AW33: 0 | AX33: 0 | AY33: 0 | AZ33: 0 | BA33: 0 | BB33: 5 | BC33: 1 | BD33: 0 | BE33: 0 | BF33: 0 | BG33: 0 | BH33: - | BI33: - | BJ33: - | BK33: - | BL33: - | BM33: - | BN33: 0 | BO33: 0 | BP33: 0 | BQ33: 0 | BR33: 0 | BS33: 0 | BT33: 0 | BU33: 0 | BV33: - | BW33: - | BX33: 0 | BY33: 0 | BZ33: 0 | CA33: - | CB33: - | CC33: 0 | CD33: 0 | CE33: 0 | CF33: - | CG33: - | CH33: 350000 | CI33: 0 | CJ33: 0 | CK33: 0 | CL33: - | CM33: 350000 | CN33: 0 | CO33: 0 | CP33: 0 | CQ33: - | CR33: 13 | CS33: Interior | CT33: Sec. Interior
AO34: 0.04694529407 | AP34: REDUCCIÓN, MITIGACIÓN DEL RIESGO Y ADAPTACIÓN AL CAMBIO CLIMÁTICO | AQ34: Formular e implementar 1 estrategia de respuesta a emergencia - EMRE que contenga el protocolo de atención de emergencias por calidad del aire. | AR34: 0 | AS34: Número de estrategias de respuesta a emergencia - EMRE que contenga el protocolo de atención de emergencias por calidad del aire formuladas e implementadas. | AT34: 1 | AU34: 1 | AV34: 0 | AW34: 0 | AX34: 1 | AY34: 0.33 | AZ34: 1 | BA34: 0.33 | BB34: 1 | BC34: 0.34 | BD34: 0 | BE34: 0 | BF34: 0 | BG34: 0 | BH34: - | BI34: - | BJ34: 0 | BK34: 0 | BL34: 0 | BM34: 0 | BN34: 0 | BO34: 0 | BP34: =+AVERAGE(BE34:BG34)/AU34 -> 0 | BQ34: 0 | BR34: 0 | BS34: 0 | BT34: 0 | BU34: 0 | BV34: - | BW34: - | BX34: 20000 | BY34: 0 | BZ34: 0 | CA34: 0 | CB34: - | CC34: 20000 | CD34: 0 | CE34: 0 | CF34: 0 | CG34: - | CH34: 20000 | CI34: 0 | CJ34: 0 | CK34: 0 | CL34: - | CM34: 60000 | CN34: 0 | CO34: 0 | CP34: 0 | CQ34: - | CR34: 13 | CS34: Interior | CT34: Sec. Interior
AQ35: Fortalecer 30 instancias sociales del Sistema Municipal de Gestión de Riesgo. | AR35: 0 | AS35: Número instancias sociales fortalecidas del Sistema Municipal de Gestión de Riesgo. | AT35: 20 | AU35: 30 | AV35: 0 | AW35: 0 | AX35: 10 | AY35: 0.3333333333 | AZ35: 10 | BA35: 0.3333333333 | BB35: 10 | BC35: 0.3333333333 | BD35: 0 | BE35: 0 | BF35: 0 | BG35: 0 | BH35: - | BI35: - | BJ35: 0 | BK35: 0 | BL35: 0 | BM35: 0 | BN35: 0 | BO35: 0 | BP35: 0 | BQ35: 0 | BR35: 0 | BS35: 0 | BT35: 0 | BU35: 0 | BV35: - | BW35: - | BX35: 40000 | BY35: 0 | BZ35: 0 | CA35: 0 | CB35: - | CC35: 40000 | CD35: 0 | CE35: 0 | CF35: 0 | CG35: - | CH35: 54000 | CI35: 0 | CJ35: 0 | CK35: 0 | CL35: - | CM35: 134000 | CN35: 0 | CO35: 0 | CP35: 0 | CQ35: - | CR35: 13 | CS35: Interior | CT35: Sec. Interior
AQ36: Intervenir estratégicamente 6 zonas de riesgo de desastre. | AR36: 0 | AS36: Número de zonas de riesgo de desastre intervenidas estratégicamente. | AT36: 12 | AU36: 6 | AV36: 0 | AW36: 0 | AX36: 2 | AY36: 0.3333333333 | AZ36: 2 | BA36: 0.3333333333 | BB36: 2 | BC36: 0.3333333333 | BD36: 0 | BE36: 0 | BF36: 0 | BG36: 0 | BH36: - | BI36: - | BJ36: 0 | BK36: 0 | BL36: 0 | BM36: 0 | BN36: 0 | BO36: 0 | BP36: 0 | BQ36: 0 | BR36: 0 | BS36: 0 | BT36: 0 | BU36: 0 | BV36: - | BW36: - | BX36: 50000 | BY36: 0 | BZ36: 0 | CA36: 0 | CB36: - | CC36: 50000 | CD36: 0 | CE36: 0 | CF36: 0 | CG36: - | CH36: 50000 | CI36: 0 | CJ36: 0 | CK36: 0 | CL36: - | CM36: 150000 | CN36: 0 | CO36: 0 | CP36: 0 | CQ36: - | CR36: 13 | CS36: Interior | CT36: Sec. Interior
D37: Mantener en 9 minutos el tiempo de respuesta a los incidentes contraincendio, rescate y materiales peligrosos. | E37: 9 | F37: 9 | H37: 9 | K37: 9 | N37: 9 | Q37: 9 | AQ37: Realizar 1 inventario municipal de asentamientos humanos localizados en zonas de alto riesgo no mitigable. | AR37: 0 | AS37: Número de inventarios municipales de asentamientos humanos localizados en zonas de alto riesgo no mitigable realizados. | AT37: 0 | AU37: 1 | AV37: 0 | AW37: 0 | AX37: 0 | AY37: 0 | AZ37: 0 | BA37: 0 | BB37: 1 | BC37: 1 | BD37: 0 | BE37: 0 | BF37: 0 | BG37: 0 | BH37: - | BI37: - | BJ37: - | BK37: - | BL37: - | BM37: - | BN37: 0 | BO37: 0 | BP37: 0 | BQ37: 0 | BR37: 0 | BS37: 0 | BT37: 0 | BU37: 0 | BV37: - | BW37: - | BX37: 0 | BY37: 0 | BZ37: 0 | CA37: - | CB37: - | CC37: 0 | CD37: 0 | CE37: 0 | CF37: - | CG37: - | CH37: 300000 | CI37: 0 | CJ37: 0 | CK37: 0 | CL37: - | CM37: 300000 | CN37: 0 | CO37: 0 | CP37: 0 | CQ37: - | CR37: 13 | CS37: Interior | CT37: Sec. Interior
AQ38: Mantener la atención al 100% de las familias en emergencias naturales y antrópicas. | AR38: 0 | AS38: Porcentaje de familias atendidas en emergencias naturales y antrópicas. | AT38: 1 | AU38: 1 | AV38: 1 | AW38: 0.25 | AX38: 1 | AY38: 0.25 | AZ38: 1 | BA38: 0.25 | BB38: 1 | BC38: 0.25 | BD38: 1 | BE38: 0 | BF38: 0 | BG38: 0 | BH38: 1 | BI38: 1 | BJ38: 0 | BK38: 0 | BL38: 0 | BM38: 0 | BN38: 0 | BO38: 0 | BP38: =+AVERAGE(BD38:BG38)/AU38 -> 0.25 | BQ38: 0.25 | BR38: 0.25 | BS38: 290000 | BT38: 290000 | BU38: 0 | BV38: 1 | BW38: - | BX38: 145000 | BY38: 0 | BZ38: 0 | CA38: 0 | CB38: - | CC38: 80000 | CD38: 0 | CE38: 0 | CF38: 0 | CG38: - | CH38: 450000 | CI38: 0 | CJ38: 0 | CK38: 0 | CL38: - | CM38: 965000 | CN38: 290000 | CO38: 0 | CP38: 0.3005181347 | CQ38: - | CR38: 13 | CS38: Interior | CT38: Sec. Interior
AO39: 0.9354338432 | AP39: MANEJO DEL RIESGO Y ADAPTACIÓN AL CAMBIO CLIMÁTICO | AQ39: Mantener la atención integral al 100% de las emergencias y desastres ocurridas en el municipio. | AR39: 0 | AS39: Porcentaje de emergencias y desastres ocurridas en el municipio atendidas integralmente. | AT39: 1 | AU39: 1 | AV39: 1 | AW39: 0.25 | AX39: 1 | AY39: 0.25 | AZ39: 1 | BA39: 0.25 | BB39: 1 | BC39: 0.25 | BD39: 1 | BE39: 0 | BF39: 0 | BG39: 0 | BH39: 1 | BI39: 1 | BJ39: 0 | BK39: 0 | BL39: 0 | BM39: 0 | BN39: 0 | BO39: 0 | BP39: =+AVERAGE(BD39:BG39)/AU39 -> 0.25 | BQ39: 0.25 | BR39: 0.25 | BS39: 4742636 | BT39: 3928300 | BU39: 0 | BV39: 0.8282946446 | BW39: - | BX39: 145000 | BY39: 0 | BZ39: 0 | CA39: 0 | CB39: - | CC39: 80000 | CD39: 0 | CE39: 0 | CF39: 0 | CG39: - | CH39: 450000 | CI39: 0 | CJ39: 0 | CK39: 0 | CL39: - | CM39: 5417636 | CN39: 3928300 | CO39: 0 | CP39: 0.7250948569 | CQ39: - | CR39: 13 | CS39: Interior | CT39: Sec. Interior
AQ40: Mantener las 4 estaciones de bomberos. | AR40: 0 | AS40: Número de estaciones de bomberos mantenidas. | AT40: 4 | AU40: 4 | AV40: 4 | AW40: 0.25 | AX40: 4 | AY40: 0.25 | AZ40: 4 | BA40: 0.25 | BB40: 4 | BC40: 0.25 | BD40: 4 | BE40: 0 | BF40: 0 | BG40: 0 | BH40: 1 | BI40: 1 | BJ40: 0 | BK40: 0 | BL40: 0 | BM40: 0 | BN40: 0 | BO40: 0 | BP40: =+AVERAGE(BD40:BG40)/AU40 -> 0.25 | BQ40: 0.25 | BR40: 0.25 | BS40: 921916 | BT40: 0 | BU40: 0 | BV40: 0 | BW40: - | BX40: 8397312 | BY40: 0 | BZ40: 0 | CA40: 0 | CB40: - | CC40: 8796178 | CD40: 0 | CE40: 0 | CF40: 0 | CG40: - | CH40: 9235987 | CI40: 0 | CJ40: 0 | CK40: 0 | CL40: - | CM40: 27351393 | CN40: 0 | CO40: 0 | CP40: 0 | CQ40: - | CR40: 13 | CS40: Interior | CT40: Bomberos
AQ41: Formular e implementar 1 estrategia de fortalecimiento de la capacidad operativa de Bomberos. | AR41: 0 | AS41: Número de estrategias de fortalecimiento de la capacidad operativa de Bomberos formuladas e implementadas. | AT41: 0 | AU41: 1 | AV41: 1 | AW41: 0.25 | AX41: 1 | AY41: 0.25 | AZ41: 1 | BA41: 0.25 | BB41: 1 | BC41: 0.25 | BD41: 1 | BE41: 0 | BF41: 0 | BG41: 0 | BH41: 1 | BI41: 1 | BJ41: 0 | BK41: 0 | BL41: 0 | BM41: 0 | BN41: 0 | BO41: 0 | BP41: =+AVERAGE(BD41:BG41)/AU41 -> 0.25 | BQ41: 0.25 | BR41: 0.25 | BS41: 1180000 | BT41: 0 | BU41: 0 | BV41: 0 | BW41: - | BX41: 1310913 | BY41: 0 | BZ41: 0 | CA41: 0 | CB41: - | CC41: 480000 | CD41: 0 | CE41: 0 | CF41: 0 | CG41: - | CH41: 1150000 | CI41: 0 | CJ41: 0 | CK41: 0 | CL41: - | CM41: 4120913 | CN41: 0 | CO41: 0 | CP41: 0 | CQ41: - | CR41: 13 | CS41: Interior | CT41: Bomberos
BD44: 2020 | BE44: 2021 | BF44: 2022 | BG44: 2023 | BH44: CA
AZ45: Bomberos | BD45: =+AVERAGE(BI40:BI41) -> 1 | BE45: =+AVERAGE(BK40:BK41) -> 0 | BF45: =+AVERAGE(BM40:BM41) -> 0 | BG45: =+AVERAGE(BO40:BO41) -> 0 | BH45: =+AVERAGE(BQ40:BQ41) -> 0.25
AZ46: EMAB | BD46: =+AVERAGE(BI25:BI28) -> 0.8267708333 | BE46: =+AVERAGE(BK25:BK28) -> 0 | BF46: =+AVERAGE(BM25:BM28) -> 0 | BG46: =+AVERAGE(BO25:BO28) -> 0 | BH46: =+AVERAGE(BQ25:BQ28) -> 0.1649679687
AZ47: Sec. Infraestructura | BD47: =+AVERAGE(BI21:BI22) ->  | BE47: =+AVERAGE(BK21:BK22) -> 0 | BF47: =+AVERAGE(BM21:BM22) -> 0 | BG47: =+AVERAGE(BO21:BO22) -> 0 | BH47: =+AVERAGE(BQ21:BQ22) -> 0.07
AZ48: Sec. Interior | BD48: =+AVERAGE(BI31:BI39) -> 1 | BE48: =+AVERAGE(BK31:BK39) -> 0 | BF48: =+AVERAGE(BM31:BM39) -> 0 | BG48: =+AVERAGE(BO31:BO39) -> 0 | BH48: =+AVERAGE(BQ31:BQ39) -> 0.06666666667
AZ49: Sec. Salud y Ambiente | BD49: =+AVERAGE(BI11:BI15,BI17:BI20,BI23:BI24,BI29) -> 0.3875 | BE49: =+AVERAGE(BK11:BK15,BK17:BK20,BK23:BK24,BK29) -> 0 | BF49: =+AVERAGE(BM11:BM15,BM17:BM20,BM23:BM24,BM29) -> 0 | BG49: =+AVERAGE(BO11:BO15,BO17:BO20,BO23:BO24,BO29) -> 0 | BH49: =+AVERAGE(BQ11:BQ15,BQ17:BQ20,BQ23:BQ24,BQ29) -> 0.06458333333

Sheet LÍNEA 3
B3: ALCALDÍA DE BUCARAMANGA
B4: PLAN DE DESARROLLO 2020 - 2023 "BUCARAMANGA, UNA CIUDAD DE OPORTUNIDADES"
B5: LÍNEA ESTRATÉGICA 3. BUCARAMANGA PRODUCTIVA Y COMPETITIVA: EMPRESAS INNOVADORAS, RESPONSABLES Y CONSCIENTES
B8: POND | C8: LÍNEA ESTRATÉGICA | D8: META DE BIENESTAR | E8: LÍNEA BASE | F8: RESULTADO CUATRIENIO | H8: META POR VIGENCIA | T8: LOGRO POR VIGENCIA | AB8: PORCENTAJE DE CUMPLIMIENTO | AM8: POND | AN8: COMPONENTE | AO8: POND | AP8: PROGRAMA | AQ8: META DE PRODUCTO | AR8: RUBRO PPTAL | AS8: INDICADOR DE PRODUCTO | BD8: LOGRO POR VIGENCIA | BH8: PORCENTAJE DE CUMPLIMIENTO | BS8: RECURSOS POR FUENTE DE FINANCIACIÓN PARA CADA VIGENCIA | CR8: ODS | CS8: SECTOR
BS9: 2020 | BX9: 2021 | CC9: 2022 | CH9: 2023 | CM9: 2020 - 2023
H10: 2020 | K10: 2021 | N10: 2022 | Q10: 2023 | T10: 2020 | V10: 2021 | X10: 2022 | Z10: 2023 | AB10: 2020 | AD10: 2021 | AF10: 2022 | AH10: 2023 | AJ10: 2020 - 2023 | AS10: NOMBRE INDICADOR | AT10: LÍNEA BASE | AU10: ESPERADO CUATRIENIO | AV10: 2020 | AX10: 2021 | AZ10: 2022 | BB10: 2023 | BD10: 2020 | BE10: 2021 | BF10: 2022 | BG10: 2023 | BH10: 2020 | BJ10: 2021 | BL10: 2022 | BN10: 2023 | BP10: 2020 - 2023 | BS10: RECURSOS PROGRAMADOS | BT10: RECURSOS EJECUTADOS | BU10: RECURSOS GESTIONADOS | BV10: PORCENTAJE EJECUCIÓN | BW10: NIVEL DE GESTIÓN | BX10: RECURSOS PROGRAMADOS | BY10: RECURSOS EJECUTADOS | BZ10: RECURSOS GESTIONADOS | CA10: PORCENTAJE EJECUCIÓN | CB10: NIVEL DE GESTIÓN | CC10: RECURSOS PROGRAMADOS | CD10: RECURSOS EJECUTADOS | CE10: RECURSOS GESTIONADOS | CF10: PORCENTAJE EJECUCIÓN | CG10: NIVEL DE GESTIÓN | CH10: RECURSOS PROGRAMADOS | CI10: RECURSOS EJECUTADOS | CJ10: RECURSOS GESTIONADOS | CK10: PORCENTAJE EJECUCIÓN | CL10: NIVEL DE GESTIÓN | CM10: RECURSOS PROGRAMADOS | CN10: RECURSOS EJECUTADOS | CO10: RECURSOS GESTIONADOS | CP10: PORCENTAJE EJECUCIÓN | CQ10: NIVEL DE GESTIÓN | CT10: RESPONSABLE
B11: 0.02553324828 | C11: 3. BUCARAMANGA PRODUCTIVA Y COMPETITIVA: EMPRESAS INNOVADORAS, RESPONSABLES Y CONSCIENTES | D11: Intermediar y gestionar 5.000 empleos a través de proyectos empresariales, financieros y de empleabilidad en los sectores priorizados. | E11: 1985 | F11: 5000 | H11: 500 | K11: 1500 | N11: 3000 | Q11: 5000 | AM11: 0.4675367155 | AN11: EMPRENDIMIENTO, INNOVACIÓN, FORMALIZACIÓN Y DINAMIZACIÓN EMPRESARIAL | AO11: 0.7783524092 | AP11: EMPRENDIMIENTO E INNOVACIÓN | AQ11: Fortalecer a 5.000 empresas, emprendimientos y/o unidades productivas, a través de la implementación de un programa de incubación y aceleración de emprendimientos innovadores articulados con el ecosistema de emprendimiento, que caracterice las capacidades tecnológicas instaladas (duras y blandas) con enfoque diferencial. | AR11: 0 | AS11: Número de empresas, emprendimientos y/o unidades productivas fortalecidas a través de la implementación de un programa de incubación y aceleración de emprendimientos innovadores articulados con el ecosistema de emprendimiento, que caracterice las capacidades tecnológicas instaladas (duras y blandas) con enfoque diferencial. | AT11: 1000 | AU11: 5000 | AV11: 100 | AW11: =+AV11/AU11 -> 0.02 | AX11: 1000 | AY11: =+AX11/AU11 -> 0.2 | AZ11: 1600 | BA11: =+AZ11/AU11 -> 0.32 | BB11: 2300 | BC11: =+BB11/AU11 -> 0.46 | BD11: 0 | BE11: 0 | BF11: 0 | BG11: 0 | BH11: =IF(AV11=0," -",BD11/AV11) -> 0 | BI11: =IF(AV11=0," -",IF(BH11>100%,100%,BH11)) -> 0 | BJ11: =IF(AX11=0," -",BE11/AX11) -> 0 | BK11: =IF(AX11=0," -",IF(BJ11>100%,100%,BJ11)) -> 0 | BL11: =IF(AZ11=0," -",BF11/AZ11) -> 0 | BM11: =IF(AZ11=0," -",IF(BL11>100%,100%,BL11)) -> 0 | BN11: =IF(BB11=0," -",BG11/BB11) -> 0 | BO11: =IF(BB11=0," -",IF(BN11>100%,100%,BN11)) -> 0 | BP11: =+SUM(BD11:BG11)/AU11 -> 0 | BQ11: =+IF(BP11>100%,100%,BP11) -> 0 | BR11: =+BQ11 -> 0 | BS11: 250000 | BT11: 0 | BU11: 0 | BV11: =IF(BS11=0," -",BT11/BS11) -> 0 | BW11: =IF(BU11=0," -",IF(BT11=0,100%,BU11/BT11)) -> - | BX11: 410000 | BY11: 0 | BZ11: 0 | CA11: =IF(BX11=0," -",BY11/BX11) -> 0 | CB11: =IF(BZ11=0," -",IF(BY11=0,100%,BZ11/BY11)) -> - | CC11: 430000 | CD11: 0 | CE11: 0 | CF11: =IF(CC11=0," -",CD11/CC11) -> 0 | CG11: =IF(CE11=0," -",IF(CD11=0,100%,CE11/CD11)) -> - | CH11: 452000 | CI11: 0 | CJ11: 0 | CK11: =IF(CH11=0," -",CI11/CH11) -> 0 | CL11: =IF(CJ11=0," -",IF(CI11=0,100%,CJ11/CI11)) -> - | CM11: =+BS11+BX11+CC11+CH11 -> 1542000 | CN11: 0 | CO11: 0 | CP11: =IF(CM11=0," -",CN11/CM11) -> 0 | CQ11: =IF(CO11=0," -",IF(CN11=0,100%,CO11/CN11)) -> - | CR11: 8, 9, 10, 12 | CS11: Comercio, Industria y Turismo | CT11: IMEBU
AQ12: Implementar 1 ecosistema empresarial para la reactivación y desarrollo económico de la ciudad. | AR12: 0 | AS12: Número de ecosistemas empresariales implementados para la reactivación y desarrollo económico de la ciudad. | AT12: 0 | AU12: 1 | AV12: 1 | AW12: 0.25 | AX12: 1 | AY12: 0.25 | AZ12: 1 | BA12: 0.25 | BB12: 1 | BC12: 0.25 | BD12: 0 | BE12: 0 | BF12: 0 | BG12: 0 | BH12: =IF(AV12=0," -",BD12/AV12) -> 0 | BI12: =IF(AV12=0," -",IF(BH12>100%,100%,BH12)) -> 0 | BJ12: =IF(AX12=0," -",BE12/AX12) -> 0 | BK12: =IF(AX12=0," -",IF(BJ12>100%,100%,BJ12)) -> 0 | BL12: =IF(AZ12=0," -",BF12/AZ12) -> 0 | BM12: =IF(AZ12=0," -",IF(BL12>100%,100%,BL12)) -> 0 | BN12: =IF(BB12=0," -",BG12/BB12) -> 0 | BO12: =IF(BB12=0," -",IF(BN12>100%,100%,BN12)) -> 0 | BP12: =+AVERAGE(BD12:BG12)/AU12 -> 0 | BQ12: =+IF(BP12>100%,100%,BP12) -> 0 | BR12: =+BQ12 -> 0 | BS12: 3000000 | BT12: 0 | BU12: 0 | BV12: =IF(BS12=0," -",BT12/BS12) -> 0 | BW12: =IF(BU12=0," -",IF(BT12=0,100%,BU12/BT12)) -> - | BX12: 11000000 | BY12: 0 | BZ12: 0 | CA12: =IF(BX12=0," -",BY12/BX12) -> 0 | CB12: =IF(BZ12=0," -",IF(BY12=0,100%,BZ12/BY12)) -> - | CC12: 6000000 | CD12: 0 | CE12: 0 | CF12: =IF(CC12=0," -",CD12/CC12) -> 0 | CG12: =IF(CE12=0," -",IF(CD12=0,100%,CE12/CD12)) -> - | CH12: 6000000 | CI12: 0 | CJ12: 0 | CK12: =IF(CH12=0," -",CI12/CH12) -> 0 | CL12: =IF(CJ12=0," -",IF(CI12=0,100%,CJ12/CI12)) -> - | CM12: 26000000 | CN12: 0 | CO12: 0 | CP12: =IF(CM12=0," -",CN12/CM12) -> 0 | CQ12: =IF(CO12=0," -",IF(CN12=0,100%,CO12/CN12)) -> - | CR12: 1, 8 | CS12: Comercio, Industria y Turismo | CT12: Sec. Hacienda
AO13: 0.2066694927 | AP13: CENTROS DE DESARROLLO EMPRESARIAL | AQ13: Implementar 1 programa de desarrollo empresarial y de empleabilidad para las micro y pequeñas empresas (incluyendo unidades productivas). | AR13: 0 | AS13: Número de programas de desarrollo empresariales y de empleabilidad implementados para las micro y pequeñas empresas (incluyendo unidades productivas). | AT13: 1 | AU13: 1 | AV13: 1 | AW13: 0.25 | AX13: 1 | AY13: 0.25 | AZ13: 1 | BA13: 0.25 | BB13: 1 | BC13: 0.25 | BD13: 1 | BE13: 0 | BF13: 0 | BG13: 0 | BH13: =IF(AV13=0," -",BD13/AV13) -> 1 | BI13: =IF(AV13=0," -",IF(BH13>100%,100%,BH13)) -> 1 | BJ13: =IF(AX13=0," -",BE13/AX13) -> 0 | BK13: =IF(AX13=0," -",IF(BJ13>100%,100%,BJ13)) -> 0 | BL13: =IF(AZ13=0," -",BF13/AZ13) -> 0 | BM13: =IF(AZ13=0," -",IF(BL13>100%,100%,BL13)) -> 0 | BN13: =IF(BB13=0," -",BG13/BB13) -> 0 | BO13: =IF(BB13=0," -",IF(BN13>100%,100%,BN13)) -> 0 | BP13: =+AVERAGE(BD13:BG13)/AU13 -> 0.25 | BQ13: =+IF(BP13>100%,100%,BP13) -> 0.25 | BR13: =+BQ13 -> 0.25 | BS13: 222449.395 | BT13: 222449.395 | BU13: 169421.465 | BV13: =IF(BS13=0," -",BT13/BS13) -> 1 | BW13: =IF(BU13=0," -",IF(BT13=0,100%,BU13/BT13)) -> 0.7616180075 | BX13: 150000 | BY13: 0 | BZ13: 0 | CA13: =IF(BX13=0," -",BY13/BX13) -> 0 | CB13: =IF(BZ13=0," -",IF(BY13=0,100%,BZ13/BY13)) -> - | CC13: 300000 | CD13: 0 | CE13: 0 | CF13: =IF(CC13=0," -",CD13/CC13) -> 0 | CG13: =IF(CE13=0," -",IF(CD13=0,100%,CE13/CD13)) -> - | CH13: 320000 | CI13: 0 | CJ13: 0 | CK13: =IF(CH13=0," -",CI13/CH13) -> 0 | CL13: =IF(CJ13=0," -",IF(CI13=0,100%,CJ13/CI13)) -> - | CM13: =+BS13+BX13+CC13+CH13 -> 992449.395 | CN13: 222449.395 | CO13: 169421.465 | CP13: =IF(CM13=0," -",CN13/CM13) -> 0.2241418012 | CQ13: =IF(CO13=0," -",IF(CN13=0,100%,CO13/CN13)) -> 0.7616180075 | CR13: 8, 10, 11, 12 | CS13: Comercio, Industria y Turismo | CT13: IMEBU
AQ14: Desarrollar el modelo CDE virtual para que amplíen la cobertura en la ciudad. | AR14: 0 | AS14: Porcentaje de avance en el desarrollo del modelo CDE virtual para que amplíen la cobertura en la ciudad. | AT14: 0 | AU14: 1 | AV14: 0.1 | AW14: =+AV14/AU14 -> 0.1 | AX14: 0.25 | AY14: =+AX14/AU14 -> 0.25 | AZ14: 0.35 | BA14: =+AZ14/AU14 -> 0.35 | BB14: 0.3 | BC14: =+BB14/AU14 -> 0.3 | BD14: 0 | BE14: 0 | BF14: 0 | BG14: 0 | BH14: 0 | BI14: 0 | BJ14: 0 | BK14: 0 | BL14: 0 | BM14: 0 | BN14: 0 | BO14: 0 | BP14: =+SUM(BD14:BG14)/AU14 -> 0 | BQ14: 0 | BR14: 0 | BS14: 250000 | BT14: 0 | BU14: 0 | BV14: =IF(BS14=0," -",BT14/BS14) -> 0 | BW14: =IF(BU14=0," -",IF(BT14=0,100%,BU14/BT14)) -> - | BX14: 200000 | BY14: 0 | BZ14: 0 | CA14: =IF(BX14=0," -",BY14/BX14) -> 0 | CB14: =IF(BZ14=0," -",IF(BY14=0,100%,BZ14/BY14)) -> - | CC14: 850000 | CD14: 0 | CE14: 0 | CF14: =IF(CC14=0," -",CD14/CC14) -> 0 | CG14: =IF(CE14=0," -",IF(CD14=0,100%,CE14/CD14)) -> - | CH14: 750000 | CI14: 0 | CJ14: 0 | CK14: =IF(CH14=0," -",CI14/CH14) -> 0 | CL14: =IF(CJ14=0," -",IF(CI14=0,100%,CJ14/CI14)) -> - | CM14: 2050000 | CN14: 0 | CO14: 0 | CP14: =IF(CM14=0," -",CN14/CM14) -> 0 | CQ14: =IF(CO14=0," -",IF(CN14=0,100%,CO14/CN14)) -> - | CR14: 8, 10, 11, 12 | CS14: Comercio, Industria y Turismo | CT14: IMEBU
AQ15: Formar a 7.000 emprendedores a través de un programa de formación teórica, empresarial y/o artesanal con enfoque diferencial para emprendimientos artísticos, culturales, creativos, negocios verdes, microempresarios y/o unidades productivas urbanas y rurales. | AR15: 0 | AS15: Número de emprendedores formados a través de un programa de formación teórica, empresarial y/o artesanal con enfoque diferencial para emprendimientos artísticos, culturales, creativos, negocios verdes, microempresarios y/o unidades productivas urbanas y rurales. | AT15: 1503 | AU15: 7000 | AV15: 800 | AW15: 0.1142857143 | AX15: 1200 | AY15: 0.1714285714 | AZ15: 2600 | BA15: 0.3714285714 | BB15: 2400 | BC15: 0.3428571429 | BD15: 1732 | BE15: 0 | BF15: 0 | BG15: 0 | BH15: 2.165 | BI15: 1 | BJ15: 0 | BK15: 0 | BL15: 0 | BM15: 0 | BN15: 0 | BO15: 0 | BP15: =+SUM(BD15:BG15)/AU15 -> 0.2474285714 | BQ15: 0.2474285714 | BR15: 0.2474285714 | BS15: 305836.973 | BT15: 126314.1755 | BU15: 0 | BV15: =IF(BS15=0," -",BT15/BS15) -> 0.4130114625 | BW15: =IF(BU15=0," -",IF(BT15=0,100%,BU15/BT15)) -> - | BX15: 258000 | BY15: 0 | BZ15: 0 | CA15: =IF(BX15=0," -",BY15/BX15) -> 0 | CB15: =IF(BZ15=0," -",IF(BY15=0,100%,BZ15/BY15)) -> - | CC15: 950000 | CD15: 0 | CE15: 0 | CF15: =IF(CC15=0," -",CD15/CC15) -> 0 | CG15: =IF(CE15=0," -",IF(CD15=0,100%,CE15/CD15)) -> - | CH15: 904500 | CI15: 0 | CJ15: 0 | CK15: =IF(CH15=0," -",CI15/CH15) -> 0 | CL15: =IF(CJ15=0," -",IF(CI15=0,100%,CJ15/CI15)) -> - | CM15: =+BS15+BX15+CC15+CH15 -> 2418336.973 | CN15: =+BT15+BY15+CD15+CI15 -> 126314.1755 | CO15: =+BU15+BZ15+CE15+CJ15 -> 0 | CP15: =IF(CM15=0," -",CN15/CM15) -> 0.05223183407 | CQ15: =IF(CO15=0," -",IF(CN15=0,100%,CO15/CN15)) -> - | CR15: 8, 10 | CS15: Comercio, Industria y Turismo | CT15: IMEBU
D16: Mejorar en 2.000 empresas sus capacidades competitivas y su nivel de productividad. | E16: 1503 | F16: 2000 | H16: 200 | K16: 700 | N16: 1300 | Q16: 2000 | AQ16: Implementar en 4.000 mipymes planes estratégicos orientados a innovar y/o incorporación tecnológica en áreas empresariales estratégicas con apoyo de Universidades y actores económicos clave. | AR16: 0 | AS16: Número de mipymes con planes estratégicos implementados orientados a innovar y/o incorporación tecnológica en áreas empresariales estratégicas con apoyo de Universidades y actores económicos clave. | AT16: 862 | AU16: 4000 | AV16: 300 | AW16: 0.075 | AX16: 500 | AY16: 0.125 | AZ16: 1600 | BA16: 0.4 | BB16: 1600 | BC16: 0.4 | BD16: 284 | BE16: 0 | BF16: 0 | BG16: 0 | BH16: 0.9466666667 | BI16: 0.9466666667 | BJ16: 0 | BK16: 0 | BL16: 0 | BM16: 0 | BN16: 0 | BO16: 0 | BP16: 0.071 | BQ16: 0.071 | BR16: 0.071 | BS16: 305836.973 | BT16: 126314.1755 | BU16: 0 | BV16: 0.4130114625 | BW16: - | BX16: 258000 | BY16: 0 | BZ16: 0 | CA16: 0 | CB16: - | CC16: 950000 | CD16: 0 | CE16: 0 | CF16: 0 | CG16: - | CH16: 904500 | CI16: 0 | CJ16: 0 | CK16: 0 | CL16: - | CM16: 2418336.973 | CN16: 126314.1755 | CO16: 0 | CP16: 0.05223183407 | CQ16: - | CR16: 8, 10, 12 | CS16: Comercio, Industria y Turismo | CT16: IMEBU
AO17: 0.01497809806 | AP17: BANCA CIUDADANA | AQ17: Intervenir a 4.000 empresas y/o emprendimientos mediante apalancamiento financiero orientado a realizar inversión en innovación y/o tecnología en la zona rural y urbana con enfoque diferencial. | AR17: 0 | AS17: Número de empresas y/o emprendimientos intervenidos mediante apalancamiento financiero orientado a realizar inversión en innovación y/o tecnología en la zona rural y urbana con enfoque diferencial. | AT17: 0 | AU17: 4000 | AV17: 200 | AW17: 0.05 | AX17: 600 | AY17: 0.15 | AZ17: 1600 | BA17: 0.4 | BB17: 1600 | BC17: 0.4 | BD17: 0 | BE17: 0 | BF17: 0 | BG17: 0 | BH17: 0 | BI17: 0 | BJ17: 0 | BK17: 0 | BL17: 0 | BM17: 0 | BN17: 0 | BO17: 0 | BP17: 0 | BQ17: 0 | BR17: 0 | BS17: 0 | BT17: 0 | BU17: 0 | BV17: - | BW17: - | BX17: 5000 | BY17: 0 | BZ17: 0 | CA17: 0 | CB17: - | CC17: 5000 | CD17: 0 | CE17: 0 | CF17: 0 | CG17: - | CH17: 5000 | CI17: 0 | CJ17: 0 | CK17: 0 | CL17: - | CM17: 15000 | CN17: 0 | CO17: 0 | CP17: 0 | CQ17: - | CR17: 8, 10 | CS17: Comercio, Industria y Turismo | CT17: IMEBU
AQ18: Otorgar 6.000 créditos a emprendimientos y mipymes de orientados a capital de trabajo o destinos de inversión diferente a innovación y/o tecnología en zonas urbanas y rurales. | AR18: 0 | AS18: Número de créditos otorgados a emprendimientos y mipymes de orientados a capital de trabajo o destinos de inversión diferente a innovación y/o tecnología en zonas urbanas y rurales. | AT18: 5349 | AU18: 6000 | AV18: 1200 | AW18: 0.2 | AX18: 1600 | AY18: 0.2666666667 | AZ18: 1600 | BA18: 0.2666666667 | BB18: 1600 | BC18: 0.2666666667 | BD18: 1693 | BE18: 0 | BF18: 0 | BG18: 0 | BH18: 1.410833333 | BI18: 1 | BJ18: 0 | BK18: 0 | BL18: 0 | BM18: 0 | BN18: 0 | BO18: 0 | BP18: 0.2821666667 | BQ18: 0.2821666667 | BR18: 0.2821666667 | BS18: 1529106.398 | BT18: 1510500 | BU18: 24100000 | BV18: 0.9878318489 | BW18: 15.95498179 | BX18: 5000 | BY18: 0 | BZ18: 0 | CA18: 0 | CB18: - | CC18: 5000 | CD18: 0 | CE18: 0 | CF18: 0 | CG18: - | CH18: 5000 | CI18: 0 | CJ18: 0 | CK18: 0 | CL18: - | CM18: 1544106.398 | CN18: 1510500 | CO18: 24100000 | CP18: 0.9782356982 | CQ18: 15.95498179 | CR18: 8, 10 | CS18: Comercio, Industria y Turismo | CT18: IMEBU
AM20: 0.008390160077 | AN20: EMPLEABILIDAD, EMPLEO Y TRABAJO DECENTE | AO20: 1 | AP20: EMPLEO Y EMPLEABILIDAD | AQ20: Registrar 5.000 hojas de vida para facilitar el proceso de inserción en el mercado laboral identificando habilidades, destrezas y que competencias para el trabajo. | AR20: 0 | AS20: Número de hojas de vida registradas para facilitar el proceso de inserción en el mercado laboral identificando habilidades, destrezas y que competencias para el trabajo. | AT20: 4159 | AU20: 5000 | AV20: 1000 | AW20: 0.2 | AX20: 1200 | AY20: 0.24 | AZ20: 1300 | BA20: 0.26 | BB20: 1500 | BC20: 0.3 | BD20: 1814 | BE20: 0 | BF20: 0 | BG20: 0 | BH20: 1.814 | BI20: 1 | BJ20: 0 | BK20: 0 | BL20: 0 | BM20: 0 | BN20: 0 | BO20: 0 | BP20: 0.3628 | BQ20: 0.3628 | BR20: 0.3628 | BS20: 91076.66667 | BT20: 79334.002 | BU20: 0 | BV20: 0.8710683527 | BW20: - | BX20: 28000 | BY20: 0 | BZ20: 0 | CA20: 0 | CB20: - | CC20: 29000 | CD20: 0 | CE20: 0 | CF20: 0 | CG20: - | CH20: 31000 | CI20: 0 | CJ20: 0 | CK20: 0 | CL20: - | CM20: 179076.6667 | CN20: 79334.002 | CO20: 0 | CP20: 0.4430169685 | CQ20: - | CR20: 8, 10 | CS20: Trabajo | CT20: IMEBU
D21: Disminuir a 4 el número de alumnos por computador. | E21: 11 | F21: 4 | H21: 9 | K21: 7 | N21: 5 | Q21: 4 | AQ21: Formar 3.000 jóvenes y adultos en competencias personales y/o técnicas para el trabajo con el fin de facilitar su inserción en el mercado laboral. | AR21: 0 | AS21: Número de jóvenes y adultos formados en competencias personales y/o técnicas para el trabajo con el fin de facilitar su inserción en el mercado laboral. | AT21: 1643 | AU21: 3000 | AV21: 600 | AW21: 0.2 | AX21: 700 | AY21: 0.2333333333 | AZ21: 800 | BA21: 0.2666666667 | BB21: 900 | BC21: 0.3 | BD21: 1079 | BE21: 0 | BF21: 0 | BG21: 0 | BH21: 1.798333333 | BI21: 1 | BJ21: 0 | BK21: 0 | BL21: 0 | BM21: 0 | BN21: 0 | BO21: 0 | BP21: 0.3596666667 | BQ21: 0.3596666667 | BR21: 0.3596666667 | BS21: 91076.66667 | BT21: 79334.002 | BU21: 0 | BV21: 0.8710683527 | BW21: - | BX21: 36000 | BY21: 0 | BZ21: 0 | CA21: 0 | CB21: - | CC21: 37000 | CD21: 0 | CE21: 0 | CF21: 0 | CG21: - | CH21: 39000 | CI21: 0 | CJ21: 0 | CK21: 0 | CL21: - | CM21: 203076.6667 | CN21: 79334.002 | CO21: 0 | CP21: 0.3906603516 | CQ21: - | CR21: 8, 10 | CS21: Trabajo | CT21: IMEBU
AQ22: Acompañar a 1.500 empresas en el fomento de una cultura del empleo y trabajo decente para capturar vacantes que permitan realizar la intermediación laboral. | AR22: 0 | AS22: Número de empresas acompañadas en el fomento de una cultura del empleo y trabajo decente para capturar vacantes que permitan realizar la intermediación laboral. | AT22: 1173 | AU22: 1500 | AV22: 330 | AW22: 0.22 | AX22: 370 | AY22: 0.2466666667 | AZ22: 390 | BA22: 0.26 | BB22: 410 | BC22: 0.2733333333 | BD22: 400 | BE22: 0 | BF22: 0 | BG22: 0 | BH22: 1.212121212 | BI22: 1 | BJ22: 0 | BK22: 0 | BL22: 0 | BM22: 0 | BN22: 0 | BO22: 0 | BP22: 0.2666666667 | BQ22: 0.2666666667 | BR22: 0.2666666667 | BS22: 91076.66667 | BT22: 79334.002 | BU22: 0 | BV22: 0.8710683527 | BW22: - | BX22: 91000 | BY22: 0 | BZ22: 0 | CA22: 0 | CB22: - | CC22: 94000 | CD22: 0 | CE22: 0 | CF22: 0 | CG22: - | CH22: 100000 | CI22: 0 | CJ22: 0 | CK22: 0 | CL22: - | CM22: 376076.6667 | CN22: 79334.002 | CO22: 0 | CP22: 0.210951673 | CQ22: - | CR22: 8, 10 | CS22: Trabajo | CT22: IMEBU
AM24: 0.1495034036 | AN24: CONECTIVIDAD PARA COMPETITIVIDAD Y LA INTERNACIONALIZACIÓN | AO24: 0.02651347768 | AP24: ESTUDIOS Y DISEÑOS DE LA INFRAESTRUCTURA | AQ24: Realizar el 100% de los estudios y/o diseños requeridos para el desarrollo de proyectos de infraestructura. | AR24: 0 | AS24: Porcentaje de estudios y/o diseños requeridos realizados para el desarrollo de proyectos de infraestructura. | AT24: 1 | AU24: 1 | AV24: 0 | AW24: 0 | AX24: 1 | AY24: 1 | AZ24: 1 | BA24: 1 | BB24: 1 | BC24: 1 | BD24: 0 | BE24: 0 | BF24: 0 | BG24: 0 | BH24: - | BI24: - | BJ24: 0 | BK24: 0 | BL24: 0 | BM24: 0 | BN24: 0 | BO24: 0 | BP24: 0 | BQ24: 0 | BR24: 0 | BS24: 0 | BT24: 0 | BU24: 0 | BV24: - | BW24: - | BX24: 100000 | BY24: 0 | BZ24: 0 | CA24: 0 | CB24: - | CC24: 100000 | CD24: 0 | CE24: 0 | CF24: 0 | CG24: - | CH24: 100000 | CI24: 0 | CJ24: 0 | CK24: 0 | CL24: - | CM24: 300000 | CN24: 0 | CO24: 0 | CP24: 0 | CQ24: - | CR24: 9 | CS24: Planeación | CT24: Sec. Infraestructura
AO25: 0.9734865223 | AP25: BUCARAMANGA, UNA MIRADA INTELIGENTE HACIA EL FUTURO | AQ25: Diseñar e implementar 1 modelo de conectividad comunitario que permita la interacción digital de la ciudadanía a partir de la infraestructura de Zonas Digitales existentes y la aplicación de modelos de escalabilidad y tecnologías de ultima generación. | AR25: 0 | AS25: Número de modelos de conectividad comunitario diseñados e implementados que permitan la interacción digital de la ciudadanía a partir de la infraestructura de Zonas Digitales existentes y la aplicación de modelos de escalabilidad y tecnologías de ultima generación. | AT25: 0 | AU25: 1 | AV25: 1 | AW25: 1 | AX25: 0 | AY25: 0 | AZ25: 0 | BA25: 0 | BB25: 0 | BC25: 0 | BD25: 0 | BE25: 0 | BF25: 0 | BG25: 0 | BH25: 0 | BI25: 0 | BJ25: - | BK25: - | BL25: - | BM25: - | BN25: - | BO25: - | BP25: 0 | BQ25: 0 | BR25: 0 | BS25: 5140759.456 | BT25: 0 | BU25: 0 | BV25: 0 | BW25: - | BX25: 0 | BY25: 0 | BZ25: 0 | CA25: - | CB25: - | CC25: 0 | CD25: 0 | CE25: 0 | CF25: - | CG25: - | CH25: 0 | CI25: 0 | CJ25: 0 | CK25: - | CL25: - | CM25: 5140759.456 | CN25: 0 | CO25: 0 | CP25: 0 | CQ25: - | CR25: 9, 10, 11 | CS25: Tecnologías de la Información y las Comunicaciones | CT25: OATIC
AQ26: Diseñar e implementar 1 modelo de conectividad y arquitectura de datos que permita la interoperabilidad entre los sistemas de información e infraestructura tecnológica existente y proyectada. | AR26: 0 | AS26: Porcentaje de diseño e implementación del modelo de conectividad y arquitectura de datos que permita la interoperabilidad entre los sistemas de información e infraestructura tecnológica existente y proyectada. | AT26: 0 | AU26: 1 | AV26: 0 | AW26: 0 | AX26: 0 | AY26: 0 | AZ26: 0.3 | BA26: 0.3 | BB26: 0.7 | BC26: 0.7 | BD26: 0.1 | BE26: 0 | BF26: 0 | BG26: 0 | BH26: - | BI26: - | BJ26: - | BK26: - | BL26: 0 | BM26: 0 | BN26: 0 | BO26: 0 | BP26: 0.1 | BQ26: 0.1 | BR26: 0.1 | BS26: 123972.97 | BT26: 123972.97 | BU26: 0 | BV26: 1 | BW26: - | BX26: 0 | BY26: 0 | BZ26: 0 | CA26: - | CB26: - | CC26: 1444000 | CD26: 0 | CE26: 0 | CF26: 0 | CG26: - | CH26: 3981000 | CI26: 0 | CJ26: 0 | CK26: 0 | CL26: - | CM26: 5548972.97 | CN26: 123972.97 | CO26: 0 | CP26: 0.0223416064 | CQ26: - | CR26: 9, 11 | CS26: Tecnologías de la Información y las Comunicaciones | CT26: OATIC
D27: Aumentar a 40.534 visitantes y/o turistas nacionales e internacionales a la ciudad. | E27: 20267 | F27: 40534 | H27: 6000 | K27: 14000 | N27: 20534 | Q27: 40534 | AQ27: Mantener en los 8 Puntos Digital y en el Centro de Pensamiento para la Cuarta Revolución Industrial la conectividad y la infraestructura tecnológica. | AR27: 0 | AS27: Número de Puntos Digitales y Centros de Pensamiento para la Cuarta Revolución mantenidos con conectividad y la infraestructura tecnológica. | AT27: 9 | AU27: 9 | AV27: 9 | AW27: 0.25 | AX27: 9 | AY27: 0.25 | AZ27: 9 | BA27: 0.25 | BB27: 9 | BC27: 0.25 | BD27: 9 | BE27: 0 | BF27: 0 | BG27: 0 | BH27: 1 | BI27: 1 | BJ27: 0 | BK27: 0 | BL27: 0 | BM27: 0 | BN27: 0 | BO27: 0 | BP27: =+AVERAGE(BD27:BG27)/AU27 -> 0.25 | BQ27: 0.25 | BR27: 0.25 | BS27: 409399 | BT27: 0 | BU27: 6805200 | BV27: 0 | BW27: 1 | BX27: 10000 | BY27: 0 | BZ27: 0 | CA27: 0 | CB27: - | CC27: 10000 | CD27: 0 | CE27: 0 | CF27: 0 | CG27: - | CH27: 10000 | CI27: 0 | CJ27: 0 | CK27: 0 | CL27: - | CM27: 439399 | CN27: 0 | CO27: 6805200 | CP27: 0 | CQ27: 1 | CR27: 8, 10, 17 | CS27: Tecnologías de la Información y las Comunicaciones | CT27: OATIC
AM29: 0.1116953825 | AN29: BUCARAMANGA CIUDAD DE INNOVACIÓN EDUCATIVA | AO29: 1 | AP29: INNOVACIÓN Y USO DE LA CIENCIA Y TECNOLOGÍA EN EL AMBIENTE ESCOLAR | AQ29: Dotar y/o repotenciar 70 aulas especializadas en los establecimientos educativos oficiales. | AR29: 0 | AS29: Número de aulas especializadas dotadas y/o repotenciadas en los establecimientos educativos oficiales. | AT29: 28 | AU29: 70 | AV29: 35 | AW29: 0.5 | AX29: 12 | AY29: 0.1714285714 | AZ29: 12 | BA29: 0.1714285714 | BB29: 11 | BC29: 0.1571428571 | BD29: 51 | BE29: 0 | BF29: 0 | BG29: 0 | BH29: 1.457142857 | BI29: 1 | BJ29: 0 | BK29: 0 | BL29: 0 | BM29: 0 | BN29: 0 | BO29: 0 | BP29: 0.7285714286 | BQ29: 0.7285714286 | BR29: 0.7285714286 | BS29: 1419980.839 | BT29: 1419902.788 | BU29: 1228240.2 | BV29: 0.9999450338 | BW29: 0.8650171057 | BX29: 800000 | BY29: 0 | BZ29: 0 | CA29: 0 | CB29: - | CC29: 702000 | CD29: 0 | CE29: 0 | CF29: 0 | CG29: - | CH29: 702000 | CI29: 0 | CJ29: 0 | CK29: 0 | CL29: - | CM29: 3623980.839 | CN29: 1419902.788 | CO29: 1228240.2 | CP29: 0.3918074766 | CQ29: 0.8650171057 | CR29: 1, 4, 5, 9, 10, 17 | CS29: Ciencia, Tecnología e Innovación | CT29: Sec. Educación
AQ30: Mantener los 47 establecimientos educativos oficiales con conectividad. | AR30: 0 | AS30: Número de establecimientos educativos oficiales mantenidos con conectividad. | AT30: 47 | AU30: 47 | AV30: 47 | AW30: 1 | AX30: 47 | AY30: 1 | AZ30: 47 | BA30: 1 | BB30: 47 | BC30: 1 | BD30: 0 | BE30: 0 | BF30: 0 | BG30: 0 | BH30: 0 | BI30: 0 | BJ30: 0 | BK30: 0 | BL30: 0 | BM30: 0 | BN30: 0 | BO30: 0 | BP30: 0 | BQ30: 0 | BR30: 0 | BS30: 815888.676 | BT30: 0 | BU30: 0 | BV30: 0 | BW30: - | BX30: 870391 | BY30: 0 | BZ30: 0 | CA30: 0 | CB30: - | CC30: 1703465 | CD30: 0 | CE30: 0 | CF30: 0 | CG30: - | CH30: 1737797 | CI30: 0 | CJ30: 0 | CK30: 0 | CL30: - | CM30: 5127541.676 | CN30: 0 | CO30: 0 | CP30: 0 | CQ30: - | CR30: 1, 4, 5, 9, 10 | CS30: Ciencia, Tecnología e Innovación | CT30: Sec. Educación
AM32: 0.1530755506 | AN32: BGA NODO DE ACTIVACIÓN TURÍSTICA | AO32: 0.3361485545 | AP32: GESTIÓN INTEGRAL DE DESTINO Y FORTALECIMIENTO DE LA OFERTA TURÍSTICA DE LA CIUDAD | AQ32: Realizar 20 acciones para fortalecer el reconocimiento, difusión y promoción turística y potenciar los puntos PITs. | AR32: 0 | AS32: Número de acciones realizadas para fortalecer el reconocimiento, difusión y promoción turística y potenciar los puntos PITs. | AT32: 1 | AU32: 20 | AV32: 3 | AW32: 0.15 | AX32: 6 | AY32: 0.3 | AZ32: 6 | BA32: 0.3 | BB32: 5 | BC32: 0.25 | BD32: 3 | BE32: 0 | BF32: 0 | BG32: 0 | BH32: 1 | BI32: 1 | BJ32: 0 | BK32: 0 | BL32: 0 | BM32: 0 | BN32: 0 | BO32: 0 | BP32: 0.15 | BQ32: 0.15 | BR32: 0.15 | BS32: 144400 | BT32: 144400 | BU32: 0 | BV32: 1 | BW32: - | BX32: 800000 | BY32: 0 | BZ32: 0 | CA32: 0 | CB32: - | CC32: 1300000 | CD32: 0 | CE32: 0 | CF32: 0 | CG32: - | CH32: 900000 | CI32: 0 | CJ32: 0 | CK32: 0 | CL32: - | CM32: 3144400 | CN32: 144400 | CO32: 0 | CP32: 0.04592291057 | CQ32: - | CR32: 9, 12 | CS32: Comercio, Industria y Turismo | CT32: IMCT
AQ33: Realizar 4 eventos culturales para fomentar la promoción y la competitividad turística del destino. | AR33: 0 | AS33: Número de eventos culturales realizados para fomentar la promoción y la competitividad turística del destino. | AT33: 1 | AU33: 4 | AV33: 1 | AW33: 0.25 | AX33: 1 | AY33: 0.25 | AZ33: 1 | BA33: 0.25 | BB33: 1 | BC33: 0.25 | BD33: 1 | BE33: 0 | BF33: 0 | BG33: 0 | BH33: 1 | BI33: 1 | BJ33: 0 | BK33: 0 | BL33: 0 | BM33: 0 | BN33: 0 | BO33: 0 | BP33: 0.25 | BQ33: 0.25 | BR33: 0.25 | BS33: 829500 | BT33: 679471.1 | BU33: 0 | BV33: 0.8191333333 | BW33: - | BX33: 100000 | BY33: 0 | BZ33: 0 | CA33: 0 | CB33: - | CC33: 200000 | CD33: 0 | CE33: 0 | CF33: 0 | CG33: - | CH33: 300000 | CI33: 0 | CJ33: 0 | CK33: 0 | CL33: - | CM33: 1429500 | CN33: 679471.1 | CO33: 0 | CP33: 0.4753208115 | CQ33: - | CR33: 11 | CS33: Comercio, Industria y Turismo | CT33: IMCT
D34: Mantener en 0 los casos de contagio contra fiebre aftosa y brucelosis en vacunos según normatividad del ICA. | E34: 0 | F34: 0 | H34: 0 | K34: 0 | N34: 0 | Q34: 0 | AO34: 0.6638514455 | AP34: PRODUCTIVIDAD Y COMPETITIVIDAD DE LAS EMPRESAS GENERADORAS DE MARCA CIUDAD | AQ34: Implementar 10 acciones para fortalecer la competitividad del sector turístico, impulsar la industria turística y las Zonas de Desarrollo Turístico Prioritario, enmarcadas en las líneas de Política Pública Sectorial. | AR34: 0 | AS34: Número de acciones implementadas para fortalecer la competitividad del sector turístico, impulsar la industria turística y las Zonas de Desarrollo Turístico Prioritario, enmarcadas en las líneas de Política Pública Sectorial. | AT34: 1 | AU34: 10 | AV34: 2 | AW34: 0.2 | AX34: 3 | AY34: 0.3 | AZ34: 3 | BA34: 0.3 | BB34: 2 | BC34: 0.2 | BD34: 3 | BE34: 0 | BF34: 0 | BG34: 0 | BH34: 1.5 | BI34: 1 | BJ34: 0 | BK34: 0 | BL34: 0 | BM34: 0 | BN34: 0 | BO34: 0 | BP34: 0.3 | BQ34: 0.3 | BR34: 0.3 | BS34: 112150 | BT34: 92150 | BU34: 0 | BV34: 0.8216674097 | BW34: - | BX34: 1220000 | BY34: 0 | BZ34: 0 | CA34: 0 | CB34: - | CC34: 2800000 | CD34: 0 | CE34: 0 | CF34: 0 | CG34: - | CH34: 1120000 | CI34: 0 | CJ34: 0 | CK34: 0 | CL34: - | CM34: 5252150 | CN34: 92150 | CO34: 0 | CP34: 0.01754519578 | CQ34: - | CR34: 1, 8, 9, 10, 11, 12 | CS34: Comercio, Industria y Turismo | CT34: IMCT
AQ35: Realizar 4 acciones de fortalecimiento al Bureau de Convenciones de Bucaramanga para promoción y posicionamiento de la ciudad y la región como destinos. | AR35: 0 | AS35: Número de acciones de fortalecimiento al Bureau de Convenciones de Bucaramanga implementadas para promoción y posicionamiento de la ciudad y la región como destinos. | AT35: 1 | AU35: 4 | AV35: 1 | AW35: 0.25 | AX35: 1 | AY35: 0.25 | AZ35: 1 | BA35: 0.25 | BB35: 1 | BC35: 0.25 | BD35: 1 | BE35: 0 | BF35: 0 | BG35: 0 | BH35: 1 | BI35: 1 | BJ35: 0 | BK35: 0 | BL35: 0 | BM35: 0 | BN35: 0 | BO35: 0 | BP35: 0.25 | BQ35: 0.25 | BR35: 0.25 | BS35: 80000 | BT35: 80000 | BU35: 21165 | BV35: 1 | BW35: 0.2645625 | BX35: 120000 | BY35: 0 | BZ35: 0 | CA35: 0 | CB35: - | CC35: 120000 | CD35: 0 | CE35: 0 | CF35: 0 | CG35: - | CH35: 120000 | CI35: 0 | CJ35: 0 | CK35: 0 | CL35: - | CM35: 440000 | CN35: 80000 | CO35: 21165 | CP35: 0.1818181818 | CQ35: 0.2645625 | CR35: 9, 11, 12 | CS35: Comercio, Industria y Turismo | CT35: IMCT
AQ36: Realizar 2 campañas de comunicación para la difusión que permitan el posicionamiento de la Marca Ciudad en el territorio local, regional y nacional que motiven la inversión de diferentes sectores económicos para fortalecer el desarrollo, competitividad y turismo. | AR36: 0 | AS36: Número de campañas de comunicación realizadas para la difusión realizadas que permitan el posicionamiento de la Marca Ciudad en el territorio local, regional y nacional que motiven la inversión de diferentes sectores económicos para fortalecer el desarrollo, competitividad y turismo. | AT36: 1 | AU36: 2 | AV36: 0 | AW36: 0 | AX36: 0 | AY36: 0 | AZ36: 1 | BA36: 0.5 | BB36: 1 | BC36: 0.5 | BD36: 0 | BE36: 0 | BF36: 0 | BG36: 0 | BH36: - | BI36: - | BJ36: - | BK36: - | BL36: 0 | BM36: 0 | BN36: 0 | BO36: 0 | BP36: 0 | BQ36: 0 | BR36: 0 | BS36: 0 | BT36: 0 | BU36: 0 | BV36: - | BW36: - | BX36: 0 | BY36: 0 | BZ36: 0 | CA36: - | CB36: - | CC36: 1000000 | CD36: 0 | CE36: 0 | CF36: 0 | CG36: - | CH36: 1000000 | CI36: 0 | CJ36: 0 | CK36: 0 | CL36: - | CM36: 2000000 | CN36: 0 | CO36: 0 | CP36: 0 | CQ36: - | CR36: 11 | CS36: Comercio, Industria y Turismo | CT36: Ofc. Prensa y Comunicaciones
AM38: 0.1097987878 | AN38: UNA ZONA RURAL COMPETITIVA E INCLUYENTE | AO38: 1 | AP38: DESARROLLO DEL CAMPO | AQ38: Instalar 200 sistemas de riego por goteo en la zona rural. | AR38: 0 | AS38: Número de sistemas de riego por goteo instalados en la zona rural. | AT38: 0 | AU38: 200 | AV38: 30 | AW38: 0.15 | AX38: 50 | AY38: 0.25 | AZ38: 60 | BA38: 0.3 | BB38: 60 | BC38: 0.3 | BD38: 0 | BE38: 0 | BF38: 0 | BG38: 0 | BH38: 0 | BI38: 0 | BJ38: 0 | BK38: 0 | BL38: 0 | BM38: 0 | BN38: 0 | BO38: 0 | BP38: 0 | BQ38: 0 | BR38: 0 | BS38: 38000 | BT38: 0 | BU38: 0 | BV38: 0 | BW38: - | BX38: 100000 | BY38: 0 | BZ38: 0 | CA38: 0 | CB38: - | CC38: 120000 | CD38: 0 | CE38: 0 | CF38: 0 | CG38: - | CH38: 120000 | CI38: 0 | CJ38: 0 | CK38: 0 | CL38: - | CM38: 378000 | CN38: 0 | CO38: 0 | CP38: 0 | CQ38: - | CR38: 2 | CS38: Agricultura y Desarrollo Rural | CT38: Sec. Desarrollo Social
D39: Aumentar al 90% la cobertura de saneamiento básico en el sector rural. | E39: 0.8 | F39: 0.9 | H39: 0.8 | K39: 0.03 | N39: 0.86 | Q39: 0.9 | AQ39: Mantener 2 ciclos de vacunación contra fiebre aftosa y brucelosis en vacunos según normatividad del ICA. | AR39: 0 | AS39: Número de ciclos de vacunación mantenidas contra fiebre aftosa y brucelosis en vacunos según normatividad del ICA. | AT39: 2 | AU39: 2 | AV39: 2 | AW39: 1 | AX39: 2 | AY39: 1 | AZ39: 2 | BA39: 1 | BB39: 2 | BC39: 1 | BD39: 2 | BE39: 0 | BF39: 0 | BG39: 0 | BH39: 1 | BI39: 1 | BJ39: 0 | BK39: 0 | BL39: 0 | BM39: 0 | BN39: 0 | BO39: 0 | BP39: 1 | BQ39: 1 | BR39: 1 | BS39: 100000 | BT39: 91366 | BU39: 0 | BV39: 0.91366 | BW39: - | BX39: 100000 | BY39: 0 | BZ39: 0 | CA39: 0 | CB39: - | CC39: 110000 | CD39: 0 | CE39: 0 | CF39: 0 | CG39: - | CH39: 110000 | CI39: 0 | CJ39: 0 | CK39: 0 | CL39: - | CM39: 420000 | CN39: 91366 | CO39: 0 | CP39: 0.2175380952 | CQ39: - | CR39: 2 | CS39: Agricultura y Desarrollo Rural | CT39: Sec. Desarrollo Social
AQ40: Realizar 12 proyectos productivos agrícolas o pecuarios. | AR40: 0 | AS40: Número de proyectos productivos agrícolas o pecuarios realizados. | AT40: 1 | AU40: 12 | AV40: 1 | AW40: 0.08333333333 | AX40: 3 | AY40: 0.25 | AZ40: 4 | BA40: 0.3333333333 | BB40: 4 | BC40: 0.3333333333 | BD40: 0 | BE40: 0 | BF40: 0 | BG40: 0 | BH40: 0 | BI40: 0 | BJ40: 0 | BK40: 0 | BL40: 0 | BM40: 0 | BN40: 0 | BO40: 0 | BP40: 0 | BQ40: 0 | BR40: 0 | BS40: 0 | BT40: 0 | BU40: 0 | BV40: - | BW40: - | BX40: 120000 | BY40: 0 | BZ40: 0 | CA40: 0 | CB40: - | CC40: 140000 | CD40: 0 | CE40: 0 | CF40: 0 | CG40: - | CH40: 140000 | CI40: 0 | CJ40: 0 | CK40: 0 | CL40: - | CM40: 400000 | CN40: 0 | CO40: 0 | CP40: 0 | CQ40: - | CR40: 2 | CS40: Agricultura y Desarrollo Rural | CT40: Sec. Desarrollo Social
AQ41: Mantener 4 mercadillos campesinos. | AR41: 0 | AS41: Número de mercadillos campesinos mantenidos. | AT41: 4 | AU41: 4 | AV41: 4 | AW41: 0.25 | AX41: 4 | AY41: 0.25 | AZ41: 4 | BA41: 0.25 | BB41: 4 | BC41: 0.25 | BD41: 4 | BE41: 0 | BF41: 0 | BG41: 0 | BH41: 1 | BI41: 1 | BJ41: 0 | BK41: 0 | BL41: 0 | BM41: 0 | BN41: 0 | BO41: 0 | BP41: =+AVERAGE(BD41:BG41)/AU41 -> 0.25 | BQ41: 0.25 | BR41: 0.25 | BS41: 125262 | BT41: 57000 | BU41: 0 | BV41: 0.4550462231 | BW41: - | BX41: 150000 | BY41: 0 | BZ41: 0 | CA41: 0 | CB41: - | CC41: 150000 | CD41: 0 | CE41: 0 | CF41: 0 | CG41: - | CH41: 150000 | CI41: 0 | CJ41: 0 | CK41: 0 | CL41: - | CM41: 575262 | CN41: 57000 | CO41: 0 | CP41: 0.09908528636 | CQ41: - | CR41: 2 | CS41: Agricultura y Desarrollo Rural | CT41: Sec. Desarrollo Social
AQ42: Mantener el Plan General de Asistencia Técnica. | AR42: 0 | AS42: Número de Planes Generales de Asistencia Técnica actualizados e mantenidos. | AT42: 1 | AU42: 1 | AV42: 1 | AW42: 0.25 | AX42: 1 | AY42: 0.25 | AZ42: 1 | BA42: 0.25 | BB42: 1 | BC42: 0.25 | BD42: 1 | BE42: 0 | BF42: 0 | BG42: 0 | BH42: 1 | BI42: 1 | BJ42: 0 | BK42: 0 | BL42: 0 | BM42: 0 | BN42: 0 | BO42: 0 | BP42: =+AVERAGE(BD42:BG42)/AU42 -> 0.25 | BQ42: 0.25 | BR42: 0.25 | BS42: 20000 | BT42: 8500 | BU42: 0 | BV42: 0.425 | BW42: - | BX42: 120000 | BY42: 0 | BZ42: 0 | CA42: 0 | CB42: - | CC42: 100000 | CD42: 0 | CE42: 0 | CF42: 0 | CG42: - | CH42: 90000 | CI42: 0 | CJ42: 0 | CK42: 0 | CL42: - | CM42: 330000 | CN42: 8500 | CO42: 0 | CP42: 0.02575757576 | CQ42: - | CR42: 2 | CS42: Agricultura y Desarrollo Rural | CT42: Sec. Desarrollo Social
AQ43: Desarrollar procesos agroindustriales con 20 unidades productivas del sector rural. | AR43: 0 | AS43: Número de unidades productivas del sector rural con procesos agroindustriales desarrollados. | AT43: 0 | AU43: 20 | AV43: 0 | AW43: 0 | AX43: 6 | AY43: 0.3 | AZ43: 6 | BA43: 0.3 | BB43: 8 | BC43: 0.4 | BD43: 0 | BE43: 0 | BF43: 0 | BG43: 0 | BH43: - | BI43: - | BJ43: 0 | BK43: 0 | BL43: 0 | BM43: 0 | BN43: 0 | BO43: 0 | BP43: 0 | BQ43: 0 | BR43: 0 | BS43: 0 | BT43: 0 | BU43: 0 | BV43: - | BW43: - | BX43: 90000 | BY43: 0 | BZ43: 0 | CA43: 0 | CB43: - | CC43: 90000 | CD43: 0 | CE43: 0 | CF43: 0 | CG43: - | CH43: 90000 | CI43: 0 | CJ43: 0 | CK43: 0 | CL43: - | CM43: 270000 | CN43: 0 | CO43: 0 | CP43: 0 | CQ43: - | CR43: 2 | CS43: Agricultura y Desarrollo Rural | CT43: Sec. Desarrollo Social
AQ44: Repotenciar 2 acueductos veredales. | AR44: 0 | AS44: Número de acueductos veredales repotenciados. | AT44: 4 | AU44: 2 | AV44: 0 | AW44: 0 | AX44: 0 | AY44: 0 | AZ44: 1 | BA44: 0.5 | BB44: 1 | BC44: 0.5 | BD44: 0 | BE44: 0 | BF44: 0 | BG44: 0 | BH44: - | BI44: - | BJ44: - | BK44: - | BL44: 0 | BM44: 0 | BN44: 0 | BO44: 0 | BP44: 0 | BQ44: 0 | BR44: 0 | BS44: 0 | BT44: 0 | BU44: 0 | BV44: - | BW44: - | BX44: 0 | BY44: 0 | BZ44: 0 | CA44: - | CB44: - | CC44: 1000000 | CD44: 0 | CE44: 0 | CF44: 0 | CG44: - | CH44: 1000000 | CI44: 0 | CJ44: 0 | CK44: 0 | CL44: - | CM44: 2000000 | CN44: 0 | CO44: 0 | CP44: 0 | CQ44: - | CR44: 6 | CS44: Vivienda | CT44: Sec. Infraestructura
AQ45: Construir 1 acueducto veredal. | AR45: 0 | AS45: Porcentaje de avance en la construcción del acueducto veredal. | AT45: 0 | AU45: 1 | AV45: 0 | AW45: 0 | AX45: 0 | AY45: 0 | AZ45: 0.2 | BA45: 0.2 | BB45: 0.8 | BC45: 0.8 | BD45: 0 | BE45: 0 | BF45: 0 | BG45: 0 | BH45: - | BI45: - | BJ45: - | BK45: - | BL45: 0 | BM45: 0 | BN45: 0 | BO45: 0 | BP45: 0 | BQ45: 0 | BR45: 0 | BS45: 0 | BT45: 0 | BU45: 0 | BV45: - | BW45: - | BX45: 0 | BY45: 0 | BZ45: 0 | CA45: - | CB45: - | CC45: 1800000 | CD45: 0 | CE45: 0 | CF45: 0 | CG45: - | CH45: 2000000 | CI45: 0 | CJ45: 0 | CK45: 0 | CL45: - | CM45: 3800000 | CN45: 0 | CO45: 0 | CP45: 0 | CQ45: - | CR45: 6 | CS45: Vivienda | CT45: Sec. Infraestructura
AQ46: Construir 50 pozos sépticos para el sector rural. | AR46: 0 | AS46: Número de pozos sépticos construidos para el sector rural. | AT46: 160 | AU46: 50 | AV46: 0 | AW46: 0 | AX46: 0 | AY46: 0 | AZ46: 50 | BA46: 1 | BB46: 0 | BC46: 0 | BD46: 0 | BE46: 0 | BF46: 0 | BG46: 0 | BH46: - | BI46: - | BJ46: - | BK46: - | BL46: 0 | BM46: 0 | BN46: - | BO46: - | BP46: 0 | BQ46: 0 | BR46: 0 | BS46: 0 | BT46: 0 | BU46: 0 | BV46: - | BW46: - | BX46: 0 | BY46: 0 | BZ46: 0 | CA46: - | CB46: - | CC46: 200000 | CD46: 0 | CE46: 0 | CF46: 0 | CG46: - | CH46: 0 | CI46: 0 | CJ46: 0 | CK46: - | CL46: - | CM46: 200000 | CN46: 0 | CO46: 0 | CP46: 0 | CQ46: - | CR46: 6 | CS46: Vivienda | CT46: Sec. Infraestructura
BD49: 2020 | BE49: 2021 | BF49: 2022 | BG49: 2023 | BH49: CA
AZ50: IMCT | BD50: =+AVERAGE(BI32:BI35) -> 1 | BE50: =+AVERAGE(BK32:BK35) -> 0 | BF50: =+AVERAGE(BM32:BM35) -> 0 | BG50: =+AVERAGE(BO32:BO35) -> 0 | BH50: =+AVERAGE(BQ32:BQ35) -> 0.2375
AZ51: IMEBU | BD51: =+AVERAGE(BI11,BI13:BI18,BI20:BI22) -> 0.6946666667 | BE51: =+AVERAGE(BK11,BK13:BK18,BK20:BK22) -> 0 | BF51: =+AVERAGE(BM11,BM13:BM18,BM20:BM22) -> 0 | BG51: =+AVERAGE(BO11,BO13:BO18,BO20:BO22) -> 0 | BH51: =+AVERAGE(BQ11,BQ13:BQ18,BQ20:BQ22) -> 0.1839728571
AZ52: OATIC | BD52: =+AVERAGE(BI25:BI27) -> 0.5 | BE52: =+AVERAGE(BK25:BK27) -> 0 | BF52: =+AVERAGE(BM25:BM27) -> 0 | BG52: =+AVERAGE(BO25:BO27) -> 0 | BH52: =+AVERAGE(BQ25:BQ27) -> 0.1166666667
AZ53: Ofc. Prensa y Comunicaciones | BD53: =+BI36 -> - | BE53: =+BK36 -> - | BF53: =+BM36 -> 0 | BG53: =+BO36 -> 0 | BH53: =+BQ36 -> 0
AZ54: Sec. Desarrollo Social | BD54: =+AVERAGE(BI38:BI43) -> 0.6 | BE54: =+AVERAGE(BK38:BK43) -> 0 | BF54: =+AVERAGE(BM38:BM43) -> 0 | BG54: =+AVERAGE(BO38:BO43) -> 0 | BH54: =+AVERAGE(BQ38:BQ43) -> 0.25
AZ55: Sec. Educación | BD55: =+AVERAGE(BI29:BI30) -> 0.5 | BE55: =+AVERAGE(BK29:BK30) -> 0 | BF55: =+AVERAGE(BM29:BM30) -> 0 | BG55: =+AVERAGE(BO29:BO30) -> 0 | BH55: =+AVERAGE(BQ29:BQ30) -> 0.3642857143
AZ56: Sec. Hacienda | BD56: =+BI12 -> 0 | BE56: =+BK12 -> 0 | BF56: =+BM12 -> 0 | BG56: =+BO12 -> 0 | BH56: =+BQ12 -> 0
AZ57: Sec. Infraestructura | BD57: =+AVERAGE(BI24,BI44:BI46) ->  | BE57: =+AVERAGE(BK24,BK44:BK46) -> 0 | BF57: =+AVERAGE(BM24,BM44:BM46) -> 0 | BG57: =+AVERAGE(BO24,BO44:BO46) -> 0 | BH57: =+AVERAGE(BQ24,BQ44:BQ46) -> 0

Sheet LÍNEA 4
B3: ALCALDÍA DE BUCARAMANGA
B4: PLAN DE DESARROLLO 2020 - 2023 "BUCARAMANGA, UNA CIUDAD DE OPORTUNIDADES"
B5: LÍNEA ESTRATÉGICA 4. BUCARAMANGA CIUDAD VITAL: LA VIDA ES SAGRADA
B8: POND | C8: LÍNEA ESTRATÉGICA | D8: META DE BIENESTAR | E8: LÍNEA BASE | F8: RESULTADO CUATRIENIO | H8: META POR VIGENCIA | T8: LOGRO POR VIGENCIA | AB8: PORCENTAJE DE CUMPLIMIENTO | AM8: POND | AN8: COMPONENTE | AO8: POND | AP8: PROGRAMA | AQ8: META DE PRODUCTO | AR8: RUBRO PPTAL | AS8: INDICADOR DE PRODUCTO | BD8: LOGRO POR VIGENCIA | BH8: PORCENTAJE DE CUMPLIMIENTO | BS8: RECURSOS POR FUENTE DE FINANCIACIÓN PARA CADA VIGENCIA | CR8: ODS | CS8: SECTOR
BS9: 2020 | BX9: 2021 | CC9: 2022 | CH9: 2023 | CM9: 2020 - 2023
H10: 2020 | K10: 2021 | N10: 2022 | Q10: 2023 | T10: 2020 | V10: 2021 | X10: 2022 | Z10: 2023 | AB10: 2020 | AD10: 2021 | AF10: 2022 | AH10: 2023 | AJ10: 2020 - 2023 | AS10: NOMBRE INDICADOR | AT10: LÍNEA BASE | AU10: ESPERADO CUATRIENIO | AV10: 2020 | AX10: 2021 | AZ10: 2022 | BB10: 2023 | BD10: 2020 | BE10: 2021 | BF10: 2022 | BG10: 2023 | BH10: 2020 | BJ10: 2021 | BL10: 2022 | BN10: 2023 | BP10: 2020 - 2023 | BS10: RECURSOS PROGRAMADOS | BT10: RECURSOS EJECUTADOS | BU10: RECURSOS GESTIONADOS | BV10: PORCENTAJE EJECUCIÓN | BW10: NIVEL DE GESTIÓN | BX10: RECURSOS PROGRAMADOS | BY10: RECURSOS EJECUTADOS | BZ10: RECURSOS GESTIONADOS | CA10: PORCENTAJE EJECUCIÓN | CB10: NIVEL DE GESTIÓN | CC10: RECURSOS PROGRAMADOS | CD10: RECURSOS EJECUTADOS | CE10: RECURSOS GESTIONADOS | CF10: PORCENTAJE EJECUCIÓN | CG10: NIVEL DE GESTIÓN | CH10: RECURSOS PROGRAMADOS | CI10: RECURSOS EJECUTADOS | CJ10: RECURSOS GESTIONADOS | CK10: PORCENTAJE EJECUCIÓN | CL10: NIVEL DE GESTIÓN | CM10: RECURSOS PROGRAMADOS | CN10: RECURSOS EJECUTADOS | CO10: RECURSOS GESTIONADOS | CP10: PORCENTAJE EJECUCIÓN | CQ10: NIVEL DE GESTIÓN | CT10: RESPONSABLE
B11: 0.1345685275 | C11: 4. BUCARAMANGA CIUDAD VITAL: LA VIDA ES SAGRADA | D11: Aumentar a 4,86 mts2/hab el Índice de Espacio Público Efectivo por Habitante. | E11: 4.7 | F11: 4.86 | H11: 4.7 | K11: 4.7 | N11: 4.77 | Q11: 4.86 | AM11: 0.6514625883 | AN11: ESPACIO PÚBLICO VITAL | AO11: 0.00269381427 | AP11: ESPACIO PÚBLICO TRANSFORMADOR | AQ11: Sanear, titular y/o incorporar 450 bienes inmuebles a favor del Municipio. | AR11: 0 | AS11: Número de bienes inmuebles saneados, titulados y/o incorporados a favor del Municipio. | AT11: 218 | AU11: 450 | AV11: 200 | AW11: =+AV11/AU11 -> 0.4444444444 | AX11: 150 | AY11: =+AX11/AU11 -> 0.3333333333 | AZ11: 50 | BA11: =+AZ11/AU11 -> 0.1111111111 | BB11: 50 | BC11: =+BB11/AU11 -> 0.1111111111 | BD11: 134 | BE11: 0 | BF11: 0 | BG11: 0 | BH11: =IF(AV11=0," -",BD11/AV11) -> 0.67 | BI11: =IF(AV11=0," -",IF(BH11>100%,100%,BH11)) -> 0.67 | BJ11: =IF(AX11=0," -",BE11/AX11) -> 0 | BK11: =IF(AX11=0," -",IF(BJ11>100%,100%,BJ11)) -> 0 | BL11: =IF(AZ11=0," -",BF11/AZ11) -> 0 | BM11: =IF(AZ11=0," -",IF(BL11>100%,100%,BL11)) -> 0 | BN11: =IF(BB11=0," -",BG11/BB11) -> 0 | BO11: =IF(BB11=0," -",IF(BN11>100%,100%,BN11)) -> 0 | BP11: =+SUM(BD11:BG11)/AU11 -> 0.2977777778 | BQ11: =+IF(BP11>100%,100%,BP11) -> 0.2977777778 | BR11: =+BQ11 -> 0.2977777778 | BS11: 100000 | BT11: 10674 | BU11: 12500 | BV11: =IF(BS11=0," -",BT11/BS11) -> 0.10674 | BW11: =IF(BU11=0," -",IF(BT11=0,100%,BU11/BT11)) -> 1.171069889 | BX11: 100000 | BY11: 0 | BZ11: 0 | CA11: =IF(BX11=0," -",BY11/BX11) -> 0 | CB11: =IF(BZ11=0," -",IF(BY11=0,100%,BZ11/BY11)) -> - | CC11: 60000 | CD11: 0 | CE11: 0 | CF11: =IF(CC11=0," -",CD11/CC11) -> 0 | CG11: =IF(CE11=0," -",IF(CD11=0,100%,CE11/CD11)) -> - | CH11: 60000 | CI11: 0 | CJ11: 0 | CK11: =IF(CH11=0," -",CI11/CH11) -> 0 | CL11: =IF(CJ11=0," -",IF(CI11=0,100%,CJ11/CI11)) -> - | CM11: =+BS11+BX11+CC11+CH11 -> 320000 | CN11: 10674 | CO11: 12500 | CP11: =IF(CM11=0," -",CN11/CM11) -> 0.03335625 | CQ11: =IF(CO11=0," -",IF(CN11=0,100%,CO11/CN11)) -> 1.171069889 | CR11: 9, 11 | CS11: Interior | CT11: DADEP
AQ12: Acompañar 300 iniciativas de emprendimiento comerciales en espacio público a través de planes, oferta, proyectos y/o programas de la administración municipal. | AR12: 0 | AS12: Número de iniciativas de emprendimiento comerciales en espacio público acompañadas a través de planes, oferta, proyectos y/o programas de la administración municipal. | AT12: 164 | AU12: 300 | AV12: 0 | AW12: =+AV12/AU12 -> 0 | AX12: 100 | AY12: =+AX12/AU12 -> 0.3333333333 | AZ12: 100 | BA12: =+AZ12/AU12 -> 0.3333333333 | BB12: 100 | BC12: =+BB12/AU12 -> 0.3333333333 | BD12: 0 | BE12: 0 | BF12: 0 | BG12: 0 | BH12: =IF(AV12=0," -",BD12/AV12) -> - | BI12: =IF(AV12=0," -",IF(BH12>100%,100%,BH12)) -> - | BJ12: =IF(AX12=0," -",BE12/AX12) -> 0 | BK12: =IF(AX12=0," -",IF(BJ12>100%,100%,BJ12)) -> 0 | BL12: =IF(AZ12=0," -",BF12/AZ12) -> 0 | BM12: =IF(AZ12=0," -",IF(BL12>100%,100%,BL12)) -> 0 | BN12: =IF(BB12=0," -",BG12/BB12) -> 0 | BO12: =IF(BB12=0," -",IF(BN12>100%,100%,BN12)) -> 0 | BP12: =+SUM(BE12:BG12)/AU12 -> 0 | BQ12: =+IF(BP12>100%,100%,BP12) -> 0 | BR12: =+BQ12 -> 0 | BS12: 0 | BT12: 0 | BU12: 0 | BV12: =IF(BS12=0," -",BT12/BS12) -> - | BW12: =IF(BU12=0," -",IF(BT12=0,100%,BU12/BT12)) -> - | BX12: 50000 | BY12: 0 | BZ12: 0 | CA12: =IF(BX12=0," -",BY12/BX12) -> 0 | CB12: =IF(BZ12=0," -",IF(BY12=0,100%,BZ12/BY12)) -> - | CC12: 70000 | CD12: 0 | CE12: 0 | CF12: =IF(CC12=0," -",CD12/CC12) -> 0 | CG12: =IF(CE12=0," -",IF(CD12=0,100%,CE12/CD12)) -> - | CH12: 70000 | CI12: 0 | CJ12: 0 | CK12: =IF(CH12=0," -",CI12/CH12) -> 0 | CL12: =IF(CJ12=0," -",IF(CI12=0,100%,CJ12/CI12)) -> - | CM12: 190000 | CN12: 0 | CO12: 0 | CP12: =IF(CM12=0," -",CN12/CM12) -> 0 | CQ12: =IF(CO12=0," -",IF(CN12=0,100%,CO12/CN12)) -> - | CR12: 8, 10 | CS12: Trabajo | CT12: DADEP
AQ13: Fomular e implementar 1 estrategia que promueva la participación de personas del sector privado y/o ciudadanos en la administración, mantenimiento y aprovechamiento sostenible de los Parques y Zonas Verdes Urbanas del municipio (Plan Adopta un Parque - Zona verde). | AR13: 0 | AS13: Número de estrategias formuladas e implementadas que promuevan la participación personas del sector privado y/o ciudadanos en la administración, mantenimiento y aprovechamiento sostenible de los Parques y Zonas Verdes Urbanas del municipio (Plan Adopta un Parque - Zona verde). | AT13: 0 | AU13: 1 | AV13: 0 | AW13: =+AV13/AU13 -> 0 | AX13: 1 | AY13: 0.33 | AZ13: 1 | BA13: 0.33 | BB13: 1 | BC13: 0.34 | BD13: 0 | BE13: 0 | BF13: 0 | BG13: 0 | BH13: =IF(AV13=0," -",BD13/AV13) -> - | BI13: =IF(AV13=0," -",IF(BH13>100%,100%,BH13)) -> - | BJ13: =IF(AX13=0," -",BE13/AX13) -> 0 | BK13: =IF(AX13=0," -",IF(BJ13>100%,100%,BJ13)) -> 0 | BL13: =IF(AZ13=0," -",BF13/AZ13) -> 0 | BM13: =IF(AZ13=0," -",IF(BL13>100%,100%,BL13)) -> 0 | BN13: =IF(BB13=0," -",BG13/BB13) -> 0 | BO13: =IF(BB13=0," -",IF(BN13>100%,100%,BN13)) -> 0 | BP13: =+AVERAGE(BE13:BG13)/AU13 -> 0 | BQ13: =+IF(BP13>100%,100%,BP13) -> 0 | BR13: =+BQ13 -> 0 | BS13: 0 | BT13: 0 | BU13: 0 | BV13: =IF(BS13=0," -",BT13/BS13) -> - | BW13: =IF(BU13=0," -",IF(BT13=0,100%,BU13/BT13)) -> - | BX13: 50000 | BY13: 0 | BZ13: 0 | CA13: =IF(BX13=0," -",BY13/BX13) -> 0 | CB13: =IF(BZ13=0," -",IF(BY13=0,100%,BZ13/BY13)) -> - | CC13: 70000 | CD13: 0 | CE13: 0 | CF13: =IF(CC13=0," -",CD13/CC13) -> 0 | CG13: =IF(CE13=0," -",IF(CD13=0,100%,CE13/CD13)) -> - | CH13: 70000 | CI13: 0 | CJ13: 0 | CK13: =IF(CH13=0," -",CI13/CH13) -> 0 | CL13: =IF(CJ13=0," -",IF(CI13=0,100%,CJ13/CI13)) -> - | CM13: =+BS13+BX13+CC13+CH13 -> 190000 | CN13: =+BT13+BY13+CD13+CI13 -> 0 | CO13: =+BU13+BZ13+CE13+CJ13 -> 0 | CP13: =IF(CM13=0," -",CN13/CM13) -> 0 | CQ13: =IF(CO13=0," -",IF(CN13=0,100%,CO13/CN13)) -> - | CR13: 3, 10, 11 | CS13: Ambiente y Desarrollo sostenible | CT13: DADEP
AO14: 0.07956324758 | AP14: MEJORAMIENTO Y MANTENIMIENTO DE PARQUES Y ZONAS VERDES | AQ14: Mantener el 100% de los parques, zonas verdes y su mobiliario. | AR14: 0 | AS14: Porcentaje de parques, zonas verdes y su mobiliario mantenido. | AT14: 1 | AU14: 1 | AV14: 1 | AW14: 0.25 | AX14: 1 | AY14: 0.25 | AZ14: 1 | BA14: 0.25 | BB14: 1 | BC14: 0.25 | BD14: 1 | BE14: 0 | BF14: 0 | BG14: 0 | BH14: 1 | BI14: 1 | BJ14: 0 | BK14: 0 | BL14: 0 | BM14: 0 | BN14: 0 | BO14: 0 | BP14: =+AVERAGE(BD14:BG14)/AU14 -> 0.25 | BQ14: 0.25 | BR14: 0.25 | BS14: 4974875 | BT14: 4974875 | BU14: 0 | BV14: 1 | BW14: - | BX14: 5000000 | BY14: 0 | BZ14: 0 | CA14: 0 | CB14: - | CC14: 5300000 | CD14: 0 | CE14: 0 | CF14: 0 | CG14: - | CH14: 5400000 | CI14: 0 | CJ14: 0 | CK14: 0 | CL14: - | CM14: 20674875 | CN14: 4974875 | CO14: 0 | CP14: 0.2406241876 | CQ14: - | CR14: 11 | CS14: Ambiente y Desarrollo sostenible | CT14: Sec. Infraestructura
AO15: 0.2551841715 | AP15: EQUIPAMIENTO COMUNITARIO | AQ15: Construir y/o mejorar 100.000 m2 de espacio espacio público y equipamiento urbano de la ciudad. | AR15: 0 | AS15: Número de m2 de espacio público y equipamiento urbano de la ciudad consrtuido y/o mejorado. | AT15: N/D | AU15: 100000 | AV15: 6400 | AW15: =+AV15/AU15 -> 0.064 | AX15: 40000 | AY15: =+AX15/AU15 -> 0.4 | AZ15: 40000 | BA15: =+AZ15/AU15 -> 0.4 | BB15: 13600 | BC15: =+BB15/AU15 -> 0.136 | BD15: 149.2 | BE15: 0 | BF15: 0 | BG15: 0 | BH15: 0.0233125 | BI15: 0.0233125 | BJ15: 0 | BK15: 0 | BL15: 0 | BM15: 0 | BN15: 0 | BO15: 0 | BP15: 0.000373 | BQ15: 0.000373 | BR15: 0.000373 | BS15: 48621885 | BT15: 8705404 | BU15: 0 | BV15: 0.1790429145 | BW15: - | BX15: 20282194 | BY15: 0 | BZ15: 0 | CA15: 0 | CB15: - | CC15: 11500000 | CD15: 0 | CE15: 0 | CF15: 0 | CG15: - | CH15: 16500000 | CI15: 0 | CJ15: 0 | CK15: 0 | CL15: - | CM15: 96904079 | CN15: 8705404 | CO15: 0 | CP15: 0.08983526896 | CQ15: - | CR15: 10 y 11 | CS15: Interior | CT15: Sec. Infraestructura
AQ16: Realizar mejoramiento y/o mantenimiento a la infraestructura de 2 plaza de mercado a cargo del municipio. | AR16: 0 | AS16: Número de plaza de mercados a cargo del municipio con acciones de mejoramiento y mantenimiento a la infraestructura. | AT16: 0 | AU16: 2 | AV16: 0 | AW16: =+AV16/AU16 -> 0 | AX16: 0 | AY16: =+AX16/AU16 -> 0 | AZ16: 2 | BA16: =+AZ16/AU16 -> 1 | BB16: 0 | BC16: =+BB16/AU16 -> 0 | BD16: 0 | BE16: 0 | BF16: 0 | BG16: 0 | BH16: - | BI16: - | BJ16: - | BK16: - | BL16: 0 | BM16: 0 | BN16: - | BO16: - | BP16: 0 | BQ16: 0 | BR16: 0 | BS16: 0 | BT16: 0 | BU16: 0 | BV16: - | BW16: - | BX16: 0 | BY16: 0 | BZ16: 0 | CA16: - | CB16: - | CC16: 2000000 | CD16: 0 | CE16: 0 | CF16: 0 | CG16: - | CH16: 0 | CI16: 0 | CJ16: 0 | CK16: - | CL16: - | CM16: 2000000 | CN16: 0 | CO16: 0 | CP16: 0 | CQ16: - | CR16: 11 | CS16: Interior | CT16: Sec. Infraestructura
AQ17: Mantener las 4 Plazas de Mercado administradas por el Municipio. | AR17: 0 | AS17: Número de plazas de mercado administradas por el Municipio mantenidas. | AT17: 4 | AU17: 4 | AV17: 4 | AW17: 0.25 | AX17: 4 | AY17: 0.25 | AZ17: 4 | BA17: 0.25 | BB17: 4 | BC17: 0.25 | BD17: 4 | BE17: 0 | BF17: 0 | BG17: 0 | BH17: 1 | BI17: 1 | BJ17: 0 | BK17: 0 | BL17: 0 | BM17: 0 | BN17: 0 | BO17: 0 | BP17: 0.25 | BQ17: 0.25 | BR17: 0.25 | BS17: 965189 | BT17: 802895 | BU17: 0 | BV17: 0.8318526216 | BW17: - | BX17: 972110 | BY17: 0 | BZ17: 0 | CA17: 0 | CB17: - | CC17: 970110 | CD17: 0 | CE17: 0 | CF17: 0 | CG17: - | CH17: 1129633 | CI17: 0 | CJ17: 0 | CK17: 0 | CL17: - | CM17: 4037042 | CN17: 802895 | CO17: 0 | CP17: 0.1988820032 | CQ17: - | CR17: 11 | CS17: Interior | CT17: Sec. Interior
AQ18: Construir y/o gestionar el Coso Municipal. | AR18: 0 | AS18: Porcentaje de avance en la construcción y/o gestión del Coso Municipal | AT18: 0 | AU18: 1 | AV18: 0 | AW18: =+AV18/AU18 -> 0 | AX18: 0 | AY18: =+AX18/AU18 -> 0 | AZ18: 0 | BA18: =+AZ18/AU18 -> 0 | BB18: 1 | BC18: =+BB18/AU18 -> 1 | BD18: 0 | BE18: 0 | BF18: 0 | BG18: 0 | BH18: - | BI18: - | BJ18: - | BK18: - | BL18: - | BM18: - | BN18: 0 | BO18: 0 | BP18: 0 | BQ18: 0 | BR18: 0 | BS18: 0 | BT18: 0 | BU18: 0 | BV18: - | BW18: - | BX18: 0 | BY18: 0 | BZ18: 0 | CA18: - | CB18: - | CC18: 0 | CD18: 0 | CE18: 0 | CF18: - | CG18: - | CH18: 3000000 | CI18: 0 | CJ18: 0 | CK18: 0 | CL18: - | CM18: 3000000 | CN18: 0 | CO18: 0 | CP18: 0 | CQ18: - | CR18: 11 | CS18: Interior | CT18: Sec. Salud y Ambiente
AO19: 0.1233064543 | AP19: INFRAESTRUCTURA DE TRANSPORTE | AQ19: Construir 15 kilómetros de cicloruta en el municipio diseñados bajo la implementación de la estrategia de la bicicleta. | AR19: 0 | AS19: Número de kilómetros de cicloruta construídos en el municipio diseñados bajo la implementación de la estrategia de la bicicleta. | AT19: 17.3 | AU19: 15 | AV19: 0 | AW19: =+AV19/AU19 -> 0 | AX19: 0 | AY19: =+AX19/AU19 -> 0 | AZ19: 8 | BA19: =+AZ19/AU19 -> 0.5333333333 | BB19: 7 | BC19: =+BB19/AU19 -> 0.4666666667 | BD19: 0 | BE19: 0 | BF19: 0 | BG19: 0 | BH19: - | BI19: - | BJ19: - | BK19: - | BL19: 0 | BM19: 0 | BN19: 0 | BO19: 0 | BP19: 0 | BQ19: 0 | BR19: 0 | BS19: 0 | BT19: 0 | BU19: 0 | BV19: - | BW19: - | BX19: 0 | BY19: 0 | BZ19: 0 | CA19: - | CB19: - | CC19: 5000000 | CD19: 0 | CE19: 0 | CF19: 0 | CG19: - | CH19: 5000000 | CI19: 0 | CJ19: 0 | CK19: 0 | CL19: - | CM19: 10000000 | CN19: 0 | CO19: 0 | CP19: 0 | CQ19: - | CR19: 9 | CS19: Transporte | CT19: Sec. Infraestructura
AQ20: Realizar mantenimiento o mejoramiento a 100.000 m2 de malla vial urbana. | AR20: 0 | AS20: Número de m2 de malla vial urbana mantenidos o mejorados. | AT20: 148798 | AU20: 100000 | AV20: 41000 | AW20: =+AV20/AU20 -> 0.41 | AX20: 24500 | AY20: =+AX20/AU20 -> 0.245 | AZ20: 24500 | BA20: =+AZ20/AU20 -> 0.245 | BB20: 10000 | BC20: =+BB20/AU20 -> 0.1 | BD20: 41924 | BE20: 0 | BF20: 0 | BG20: 0 | BH20: 1.022536585 | BI20: 1 | BJ20: 0 | BK20: 0 | BL20: 0 | BM20: 0 | BN20: 0 | BO20: 0 | BP20: 0.10481 | BQ20: 0.10481 | BR20: 0.10481 | BS20: 7474435 | BT20: 7107147 | BU20: 0 | BV20: 0.9508607674 | BW20: - | BX20: 3000000 | BY20: 0 | BZ20: 0 | CA20: 0 | CB20: - | CC20: 3500000 | CD20: 0 | CE20: 0 | CF20: 0 | CG20: - | CH20: 2980000 | CI20: 0 | CJ20: 0 | CK20: 0 | CL20: - | CM20: 16954435 | CN20: 7107147 | CO20: 0 | CP20: 0.4191910258 | CQ20: - | CR20: 9 | CS20: Transporte | CT20: Sec. Infraestructura
AQ21: Construir 3.000 metros líneales de placa huella en la zona rural. | AR21: 0 | AS21: Número de metros lineales de placa huella construídos en la zona rural. | AT21: 3810 | AU21: 3000 | AV21: 0 | AW21: =+AV21/AU21 -> 0 | AX21: 1500 | AY21: =+AX21/AU21 -> 0.5 | AZ21: 1500 | BA21: =+AZ21/AU21 -> 0.5 | BB21: 0 | BC21: =+BB21/AU21 -> 0 | BD21: 0 | BE21: 0 | BF21: 0 | BG21: 0 | BH21: - | BI21: - | BJ21: 0 | BK21: 0 | BL21: 0 | BM21: 0 | BN21: - | BO21: - | BP21: 0 | BQ21: 0 | BR21: 0 | BS21: 0 | BT21: 0 | BU21: 0 | BV21: - | BW21: - | BX21: 5000000 | BY21: 0 | BZ21: 0 | CA21: 0 | CB21: - | CC21: 2000000 | CD21: 0 | CE21: 0 | CF21: 0 | CG21: - | CH21: 0 | CI21: 0 | CJ21: 0 | CK21: - | CL21: - | CM21: 7000000 | CN21: 0 | CO21: 0 | CP21: 0 | CQ21: - | CR21: 9 | CS21: Transporte | CT21: Sec. Infraestructura
AQ22: Realizar mantenimiento a 2 puente peatonal. | AR22: 0 | AS22: Número de puentes peatonales con mantenimiento realizado. | AT22: 1 | AU22: 2 | AV22: 1 | AW22: =+AV22/AU22 -> 0.5 | AX22: 0 | AY22: =+AX22/AU22 -> 0 | AZ22: 0 | BA22: =+AZ22/AU22 -> 0 | BB22: 1 | BC22: =+BB22/AU22 -> 0.5 | BD22: 1 | BE22: 0 | BF22: 0 | BG22: 0 | BH22: 1 | BI22: 1 | BJ22: - | BK22: - | BL22: - | BM22: - | BN22: 0 | BO22: 0 | BP22: 0.125 | BQ22: 0.125 | BR22: 0.125 | BS22: 45047 | BT22: 45047 | BU22: 0 | BV22: 1 | BW22: - | BX22: 0 | BY22: 0 | BZ22: 0 | CA22: - | CB22: - | CC22: 0 | CD22: 0 | CE22: 0 | CF22: - | CG22: - | CH22: 20000 | CI22: 0 | CJ22: 0 | CK22: 0 | CL22: - | CM22: 65047 | CN22: 45047 | CO22: 0 | CP22: 0.6925300168 | CQ22: - | CR22: 9 | CS22: Transporte | CT22: Sec. Infraestructura
AO23: 0.5392523124 | AP23: ALUMBRADO PÚBLICO URBANO Y RURAL | AQ23: Formular e implementar 1 programa de expansión y modernización del alumbrado público de la ciudad. | AR23: 0 | AS23: Número de programas de expansión y modernización del alumbrado público de la ciudad formulados e implementados. | AT23: 0 | AU23: 1 | AV23: 1 | AW23: 0.25 | AX23: 1 | AY23: 0.25 | AZ23: 1 | BA23: 0.25 | BB23: 1 | BC23: 0.25 | BD23: 1 | BE23: 0 | BF23: 0 | BG23: 0 | BH23: 1 | BI23: 1 | BJ23: 0 | BK23: 0 | BL23: 0 | BM23: 0 | BN23: 0 | BO23: 0 | BP23: 0.25 | BQ23: 0.25 | BR23: 0.25 | BS23: 10212382 | BT23: 5823179 | BU23: 0 | BV23: 0.5702077145 | BW23: - | BX23: 2817000 | BY23: 0 | BZ23: 0 | CA23: 0 | CB23: - | CC23: 7381000 | CD23: 0 | CE23: 0 | CF23: 0 | CG23: - | CH23: 7181000 | CI23: 0 | CJ23: 0 | CK23: 0 | CL23: - | CM23: 27591382 | CN23: 5823179 | CO23: 0 | CP23: 0.2110506462 | CQ23: - | CR23: 11, 7 | CS23: Planeación | CT23: Sec. Infraestructura
AQ24: Mantener el funcionamiento del 100% de las luminarias operativas. | AR24: 0 | AS24: Porcentaje de luminarias operativas en funcionamiento. | AT24: 0.97 | AU24: 1 | AV24: 1 | AW24: 0.25 | AX24: 1 | AY24: 0.25 | AZ24: 1 | BA24: 0.25 | BB24: 1 | BC24: 0.25 | BD24: 0.98 | BE24: 0 | BF24: 0 | BG24: 0 | BH24: 0.98 | BI24: 0.98 | BJ24: 0 | BK24: 0 | BL24: 0 | BM24: 0 | BN24: 0 | BO24: 0 | BP24: 0.245 | BQ24: 0.245 | BR24: 0.245 | BS24: 26977530 | BT24: 12520585 | BU24: 0 | BV24: 0.4641116144 | BW24: - | BX24: 10521000 | BY24: 0 | BZ24: 0 | CA24: 0 | CB24: - | CC24: 11362000 | CD24: 0 | CE24: 0 | CF24: 0 | CG24: - | CH24: 11058000 | CI24: 0 | CJ24: 0 | CK24: 0 | CL24: - | CM24: 59918530 | CN24: 12520585 | CO24: 0 | CP24: 0.2089601497 | CQ24: - | CR24: 11 | CS24: Planeación | CT24: Sec. Infraestructura
AQ25: Implementar 1 herramienta que permita integrar la gestión y el control de la infraestructura del alumbrado público mediante las TIC. | AR25: 0 | AS25: Porcentaje de avance en la implementación de la herramienta que permita integrar la gestión y el control de la infraestructura del alumbrado público mediante las TIC. | AT25: 0 | AU25: 1 | AV25: 0.5 | AW25: =+AV25/AU25 -> 0.5 | AX25: 0.5 | AY25: =+AX25/AU25 -> 0.5 | AZ25: 0 | BA25: =+AZ25/AU25 -> 0 | BB25: 0 | BC25: =+BB25/AU25 -> 0 | BD25: 0 | BE25: 0 | BF25: 0 | BG25: 0 | BH25: 0 | BI25: 0 | BJ25: 0 | BK25: 0 | BL25: - | BM25: - | BN25: - | BO25: - | BP25: 0 | BQ25: 0 | BR25: 0 | BS25: 2970021 | BT25: 0 | BU25: 0 | BV25: 0 | BW25: - | BX25: 1000000 | BY25: 0 | BZ25: 0 | CA25: 0 | CB25: - | CC25: 0 | CD25: 0 | CE25: 0 | CF25: - | CG25: - | CH25: 0 | CI25: 0 | CJ25: 0 | CK25: - | CL25: - | CM25: 3970021 | CN25: 0 | CO25: 0 | CP25: 0 | CQ25: - | CR25: 11 | CS25: Planeación | CT25: Sec. Infraestructura
AQ26: Instalar 30.000 puntos de luminarias telegestionadas para construir una red de alumbrado público inteligente basado en sensórica y dispositivos interconectados para la telegestión. | AR26: 0 | AS26: Número de puntos de luminarias telegestionadas instaladas para construir una red de alumbrado público inteligente basado en sensórica y dispositivos interconectados para la telegestión. | AT26: 3000 | AU26: 30000 | AV26: 5791 | AW26: =+AV26/AU26 -> 0.1930333333 | AX26: 9082 | AY26: =+AX26/AU26 -> 0.3027333333 | AZ26: 4776 | BA26: =+AZ26/AU26 -> 0.1592 | BB26: 10351 | BC26: =+BB26/AU26 -> 0.3450333333 | BD26: 0 | BE26: 0 | BF26: 0 | BG26: 0 | BH26: 0 | BI26: 0 | BJ26: 0 | BK26: 0 | BL26: 0 | BM26: 0 | BN26: 0 | BO26: 0 | BP26: 0 | BQ26: 0 | BR26: 0 | BS26: 11018943 | BT26: 0 | BU26: 0 | BV26: 0 | BW26: - | BX26: 10967000 | BY26: 0 | BZ26: 0 | CA26: 0 | CB26: - | CC26: 5779000 | CD26: 0 | CE26: 0 | CF26: 0 | CG26: - | CH26: 12545000 | CI26: 0 | CJ26: 0 | CK26: 0 | CL26: - | CM26: 40309943 | CN26: 0 | CO26: 0 | CP26: 0 | CQ26: - | CR26: 11, 7 | CS26: Planeación | CT26: Sec. Infraestructura
AQ27: Implementar y mantener 1 sistema para adquisición, análisis, procesamiento y visualización de información de la red de alumbrado público inteligente e interoperable con otros sistemas. | AR27: 0 | AS27: Número de sistemas implementados y mantenidos para adquisición, análisis, procesamiento y visualización de información de la red de alumbrado público inteligente e interoperable con otros sistemas. | AT27: 0 | AU27: 1 | AV27: 0 | AW27: =+AV27/AU27 -> 0 | AX27: 1 | AY27: 0.33 | AZ27: 1 | BA27: 0.33 | BB27: 1 | BC27: 0.34 | BD27: 0 | BE27: 0 | BF27: 0 | BG27: 0 | BH27: - | BI27: - | BJ27: 0 | BK27: 0 | BL27: 0 | BM27: 0 | BN27: 0 | BO27: 0 | BP27: =+AVERAGE(BE27:BG27)/AU27 -> 0 | BQ27: 0 | BR27: 0 | BS27: 0 | BT27: 0 | BU27: 0 | BV27: - | BW27: - | BX27: 2000000 | BY27: 0 | BZ27: 0 | CA27: 0 | CB27: - | CC27: 5444000 | CD27: 0 | CE27: 0 | CF27: 0 | CG27: - | CH27: 1990000 | CI27: 0 | CJ27: 0 | CK27: 0 | CL27: - | CM27: 9434000 | CN27: 0 | CO27: 0 | CP27: 0 | CQ27: - | CR27: 11 | CS27: Planeación | CT27: Sec. Infraestructura
AQ28: Implementar 1 centro de control y gestión que asegure la interoperabilidad, integración y el análisis de la información proveniente de la red de alumbrado público inteligente y otras. | AR28: 0 | AS28: Porcentaje de avance en la implementación del centro de control y gestión que asegure la interoperabilidad, integración y el análisis de la información proveniente de la red de alumbrado público inteligente y otras. | AT28: 0 | AU28: 1 | AV28: 0 | AW28: =+AV28/AU28 -> 0 | AX28: 0.3 | AY28: =+AX28/AU28 -> 0.3 | AZ28: 0.3 | BA28: =+AZ28/AU28 -> 0.3 | BB28: 0.4 | BC28: =+BB28/AU28 -> 0.4 | BD28: 0 | BE28: 0 | BF28: 0 | BG28: 0 | BH28: - | BI28: - | BJ28: 0 | BK28: 0 | BL28: 0 | BM28: 0 | BN28: 0 | BO28: 0 | BP28: 0 | BQ28: 0 | BR28: 0 | BS28: 0 | BT28: 0 | BU28: 0 | BV28: - | BW28: - | BX28: 3000000 | BY28: 0 | BZ28: 0 | CA28: 0 | CB28: - | CC28: 3000000 | CD28: 0 | CE28: 0 | CF28: 0 | CG28: - | CH28: 3990000 | CI28: 0 | CJ28: 0 | CK28: 0 | CL28: - | CM28: 9990000 | CN28: 0 | CO28: 0 | CP28: 0 | CQ28: - | CR28: 11 | CS28: Planeación | CT28: Sec. Infraestructura
D29: Disminuir a 16,1 la tasa de homicidios. | E29: 18.9 | F29: 16.1 | H29: 18.2 | K29: 17.5 | N29: 16.8 | Q29: 16.1
AM30: 0.1897001073 | AN30: BUCARAMANGA SEGURA | AO30: 0.105390825 | AP30: PREVENCIÓN DEL DELITO | AQ30: Formular e implementar 1 programa de gestores de convivencia. | AR30: 0 | AS30: Número de programas de gestores de convivencia formulados e implementados. | AT30: 0 | AU30: 1 | AV30: 1 | AW30: 0.25 | AX30: 1 | AY30: 0.25 | AZ30: 1 | BA30: 0.25 | BB30: 1 | BC30: 0.25 | BD30: 1 | BE30: 0 | BF30: 0 | BG30: 0 | BH30: 1 | BI30: 1 | BJ30: 0 | BK30: 0 | BL30: 0 | BM30: 0 | BN30: 0 | BO30: 0 | BP30: 0.25 | BQ30: 0.25 | BR30: 0.25 | BS30: 274550 | BT30: 258683 | BU30: 0 | BV30: 0.9422072482 | BW30: - | BX30: 412500 | BY30: 0 | BZ30: 0 | CA30: 0 | CB30: - | CC30: 434500 | CD30: 0 | CE30: 0 | CF30: 0 | CG30: - | CH30: 500500 | CI30: 0 | CJ30: 0 | CK30: 0 | CL30: - | CM30: 1622050 | CN30: 258683 | CO30: 0 | CP30: 0.1594790543 | CQ30: - | CR30: 5, 15 | CS30: Interior | CT30: Sec. Interior
AQ31: Formular e implementar 1 estrategia orientada a erradicar la violencia y fortalecer la protección en niños, niñas y adolescentes, mujeres, líderes sociales y personas mayores en entornos de violencia. | AR31: 0 | AS31: Número de estrategias formuladas e implementadas orientadas a erradicar la violencia y fortalecer la protección en niños, niñas y adolescentes, mujeres, líderes sociales y personas mayores en entornos de violencia. | AT31: 0 | AU31: 1 | AV31: 1 | AW31: 0.25 | AX31: 1 | AY31: 0.25 | AZ31: 1 | BA31: 0.25 | BB31: 1 | BC31: 0.25 | BD31: 1 | BE31: 0 | BF31: 0 | BG31: 0 | BH31: 1 | BI31: 1 | BJ31: 0 | BK31: 0 | BL31: 0 | BM31: 0 | BN31: 0 | BO31: 0 | BP31: 0.25 | BQ31: 0.25 | BR31: 0.25 | BS31: 31500 | BT31: 31500 | BU31: 0 | BV31: 1 | BW31: - | BX31: 38500 | BY31: 0 | BZ31: 0 | CA31: 0 | CB31: - | CC31: 38500 | CD31: 0 | CE31: 0 | CF31: 0 | CG31: - | CH31: 38500 | CI31: 0 | CJ31: 0 | CK31: 0 | CL31: - | CM31: 147000 | CN31: 31500 | CO31: 0 | CP31: 0.2142857143 | CQ31: - | CR31: 5, 10 | CS31: Interior | CT31: Sec. Interior
AQ32: Mantener 1 hogar de paso para la protección de niños y niñas en riesgo y/o vulnerabilidad. | AR32: 0 | AS32: Número de hogares de paso para las niñas y niños en riesgo y/o vulnerabilidad mantenidos. | AT32: 1 | AU32: 1 | AV32: 1 | AW32: 0.25 | AX32: 1 | AY32: 0.25 | AZ32: 1 | BA32: 0.25 | BB32: 1 | BC32: 0.25 | BD32: 1 | BE32: 0 | BF32: 0 | BG32: 0 | BH32: 1 | BI32: 1 | BJ32: 0 | BK32: 0 | BL32: 0 | BM32: 0 | BN32: 0 | BO32: 0 | BP32: 0.25 | BQ32: 0.25 | BR32: 0.25 | BS32: 283323 | BT32: 283323 | BU32: 0 | BV32: 1 | BW32: - | BX32: 401256.3007 | BY32: 0 | BZ32: 0 | CA32: 0 | CB32: - | CC32: 401256.3007 | CD32: 0 | CE32: 0 | CF32: 0 | CG32: - | CH32: 437734.1462 | CI32: 0 | CJ32: 0 | CK32: 0 | CL32: - | CM32: 1523569.748 | CN32: 283323 | CO32: 0 | CP32: 0.1859599801 | CQ32: - | CR32: 16 | CS32: Interior | CT32: Sec. Interior
AQ33: Mantener el Programa de Tolerancia en Movimiento con el objetivo de fortalecer la convivencia y seguridad ciudadana. | AR33: 0 | AS33: Número de Programas de Tolerancia en Movimiento mantenidos con el objetivo de fortalecer la convivencia y seguridad ciudadana. | AT33: 1 | AU33: 1 | AV33: 1 | AW33: 0.25 | AX33: 1 | AY33: 0.25 | AZ33: 1 | BA33: 0.25 | BB33: 1 | BC33: 0.25 | BD33: 0.75 | BE33: 0 | BF33: 0 | BG33: 0 | BH33: 0.75 | BI33: 0.75 | BJ33: 0 | BK33: 0 | BL33: 0 | BM33: 0 | BN33: 0 | BO33: 0 | BP33: 0.1875 | BQ33: 0.1875 | BR33: 0.1875 | BS33: 827170 | BT33: 10600 | BU33: 0 | BV33: 0.0128147781 | BW33: - | BX33: 944000 | BY33: 0 | BZ33: 0 | CA33: 0 | CB33: - | CC33: 1144000 | CD33: 0 | CE33: 0 | CF33: 0 | CG33: - | CH33: 1344000 | CI33: 0 | CJ33: 0 | CK33: 0 | CL33: - | CM33: 4259170 | CN33: 10600 | CO33: 0 | CP33: 0.002488747808 | CQ33: - | CR33: 16 | CS33: Interior | CT33: Sec. Interior
D34: Disminuir a 305,4 la tasa de violencia interpersonal. | E34: 331.1 | F34: 305.4 | H34: 324.4 | K34: 318 | N34: 311.6 | Q34: 305.4 | AQ34: Intervenir 10 puntos críticos de criminalidad con acciones integrales. | AR34: 0 | AS34: Número de puntos críticos de criminalidad intervenidos con acciones integrales. | AT34: 0 | AU34: 10 | AV34: 1 | AW34: =+AV34/AU34 -> 0.1 | AX34: 3 | AY34: =+AX34/AU34 -> 0.3 | AZ34: 3 | BA34: =+AZ34/AU34 -> 0.3 | BB34: 3 | BC34: =+BB34/AU34 -> 0.3 | BD34: 1 | BE34: 0 | BF34: 0 | BG34: 0 | BH34: 1 | BI34: 1 | BJ34: 0 | BK34: 0 | BL34: 0 | BM34: 0 | BN34: 0 | BO34: 0 | BP34: 0.025 | BQ34: 0.025 | BR34: 0.025 | BS34: 52009 | BT34: 0 | BU34: 0 | BV34: 0 | BW34: - | BX34: 108000 | BY34: 0 | BZ34: 0 | CA34: 0 | CB34: - | CC34: 108000 | CD34: 0 | CE34: 0 | CF34: 0 | CG34: - | CH34: 108000 | CI34: 0 | CJ34: 0 | CK34: 0 | CL34: - | CM34: 376009 | CN34: 0 | CO34: 0 | CP34: 0 | CQ34: - | CR34: 16 | CS34: Interior | CT34: Sec. Interior
AQ35: Mantener la estrategia para la prevención, detección y atención de las violencias en adolescentes. | AR35: 0 | AS35: Número de estrategias mantenidas para la prevención, detección y atención de las violencias en adolescentes. | AT35: 1 | AU35: 1 | AV35: 1 | AW35: 0.25 | AX35: 1 | AY35: 0.25 | AZ35: 1 | BA35: 0.25 | BB35: 1 | BC35: 0.25 | BD35: 0.2 | BE35: 0 | BF35: 0 | BG35: 0 | BH35: 0.2 | BI35: 0.2 | BJ35: 0 | BK35: 0 | BL35: 0 | BM35: 0 | BN35: 0 | BO35: 0 | BP35: 0.05 | BQ35: 0.05 | BR35: 0.05 | BS35: 0 | BT35: 0 | BU35: 0 | BV35: - | BW35: - | BX35: 55000 | BY35: 0 | BZ35: 0 | CA35: 0 | CB35: - | CC35: 60000 | CD35: 0 | CE35: 0 | CF35: 0 | CG35: - | CH35: 65000 | CI35: 0 | CJ35: 0 | CK35: 0 | CL35: - | CM35: 180000 | CN35: 0 | CO35: 0 | CP35: 0 | CQ35: - | CR35: 10, 16 | CS35: Interior | CT35: Sec. Desarrollo Social
AO36: 0.4117357895 | AP36: FORTALECIMIENTO INSTITUCIONAL A LOS ORGANISMOS DE SEGURIDAD | AQ36: Formular e implementar el Plan Integral de Seguridad y Convivencia Ciudadana (PISCC) en conjunto con las entidades pertinentes. | AR36: 0 | AS36: Número de Planes Integral de Seguridad y Convivencia Ciudadana (PISCC) formulados e implementados en conjunto con las entidades pertinentes. | AT36: 1 | AU36: 1 | AV36: 1 | AW36: 0.25 | AX36: 1 | AY36: 0.25 | AZ36: 1 | BA36: 0.25 | BB36: 1 | BC36: 0.25 | BD36: 1 | BE36: 0 | BF36: 0 | BG36: 0 | BH36: 1 | BI36: 1 | BJ36: 0 | BK36: 0 | BL36: 0 | BM36: 0 | BN36: 0 | BO36: 0 | BP36: 0.25 | BQ36: 0.25 | BR36: 0.25 | BS36: 14384255 | BT36: 658628 | BU36: 0 | BV36: 0.04578812041 | BW36: - | BX36: 2694526.97 | BY36: 0 | BZ36: 0 | CA36: 0 | CB36: - | CC36: 2074727.922 | CD36: 0 | CE36: 0 | CF36: 0 | CG36: - | CH36: 4157540.413 | CI36: 0 | CJ36: 0 | CK36: 0 | CL36: - | CM36: 23311050.3 | CN36: 658628 | CO36: 0 | CP36: 0.02825389639 | CQ36: - | CR36: 16 | CS36: Defensa y Policía | CT36: Sec. Interior
AQ37: Mantener la adquisición del 100% las herramientas de innovación, ciencia y tecnología aprobadas a los organismos de orden público en marco de una ciudad inteligente. | AR37: 0 | AS37: Porcentaje de herramientas de innovación, ciencia y tecnología adquiridas aprobadas a los organismos de orden público en marco de una ciudad inteligente. | AT37: 1 | AU37: 1 | AV37: 1 | AW37: 0.25 | AX37: 1 | AY37: 0.25 | AZ37: 1 | BA37: 0.25 | BB37: 1 | BC37: 0.25 | BD37: 0 | BE37: 0 | BF37: 0 | BG37: 0 | BH37: 0 | BI37: 0 | BJ37: 0 | BK37: 0 | BL37: 0 | BM37: 0 | BN37: 0 | BO37: 0 | BP37: 0 | BQ37: 0 | BR37: 0 | BS37: 1515872 | BT37: 0 | BU37: 0 | BV37: 0 | BW37: - | BX37: 411671.4 | BY37: 0 | BZ37: 0 | CA37: 0 | CB37: - | CC37: 432254.97 | CD37: 0 | CE37: 0 | CF37: 0 | CG37: - | CH37: 453867.719 | CI37: 0 | CJ37: 0 | CK37: 0 | CL37: - | CM37: 2813666.089 | CN37: 0 | CO37: 0 | CP37: 0 | CQ37: - | CR37: 16 | CS37: Defensa y Policía | CT37: Sec. Interior
D38: Disminuir a 129,1 la tasa de violencia intrafamiliar. | E38: 140 | F38: 129.1 | H38: 137.2 | K38: 134.5 | N38: 131.8 | Q38: 129.1 | AQ38: Mantener en funcionamiento el Circuito Cerrado de Televisión. | AR38: 0 | AS38: Número de Circuitos Cerrados de Televisión en funcionamiento. | AT38: 1 | AU38: 1 | AV38: 1 | AW38: 0.25 | AX38: 1 | AY38: 0.25 | AZ38: 1 | BA38: 0.25 | BB38: 1 | BC38: 0.25 | BD38: 1 | BE38: 0 | BF38: 0 | BG38: 0 | BH38: 1 | BI38: 1 | BJ38: 0 | BK38: 0 | BL38: 0 | BM38: 0 | BN38: 0 | BO38: 0 | BP38: 0.25 | BQ38: 0.25 | BR38: 0.25 | BS38: 363805 | BT38: 123023 | BU38: 0 | BV38: 0.33815643 | BW38: - | BX38: 300000 | BY38: 0 | BZ38: 0 | CA38: 0 | CB38: - | CC38: 350000 | CD38: 0 | CE38: 0 | CF38: 0 | CG38: - | CH38: 400000 | CI38: 0 | CJ38: 0 | CK38: 0 | CL38: - | CM38: 1413805 | CN38: 123023 | CO38: 0 | CP38: 0.08701553609 | CQ38: - | CR38: 16 | CS38: Defensa y Policía | CT38: Sec. Interior
AQ39: Formular e implementar el plan de acción para la habilitación del Centro de Traslado por Protección - CTP en cumplimiento por el Código Nacional de Seguridad y Convicencia Ciudadana. | AR39: 0 | AS39: Número de planes de acción formulados e implementados para la habilitación del Centro de Traslado por Protección - CTP en cumplimiento por el Código Nacional de Seguridad y Convicencia Ciudadana. | AT39: 0 | AU39: 1 | AV39: 0 | AW39: =+AV39/AU39 -> 0 | AX39: 1 | AY39: 0.33 | AZ39: 1 | BA39: 0.33 | BB39: 1 | BC39: 0.34 | BD39: 0 | BE39: 0 | BF39: 0 | BG39: 0 | BH39: - | BI39: - | BJ39: 0 | BK39: 0 | BL39: 0 | BM39: 0 | BN39: 0 | BO39: 0 | BP39: =+AVERAGE(BE39:BG39)/AU39 -> 0 | BQ39: 0 | BR39: 0 | BS39: 0 | BT39: 0 | BU39: 0 | BV39: - | BW39: - | BX39: 2000000 | BY39: 0 | BZ39: 0 | CA39: 0 | CB39: - | CC39: 2500000 | CD39: 0 | CE39: 0 | CF39: 0 | CG39: - | CH39: 300000 | CI39: 0 | CJ39: 0 | CK39: 0 | CL39: - | CM39: 4800000 | CN39: 0 | CO39: 0 | CP39: 0 | CQ39: - | CR39: 16 | CS39: Justicia y del Derecho | CT39: Sec. Interior
AO40: 0.1497884866 | AP40: PROMOCIÓN DE LA SEGURIDAD CIUDADANA, EL ORDEN PÚBLICO Y LA CONVIVENCIA | AQ40: Formular e implementar 1 estrategia de promoción y efectividad del Código Nacional de Seguridad y Convivencia Ciudadana. | AR40: 0 | AS40: Número de estrategias formuladas e implementadas de promoción y efectividad del Código Nacional de Seguridad y Convivencia Ciudadana. | AT40: 1 | AU40: 1 | AV40: 1 | AW40: 0.25 | AX40: 1 | AY40: 0.25 | AZ40: 1 | BA40: 0.25 | BB40: 1 | BC40: 0.25 | BD40: 1 | BE40: 0 | BF40: 0 | BG40: 0 | BH40: 1 | BI40: 1 | BJ40: 0 | BK40: 0 | BL40: 0 | BM40: 0 | BN40: 0 | BO40: 0 | BP40: 0.25 | BQ40: 0.25 | BR40: 0.25 | BS40: 980470 | BT40: 0 | BU40: 0 | BV40: 0 | BW40: - | BX40: 1695264.157 | BY40: 0 | BZ40: 0 | CA40: 0 | CB40: - | CC40: 1746021.806 | CD40: 0 | CE40: 0 | CF40: 0 | CG40: - | CH40: 1798297.173 | CI40: 0 | CJ40: 0 | CK40: 0 | CL40: - | CM40: 6220053.137 | CN40: 0 | CO40: 0 | CP40: 0 | CQ40: - | CR40: 16 | CS40: Interior | CT40: Sec. Interior
AQ41: Formular e implementar 1 estrategia para mejorar la prestación del servicio de las inspecciones de policía y el seguimiento a los procesos policivos. | AR41: 0 | AS41: Número de estrategias formuladas e implementadas para mejorar la prestación del servicio de las inspecciones de policía y el seguimiento a los procesos policivos. | AT41: 1 | AU41: 1 | AV41: 1 | AW41: 0.25 | AX41: 1 | AY41: 0.25 | AZ41: 1 | BA41: 0.25 | BB41: 1 | BC41: 0.25 | BD41: 1 | BE41: 0 | BF41: 0 | BG41: 0 | BH41: 1 | BI41: 1 | BJ41: 0 | BK41: 0 | BL41: 0 | BM41: 0 | BN41: 0 | BO41: 0 | BP41: 0.25 | BQ41: 0.25 | BR41: 0.25 | BS41: 1190355 | BT41: 379910 | BU41: 0 | BV41: 0.3191568902 | BW41: - | BX41: 567933.5175 | BY41: 0 | BZ41: 0 | CA41: 0 | CB41: - | CC41: 628851.7985 | CD41: 0 | CE41: 0 | CF41: 0 | CG41: - | CH41: 689952.6403 | CI41: 0 | CJ41: 0 | CK41: 0 | CL41: - | CM41: 3077092.956 | CN41: 379910 | CO41: 0 | CP41: 0.1234639335 | CQ41: - | CR41: 16 | CS41: Interior | CT41: Sec. Interior
D42: Incrementar al 10% el uso de la bicicleta en las vías de la ciudad. | E42: 0.05 | F42: 0.1 | H42: 0.06 | K42: 0.07 | N42: 0.085 | Q42: 0.1 | AQ42: Crear y mantener 1 observatorio de convivencia y seguridad ciudadana. | AR42: 0 | AS42: Número de observatorios de convivencia y seguridad ciudadana creados y mantenidos. | AT42: 0 | AU42: 1 | AV42: 0 | AW42: =+AV42/AU42 -> 0 | AX42: 1 | AY42: 0.33 | AZ42: 1 | BA42: 0.33 | BB42: 1 | BC42: 0.34 | BD42: 0 | BE42: 0 | BF42: 0 | BG42: 0 | BH42: - | BI42: - | BJ42: 0 | BK42: 0 | BL42: 0 | BM42: 0 | BN42: 0 | BO42: 0 | BP42: =+AVERAGE(BE42:BG42)/AU42 -> 0 | BQ42: 0 | BR42: 0 | BS42: 0 | BT42: 0 | BU42: 0 | BV42: - | BW42: - | BX42: 126000 | BY42: 0 | BZ42: 0 | CA42: 0 | CB42: - | CC42: 126000 | CD42: 0 | CE42: 0 | CF42: 0 | CG42: - | CH42: 126000 | CI42: 0 | CJ42: 0 | CK42: 0 | CL42: - | CM42: 378000 | CN42: 0 | CO42: 0 | CP42: 0 | CQ42: - | CR42: 16 | CS42: Interior | CT42: Sec. Interior
AQ43: Desarrollar e implementar 1 protocolo para la coordinación de acciones de respeto y garantía a la protesta pacífica. | AR43: 0 | AS43: Número de protocolos desarrollados e implementados para la coordinación de acciones de respeto y garantía a la protesta pacífica. | AT43: 0 | AU43: 1 | AV43: 0 | AW43: =+AV43/AU43 -> 0 | AX43: 1 | AY43: 0.33 | AZ43: 1 | BA43: 0.33 | BB43: 1 | BC43: 0.34 | BD43: 0 | BE43: 0 | BF43: 0 | BG43: 0 | BH43: - | BI43: - | BJ43: 0 | BK43: 0 | BL43: 0 | BM43: 0 | BN43: 0 | BO43: 0 | BP43: =+AVERAGE(BE43:BG43)/AU43 -> 0 | BQ43: 0 | BR43: 0 | BS43: 0 | BT43: 0 | BU43: 0 | BV43: - | BW43: - | BX43: 38500 | BY43: 0 | BZ43: 0 | CA43: 0 | CB43: - | CC43: 38500 | CD43: 0 | CE43: 0 | CF43: 0 | CG43: - | CH43: 38500 | CI43: 0 | CJ43: 0 | CK43: 0 | CL43: - | CM43: 115500 | CN43: 0 | CO43: 0 | CP43: 0 | CQ43: - | CR43: 16 | CS43: Interior | CT43: Sec. Interior
AQ44: Formular 1 estrategia de diagnóstico y abordaje de las conflictividades sociales. | AR44: 0 | AS44: Número de estrategias de diagnóstico y abordaje de las conflictividades sociales formuladas e implementadas. | AT44: 0 | AU44: 1 | AV44: 0 | AW44: =+AV44/AU44 -> 0 | AX44: 1 | AY44: 0.33 | AZ44: 1 | BA44: 0.33 | BB44: 1 | BC44: 0.34 | BD44: 0 | BE44: 0 | BF44: 0 | BG44: 0 | BH44: - | BI44: - | BJ44: 0 | BK44: 0 | BL44: 0 | BM44: 0 | BN44: 0 | BO44: 0 | BP44: =+AVERAGE(BE44:BG44)/AU44 -> 0 | BQ44: 0 | BR44: 0 | BS44: 0 | BT44: 0 | BU44: 0 | BV44: - | BW44: - | BX44: 42000 | BY44: 0 | BZ44: 0 | CA44: 0 | CB44: - | CC44: 42000 | CD44: 0 | CE44: 0 | CF44: 0 | CG44: - | CH44: 42000 | CI44: 0 | CJ44: 0 | CK44: 0 | CL44: - | CM44: 126000 | CN44: 0 | CO44: 0 | CP44: 0 | CQ44: - | CR44: 16 | CS44: Interior | CT44: Sec. Interior
AO45: 0.02260642335 | AP45: PROMOCIÓN DE LOS MÉTODOS DE RESOLUCIÓN DE CONFLICTOS, ACCESO A LA JUSTICIA Y APLICACIÓN DE LA JUSTICIA RESTAURATIVA | AQ45: Mantener la casa de justicia como espacio de atención y descongestión de los servicios de justicia garantizando la asesoría de las personas que solicitan el servicio. | AR45: 0 | AS45: Número de casas de justicia mantenidas como espacio de atención y descongestión de los servicios de justicia garantizando la asesoría de las personas que solicitan el servicio. | AT45: 1 | AU45: 1 | AV45: 1 | AW45: 0.25 | AX45: 1 | AY45: 0.25 | AZ45: 1 | BA45: 0.25 | BB45: 1 | BC45: 0.25 | BD45: 1 | BE45: 0 | BF45: 0 | BG45: 0 | BH45: 1 | BI45: 1 | BJ45: 0 | BK45: 0 | BL45: 0 | BM45: 0 | BN45: 0 | BO45: 0 | BP45: 0.25 | BQ45: 0.25 | BR45: 0.25 | BS45: 0 | BT45: 0 | BU45: 0 | BV45: - | BW45: - | BX45: 33000 | BY45: 0 | BZ45: 0 | CA45: 0 | CB45: - | CC45: 33000 | CD45: 0 | CE45: 0 | CF45: 0 | CG45: - | CH45: 33000 | CI45: 0 | CJ45: 0 | CK45: 0 | CL45: - | CM45: 99000 | CN45: 0 | CO45: 0 | CP45: 0 | CQ45: - | CR45: 16 | CS45: Justicia y del Derecho | CT45: Sec. Interior
D46: Reducir a 9 la tasa de mortalidad por accidentes de tránsito. | E46: 10 | F46: 9 | H46: 9.75 | K46: 9.5 | N46: 9.25 | Q46: 9 | AQ46: Mantener y fortalecer la prestación integral del servicio en las 3 comisarías de familia para prevenir la violencia intrafamiliar. | AR46: 0 | AS46: Número de comisarías de familia mantenidas con la prestación integral del servicio para prevenir la violencia intrafamiliar. | AT46: 3 | AU46: 3 | AV46: 3 | AW46: 0.25 | AX46: 3 | AY46: 0.25 | AZ46: 3 | BA46: 0.25 | BB46: 3 | BC46: 0.25 | BD46: 3 | BE46: 0 | BF46: 0 | BG46: 0 | BH46: 1 | BI46: 1 | BJ46: 0 | BK46: 0 | BL46: 0 | BM46: 0 | BN46: 0 | BO46: 0 | BP46: 0.25 | BQ46: 0.25 | BR46: 0.25 | BS46: 139638 | BT46: 127000 | BU46: 0 | BV46: 0.9094945502 | BW46: - | BX46: 165000 | BY46: 0 | BZ46: 0 | CA46: 0 | CB46: - | CC46: 198000 | CD46: 0 | CE46: 0 | CF46: 0 | CG46: - | CH46: 198000 | CI46: 0 | CJ46: 0 | CK46: 0 | CL46: - | CM46: 700638 | CN46: 127000 | CO46: 0 | CP46: 0.1812633628 | CQ46: - | CR46: 16, 10 | CS46: Justicia y del Derecho | CT46: Sec. Interior
AQ47: Formular e implementar 1 estrategia de promoción comunitaria de los mecanismos alternativos de solución de conflictos y aplicación de la justicia restaurativa. | AR47: 0 | AS47: Número de estrategias de promoción comunitaria de los mecanismos alternativos de solución de conflictos y de aplicación de la justicia restaurativa formuladas e implementadas. | AT47: 1 | AU47: 1 | AV47: 0 | AW47: =+AV47/AU47 -> 0 | AX47: 1 | AY47: 0.33 | AZ47: 1 | BA47: 0.33 | BB47: 1 | BC47: 0.34 | BD47: 0 | BE47: 0 | BF47: 0 | BG47: 0 | BH47: - | BI47: - | BJ47: 0 | BK47: 0 | BL47: 0 | BM47: 0 | BN47: 0 | BO47: 0 | BP47: =+AVERAGE(BE47:BG47)/AU47 -> 0 | BQ47: 0 | BR47: 0 | BS47: 0 | BT47: 0 | BU47: 0 | BV47: - | BW47: - | BX47: 288000 | BY47: 0 | BZ47: 0 | CA47: 0 | CB47: - | CC47: 288000 | CD47: 0 | CE47: 0 | CF47: 0 | CG47: - | CH47: 288000 | CI47: 0 | CJ47: 0 | CK47: 0 | CL47: - | CM47: 864000 | CN47: 0 | CO47: 0 | CP47: 0 | CQ47: - | CR47: 16 | CS47: Justicia y del Derecho | CT47: Sec. Interior
AO48: 0.02993365297 | AP48: EDUCACIÓN EN SEGURIDAD VIAL Y MOVILIDAD SOSTENIBLE | AQ48: Mantener 3 programas de educación en seguridad vial y movilidad sostenible en el municipio. | AR48: 635070105 | AS48: Número de programas de educación en seguridad vial y movilidad sostenible mantenidos. | AT48: 3 | AU48: 3 | AV48: 3 | AW48: 0.25 | AX48: 3 | AY48: 0.25 | AZ48: 3 | BA48: 0.25 | BB48: 3 | BC48: 0.25 | BD48: 3 | BE48: 0 | BF48: 0 | BG48: 0 | BH48: 1 | BI48: 1 | BJ48: 0 | BK48: 0 | BL48: 0 | BM48: 0 | BN48: 0 | BO48: 0 | BP48: 0.25 | BQ48: 0.25 | BR48: 0.25 | BS48: 300000 | BT48: 142793.464 | BU48: 0 | BV48: 0.4759782133 | BW48: - | BX48: 158000 | BY48: 0 | BZ48: 0 | CA48: 0 | CB48: - | CC48: 300000 | CD48: 0 | CE48: 0 | CF48: 0 | CG48: - | CH48: 350000 | CI48: 0 | CJ48: 0 | CK48: 0 | CL48: - | CM48: 1108000 | CN48: 142793.464 | CO48: 0 | CP48: 0.1288749675 | CQ48: - | CR48: 13 | CS48: Transporte | CT48: Dir. Tránsito
AQ49: Formular e implementar 1 programa de educación, promoción y valoración del uso de medios de transporte sostenible y del uso de la bicicleta. | AR49: 635020101 | AS49: Número de programa de educación, promoción y valoración del uso de medios de transporte sostenible y del uso de la bicicleta formulados e implementados. | AT49: 0 | AU49: 1 | AV49: 1 | AW49: 0.25 | AX49: 1 | AY49: 0.25 | AZ49: 1 | BA49: 0.25 | BB49: 1 | BC49: 0.25 | BD49: 1 | BE49: 0 | BF49: 0 | BG49: 0 | BH49: 1 | BI49: 1 | BJ49: 0 | BK49: 0 | BL49: 0 | BM49: 0 | BN49: 0 | BO49: 0 | BP49: 0.25 | BQ49: 0.25 | BR49: 0.25 | BS49: 109000 | BT49: 87499.606 | BU49: 0 | BV49: 0.8027486789 | BW49: - | BX49: 248000 | BY49: 0 | BZ49: 0 | CA49: 0 | CB49: - | CC49: 300000 | CD49: 0 | CE49: 0 | CF49: 0 | CG49: - | CH49: 500000 | CI49: 0 | CJ49: 0 | CK49: 0 | CL49: - | CM49: 1157000 | CN49: 87499.606 | CO49: 0 | CP49: 0.07562628003 | CQ49: - | CR49: 13 | CS49: Transporte | CT49: Dir. Tránsito
D50: Reducir a 3 la tasa de mortalidad de peatones en accidentes de tránsito. | E50: 4 | F50: 3 | H50: 3.75 | K50: 3.5 | N50: 3.25 | Q50: 3 | AO50: 0.1632282351 | AP50: FORTALECIMIENTO INSTITUCIONAL PARA EL CONTROL DEL TRÁNSITO Y LA SEGURIDAD VIAL | AQ50: Formular e implementar la estrategia de control y regulación del tránsito vehicular y peatonal, de la Seguirdad vial y del transporte Informal. | AR50: 63507050101 | AS50: Número de estrategias de control y regulación del Tránsito vehicular y peatonal, de la Seguirdad vial y del Transporte Informal formuladas e implementadas. | AT50: 1 | AU50: 1 | AV50: 1 | AW50: 0.25 | AX50: 1 | AY50: 0.25 | AZ50: 1 | BA50: 0.25 | BB50: 1 | BC50: 0.25 | BD50: 1 | BE50: 0 | BF50: 0 | BG50: 0 | BH50: 1 | BI50: 1 | BJ50: 0 | BK50: 0 | BL50: 0 | BM50: 0 | BN50: 0 | BO50: 0 | BP50: 0.25 | BQ50: 0.25 | BR50: 0.25 | BS50: 2712952.364 | BT50: 740949.358 | BU50: 400000 | BV50: 0.2731155061 | BW50: 0.5398479608 | BX50: 2648302.188 | BY50: 0 | BZ50: 0 | CA50: 0 | CB50: - | CC50: 2738655 | CD50: 0 | CE50: 0 | CF50: 0 | CG50: - | CH50: 2600000 | CI50: 0 | CJ50: 0 | CK50: 0 | CL50: - | CM50: 10699909.55 | CN50: 740949.358 | CO50: 400000 | CP50: 0.06924818891 | CQ50: 0.5398479608 | CR50: 8 | CS50: Transporte | CT50: Dir. Tránsito
AQ51: Realizar 45.000 revisiones técnico mecánica y de emisiones contaminantes. | AR51: 635060103 | AS51: Número de revisiones técnico mecánica y de emisiones contaminantes realizadas. | AT51: 8373 | AU51: 45000 | AV51: 10500 | AW51: =+AV51/AU51 -> 0.2333333333 | AX51: 11000 | AY51: =+AX51/AU51 -> 0.2444444444 | AZ51: 11500 | BA51: =+AZ51/AU51 -> 0.2555555556 | BB51: 12000 | BC51: =+BB51/AU51 -> 0.2666666667 | BD51: 7200 | BE51: 0 | BF51: 0 | BG51: 0 | BH51: 0.6857142857 | BI51: 0.6857142857 | BJ51: 0 | BK51: 0 | BL51: 0 | BM51: 0 | BN51: 0 | BO51: 0 | BP51: 0.04 | BQ51: 0.04 | BR51: 0.04 | BS51: 400000 | BT51: 269613.355 | BU51: 0 | BV51: 0.6740333875 | BW51: - | BX51: 436980.234 | BY51: 0 | BZ51: 0 | CA51: 0 | CB51: - | CC51: 396832.752 | CD51: 0 | CE51: 0 | CF51: 0 | CG51: - | CH51: 417324.39 | CI51: 0 | CJ51: 0 | CK51: 0 | CL51: - | CM51: 1651137.376 | CN51: 269613.355 | CO51: 0 | CP51: 0.1632894748 | CQ51: - | CR51: 13 | CS51: Transporte | CT51: Dir. Tránsito
AO52: 0.1173165875 | AP52: MODERNIZACIÓN DEL SISTEMA DE SEMAFORIZACIÓN Y SEÑALIZACIÓN VIAL | AQ52: Mantener las 174 intersecciones semaforizadas en el municipio. | AR52: 63507010201 | AS52: Número de intersecciones semaforizadas mantenidas en el municipio. | AT52: 174 | AU52: 174 | AV52: 174 | AW52: 0.25 | AX52: 174 | AY52: 0.25 | AZ52: 174 | BA52: 0.25 | BB52: 174 | BC52: 0.25 | BD52: 174 | BE52: 0 | BF52: 0 | BG52: 0 | BH52: 1 | BI52: 1 | BJ52: 0 | BK52: 0 | BL52: 0 | BM52: 0 | BN52: 0 | BO52: 0 | BP52: 0.25 | BQ52: 0.25 | BR52: 0.25 | BS52: 413000 | BT52: 70740 | BU52: 0 | BV52: 0.171283293 | BW52: - | BX52: 437034.516 | BY52: 0 | BZ52: 0 | CA52: 0 | CB52: - | CC52: 520000 | CD52: 0 | CE52: 0 | CF52: 0 | CG52: - | CH52: 400000 | CI52: 0 | CJ52: 0 | CK52: 0 | CL52: - | CM52: 1770034.516 | CN52: 70740 | CO52: 0 | CP52: 0.03996532235 | CQ52: - | CR52: 11 | CS52: Transporte | CT52: Dir. Tránsito
AQ53: Diseñar el Sistema Inteligente de Gestión de Tráfico - SIGT. | AR53: 63507010202 | AS53: Porcentaje de avance en el diseño del Sistema Inteligente de Gestión de Tráfico - SIGT. | AT53: 0 | AU53: 1 | AV53: 0 | AW53: =+AV53/AU53 -> 0 | AX53: 0.1 | AY53: =+AX53/AU53 -> 0.1 | AZ53: 0.4 | BA53: =+AZ53/AU53 -> 0.4 | BB53: 0.5 | BC53: =+BB53/AU53 -> 0.5 | BD53: 0 | BE53: 0 | BF53: 0 | BG53: 0 | BH53: - | BI53: - | BJ53: 0 | BK53: 0 | BL53: 0 | BM53: 0 | BN53: 0 | BO53: 0 | BP53: 0 | BQ53: 0 | BR53: 0 | BS53: 0 | BT53: 0 | BU53: 0 | BV53: - | BW53: - | BX53: 400000 | BY53: 0 | BZ53: 0 | CA53: 0 | CB53: - | CC53: 2500000 | CD53: 0 | CE53: 0 | CF53: 0 | CG53: - | CH53: 2600000 | CI53: 0 | CJ53: 0 | CK53: 0 | CL53: - | CM53: 5500000 | CN53: 0 | CO53: 0 | CP53: 0 | CQ53: - | CR53: 11 | CS53: Transporte | CT53: Dir. Tránsito
D54: Disminuir a 280 la tasa de lesionados por accidentes de tránsito. | E54: 300 | F54: 280 | H54: 295 | K54: 290 | N54: 285 | Q54: 280 | AQ54: Mantener el 100% de la señalización vial horizontal, vertical y elevada del inventario. | AR54: 635070103 | AS54: Porcentaje de señalización vial horizontal, vertical y elevada del inventario mantenida. | AT54: 1 | AU54: 1 | AV54: 1 | AW54: 0.25 | AX54: 1 | AY54: 0.25 | AZ54: 1 | BA54: 0.25 | BB54: 1 | BC54: 0.25 | BD54: 0.95 | BE54: 0 | BF54: 0 | BG54: 0 | BH54: 0.95 | BI54: 0.95 | BJ54: 0 | BK54: 0 | BL54: 0 | BM54: 0 | BN54: 0 | BO54: 0 | BP54: 0.2375 | BQ54: 0.2375 | BR54: 0.2375 | BS54: 107000 | BT54: 31150 | BU54: 0 | BV54: 0.2911214953 | BW54: - | BX54: 100000 | BY54: 0 | BZ54: 0 | CA54: 0 | CB54: - | CC54: 320000 | CD54: 0 | CE54: 0 | CF54: 0 | CG54: - | CH54: 150000 | CI54: 0 | CJ54: 0 | CK54: 0 | CL54: - | CM54: 677000 | CN54: 31150 | CO54: 0 | CP54: 0.04601181684 | CQ54: - | CR54: 11 | CS54: Transporte | CT54: Dir. Tránsito
AQ55: Demarcar 6.000 m2 de señalización horizontal nueva. | AR55: 635070103 | AS55: Número de m2 de señalización horizontal nueva demarcada. | AT55: 4865 | AU55: 6000 | AV55: 500 | AW55: =+AV55/AU55 -> 0.08333333333 | AX55: 1500 | AY55: =+AX55/AU55 -> 0.25 | AZ55: 2000 | BA55: =+AZ55/AU55 -> 0.3333333333 | BB55: 2000 | BC55: =+BB55/AU55 -> 0.3333333333 | BD55: 498.76 | BE55: 0 | BF55: 0 | BG55: 0 | BH55: 0.99752 | BI55: 0.99752 | BJ55: 0 | BK55: 0 | BL55: 0 | BM55: 0 | BN55: 0 | BO55: 0 | BP55: 0.02078166667 | BQ55: 0.02078166667 | BR55: 0.02078166667 | BS55: 100000 | BT55: 17900 | BU55: 0 | BV55: 0.179 | BW55: - | BX55: 120000 | BY55: 0 | BZ55: 0 | CA55: 0 | CB55: - | CC55: 150000 | CD55: 0 | CE55: 0 | CF55: 0 | CG55: - | CH55: 80000 | CI55: 0 | CJ55: 0 | CK55: 0 | CL55: - | CM55: 450000 | CN55: 17900 | CO55: 0 | CP55: 0.03977777778 | CQ55: - | CR55: 11 | CS55: Transporte | CT55: Dir. Tránsito
AQ56: Instalar 700 señales de tránsito verticales o elevadas nuevas. | AR56: 635070103 | AS56: Número de señales de tránsito verticales o elevadas nuevas instaladas. | AT56: 322 | AU56: 700 | AV56: 50 | AW56: =+AV56/AU56 -> 0.07142857143 | AX56: 100 | AY56: =+AX56/AU56 -> 0.1428571429 | AZ56: 200 | BA56: =+AZ56/AU56 -> 0.2857142857 | BB56: 350 | BC56: =+BB56/AU56 -> 0.5 | BD56: 54 | BE56: 0 | BF56: 0 | BG56: 0 | BH56: 1.08 | BI56: 1 | BJ56: 0 | BK56: 0 | BL56: 0 | BM56: 0 | BN56: 0 | BO56: 0 | BP56: 0.01928571429 | BQ56: 0.01928571429 | BR56: 0.01928571429 | BS56: 20000 | BT56: 19800 | BU56: 0 | BV56: 0.99 | BW56: - | BX56: 100000 | BY56: 0 | BZ56: 0 | CA56: 0 | CB56: - | CC56: 100000 | CD56: 0 | CE56: 0 | CF56: 0 | CG56: - | CH56: 120000 | CI56: 0 | CJ56: 0 | CK56: 0 | CL56: - | CM56: 340000 | CN56: 19800 | CO56: 0 | CP56: 0.05823529412 | CQ56: - | CR56: 11 | CS56: Transporte | CT56: Dir. Tránsito
AQ57: Actualizar 2 Planes Zonales de Zonas de Estacionamiento Transitorio Regulado – ZERT. | AR57: 635070103 | AS57: Número de Planes Zonales de Zonas de Estacionamiento Transitorio Regulado – ZERT actualizados. | AT57: 0 | AU57: 2 | AV57: 0 | AW57: =+AV57/AU57 -> 0 | AX57: 1 | AY57: =+AX57/AU57 -> 0.5 | AZ57: 1 | BA57: =+AZ57/AU57 -> 0.5 | BB57: 0 | BC57: =+BB57/AU57 -> 0 | BD57: 0 | BE57: 0 | BF57: 0 | BG57: 0 | BH57: - | BI57: - | BJ57: 0 | BK57: 0 | BL57: 0 | BM57: 0 | BN57: - | BO57: - | BP57: 0 | BQ57: 0 | BR57: 0 | BS57: 0 | BT57: 0 | BU57: 0 | BV57: - | BW57: - | BX57: 60000 | BY57: 0 | BZ57: 0 | CA57: 0 | CB57: - | CC57: 80000 | CD57: 0 | CE57: 0 | CF57: 0 | CG57: - | CH57: 0 | CI57: 0 | CJ57: 0 | CK57: - | CL57: - | CM57: 140000 | CN57: 0 | CO57: 0 | CP57: 0 | CQ57: - | CR57: 11 | CS57: Planeación | CT57: Dir. Tránsito
D58: Aumentar al 96% la cobertura del alumbrado público en la zona rural. | E58: 0.93 | F58: 0.96 | H58: 0.93 | K58: 0.94 | N58: 0.95 | Q58: 0.96
AM59: 0.03292253521 | AN59: BUCARAMANGA, TERRITORIO ORDENADO | AO59: 1 | AP59: PLANEANDO CONSTRUIMOS CIUDAD Y TERRITORIO | AQ59: Realizar la revisión del Plan de Ordenamiento Territorial - POT. | AR59: 0 | AS59: Porcentaje de avance de la revisión del Plan de Ordenamiento Territorial - POT. | AT59: 0 | AU59: 1 | AV59: 0 | AW59: =+AV59/AU59 -> 0 | AX59: 1 | AY59: =+AX59/AU59 -> 1 | AZ59: 0 | BA59: =+AZ59/AU59 -> 0 | BB59: 0 | BC59: =+BB59/AU59 -> 0 | BD59: 0.02 | BE59: 0 | BF59: 0 | BG59: 0 | BH59: - | BI59: - | BJ59: 0 | BK59: 0 | BL59: - | BM59: - | BN59: - | BO59: - | BP59: 0.005 | BQ59: 0.005 | BR59: 0.005 | BS59: 60000 | BT59: 49344.004 | BU59: 0 | BV59: 0.8224000667 | BW59: - | BX59: 2200000 | BY59: 0 | BZ59: 0 | CA59: 0 | CB59: - | CC59: 0 | CD59: 0 | CE59: 0 | CF59: - | CG59: - | CH59: 0 | CI59: 0 | CJ59: 0 | CK59: - | CL59: - | CM59: 2260000 | CN59: 49344.004 | CO59: 0 | CP59: 0.02183363009 | CQ59: - | CR59: 11 | CS59: Vivienda | CT59: Sec. Planeación
AQ60: Desarrollar 4 instrumentos derivados del POT para promover un desarrollo ordenado. | AR60: 0 | AS60: Número de instrumentos desarrollados para promover un desarrollo ordenado. | AT60: 0 | AU60: 4 | AV60: 0 | AW60: =+AV60/AU60 -> 0 | AX60: 2 | AY60: =+AX60/AU60 -> 0.5 | AZ60: 1 | BA60: =+AZ60/AU60 -> 0.25 | BB60: 1 | BC60: =+BB60/AU60 -> 0.25 | BD60: 0 | BE60: 0 | BF60: 0 | BG60: 0 | BH60: - | BI60: - | BJ60: 0 | BK60: 0 | BL60: 0 | BM60: 0 | BN60: 0 | BO60: 0 | BP60: 0 | BQ60: 0 | BR60: 0 | BS60: 700000 | BT60: 0 | BU60: 0 | BV60: 0 | BW60: - | BX60: 1000000 | BY60: 0 | BZ60: 0 | CA60: 0 | CB60: - | CC60: 2300000 | CD60: 0 | CE60: 0 | CF60: 0 | CG60: - | CH60: 2000000 | CI60: 0 | CJ60: 0 | CK60: 0 | CL60: - | CM60: 6000000 | CN60: 0 | CO60: 0 | CP60: 0 | CQ60: - | CR60: 11 | CS60: Vivienda | CT60: Sec. Planeación
AQ61: Realizar inspección, vigilancia y control al 100% de las obras licenciadas en el municipio. | AR61: 0 | AS61: Porcentaje de obras licenciadas en el municipio con inspección, vigilancia y control. | AT61: 0.79 | AU61: 1 | AV61: 1 | AW61: 0.25 | AX61: 1 | AY61: 0.25 | AZ61: 1 | BA61: 0.25 | BB61: 1 | BC61: 0.25 | BD61: 0.47 | BE61: 0 | BF61: 0 | BG61: 0 | BH61: 0.47 | BI61: 0.47 | BJ61: 0 | BK61: 0 | BL61: 0 | BM61: 0 | BN61: 0 | BO61: 0 | BP61: 0.1175 | BQ61: 0.1175 | BR61: 0.1175 | BS61: 364800 | BT61: 361300 | BU61: 0 | BV61: 0.9904057018 | BW61: - | BX61: 500000 | BY61: 0 | BZ61: 0 | CA61: 0 | CB61: - | CC61: 400000 | CD61: 0 | CE61: 0 | CF61: 0 | CG61: - | CH61: 400000 | CI61: 0 | CJ61: 0 | CK61: 0 | CL61: - | CM61: 1664800 | CN61: 361300 | CO61: 0 | CP61: 0.2170230658 | CQ61: - | CR61: 11 | CS61: Planeación | CT61: Sec. Planeación
AQ62: Legalizar 25 asentamientos humanos. | AR62: 0 | AS62: Número de asentamientos humanos legalizados. | AT62: 5 | AU62: 25 | AV62: 1 | AW62: =+AV62/AU62 -> 0.04 | AX62: 7 | AY62: =+AX62/AU62 -> 0.28 | AZ62: 8 | BA62: =+AZ62/AU62 -> 0.32 | BB62: 9 | BC62: =+BB62/AU62 -> 0.36 | BD62: 0.1 | BE62: 0 | BF62: 0 | BG62: 0 | BH62: 0.1 | BI62: 0.1 | BJ62: 0 | BK62: 0 | BL62: 0 | BM62: 0 | BN62: 0 | BO62: 0 | BP62: 0.001 | BQ62: 0.001 | BR62: 0.001 | BS62: 141300 | BT62: 98250 | BU62: 0 | BV62: 0.695329087 | BW62: - | BX62: 570000 | BY62: 0 | BZ62: 0 | CA62: 0 | CB62: - | CC62: 626000 | CD62: 0 | CE62: 0 | CF62: 0 | CG62: - | CH62: 600000 | CI62: 0 | CJ62: 0 | CK62: 0 | CL62: - | CM62: 1937300 | CN62: 98250 | CO62: 0 | CP62: 0.05071491251 | CQ62: - | CR62: 10, 11 | CS62: Planeación | CT62: Sec. Planeación
AQ63: Formular 1 Operación Urbana Estratégica - OUE. | AR63: 23020102 23020106 | AS63: Porcentaje de avance en la formulación de la Operación Urbana Estratégica - OUE. | AT63: 0 | AU63: 1 | AV63: 0 | AW63: =+AV63/AU63 -> 0 | AX63: 0.5 | AY63: =+AX63/AU63 -> 0.5 | AZ63: 0.5 | BA63: =+AZ63/AU63 -> 0.5 | BB63: 0 | BC63: =+BB63/AU63 -> 0 | BD63: 0 | BE63: 0 | BF63: 0 | BG63: 0 | BH63: - | BI63: - | BJ63: 0 | BK63: 0 | BL63: 0 | BM63: 0 | BN63: - | BO63: - | BP63: 0 | BQ63: 0 | BR63: 0 | BS63: 0 | BT63: 0 | BU63: 0 | BV63: - | BW63: - | BX63: 1000000 | BY63: 0 | BZ63: 0 | CA63: 0 | CB63: - | CC63: 1000000 | CD63: 0 | CE63: 0 | CF63: 0 | CG63: - | CH63: 0 | CI63: 0 | CJ63: 0 | CK63: - | CL63: - | CM63: 2000000 | CN63: 0 | CO63: 0 | CP63: 0 | CQ63: - | CR63: 10, 11 | CS63: Vivienda | CT63: INVISBU
AM65: 0.0425561064 | AN65: EN BUCARAMANGA CONSTRUIMOS UN TERRITORIO DE PAZ | AO65: 0.6764763861 | AP65: TRANSFORMADO VIDAS | AQ65: Formular e implementar 1 plan de acción con la Agencia para la Reincorporación y la Normalización - ARN. | AR65: 0 | AS65: Número de planes de acción formulados e implementados concon la Agencia para la Reincorporación y la Normalización - ARN. | AT65: 1 | AU65: 1 | AV65: 0 | AW65: =+AV65/AU65 -> 0 | AX65: 1 | AY65: 0.33 | AZ65: 1 | BA65: 0.33 | BB65: 1 | BC65: 0.34 | BD65: 0 | BE65: 0 | BF65: 0 | BG65: 0 | BH65: - | BI65: - | BJ65: 0 | BK65: 0 | BL65: 0 | BM65: 0 | BN65: 0 | BO65: 0 | BP65: =+AVERAGE(BE65:BG65)/AU65 -> 0 | BQ65: 0 | BR65: 0 | BS65: 0 | BT65: 0 | BU65: 0 | BV65: - | BW65: - | BX65: 50000 | BY65: 0 | BZ65: 0 | CA65: 0 | CB65: - | CC65: 50000 | CD65: 0 | CE65: 0 | CF65: 0 | CG65: - | CH65: 100000 | CI65: 0 | CJ65: 0 | CK65: 0 | CL65: - | CM65: 200000 | CN65: 0 | CO65: 0 | CP65: 0 | CQ65: - | CR65: 10, 8 | CS65: Interior | CT65: Sec. Interior
AQ66: Mantener la atención integral al 100% de la población adolescente en conflicto con la ley penal. | AR66: 0 | AS66: Porcentaje de población adolescente en conflicto con la ley penal mantenidos con atención integal. | AT66: 1 | AU66: 1 | AV66: 1 | AW66: 0.25 | AX66: 1 | AY66: 0.25 | AZ66: 1 | BA66: 0.25 | BB66: 1 | BC66: 0.25 | BD66: 0 | BE66: 0 | BF66: 0 | BG66: 0 | BH66: 0 | BI66: 0 | BJ66: 0 | BK66: 0 | BL66: 0 | BM66: 0 | BN66: 0 | BO66: 0 | BP66: 0 | BQ66: 0 | BR66: 0 | BS66: 2900000.308 | BT66: 0 | BU66: 0 | BV66: 0 | BW66: - | BX66: 2654591.423 | BY66: 0 | BZ66: 0 | CA66: 0 | CB66: - | CC66: 2781000.539 | CD66: 0 | CE66: 0 | CF66: 0 | CG66: - | CH66: 2907409.654 | CI66: 0 | CJ66: 0 | CK66: 0 | CL66: - | CM66: 11243001.92 | CN66: 0 | CO66: 0 | CP66: 0 | CQ66: - | CR66: 16 | CS66: Interior | CT66: Sec. Interior
AQ67: Desarrollar 4 iniciativas para la prevención de la trata de personas y explotación sexual comercial de niñas, niños y adolescentes. | AR67: 0 | AS67: Número de iniciativas desarrolladas para la prevención de la trata de personas y explotación sexual comercial en niñas, niños y adolescentes. | AT67: 0 | AU67: 4 | AV67: 1 | AW67: =+AV67/AU67 -> 0.25 | AX67: 1 | AY67: =+AX67/AU67 -> 0.25 | AZ67: 1 | BA67: =+AZ67/AU67 -> 0.25 | BB67: 1 | BC67: =+BB67/AU67 -> 0.25 | BD67: 1 | BE67: 0 | BF67: 0 | BG67: 0 | BH67: 1 | BI67: 1 | BJ67: 0 | BK67: 0 | BL67: 0 | BM67: 0 | BN67: 0 | BO67: 0 | BP67: 0.0625 | BQ67: 0.0625 | BR67: 0.0625 | BS67: 0 | BT67: 0 | BU67: 0 | BV67: - | BW67: - | BX67: 10000 | BY67: 0 | BZ67: 0 | CA67: 0 | CB67: - | CC67: 10000 | CD67: 0 | CE67: 0 | CF67: 0 | CG67: - | CH67: 10000 | CI67: 0 | CJ67: 0 | CK67: 0 | CL67: - | CM67: 30000 | CN67: 0 | CO67: 0 | CP67: 0 | CQ67: - | CR67: 16 | CS67: Interior | CT67: Sec. Interior
AO68: 0.2622560598 | AP68: ATENCIÓN A VÍCTIMAS DEL CONFLICTO ARMADO | AQ68: Formular e implementar el Plan de Acción Territorial. | AR68: 0 | AS68: Número de Planes de Acción Territorial formulados e implementados. | AT68: 1 | AU68: 1 | AV68: 1 | AW68: 0.25 | AX68: 1 | AY68: 0.25 | AZ68: 1 | BA68: 0.25 | BB68: 1 | BC68: 0.25 | BD68: 1 | BE68: 0 | BF68: 0 | BG68: 0 | BH68: 1 | BI68: 1 | BJ68: 0 | BK68: 0 | BL68: 0 | BM68: 0 | BN68: 0 | BO68: 0 | BP68: 0.25 | BQ68: 0.25 | BR68: 0.25 | BS68: 59848 | BT68: 0 | BU68: 0 | BV68: 0 | BW68: - | BX68: 313000 | BY68: 0 | BZ68: 0 | CA68: 0 | CB68: - | CC68: 313000 | CD68: 0 | CE68: 0 | CF68: 0 | CG68: - | CH68: 313000 | CI68: 0 | CJ68: 0 | CK68: 0 | CL68: - | CM68: 998848 | CN68: 0 | CO68: 0 | CP68: 0 | CQ68: - | CR68: 10.16 | CS68: Interior | CT68: Sec. Interior
AQ69: Formular e implementar el Plan Integral de prevención de violaciones a derechos humanos e infracciones al derecho internacional humanitario. | AR69: 0 | AS69: Número de Planes Integrales de prevención de violaciones a derechos humanos e infracciones al derecho internacional humanitario formulados e implementados. | AT69: 1 | AU69: 1 | AV69: 1 | AW69: 0.25 | AX69: 1 | AY69: 0.25 | AZ69: 1 | BA69: 0.25 | BB69: 1 | BC69: 0.25 | BD69: 0 | BE69: 0 | BF69: 0 | BG69: 0 | BH69: 0 | BI69: 0 | BJ69: 0 | BK69: 0 | BL69: 0 | BM69: 0 | BN69: 0 | BO69: 0 | BP69: 0 | BQ69: 0 | BR69: 0 | BS69: 17000 | BT69: 0 | BU69: 0 | BV69: 0 | BW69: - | BX69: 17000 | BY69: 0 | BZ69: 0 | CA69: 0 | CB69: - | CC69: 17000 | CD69: 0 | CE69: 0 | CF69: 0 | CG69: - | CH69: 17000 | CI69: 0 | CJ69: 0 | CK69: 0 | CL69: - | CM69: 68000 | CN69: 0 | CO69: 0 | CP69: 0 | CQ69: - | CR69: 16 | CS69: Interior | CT69: Sec. Interior
AQ70: Mantener la ayuda y atención humanitaria de emergencia y en transición al 100% de la población víctima del conflicto interno armado que cumpla con los requisitos de ley. | AR70: 0 | AS70: Porcentaje de población víctima del conflicto interno armado que cumpla con los requisitos de ley con ayuda humanitaria de emergencia y en transición . | AT70: 1 | AU70: 1 | AV70: 1 | AW70: 0.25 | AX70: 1 | AY70: 0.25 | AZ70: 1 | BA70: 0.25 | BB70: 1 | BC70: 0.25 | BD70: 1 | BE70: 0 | BF70: 0 | BG70: 0 | BH70: 1 | BI70: 1 | BJ70: 0 | BK70: 0 | BL70: 0 | BM70: 0 | BN70: 0 | BO70: 0 | BP70: 0.25 | BQ70: 0.25 | BR70: 0.25 | BS70: 279078 | BT70: 98883 | BU70: 0 | BV70: 0.3543202976 | BW70: - | BX70: 280000 | BY70: 0 | BZ70: 0 | CA70: 0 | CB70: - | CC70: 280000 | CD70: 0 | CE70: 0 | CF70: 0 | CG70: - | CH70: 280000 | CI70: 0 | CJ70: 0 | CK70: 0 | CL70: - | CM70: 1119078 | CN70: 98883 | CO70: 0 | CP70: 0.088361133 | CQ70: - | CR70: 16 | CS70: Interior | CT70: Sec. Interior
AQ71: Mantener la asistencia funeraria al 100% de la población víctima del conflicto que cumpla con los requisitos de ley. | AR71: 0 | AS71: Porcentaje de población víctima del conflicto que cumpla con los requisitos de ley con asistencia funeraria. | AT71: 1 | AU71: 1 | AV71: 1 | AW71: 0.25 | AX71: 1 | AY71: 0.25 | AZ71: 1 | BA71: 0.25 | BB71: 1 | BC71: 0.25 | BD71: 1 | BE71: 0 | BF71: 0 | BG71: 0 | BH71: 1 | BI71: 1 | BJ71: 0 | BK71: 0 | BL71: 0 | BM71: 0 | BN71: 0 | BO71: 0 | BP71: 0.25 | BQ71: 0.25 | BR71: 0.25 | BS71: 70000 | BT71: 70000 | BU71: 0 | BV71: 1 | BW71: - | BX71: 70000 | BY71: 0 | BZ71: 0 | CA71: 0 | CB71: - | CC71: 70000 | CD71: 0 | CE71: 0 | CF71: 0 | CG71: - | CH71: 70000 | CI71: 0 | CJ71: 0 | CK71: 0 | CL71: - | CM71: 280000 | CN71: 70000 | CO71: 0 | CP71: 0.25 | CQ71: - | CR71: 16 | CS71: Interior | CT71: Sec. Interior
D72: Reducir en 8 puntos porcentuales el déficit operacional del SITM. | E72: 0.08 | F72: 8 | H72: 2 | K72: 2 | N72: 2 | Q72: 2 | AQ72: Mantener las medidas de protección para prevenir riesgos y proteger a víctimas del conflicto interno armado al 100% de las solicitudes que cumplan con los requisitos de ley. | AR72: 0 | AS72: Porcentaje de solicitudes que cumplan con los requisitos de ley con medidas de protección mantenidas para prevenir riesgos y proteger a víctimas del conflicto interno armado. | AT72: 1 | AU72: 1 | AV72: 1 | AW72: 0.25 | AX72: 1 | AY72: 0.25 | AZ72: 1 | BA72: 0.25 | BB72: 1 | BC72: 0.25 | BD72: 1 | BE72: 0 | BF72: 0 | BG72: 0 | BH72: 1 | BI72: 1 | BJ72: 0 | BK72: 0 | BL72: 0 | BM72: 0 | BN72: 0 | BO72: 0 | BP72: 0.25 | BQ72: 0.25 | BR72: 0.25 | BS72: 10000 | BT72: 1706 | BU72: 0 | BV72: 0.1706 | BW72: - | BX72: 10000 | BY72: 0 | BZ72: 0 | CA72: 0 | CB72: - | CC72: 10000 | CD72: 0 | CE72: 0 | CF72: 0 | CG72: - | CH72: 10000 | CI72: 0 | CJ72: 0 | CK72: 0 | CL72: - | CM72: 40000 | CN72: 1706 | CO72: 0 | CP72: 0.04265 | CQ72: - | CR72: 16 | CS72: Interior | CT72: Sec. Interior
